Workbook

Sheet Main Menu

Sheet Input Flow Data
AS1: First | AT1: First | AU1: Volume | AV1: Volume
AN2: Volume | AO2: Volume | AP2: Volume | AS2: Backwash | AT2: Waste | AU2: Creek5 | AV2: Creek6
AN3: Hertz | AO3: Hours | AP3: Minutes
B8: Date
B9: 2024-03-06
C10: Time | D10: Reading 1 | E10: Reading 2 | F10: Reading 3
B11: Spring | C11: 12:58:00 | D11: 13195136.1 | E11: 4285582.752 | G11: Volume
B12: Creek | C12: 12:55 | D12: 122286 | E12: 312197 | G12: Volume
B13: Backwash | C13: 12:52:00 | D13: 13.4 | E13: 22.9 | F13: 20.9 | G13: Hours
B14: Waste | C14: 12:58:00 | D14: 0 | E14: 0 | F14: 742 | G14: Minutes
B17: =MAX(B19:B9998) -> 2024-03-06 | C17: =B17-B19+1 -> 458 | D17: =MAX(D19:D9998) -> 13195136.1 | E17: Spring Bld | F17: Spring Bld | H17: =MAX(H19:H9998) -> 2024-03-06 | I17: =H17-H19+1 -> 458 | J17: =MAX(J19:J9998) -> 4285582.752 | K17: Spring Tank | L17: Spring Tank | N17: =MAX(N19:N9998) -> 2024-03-06 | O17: =N17-N19+1 -> 458 | P17: =MAX(P19:P9998) -> 122286 | Q17: Creek 5 | R17: Creek 5 | T17: =MAX(T19:T9998) -> 2024-03-06 | U17: =T17-T19+1 -> 458 | V17: =MAX(V19:V9998) -> 312197 | W17: Creek 6 | X17: Creek 6 | Z17: =MAX(Z19:Z9998) -> 2024-03-06 | AA17: =Z17-Z19+1 -> 458 | AB17: =MAX(AB19:AB9998) -> 99.49 | AC17: Backwash 1 | AD17: Backwash 1 | AF17: =MAX(AF19:AF9998) -> 2024-03-06 | AG17: =AF17-AF19+1 -> 458 | AH17: =MAX(AH19:AH9998) -> 67.9 | AI17: Backwash 2 | AJ17: Backwash 2 | AL17: =MAX(AL19:AL9998) -> 2024-03-06 | AM17: =AL17-AL19+1 -> 458 | AN17: =MAX(AN19:AN9998) -> 141.7 | AO17: Backwash 3 | AP17: Backwash 3 | AR17: =MAX(AR19:AR9998) -> 2024-03-06 | AS17: =AR17-AR19+1 -> 458 | AT17: =MAX(AT19:AT9998) -> 1864 | AU17: Waste 1 | AV17: Waste 1 | AX17: =MAX(AX19:AX9998) -> 2024-03-06 | AY17: =AX17-AX19+1 -> 458 | AZ17: =MAX(AZ19:AZ9998) -> 0 | BA17: Waste 2 | BB17: Waste 2 | BD17: =MAX(BD19:BD9998) -> 2024-03-06 | BE17: =BD17-BD19+1 -> 458 | BF17: =MAX(BF19:BF9998) -> 5258 | BG17: Waste 3 | BH17: Waste 3
B18: Date | C18: Time | D18: Reading 1 | E18: Flow Rate | F18: Daily Flow | H18: Date | I18: Time | J18: Reading 2 | K18: Flow Rate | L18: Daily Flow | N18: Date | O18: Time | P18: Reading | Q18: Flow Rate | R18: Daily Flow | T18: Date | U18: Time | V18: Reading | W18: Flow Rate | X18: Daily Flow | Z18: Date | AA18: Time | AB18: Reading | AC18: Flow Rate | AD18: Daily Flow | AF18: Date | AG18: Time | AH18: Reading | AI18: Flow Rate | AJ18: Daily Flow | AL18: Date | AM18: Time | AN18: Reading | AO18: Flow Rate | AP18: Daily Flow | AR18: Date | AS18: Time | AT18: Reading | AU18: Flow Rate | AV18: Daily Flow | AX18: Date | AY18: Time | AZ18: Reading | BA18: Flow Rate | BB18: Daily Flow | BD18: Date | BE18: Time | BF18: Reading | BG18: Flow Rate | BH18: Daily Flow
B19: 2022-12-05 | C19: 11:00:00 | D19: 12516079.6 | E19: 1.317770898 | F19: =C19*E19+(1-C19)*E20 -> 1.321279994 | H19: 2022-12-05 | I19: 11:00:00 | J19: 4162680.8 | K19: 0.548879257 | L19: =I19*K19+(1-I19)*K20 -> 0.5491341258 | N19: 2022-12-05 | O19: 12:00:00 | P19: 0 | Q19: 0 | R19: =O19*Q19+(1-O19)*Q20 -> 0 | T19: 2022-12-05 | U19: 12:00:00 | V19: 58 | W19: 4.9785984 | X19: =U19*W19+(1-U19)*W20 -> 4.9785984 | Z19: 2022-12-05 | AA19: 09:25:00 | AB19: 0 | AC19: 3.1509006 | AD19: 0.003915309086 | AF19: 2022-12-05 | AG19: 09:25:00 | AH19: 40.7 | AI19: 10.23184358 | AJ19: 0.01836131099 | AL19: 2022-12-05 | AM19: 09:25:00 | AN19: 4.6 | AO19: 1.156424581 | AP19: 0.002613194451 | AR19: 2022-12-05 | AS19: 09:18:00 | AT19: 0 | AU19: 0 | AV19: =AS19*AU19+(1-AS19)*AU20 -> 0 | AX19: 2022-12-05 | AY19: 09:18:00 | AZ19: 0 | BA19: 0 | BB19: =AY19*BA19+(1-AY19)*BA20 -> 0 | BD19: 2022-12-05 | BE19: 09:18:00 | BF19: 2433 | BG19: 611.2212142 | BH19: 0.8216643471
B20: 2022-12-06 | C20: 14:01:00 | D20: 12517570.3 | E20: 1.324249229 | F20: 1.320588854 | H20: 2022-12-06 | I20: 14:01:00 | J20: 4163299.2 | K20: 0.5493497841 | L20: 0.548525886 | N20: 2022-12-06 | O20: 12:00:00 | P20: 0 | Q20: 0 | R20: 0 | T20: 2022-12-06 | U20: 12:00:00 | V20: 58 | W20: 4.9785984 | X20: 4.9785984 | Z20: 2022-12-06 | AA20: 14:52:00 | AB20: 16.4 | AC20: 3.1509006 | AD20: 0.01337222509 | AF20: 2022-12-06 | AG20: 14:52:00 | AH20: 14.3 | AI20: 11.65365025 | AJ20: 0.01954829223 | AL20: 2022-12-06 | AM20: 14:52:00 | AN20: 1.9 | AO20: 1.548387097 | AP20: 0.002595989941 | AR20: 2022-12-06 | AS20: 14:54:00 | AT20: 0 | AU20: 0 | AV20: 0 | AX20: 2022-12-06 | AY20: 14:54:00 | AZ20: 0 | BA20: 0 | BB20: 0 | BD20: 2022-12-06 | BE20: 14:54:00 | BF20: 1028 | BG20: 833.5135135 | BH20: 0.9417593958
B21: 2022-12-07 | C21: 09:53:00 | D21: 12518659.2 | E21: 1.315449664 | F21: 1.319393545 | H21: 2022-12-07 | I21: 09:53:00 | J21: 4163752.3 | K21: 0.5473691275 | L21: 0.5487679552 | N21: 2022-12-07 | O21: 12:00:00 | P21: 0 | Q21: 0 | R21: 0 | T21: 2022-12-07 | U21: 12:00:00 | V21: 58 | W21: 4.9785984 | X21: 4.9785984 | Z21: 2022-12-07 | AA21: 10:09:00 | AB21: 18.6 | AC21: 23.14952463 | AD21: 0.02684238631 | AF21: 2022-12-07 | AG21: 10:09:00 | AH21: 9.7 | AI21: 12.07260156 | AJ21: 0.02085096511 | AL21: 2022-12-07 | AM21: 10:09:00 | AN21: 0.9 | AO21: 1.120138289 | AP21: 0.002460522552 | AR21: 2022-12-07 | AS21: 10:18:00 | AT21: 0 | AU21: 0 | AV21: 0 | AX21: 2022-12-07 | AY21: 10:18:00 | AZ21: 0 | BA21: 0 | BB21: 0 | BD21: 2022-12-07 | BE21: 10:18:00 | BF21: 723 | BG21: 894.4329897 | BH21: 0.965822652
B22: 2022-12-08 | C22: 09:24:00 | D22: 12519954.73 | E22: 1.322154727 | F22: =C22*E22+(1-C22)*E23 -> 1.316111142 | H22: 2022-12-08 | I22: 09:24:00 | J22: 4164290.976 | K22: 0.5497472998 | L22: =I22*K22+(1-I22)*K23 -> 0.5497884943 | N22: 2022-12-08 | O22: 12:00:00 | P22: 0 | Q22: 0 | R22: =O22*Q22+(1-O22)*Q23 -> 0 | T22: 2022-12-08 | U22: 12:00:00 | V22: 58 | W22: 4.9785984 | X22: =U22*W22+(1-U22)*W23 -> 4.9785984 | Z22: 2022-12-08 | AA22: 09:15:00 | AB22: 19.7 | AC22: 0.02543295584 | AD22: =AA22*AC22+(1-AA22)*AC23 -> 0.02757523052 | AF22: 2022-12-08 | AG22: 09:15:00 | AH22: 12.5 | AI22: 0.02149090909 | AJ22: =AG22*AI22+(1-AG22)*AI23 -> 0.02189243091 | AL22: 2022-12-08 | AM22: 09:15:00 | AN22: 1.4 | AO22: 0.002725527273 | AP22: =AM22*AO22+(1-AM22)*AO23 -> 0.002613856364 | AR22: 2022-12-08 | AS22: 09:09:00 | AT22: 0 | AU22: 0 | AV22: =AS22*AU22+(1-AS22)*AU23 -> 0 | AX22: 2022-12-08 | AY22: 09:09:00 | AZ22: 0 | BA22: 0 | BB22: =AY22*BA22+(1-AY22)*BA23 -> 0 | BD22: 2022-12-08 | BE22: 09:09:00 | BF22: 825 | BG22: 0.952652954 | BH22: =BE22*BG22+(1-BE22)*BG23 -> 0.9627214506
B23: 2022-12-09 | C23: 10:13:00 | D23: 12521311.6 | E23: 1.312220067 | F23: =C23*E23+(1-C23)*E24 -> 1.313677113 | H23: 2022-12-09 | I23: 10:13:00 | J23: 4164859.5 | K23: 0.5498150168 | L23: 0.5503965948 | N23: 2022-12-09 | O23: 12:00:00 | P23: 0 | Q23: 0 | R23: 0 | T23: 2022-12-09 | U23: 12:00:00 | V23: 58 | W23: 4.9785984 | X23: 4.9785984 | Z23: 2022-12-09 | AA23: 10:00:00 | AB23: 24 | AC23: 0.02891869091 | AD23: 0.0222678238 | AF23: 2022-12-09 | AG23: 10:00:00 | AH23: 13.8 | AI23: 0.02214423273 | AJ23: 0.01815213302 | AL23: 2022-12-09 | AM23: 10:00:00 | AN23: 1.4 | AO23: 0.002543825455 | AP23: 0.002483388272 | AR23: 2022-12-09 | AS23: 10:22:00 | AT23: 0 | AU23: 0 | AV23: 0 | AX23: 2022-12-09 | AY23: 10:22:00 | AZ23: 0 | BA23: 0 | BB23: 0 | BD23: 2022-12-09 | BE23: 10:22:00 | BF23: 926 | BG23: 0.9689252716 | BH23: 0.7875374748
E24: 1.314757123 | F24: 1.314757123 | K24: 0.5508276798 | L24: 0.5508276798 | Q24: 0 | R24: 0 | W24: 4.9785984 | X24: 4.9785984 | AC24: 0.01751720443 | AD24: 0.01751720443 | AI24: 0.01530063324 | AJ24: 0.01530063324 | AO24: 0.002440218856 | AP24: 0.002440218856 | AU24: 0 | AV24: 0 | BA24: 0 | BB24: 0 | BG24: 0.6496117906 | BH24: 0.6496117906
E25: 1.314757123 | F25: 1.314757123 | K25: 0.5508276798 | L25: 0.5508276798 | Q25: 0 | R25: 0 | W25: 4.9785984 | X25: 4.9785984 | AC25: 0.01751720443 | AD25: 0.01751720443 | AI25: 0.01530063324 | AJ25: 0.01530063324 | AO25: 0.002440218856 | AP25: 0.002440218856 | AU25: 0 | AV25: 0 | BA25: 0 | BB25: 0 | BG25: 0.6496117906 | BH25: 0.6496117906
B26: 2022-12-12 | C26: 11:55:00 | D26: 12525349 | E26: 1.314757123 | F26: 1.312006606 | H26: 2022-12-12 | I26: 11:55:00 | J26: 4166551 | K26: 0.5508276798 | L26: 0.5502273881 | N26: 2022-12-12 | O26: 12:00:00 | P26: 0 | Q26: 0 | R26: 0 | T26: 2022-12-12 | U26: 12:00:00 | V26: 58 | W26: 4.9785984 | X26: 4.9785984 | Z26: 2022-12-12 | AA26: 11:43:00 | AB26: 43.3 | AC26: 0.01751720443 | AD26: 0.01762470542 | AF26: 2022-12-12 | AG26: 11:43:00 | AH26: 28.4 | AI26: 0.01530063324 | AJ26: 0.01511570547 | AL26: 2022-12-12 | AM26: 11:43:00 | AN26: 4 | AO26: 0.002440218856 | AP26: 0.002260179462 | AR26: 2022-12-12 | AS26: 11:36:00 | AT26: 0 | AU26: 0 | AV26: 0 | AX26: 2022-12-12 | AY26: 11:36:00 | AZ26: 0 | BA26: 0 | BB26: 0 | BD26: 2022-12-12 | BE26: 11:36:00 | BF26: 1803 | BG26: 0.6496117906 | BH26: 0.7832759625
B27: 2022-12-13 | C27: 09:24:00 | D27: 12526521 | E27: 1.309294026 | F27: 1.30859695 | H27: 2022-12-13 | I27: 09:24:00 | J27: 4167043 | K27: 0.5496353763 | L27: 0.5499322919 | N27: 2022-12-13 | O27: 12:00:00 | P27: 0 | Q27: 0 | R27: 0 | T27: 2022-12-13 | U27: 12:00:00 | V27: 58 | W27: 4.9785984 | X27: =U27*W27+(1-U27)*W28 -> 4.9785984 | Z27: 2022-12-13 | AA27: 09:15:00 | AB27: 12.8 | AC27: 0.01772724706 | AD27: 0.01909319379 | AF27: 2022-12-13 | AG27: 09:15:00 | AH27: 8.1 | AI27: 0.01493930898 | AJ27: 0.01590635253 | AL27: 2022-12-13 | AM27: 09:15:00 | AN27: 1 | AO27: 0.00208844582 | AP27: 0.002340923576 | AR27: 2022-12-13 | AS27: 09:11:00 | AT27: 0 | AU27: 0 | AV27: 0 | AX27: 2022-12-13 | AY27: 09:11:00 | AZ27: 0 | BA27: 0 | BB27: 0 | BD27: 2022-12-13 | BE27: 09:11:00 | BF27: 743 | BG27: 0.9083166394 | BH27: 0.940970544
E28: 1.308148148 | F28: 1.308148148 | K28: 0.5501234568 | L28: 0.5501234568 | Q28: 0 | R28: 0 | W28: 4.9785984 | X28: 4.9785984 | AC28: 0.01994980446 | AD28: 0.01994980446 | AI28: 0.01651280357 | AJ28: 0.01651280357 | AO28: 0.002499257084 | AP28: 0.002499257084 | AU28: 0 | AV28: 0 | BA28: 0 | BB28: 0 | BG28: 0.9612093532 | BH28: 0.9612093532
B29: 2022-12-15 | C29: 10:00:00 | D29: 12529170 | E29: 1.308148148 | F29: 1.312859481 | H29: 2022-12-15 | I29: 10:00:00 | J29: 4168157 | K29: 0.5501234568 | L29: 0.5504840246 | N29: 2022-12-15 | O29: 12:00:00 | P29: 0 | Q29: 0 | R29: 0 | T29: 2022-12-15 | U29: 12:00:00 | V29: 58 | W29: 4.9785984 | X29: 4.9785984 | Z29: 2022-12-15 | AA29: 09:50:00 | AB29: 32.5 | AC29: 0.01994980446 | AD29: 0.02087184061 | AF29: 2022-12-15 | AG29: 09:50:00 | AH29: 20.2 | AI29: 0.01651280357 | AJ29: 0.01873286603 | AL29: 2022-12-15 | AM29: 09:50:00 | AN29: 2.7 | AO29: 0.002499257084 | AP29: 0.002987909921 | AR29: 2022-12-15 | AS29: 09:10:00 | AT29: 0 | AU29: 0 | AV29: 0 | AX29: 2022-12-15 | AY29: 09:10:00 | AZ29: 0 | BA29: 0 | BB29: 0 | BD29: 2022-12-15 | BE29: 09:10:00 | BF29: 1748 | BG29: 0.9612093532 | BH29: 0.6866396389
B30: 2022-12-16 | C30: 12:42:00 | D30: 12530634.3 | E30: 1.316224719 | F30: 1.316037256 | H30: 2022-12-16 | I30: 12:42:00 | J30: 4168769.7 | K30: 0.550741573 | L30: 0.5507972282 | N30: 2022-12-16 | O30: 12:00:00 | P30: 0 | Q30: 0 | R30: 0 | T30: 2022-12-16 | U30: 12:00:00 | V30: 58 | W30: 4.9785984 | X30: 4.9785984 | Z30: 2022-12-16 | AA30: 12:52:00 | AB30: 19.5 | AC30: 0.02151184217 | AD30: 0.02025437206 | AF30: 2022-12-16 | AG30: 12:52:00 | AH30: 13.8 | AI30: 0.02027385055 | AJ30: 0.01814424609 | AL30: 2022-12-16 | AM30: 12:52:00 | AN30: 2 | AO30: 0.003327092478 | AP30: 0.002939905609 | AR30: 2022-12-16 | AS30: 12:59:00 | AT30: 0 | AU30: 0 | AV30: 0 | AX30: 2022-12-16 | AY30: 12:59:00 | AZ30: 0 | BA30: 0 | BB30: 0 | BD30: 2022-12-16 | BE30: 12:59:00 | BF30: 545 | BG30: 0.5169617256 | BH30: 0.3685923278
E31: 1.315826568 | F31: 1.315826568 | K31: 0.5508597786 | L31: 0.5508597786 | Q31: 0 | R31: 0 | W31: 4.9785984 | X31: 4.9785984 | AC31: 0.01880112817 | AD31: 0.01880112817 | AI31: 0.01568308644 | AJ31: 0.01568308644 | AO31: 0.002492438149 | AP31: 0.002492438149 | AU31: 0 | AV31: 0 | BA31: 0 | BB31: 0 | BG31: 0.1937364113 | BH31: 0.1937364113
E32: 1.315826568 | F32: 1.315826568 | K32: 0.5508597786 | L32: 0.5508597786 | Q32: 0 | R32: 0 | W32: 4.9785984 | X32: 4.9785984 | AC32: 0.01880112817 | AD32: 0.01880112817 | AI32: 0.01568308644 | AJ32: 0.01568308644 | AO32: 0.002492438149 | AP32: 0.002492438149 | AU32: 0 | AV32: 0 | BA32: 0 | BB32: 0 | BG32: 0.1937364113 | BH32: 0.1937364113
B33: 2022-12-19 | C33: 12:58:00 | D33: 12534596.4 | E33: 1.315826568 | F33: 1.314675043 | H33: 2022-12-19 | I33: 12:58:00 | J33: 4170428.4 | K33: 0.5508597786 | L33: 0.5507123695 | N33: 2022-12-19 | O33: 12:00:00 | P33: 0 | Q33: 0 | R33: 0 | T33: 2022-12-19 | U33: 12:00:00 | V33: 58 | W33: 4.9785984 | X33: 4.9785984 | Z33: 2022-12-19 | AA33: 13:02:20 | AB33: 45.5 | AC33: 0.01880112817 | AD33: 0.0184974184 | AF33: 2022-12-19 | AG33: 13:02:20 | AH33: 28.5 | AI33: 0.01568308644 | AJ33: 0.01488117494 | AL33: 2022-12-19 | AM33: 13:02:20 | AN33: 4 | AO33: 0.002492438149 | AP33: 0.002265825096 | AR33: 2022-12-19 | AS33: 10:02:00 | AT33: 0 | AU33: 0 | AV33: 0 | AX33: 2022-12-19 | AY33: 10:02:00 | AZ33: 0 | BA33: 0 | BB33: 0 | BD33: 2022-12-19 | BE33: 10:02:00 | BF33: 507 | BG33: 0.1937364113 | BH33: 0.2709196891
B34: 2022-12-20 | C34: 11:58:00 | D34: 12535855 | E34: 1.313321739 | F34: 1.310080977 | H34: 2022-12-20 | I34: 11:58:00 | J34: 4170956 | K34: 0.5505391304 | L34: 0.5496080993 | N34: 2022-12-20 | O34: 12:00:00 | P34: 0 | Q34: 0 | R34: 0 | T34: 2022-12-20 | U34: 12:00:00 | V34: 58 | W34: 4.9785984 | X34: =U34*W34+(1-U34)*W35 -> 4.9785984 | Z34: 2022-12-20 | AA34: 11:34:00 | AB34: 13.7 | AC34: 0.01813613771 | AD34: 0.0182862936 | AF34: 2022-12-20 | AG34: 11:34:00 | AH34: 7.9 | AI34: 0.01392725386 | AJ34: 0.01472159162 | AL34: 2022-12-20 | AM34: 11:34:00 | AN34: 1 | AO34: 0.001996255487 | AP34: 0.002126963242 | AR34: 2022-12-20 | AS34: 11:30:00 | AT34: 0 | AU34: 0 | AV34: 0.2011799286 | AX34: 2022-12-20 | AY34: 11:30:00 | AZ34: 0 | BA34: 0 | BB34: 0 | BD34: 2022-12-20 | BE34: 11:30:00 | BF34: 315 | BG34: 0.3263663874 | BH34: 0.156383894
B35: 2022-12-21 | C35: 15:49:00 | D35: 12537371.5 | E35: 1.306858169 | F35: 1.307448959 | H35: 2022-12-21 | I35: 15:49:00 | J35: 4171592.7 | K35: 0.5486822262 | L35: 0.5484102408 | N35: 2022-12-21 | O35: 12:00:00 | P35: 0 | Q35: 0 | R35: 0 | T35: 2022-12-21 | U35: 12:00:00 | V35: 58 | W35: 4.9785984 | X35: 4.9785984 | Z35: 2022-12-21 | AA35: 15:34:00 | AB35: 17.3 | AC35: 0.01842598286 | AD35: 0.01885691508 | AF35: 2022-12-21 | AG35: 15:34:00 | AH35: 10.9 | AI35: 0.01546056 | AJ35: 0.01538640912 | AL35: 2022-12-21 | AM35: 15:34:00 | AN35: 1.4 | AO35: 0.00224856 | AP35: 0.002278397299 | AR35: 2022-12-21 | AS35: 15:31:00 | AT35: 318 | AU35: 0.3862654629 | AV35: 0.3917964897 | AX35: 2022-12-21 | AY35: 15:31:00 | AZ35: 0 | BA35: 0 | BB35: 0 | BD35: 2022-12-21 | BE35: 15:31:00 | BF35: 0 | BG35: 0 | BH35: 0
B36: 2022-12-22 | C36: 11:27:00 | D36: 12538442 | E36: 1.308590832 | F36: 1.309760126 | H36: 2022-12-22 | I36: 11:27:00 | J36: 4172040.9 | K36: 0.5478845501 | L36: 0.5474911178 | N36: 2022-12-22 | O36: 12:00:00 | P36: 0 | Q36: 0 | R36: 0 | T36: 2022-12-22 | U36: 12:00:00 | V36: 58 | W36: 4.9785984 | X36: 4.9785984 | Z36: 2022-12-22 | AA36: 10:50:20 | AB36: 12.7 | AC36: 0.01965235123 | AD36: 0.02066549276 | AF36: 2022-12-22 | AG36: 10:50:20 | AH36: 7.4 | AI36: 0.01524953773 | AJ36: 0.01544304021 | AL36: 2022-12-22 | AM36: 10:50:20 | AN36: 1 | AO36: 0.00233347247 | AP36: 0.002385225637 | AR36: 2022-12-22 | AS36: 10:29:00 | AT36: 224 | AU36: 0.4019131613 | AV36: 0.3834800108 | AX36: 2022-12-22 | AY36: 10:29:00 | AZ36: 0 | BA36: 0 | BB36: 0 | BD36: 2022-12-22 | BE36: 10:29:00 | BF36: 0 | BG36: 0 | BH36: 0
E37: 1.310826933 | F37: 1.310826933 | K37: 0.5471321696 | L37: 0.5471321696 | Q37: 0 | R37: 0 | W37: 4.9785984 | X37: 4.9785984 | AC37: 0.02149986977 | AD37: 0.02149986977 | AI37: 0.0156024 | AJ37: 0.0156024 | AO37: 0.002427847176 | AP37: 0.002427847176 | AU37: 0.3691835229 | AV37: 0.3691835229 | BA37: 0 | BB37: 0 | BG37: 0 | BH37: 0
E38: 1.310826933 | F38: 1.310826933 | K38: 0.5471321696 | L38: 0.5471321696 | Q38: 0 | R38: 0 | W38: 4.9785984 | X38: 4.9785984 | AC38: 0.02149986977 | AD38: 0.02149986977 | AI38: 0.0156024 | AJ38: 0.0156024 | AO38: 0.002427847176 | AP38: 0.002427847176 | AU38: 0.3691835229 | AV38: 0.3691835229 | BA38: 0 | BB38: 0 | BG38: 0 | BH38: 0
E39: 1.310826933 | F39: 1.310826933 | K39: 0.5471321696 | L39: 0.5471321696 | Q39: 0 | R39: 0 | W39: 4.9785984 | X39: 4.9785984 | AC39: 0.02149986977 | AD39: 0.02149986977 | AI39: 0.0156024 | AJ39: 0.0156024 | AO39: 0.002427847176 | AP39: 0.002427847176 | AU39: 0.3691835229 | AV39: 0.3691835229 | BA39: 0 | BB39: 0 | BG39: 0 | BH39: 0
E40: 1.310826933 | F40: 1.310826933 | K40: 0.5471321696 | L40: 0.5471321696 | Q40: 0 | R40: 0 | W40: 4.9785984 | X40: 4.9785984 | AC40: 0.02149986977 | AD40: 0.02149986977 | AI40: 0.0156024 | AJ40: 0.0156024 | AO40: 0.002427847176 | AP40: 0.002427847176 | AU40: 0.3691835229 | AV40: 0.3691835229 | BA40: 0 | BB40: 0 | BG40: 0 | BH40: 0
B41: 2022-12-27 | C41: 11:45:00 | D41: 12545012.52 | E41: 1.310826933 | F41: 1.336328286 | H41: 2022-12-27 | I41: 11:45:00 | J41: 4174783.4 | K41: 0.5471321696 | L41: 0.5470349271 | N41: 2022-12-27 | O41: 12:00:00 | P41: 0 | Q41: 0 | R41: 0 | T41: 2022-12-27 | U41: 12:00:00 | V41: 58 | W41: 4.9785984 | X41: 4.9785984 | Z41: 2022-12-27 | AA41: 11:14:20 | AB41: 86.8 | AC41: 0.02149986977 | AD41: 0.02100394249 | AF41: 2022-12-27 | AG41: 11:14:20 | AH41: 47.3 | AI41: 0.0156024 | AJ41: 0.0149765159 | AL41: 2022-12-27 | AM41: 11:14:20 | AN41: 6.5 | AO41: 0.002427847176 | AP41: 0.002346260257 | AR41: 2022-12-27 | AS41: 11:53:00 | AT41: 1317 | AU41: 0.3691835229 | AV41: 0.364568554 | AX41: 2022-12-27 | AY41: 11:53:00 | AZ41: 0 | BA41: 0 | BB41: 0 | BD41: 2022-12-27 | BE41: 11:53:00 | BF41: 0 | BG41: 0 | BH41: 0
B42: 2022-12-28 | C42: 09:07:00 | D42: 12546224 | E42: 1.360788768 | F42: 1.305377557 | H42: 2022-12-28 | I42: 09:07:00 | J42: 4175270.33 | K42: 0.5469416537 | L42: 0.5468919583 | N42: 2022-12-28 | O42: 12:00:00 | P42: 0 | Q42: 0 | R42: 0 | T42: 2022-12-28 | U42: 12:00:00 | V42: 58 | W42: 4.9785984 | X42: 4.9785984 | Z42: 2022-12-28 | AA42: 08:59:20 | AB42: 15 | AC42: 0.02056717241 | AD42: 0.02117231687 | AF42: 2022-12-28 | AG42: 08:59:20 | AH42: 7.9 | AI42: 0.01442529103 | AJ42: 0.01592461903 | AL42: 2022-12-28 | AM42: 08:59:20 | AN42: 1.1 | AO42: 0.002274405517 | AP42: 0.002553891103 | AR42: 2022-12-28 | AS42: 08:52:00 | AT42: 222 | AU42: 0.3600424566 | AV42: 0.41156302 | AX42: 2022-12-28 | AY42: 08:52:00 | AZ42: 0 | BA42: 0 | BB42: 0 | BD42: 2022-12-28 | BE42: 08:52:00 | BF42: 0 | BG42: 0 | BH42: 0
B43: 2022-12-29 | C43: 09:56:00 | D43: 12547538.7 | E43: 1.271435863 | F43: 1.299214182 | H43: 2022-12-29 | I43: 09:56:00 | J43: 4175835.8 | K43: 0.5468615178 | L43: 0.5462597318 | N43: 2022-12-29 | O43: 12:00:00 | P43: 0 | Q43: 0 | R43: 0 | T43: 2022-12-29 | U43: 12:00:00 | V43: 58 | W43: 4.9785984 | X43: 4.9785984 | Z43: 2022-12-29 | AA43: 09:46:40 | AB43: 17.9 | AC43: 0.02153468687 | AD43: 0.02344781305 | AF43: 2022-12-29 | AG43: 09:46:40 | AH43: 10.5 | AI43: 0.01682244016 | AJ43: 0.02019081283 | AL43: 2022-12-29 | AM43: 09:46:40 | AN43: 1.5 | AO43: 0.002721251457 | AP43: 0.003599759851 | AR43: 2022-12-29 | AS43: 09:08:00 | AT43: 315 | AU43: 0.4417490769 | AV43: 0.4936589575 | AX43: 2022-12-29 | AY43: 09:08:00 | AZ43: 0 | BA43: 0 | BB43: 0 | BD43: 2022-12-29 | BE43: 09:08:00 | BF43: 0 | BG43: 0 | BH43: 0
E44: 1.318830151 | F44: 1.318830151 | K44: 0.5458347739 | L44: 0.5458347739 | Q44: 0 | R44: 0 | W44: 4.9785984 | X44: 4.9785984 | AC44: 0.02476308729 | AD44: 0.02476308729 | AI44: 0.02250656904 | AJ44: 0.02250656904 | AO44: 0.004203734372 | AP44: 0.004203734372 | AU44: 0.5255497809 | AV44: 0.5255497809 | BA44: 0 | BB44: 0 | BG44: 0 | BH44: 0
E45: 1.318830151 | F45: 1.318830151 | K45: 0.5458347739 | L45: 0.5458347739 | Q45: 0 | R45: 0 | W45: 4.9785984 | X45: 4.9785984 | AC45: 0.02476308729 | AD45: 0.02476308729 | AI45: 0.02250656904 | AJ45: 0.02250656904 | AO45: 0.004203734372 | AP45: 0.004203734372 | AU45: 0.5255497809 | AV45: 0.5255497809 | BA45: 0 | BB45: 0 | BG45: 0 | BH45: 0
E46: 1.318830151 | F46: 1.318830151 | K46: 0.5458347739 | L46: 0.5458347739 | Q46: 0 | R46: 0 | W46: 4.9785984 | X46: 4.9785984 | AC46: 0.02476308729 | AD46: 0.02476308729 | AI46: 0.02250656904 | AJ46: 0.02250656904 | AO46: 0.004203734372 | AP46: 0.004203734372 | AU46: 0.5255497809 | AV46: 0.5255497809 | BA46: 0 | BB46: 0 | BG46: 0 | BH46: 0
E47: 1.318830151 | F47: 1.318830151 | K47: 0.5458347739 | L47: 0.5458347739 | Q47: 0 | R47: 0 | W47: 4.9785984 | X47: 4.9785984 | AC47: 0.02476308729 | AD47: 0.02476308729 | AI47: 0.02250656904 | AJ47: 0.02250656904 | AO47: 0.004203734372 | AP47: 0.004203734372 | AU47: 0.5255497809 | AV47: 0.5255497809 | BA47: 0 | BB47: 0 | BG47: 0 | BH47: 0
B48: 2023-01-03 | C48: 09:20:00 | D48: 12554099.88 | E48: 1.318830151 | F48: 1.316366744 | H48: 2023-01-03 | I48: 09:20:00 | J48: 4178551.328 | K48: 0.5458347739 | L48: 0.5447736941 | N48: 2023-01-03 | O48: 12:00:00 | P48: 0 | Q48: 0 | R48: 0 | T48: 2023-01-03 | U48: 12:00:00 | V48: 58 | W48: 4.9785984 | X48: 4.9785984 | Z48: 2023-01-03 | AA48: 09:35:40 | AB48: 99.49 | AC48: 0.02476308729 | AD48: 0.02484561183 | AF48: 2023-01-03 | AG48: 09:35:40 | AH48: 67.9 | AI48: 0.02250656904 | AJ48: 0.02405837553 | AL48: 2023-01-03 | AM48: 09:35:40 | AN48: 11.2 | AO48: 0.004203734372 | AP48: 0.004355682892 | AR48: 2023-01-03 | AS48: 09:50:00 | AT48: 1864 | AU48: 0.5255497809 | AV48: 0.5422535587 | AX48: 2023-01-03 | AY48: 09:50:00 | AZ48: 0 | BA48: 0 | BB48: 0 | BD48: 2023-01-03 | BE48: 09:50:00 | BF48: 0 | BG48: 0 | BH48: 0
B49: 2023-01-04 | C49: 09:36:00 | D49: 12555429.29 | E49: 1.314799121 | F49: 1.312449366 | H49: 2023-01-04 | I49: 09:36:00 | J49: 4179101.472 | K49: 0.5440984615 | L49: 0.5436256113 | N49: 2023-01-04 | O49: 12:00:00 | P49: 0 | Q49: 0 | R49: 0 | T49: 2023-01-04 | U49: 12:00:00 | V49: 58 | W49: 4.9785984 | X49: 4.9785984 | Z49: 2023-01-04 | AA49: 09:48:40 | AB49: 20.22 | AC49: 0.02490057514 | AD49: 0.02458495399 | AF49: 2023-01-04 | AG49: 09:48:40 | AH49: 15.3 | AI49: 0.02509191576 | AJ49: 0.02239950866 | AL49: 2023-01-04 | AM49: 09:48:40 | AN49: 2.4 | AO49: 0.00445688424 | AP49: 0.004042938747 | AR49: 2023-01-04 | AS49: 09:22:00 | AT49: 383 | AU49: 0.5538479456 | AV49: 0.5066198558 | AX49: 2023-01-04 | AY49: 09:22:00 | AZ49: 0 | BA49: 0 | BB49: 0 | BD49: 2023-01-04 | BE49: 09:22:00 | BF49: 0 | BG49: 0 | BH49: 0
B50: 2023-01-05 | C50: 10:45:00 | D50: 12556802.98 | E50: 1.310882863 | F50: 1.311416261 | H50: 2023-01-05 | I50: 10:45:00 | J50: 4179670.816 | K50: 0.5433103777 | L50: 0.5423176063 | N50: 2023-01-05 | O50: 12:00:00 | P50: 0 | Q50: 0 | R50: 0 | T50: 2023-01-05 | U50: 12:00:00 | V50: 58 | W50: 4.9785984 | X50: 4.9785984 | Z50: 2023-01-05 | AA50: 10:57:00 | AB50: 20.54 | AC50: 0.02436671321 | AD50: 0.02395204899 | AF50: 2023-01-05 | AG50: 10:57:00 | AH50: 13 | AI50: 0.02053780508 | AJ50: 0.01947873697 | AL50: 2023-01-05 | AM50: 10:57:00 | AN50: 2.1 | AO50: 0.003756710188 | AP50: 0.003482945959 | AR50: 2023-01-05 | AS50: 10:35:00 | AT50: 353 | AU50: 0.4763895751 | AV50: 0.4725617008 | AX50: 2023-01-05 | AY50: 10:35:00 | AZ50: 0 | BA50: 0 | BB50: 0 | BD50: 2023-01-05 | BE50: 10:35:00 | BF50: 0 | BG50: 0 | BH50: 0
B51: 2023-01-06 | C51: 10:42:00 | D51: 12558112.1 | E51: 1.311849019 | F51: 1.310878217 | H51: 2023-01-06 | I51: 10:42:00 | J51: 4180211.2 | K51: 0.5415121503 | L51: 0.5437132792 | N51: 2023-01-06 | O51: 12:00:00 | P51: 0 | Q51: 0 | R51: 0 | T51: 2023-01-06 | U51: 12:00:00 | V51: 58 | W51: 4.9785984 | X51: 4.9785984 | Z51: 2023-01-06 | AA51: 10:27:00 | AB51: 18.6 | AC51: 0.02360411234 | AD51: 0.02337251903 | AF51: 2023-01-06 | AG51: 10:27:00 | AH51: 11 | AI51: 0.01859009362 | AJ51: 0.01843202179 | AL51: 2023-01-06 | AM51: 10:27:00 | AN51: 1.7 | AO51: 0.003253235745 | AP51: 0.003337810867 | AR51: 2023-01-06 | AS51: 10:17:00 | AT51: 327 | AU51: 0.4695421975 | AV51: 0.4585719226 | AX51: 2023-01-06 | AY51: 10:17:00 | AZ51: 0 | BA51: 0 | BB51: 0 | BD51: 2023-01-06 | BE51: 10:17:00 | BF51: 0 | BG51: 0 | BH51: 0
E52: 1.310097196 | F52: 1.310097196 | K52: 0.5454841121 | L52: 0.5454841121 | Q52: 0 | R52: 0 | W52: 4.9785984 | X52: 4.9785984 | AC52: 0.02319391016 | AD52: 0.02319391016 | AI52: 0.01831011401 | AJ52: 0.01831011401 | AO52: 0.003403036699 | AP52: 0.003403036699 | AU52: 0.4503475488 | AV52: 0.4503475488 | BA52: 0 | BB52: 0 | BG52: 0 | BH52: 0
E53: 1.310097196 | F53: 1.310097196 | K53: 0.5454841121 | L53: 0.5454841121 | Q53: 0 | R53: 0 | W53: 4.9785984 | X53: 4.9785984 | AC53: 0.02319391016 | AD53: 0.02319391016 | AI53: 0.01831011401 | AJ53: 0.01831011401 | AO53: 0.003403036699 | AP53: 0.003403036699 | AU53: 0.4503475488 | AV53: 0.4503475488 | BA53: 0 | BB53: 0 | BG53: 0 | BH53: 0
B54: 2023-01-09 | C54: 10:02:00 | D54: 12562006 | E54: 1.310097196 | F54: 1.352764941 | H54: 2023-01-09 | I54: 10:02:00 | J54: 4181832.5 | K54: 0.5454841121 | L54: 0.5204060753 | N54: 2023-01-09 | O54: 12:00:00 | P54: 0 | Q54: 0 | R54: 0 | T54: 2023-01-09 | U54: 12:00:00 | V54: 58 | W54: 4.9785984 | X54: 4.9785984 | Z54: 2023-01-09 | AA54: 09:48:40 | AB54: 55.5 | AC54: 0.02319391016 | AD54: 0.02312881068 | AF54: 2023-01-09 | AG54: 09:48:40 | AH54: 32.9 | AI54: 0.01831011401 | AJ54: 0.01913320388 | AL54: 2023-01-09 | AM54: 09:48:40 | AN54: 5.4 | AO54: 0.003403036699 | AP54: 0.003449105687 | AR54: 2023-01-09 | AS54: 09:28:00 | AT54: 942 | AU54: 0.4503475488 | AV54: 0.4027105248 | AX54: 2023-01-09 | AY54: 09:28:00 | AZ54: 0 | BA54: 0 | BB54: 0 | BD54: 2023-01-09 | BE54: 09:28:00 | BF54: 0 | BG54: 0 | BH54: 0
B55: 2023-01-10 | C55: 14:22:00 | D55: 12563639.2 | E55: 1.383416471 | F55: 1.542866756 | H55: 2023-01-10 | I55: 14:22:00 | J55: 4182425.6 | K55: 0.5023905882 | L55: 0.4027476903 | N55: 2023-01-10 | O55: 12:00:00 | P55: 0 | Q55: 0 | R55: 0 | T55: 2023-01-10 | U55: 12:00:00 | V55: 58 | W55: 4.9785984 | X55: 4.9785984 | Z55: 2023-01-10 | AA55: 14:14:00 | AB55: 22 | AC55: 0.02308379672 | AD55: 0.01981471445 | AF55: 2023-01-10 | AG55: 14:14:00 | AH55: 14.1 | AI55: 0.0197023412 | AJ55: 0.0190413925 | AL55: 2023-01-10 | AM55: 14:14:00 | AN55: 2.2 | AO55: 0.003480960751 | AP55: 0.003241528598 | AR55: 2023-01-10 | AS55: 14:02:00 | AT55: 312 | AU55: 0.3716809036 | AV55: 0.371119711 | AX55: 2023-01-10 | AY55: 14:02:00 | AZ55: 0 | BA55: 0 | BB55: 0 | BD55: 2023-01-10 | BE55: 14:02:00 | BF55: 0 | BG55: 0 | BH55: 0
B56: 2023-01-11 | C56: 10:47:00 | D56: 12565154 | E56: 1.780662857 | F56: 1.777581155 | H56: 2023-01-11 | I56: 10:47:00 | J56: 4182641.8 | K56: 0.2541453061 | L56: 0.255926808 | N56: 2023-01-11 | O56: 12:00:00 | P56: 0 | Q56: 0 | R56: 0 | T56: 2023-01-11 | U56: 12:00:00 | V56: 58 | W56: 4.9785984 | X56: 4.9785984 | Z56: 2023-01-11 | AA56: 10:26:40 | AB56: 10.2 | AC56: 0.01505055701 | AD56: 0.01996226728 | AF56: 2023-01-11 | AG56: 10:26:40 | AH56: 9.2 | AI56: 0.0180781669 | AJ56: 0.01924118703 | AL56: 2023-01-11 | AM56: 10:26:40 | AN56: 1.3 | AO56: 0.002892595052 | AP56: 0.003344862044 | AR56: 2023-01-11 | AS56: 10:15:00 | AT56: 220 | AU56: 0.3703295367 | AV56: 0.3812198992 | AX56: 2023-01-11 | AY56: 10:15:00 | AZ56: 0 | BA56: 0 | BB56: 0 | BD56: 2023-01-11 | BE56: 10:15:00 | BF56: 0 | BG56: 0 | BH56: 0
B57: 2023-01-12 | C57: 14:13:00 | D57: 12567183 | E57: 1.775066829 | F57: 1.768468043 | H57: 2023-01-12 | I57: 14:13:00 | J57: 4182936 | K57: 0.2573803159 | L57: 0.2554824129 | N57: 2023-01-12 | O57: 12:00:00 | P57: 0 | Q57: 0 | R57: 0 | T57: 2023-01-12 | U57: 12:00:00 | V57: 58 | W57: 4.9785984 | X57: 4.9785984 | Z57: 2023-01-12 | AA57: 14:27:00 | AB57: 22.3 | AC57: 0.02374669978 | AD57: 0.02395692581 | AF57: 2023-01-12 | AG57: 14:27:00 | AH57: 14.2 | AI57: 0.02013728451 | AJ57: 0.01835724909 | AL57: 2023-01-12 | AM57: 14:27:00 | AN57: 2.3 | AO57: 0.003693330054 | AP57: 0.003425021029 | AR57: 2023-01-12 | AS57: 13:47:00 | AT57: 315 | AU57: 0.3893381695 | AV57: 0.3803032811 | AX57: 2023-01-12 | AY57: 13:47:00 | AZ57: 0 | BA57: 0 | BB57: 0 | BD57: 2023-01-12 | BE57: 13:47:00 | BF57: 0 | BG57: 0 | BH57: 0
B58: 2023-01-13 | C58: 14:22:00 | D58: 12568952.87 | E58: 1.758879006 | F58: 1.76213265 | H58: 2023-01-13 | I58: 14:22:00 | J58: 4183190.304 | K58: 0.252724472 | L58: 0.2515848019 | N58: 2023-01-13 | O58: 12:00:00 | P58: 0 | Q58: 0 | R58: 0 | T58: 2023-01-13 | U58: 12:00:00 | V58: 58 | W58: 4.9785984 | X58: 4.9785984 | Z58: 2023-01-13 | AA58: 14:17:00 | AB58: 19.4 | AC58: 0.0242750165 | AD58: 0.02424703121 | AF58: 2023-01-13 | AG58: 14:17:00 | AH58: 9.4 | AI58: 0.01566389706 | AJ58: 0.0175889536 | AL58: 2023-01-13 | AM58: 14:17:00 | AN58: 1.6 | AO58: 0.003019045594 | AP58: 0.003210829898 | AR58: 2023-01-13 | AS58: 14:28:00 | AT58: 267 | AU58: 0.3681142882 | AV58: 0.3620747549 | AX58: 2023-01-13 | AY58: 14:28:00 | AZ58: 0 | BA58: 0 | BB58: 0 | BD58: 2023-01-13 | BE58: 14:28:00 | BF58: 0 | BG58: 0 | BH58: 0
E59: 1.76698497 | F59: 1.76698497 | K59: 0.2498851554 | L59: 0.2498851554 | Q59: 0 | R59: 0 | W59: 4.9785984 | X59: 4.9785984 | AC59: 0.02420589331 | AD59: 0.02420589331 | AI59: 0.02041875369 | AJ59: 0.02041875369 | AO59: 0.003492749535 | AP59: 0.003492749535 | AU59: 0.3529098686 | AV59: 0.3529098686 | BA59: 0 | BB59: 0 | BG59: 0 | BH59: 0
E60: 1.76698497 | F60: 1.76698497 | K60: 0.2498851554 | L60: 0.2498851554 | Q60: 0 | R60: 0 | W60: 4.9785984 | X60: 4.9785984 | AC60: 0.02420589331 | AD60: 0.02420589331 | AI60: 0.02041875369 | AJ60: 0.02041875369 | AO60: 0.003492749535 | AP60: 0.003492749535 | AU60: 0.3529098686 | AV60: 0.3529098686 | BA60: 0 | BB60: 0 | BG60: 0 | BH60: 0
E61: 1.76698497 | F61: 1.76698497 | K61: 0.2498851554 | L61: 0.2498851554 | Q61: 0 | R61: 0 | W61: 4.9785984 | X61: 4.9785984 | AC61: 0.02420589331 | AD61: 0.02420589331 | AI61: 0.02041875369 | AJ61: 0.02041875369 | AO61: 0.003492749535 | AP61: 0.003492749535 | AU61: 0.3529098686 | AV61: 0.3529098686 | BA61: 0 | BB61: 0 | BG61: 0 | BH61: 0
B62: 2023-01-17 | C62: 10:03:00 | D62: 12575703 | E62: 1.76698497 | F62: 1.770471702 | H62: 2023-01-17 | I62: 10:03:00 | J62: 4184144.9 | K62: 0.2498851554 | L62: 0.2497186042 | N62: 2023-01-17 | O62: 12:00:00 | P62: 0 | Q62: 0 | R62: 0 | T62: 2023-01-17 | U62: 12:00:00 | V62: 58 | W62: 4.9785984 | X62: 4.9785984 | Z62: 2023-01-17 | AA62: 09:42:00 | AB62: 74.2 | AC62: 0.02420589331 | AD62: 0.02491995498 | AF62: 2023-01-17 | AG62: 09:42:00 | AH62: 47 | AI62: 0.02041875369 | AJ62: 0.02414308588 | AL62: 2023-01-17 | AM62: 09:42:00 | AN62: 7.1 | AO62: 0.003492749535 | AP62: 0.004240818352 | AR62: 2023-01-17 | AS62: 09:24:00 | AT62: 943 | AU62: 0.3529098686 | AV62: 0.4031412197 | AX62: 2023-01-17 | AY62: 09:24:00 | AZ62: 0 | BA62: 0 | BB62: 0 | BD62: 2023-01-17 | BE62: 09:24:00 | BF62: 0 | BG62: 0 | BH62: 0
B63: 2023-01-18 | C63: 09:10:00 | D63: 12577410.73 | E63: 1.772983648 | F63: 1.763720122 | H63: 2023-01-18 | I63: 09:10:00 | J63: 4184385.312 | K63: 0.2495986157 | L63: 0.2483725027 | N63: 2023-01-18 | O63: 12:00:00 | P63: 0 | Q63: 0 | R63: 0 | T63: 2023-01-18 | U63: 12:00:00 | V63: 58 | W63: 4.9785984 | X63: 4.9785984 | Z63: 2023-01-18 | AA63: 09:22:40 | AB63: 20.17 | AC63: 0.0254043185 | AD63: 0.02490333903 | AF63: 2023-01-18 | AG63: 09:22:40 | AH63: 15.9 | AI63: 0.02666938114 | AJ63: 0.02210951733 | AL63: 2023-01-18 | AM63: 09:22:40 | AN63: 2.5 | AO63: 0.004748249648 | AP63: 0.003851181026 | AR63: 2023-01-18 | AS63: 09:00:00 | AT63: 302 | AU63: 0.4354819525 | AV63: 0.4143144375 | AX63: 2023-01-18 | AY63: 09:00:00 | AZ63: 0 | BA63: 0 | BB63: 0 | BD63: 2023-01-18 | BE63: 09:00:00 | BF63: 0 | BG63: 0 | BH63: 0
B64: 2023-01-19 | C64: 11:40:00 | D64: 12579351.85 | E64: 1.757995472 | F64: 1.758085167 | H64: 2023-01-19 | I64: 11:40:00 | J64: 4184658.72 | K64: 0.2476147925 | L64: 0.2480319249 | N64: 2023-01-19 | O64: 12:00:00 | P64: 0 | Q64: 0 | R64: 0 | T64: 2023-01-19 | U64: 12:00:00 | V64: 58 | W64: 4.9785984 | X64: 4.9785984 | Z64: 2023-01-19 | AA64: 11:27:40 | AB64: 21.5 | AC64: 0.02458204217 | AD64: 0.02549226901 | AF64: 2023-01-19 | AG64: 11:27:40 | AH64: 12.6 | AI64: 0.0191851062 | AJ64: 0.02618872234 | AL64: 2023-01-19 | AM64: 11:27:40 | AN64: 1.9 | AO64: 0.00327585738 | AP64: 0.004065605654 | AR64: 2023-01-19 | AS64: 11:11:00 | AT64: 309 | AU64: 0.4016139285 | AV64: 0.382486267 | AX64: 2023-01-19 | AY64: 11:11:00 | AZ64: 0 | BA64: 0 | BB64: 0 | BD64: 2023-01-19 | BE64: 11:11:00 | BF64: 0 | BG64: 0 | BH64: 0
B65: 2023-01-20 | C65: 10:18:00 | D65: 12581009.9 | E65: 1.758170015 | F65: 1.759836555 | H65: 2023-01-20 | I65: 10:18:00 | J65: 4184893 | K65: 0.2484265096 | L65: 0.2471669578 | N65: 2023-01-20 | O65: 12:00:00 | P65: 0 | Q65: 0 | R65: 0 | T65: 2023-01-20 | U65: 12:00:00 | V65: 58 | W65: 4.9785984 | X65: 4.9785984 | Z65: 2023-01-20 | AA65: 10:00:20 | AB65: 19.9 | AC65: 0.02632425747 | AD65: 0.02547018203 | AF65: 2023-01-20 | AG65: 10:00:20 | AH65: 18.5 | AI65: 0.03259034401 | AJ65: 0.02469468022 | AL65: 2023-01-20 | AM65: 10:00:20 | AN65: 2.4 | AO65: 0.004787471267 | AP65: 0.004289287092 | AR65: 2023-01-20 | AS65: 09:53:00 | AT65: 244 | AU65: 0.3657962009 | AV65: 0.3582936566 | AX65: 2023-01-20 | AY65: 09:53:00 | AZ65: 0 | BA65: 0 | BB65: 0 | BD65: 2023-01-20 | BE65: 09:53:00 | BF65: 0 | BG65: 0 | BH65: 0
E66: 1.761089501 | F66: 1.761089501 | K66: 0.2462199954 | L66: 0.2462199954 | Q66: 0 | R66: 0 | W66: 4.9785984 | X66: 4.9785984 | AC66: 0.02485954692 | AD66: 0.02485954692 | AI66: 0.01904954704 | AJ66: 0.01904954704 | AO66: 0.003933102217 | AP66: 0.003933102217 | AU66: 0.3530409898 | AV66: 0.3530409898 | BA66: 0 | BB66: 0 | BG66: 0 | BH66: 0
E67: 1.761089501 | F67: 1.761089501 | K67: 0.2462199954 | L67: 0.2462199954 | Q67: 0 | R67: 0 | W67: 4.9785984 | X67: 4.9785984 | AC67: 0.02485954692 | AD67: 0.02485954692 | AI67: 0.01904954704 | AJ67: 0.01904954704 | AO67: 0.003933102217 | AP67: 0.003933102217 | AU67: 0.3530409898 | AV67: 0.3530409898 | BA67: 0 | BB67: 0 | BG67: 0 | BH67: 0
B68: 2023-01-23 | C68: 11:29:00 | D68: 12586380 | E68: 1.761089501 | F68: 1.760444633 | H68: 2023-01-23 | I68: 11:29:00 | J68: 4185643.8 | K68: 0.2462199954 | L68: 0.2442852588 | N68: 2023-01-23 | O68: 12:00:00 | P68: 0 | Q68: 0 | R68: 0 | T68: 2023-01-23 | U68: 12:00:00 | V68: 58 | W68: 4.9785984 | X68: 4.9785984 | Z68: 2023-01-23 | AA68: 11:11:00 | AB68: 61 | AC68: 0.02485954692 | AD68: 0.02476701859 | AF68: 2023-01-23 | AG68: 11:11:00 | AH68: 35.1 | AI68: 0.01904954704 | AJ68: 0.01949813842 | AL68: 2023-01-23 | AM68: 11:11:00 | AN68: 6.4 | AO68: 0.003933102217 | AP68: 0.003920092526 | AR68: 2023-01-23 | AS68: 10:57:00 | AT68: 758 | AU68: 0.3530409898 | AV68: 0.3570490452 | AX68: 2023-01-23 | AY68: 10:57:00 | AZ68: 0 | BA68: 0 | BB68: 0 | BD68: 2023-01-23 | BE68: 10:57:00 | BF68: 0 | BG68: 0 | BH68: 0
B69: 2023-01-24 | C69: 11:04:00 | D69: 12588109.3 | E69: 1.759853004 | F69: 1.761819818 | H69: 2023-01-24 | I69: 11:04:00 | J69: 4185882.1 | K69: 0.2425102474 | L69: 0.2411932304 | N69: 2023-01-24 | O69: 12:00:00 | P69: 0 | Q69: 0 | R69: 0 | T69: 2023-01-24 | U69: 12:00:00 | V69: 58 | W69: 4.9785984 | X69: 4.9785984 | Z69: 2023-01-24 | AA69: 11:20:40 | AB69: 20 | AC69: 0.0246862819 | AD69: 0.02497385877 | AF69: 2023-01-24 | AG69: 11:20:40 | AH69: 12.1 | AI69: 0.01988956211 | AJ69: 0.01896955106 | AL69: 2023-01-24 | AM69: 11:20:40 | AN69: 2.1 | AO69: 0.003908740768 | AP69: 0.003553004061 | AR69: 2023-01-24 | AS69: 10:56:00 | AT69: 254 | AU69: 0.3604121262 | AV69: 0.3431871715 | AX69: 2023-01-24 | AY69: 10:56:00 | AZ69: 0 | BA69: 0 | BB69: 0 | BD69: 2023-01-24 | BE69: 10:56:00 | BF69: 0 | BG69: 0 | BH69: 0
B70: 2023-01-25 | C70: 11:12:00 | D70: 12589882.6 | E70: 1.763502762 | F70: 1.766815763 | H70: 2023-01-25 | I70: 11:12:00 | J70: 4186123.5 | K70: 0.2400662983 | L70: 0.2376432925 | N70: 2023-01-25 | O70: 12:00:00 | P70: 0 | Q70: 0 | R70: 0 | T70: 2023-01-25 | U70: 12:00:00 | V70: 58 | W70: 4.9785984 | X70: 4.9785984 | Z70: 2023-01-25 | AA70: 10:59:00 | AB70: 20 | AC70: 0.02523164277 | AD70: 0.02511484133 | AF70: 2023-01-25 | AG70: 10:59:00 | AH70: 10.8 | AI70: 0.01814485283 | AJ70: 0.01889026373 | AL70: 2023-01-25 | AM70: 10:59:00 | AN70: 1.7 | AO70: 0.003234121551 | AP70: 0.003462956422 | AR70: 2023-01-25 | AS70: 10:32:00 | AT70: 228 | AU70: 0.3287744542 | AV70: 0.3237949592 | AX70: 2023-01-25 | AY70: 10:32:00 | AZ70: 0 | BA70: 0 | BB70: 0 | BD70: 2023-01-25 | BE70: 10:32:00 | BF70: 0 | BG70: 0 | BH70: 0
B71: 2023-01-26 | C71: 14:11:00 | D71: 12591872.3 | E71: 1.769714639 | F71: 1.767813659 | H71: 2023-01-26 | I71: 14:11:00 | J71: 4186388.3 | K71: 0.2355231624 | L71: 0.2349346046 | N71: 2023-01-26 | O71: 12:00:00 | P71: 0 | Q71: 0 | R71: 0 | T71: 2023-01-26 | U71: 12:00:00 | V71: 58 | W71: 4.9785984 | X71: 4.9785984 | Z71: 2023-01-26 | AA71: 14:02:40 | AB71: 22.7 | AC71: 0.02501628544 | AD71: 0.02505699332 | AF71: 2023-01-26 | AG71: 14:02:40 | AH71: 13.3 | AI71: 0.019519234 | AJ71: 0.01870798471 | AL71: 2023-01-26 | AM71: 14:02:40 | AN71: 2.2 | AO71: 0.003656045001 | AP71: 0.00336815899 | AR71: 2023-01-26 | AS71: 13:46:00 | AT71: 256 | AU71: 0.3199001067 | AV71: 0.3391373531 | AX71: 2023-01-26 | AY71: 13:46:00 | AZ71: 0 | BA71: 0 | BB71: 0 | BD71: 2023-01-26 | BE71: 13:46:00 | BF71: 0 | BG71: 0 | BH71: 0
B72: 2023-01-27 | C72: 11:33:00 | D72: 12593443.7 | E72: 1.765067083 | F72: 1.766853226 | H72: 2023-01-27 | I72: 11:33:00 | J72: 4186596.7 | K72: 0.2340842434 | L72: 0.2337385091 | N72: 2023-01-27 | O72: 12:00:00 | P72: 0 | Q72: 0 | R72: 0 | T72: 2023-01-27 | U72: 12:00:00 | V72: 58 | W72: 4.9785984 | X72: 4.9785984 | Z72: 2023-01-27 | AA72: 11:18:00 | AB72: 17.9 | AC72: 0.02511442049 | AD72: 0.02512735504 | AF72: 2023-01-27 | AG72: 11:18:00 | AH72: 9.4 | AI72: 0.01756354375 | AJ72: 0.01740267371 | AL72: 2023-01-27 | AM72: 11:18:00 | AN72: 1.4 | AO72: 0.002962034083 | AP72: 0.003200348869 | AR72: 2023-01-27 | AS72: 11:07:00 | AT72: 229 | AU72: 0.3650167756 | AV72: 0.3471460227 | AX72: 2023-01-27 | AY72: 11:07:00 | AZ72: 0 | BA72: 0 | BB72: 0 | BD72: 2023-01-27 | BE72: 11:07:00 | BF72: 0 | BG72: 0 | BH72: 0
E73: 1.768510251 | F73: 1.768510251 | K73: 0.2334177677 | L73: 0.2334177677 | Q73: 0 | R73: 0 | W73: 4.9785984 | X73: 4.9785984 | AC73: 0.02513886374 | AD73: 0.02513886374 | AI73: 0.01725953736 | AJ73: 0.01725953736 | AO73: 0.003412392734 | AP73: 0.003412392734 | AU73: 0.3317258516 | AV73: 0.3317258516 | BA73: 0 | BB73: 0 | BG73: 0 | BH73: 0
E74: 1.768510251 | F74: 1.768510251 | K74: 0.2334177677 | L74: 0.2334177677 | Q74: 0 | R74: 0 | W74: 4.9785984 | X74: 4.9785984 | AC74: 0.02513886374 | AD74: 0.02513886374 | AI74: 0.01725953736 | AJ74: 0.01725953736 | AO74: 0.003412392734 | AP74: 0.003412392734 | AU74: 0.3317258516 | AV74: 0.3317258516 | BA74: 0 | BB74: 0 | BG74: 0 | BH74: 0
B75: 2023-01-30 | C75: 12:43:00 | D75: 12598835.2 | E75: 1.768510251 | F75: 1.764498811 | H75: 2023-01-30 | I75: 12:43:00 | J75: 4187308.3 | K75: 0.2334177677 | L75: 0.2325345841 | N75: 2023-01-30 | O75: 12:00:00 | P75: 0 | Q75: 0 | R75: 0 | T75: 2023-01-30 | U75: 12:00:00 | V75: 58 | W75: 4.9785984 | X75: 4.9785984 | Z75: 2023-01-30 | AA75: 11:47:00 | AB75: 61.1 | AC75: 0.02513886374 | AD75: 0.02507936385 | AF75: 2023-01-30 | AG75: 11:47:00 | AH75: 31.5 | AI75: 0.01725953736 | AJ75: 0.01632086291 | AL75: 2023-01-30 | AM75: 11:47:00 | AN75: 5.5 | AO75: 0.003412392734 | AP75: 0.003111412244 | AR75: 2023-01-30 | AS75: 11:08:00 | AT75: 702 | AU75: 0.3317258516 | AV75: 0.3055453594 | AX75: 2023-01-30 | AY75: 11:08:00 | AZ75: 0 | BA75: 0 | BB75: 0 | BD75: 2023-01-30 | BE75: 11:08:00 | BF75: 0 | BG75: 0 | BH75: 0
B76: 2023-01-31 | C76: 12:44:00 | D76: 12600596.4 | E76: 1.759977793 | F76: 1.757239999 | H76: 2023-01-31 | I76: 12:44:00 | J76: 4187540 | K76: 0.2315392089 | L76: 0.2310788015 | N76: 2023-01-31 | O76: 12:00:00 | P76: 0 | Q76: 0 | R76: 0 | T76: 2023-01-31 | U76: 12:00:00 | V76: 58 | W76: 4.9785984 | X76: 4.9785984 | Z76: 2023-01-31 | AA76: 13:17:20 | AB76: 21.4 | AC76: 0.02502197447 | AD76: 0.02493782289 | AF76: 2023-01-31 | AG76: 13:17:20 | AH76: 9.9 | AI76: 0.01541548386 | AJ76: 0.01561722658 | AL76: 2023-01-31 | AM76: 13:17:20 | AN76: 1.6 | AO76: 0.002821107733 | AP76: 0.002828186211 | AR76: 2023-01-31 | AS76: 11:26:00 | AT76: 202 | AU76: 0.2828917728 | AV76: 0.2530640287 | AX76: 2023-01-31 | AY76: 11:26:00 | AZ76: 0 | BA76: 0 | BB76: 0 | BD76: 2023-01-31 | BE76: 11:26:00 | BF76: 0 | BG76: 0 | BH76: 0
B77: 2023-02-01 | C77: 12:58:00 | D77: 12602367.6 | E77: 1.754145805 | F77: 1.754671765 | H77: 2023-02-01 | I77: 12:58:00 | J77: 4187772.8 | K77: 0.2305584594 | L77: 0.2307335522 | N77: 2023-02-01 | O77: 12:00:00 | P77: 0 | Q77: 0 | R77: 0 | T77: 2023-02-01 | U77: 12:00:00 | V77: 58 | W77: 4.9785984 | X77: 4.9785984 | Z77: 2023-02-01 | AA77: 13:04:00 | AB77: 19.8 | AC77: 0.02483341907 | AD77: 0.02487637663 | AF77: 2023-02-01 | AG77: 13:04:00 | AH77: 9.5 | AI77: 0.0158675215 | AJ77: 0.0163205086 | AL77: 2023-02-01 | AM77: 13:04:00 | AN77: 1.5 | AO77: 0.002836968224 | AP77: 0.002994257446 | AR77: 2023-02-01 | AS77: 11:23:00 | AT77: 159 | AU77: 0.2259263198 | AV77: 0.2660619902 | AX77: 2023-02-01 | AY77: 11:23:00 | AZ77: 0 | BA77: 0 | BB77: 0 | BD77: 2023-02-01 | BE77: 11:23:00 | BF77: 0 | BG77: 0 | BH77: 0
B78: 2023-02-02 | C78: 11:13:00 | D78: 12603994.9 | E78: 1.755289888 | F78: 1.765285149 | H78: 2023-02-02 | I78: 11:13:00 | J78: 4187986.9 | K78: 0.2309393258 | L78: 0.2316769071 | N78: 2023-02-02 | O78: 12:00:00 | P78: 0 | Q78: 0 | R78: 0 | T78: 2023-02-02 | U78: 12:00:00 | V78: 58 | W78: 4.9785984 | X78: 4.9785984 | Z78: 2023-02-02 | AA78: 11:40:40 | AB78: 18.9 | AC78: 0.02492771617 | AD78: 0.02497423123 | AF78: 2023-02-02 | AG78: 11:40:40 | AH78: 9.6 | AI78: 0.01686188344 | AJ78: 0.01609965991 | AL78: 2023-02-02 | AM78: 11:40:40 | AN78: 1.6 | AO78: 0.003182237248 | AP78: 0.0028397218 | AR78: 2023-02-02 | AS78: 09:54:00 | AT78: 200 | AU78: 0.3022742265 | AV78: 0.2942805483 | AX78: 2023-02-02 | AY78: 09:54:00 | AZ78: 0 | BA78: 0 | BB78: 0 | BD78: 2023-02-02 | BE78: 09:54:00 | BF78: 0 | BG78: 0 | BH78: 0
B79: 2023-02-03 | C79: 10:40:00 | D79: 12605728.3 | E79: 1.774055437 | F79: 1.772243012 | H79: 2023-02-03 | I79: 10:40:00 | J79: 4188213.9 | K79: 0.2323240938 | L79: 0.2308394737 | N79: 2023-02-03 | O79: 12:00:00 | P79: 0 | Q79: 0 | R79: 0 | T79: 2023-02-03 | U79: 12:00:00 | V79: 58 | W79: 4.9785984 | X79: 4.9785984 | Z79: 2023-02-03 | AA79: 10:55:20 | AB79: 19.5 | AC79: 0.02501831358 | AD79: 0.02118363951 | AF79: 2023-02-03 | AG79: 10:55:20 | AH79: 9 | AI79: 0.01537730019 | AJ79: 0.01593523031 | AL79: 2023-02-03 | AM79: 10:55:20 | AN79: 1.3 | AO79: 0.002515119694 | AP79: 0.002864994609 | AR79: 2023-02-03 | AS79: 11:36:00 | AT79: 218 | AU79: 0.2886679658 | AV79: 0.2891033643 | AX79: 2023-02-03 | AY79: 11:36:00 | AZ79: 0 | BA79: 0 | BB79: 0 | BD79: 2023-02-03 | BE79: 11:36:00 | BF79: 0 | BG79: 0 | BH79: 0
E80: 1.770793072 | F80: 1.770793072 | K80: 0.2296517776 | L80: 0.2296517776 | Q80: 0 | R80: 0 | W80: 4.9785984 | X80: 4.9785984 | AC80: 0.01798101878 | AD80: 0.01798101878 | AI80: 0.01640119914 | AJ80: 0.01640119914 | AO80: 0.003157201101 | AP80: 0.003157201101 | AU80: 0.2895106725 | AV80: 0.2895106725 | BA80: 0 | BB80: 0 | BG80: 0 | BH80: 0
E81: 1.770793072 | F81: 1.770793072 | K81: 0.2296517776 | L81: 0.2296517776 | Q81: 0 | R81: 0 | W81: 4.9785984 | X81: 4.9785984 | AC81: 0.01798101878 | AD81: 0.01798101878 | AI81: 0.01640119914 | AJ81: 0.01640119914 | AO81: 0.003157201101 | AP81: 0.003157201101 | AU81: 0.2895106725 | AV81: 0.2895106725 | BA81: 0 | BB81: 0 | BG81: 0 | BH81: 0
B82: 2023-02-06 | C82: 11:48:00 | D82: 12611124.3 | E82: 1.770793072 | F82: 1.772973236 | H82: 2023-02-06 | I82: 11:48:00 | J82: 4188913.7 | K82: 0.2296517776 | L82: 0.2273975528 | N82: 2023-02-06 | O82: 12:00:00 | P82: 0 | Q82: 0 | R82: 0 | T82: 2023-02-06 | U82: 12:00:00 | V82: 58 | W82: 4.9785984 | X82: 4.9785984 | Z82: 2023-02-06 | AA82: 11:34:00 | AB82: 43.8 | AC82: 0.01798101878 | AD82: 0.01896808715 | AF82: 2023-02-06 | AG82: 11:34:00 | AH82: 30 | AI82: 0.01640119914 | AJ82: 0.01755253616 | AL82: 2023-02-06 | AM82: 11:34:00 | AN82: 5.1 | AO82: 0.003157201101 | AP82: 0.003325710234 | AR82: 2023-02-06 | AS82: 10:50:00 | AT82: 606 | AU82: 0.2895106725 | AV82: 0.3094690324 | AX82: 2023-02-06 | AY82: 10:50:00 | AZ82: 0 | BA82: 0 | BB82: 0 | BD82: 2023-02-06 | BE82: 10:50:00 | BF82: 0 | BG82: 0 | BH82: 0
B83: 2023-02-07 | C83: 11:05:00 | D83: 12612846.38 | E83: 1.775081918 | F83: 1.773821761 | H83: 2023-02-07 | I83: 11:05:00 | J83: 4189132.192 | K83: 0.2252172369 | L83: 0.2247623852 | N83: 2023-02-07 | O83: 12:00:00 | P83: 0 | Q83: 0 | R83: 0 | T83: 2023-02-07 | U83: 12:00:00 | V83: 58 | W83: 4.9785984 | X83: 4.9785984 | Z83: 2023-02-07 | AA83: 10:48:40 | AB83: 15.5 | AC83: 0.01988635182 | AD83: 0.02121659328 | AF83: 2023-02-07 | AG83: 10:48:40 | AH83: 10.9 | AI83: 0.01862361912 | AJ83: 0.02032271116 | AL83: 2023-02-07 | AM83: 10:48:40 | AN83: 1.8 | AO83: 0.003482473423 | AP83: 0.003838869287 | AR83: 2023-02-07 | AS83: 10:26:00 | AT83: 226 | AU83: 0.3258904678 | AV83: 0.3274277002 | AX83: 2023-02-07 | AY83: 10:26:00 | AZ83: 0 | BA83: 0 | BB83: 0 | BD83: 2023-02-07 | BE83: 10:26:00 | BF83: 0 | BG83: 0 | BH83: 0
B84: 2023-02-08 | C84: 10:01:00 | D84: 12614540.33 | E84: 1.772740465 | F84: 1.771241972 | H84: 2023-02-08 | I84: 10:01:00 | J84: 4189346.592 | K84: 0.224372093 | L84: 0.2254357555 | N84: 2023-02-08 | O84: 12:00:00 | P84: 0 | Q84: 0 | R84: 0 | T84: 2023-02-08 | U84: 12:00:00 | V84: 58 | W84: 4.9785984 | X84: 4.9785984 | Z84: 2023-02-08 | AA84: 09:40:20 | AB84: 17.1 | AC84: 0.02230701026 | AD84: 0.02164737004 | AF84: 2023-02-08 | AG84: 09:40:20 | AH84: 12.5 | AI84: 0.02171547995 | AJ84: 0.02042846846 | AL84: 2023-02-08 | AM84: 09:40:20 | AN84: 2.1 | AO84: 0.00413101181 | AP84: 0.003904093163 | AR84: 2023-02-08 | AS84: 09:13:00 | AT84: 220 | AU84: 0.3286098961 | AV84: 0.3276643567 | AX84: 2023-02-08 | AY84: 09:13:00 | AZ84: 0 | BA84: 0 | BB84: 0 | BD84: 2023-02-08 | BE84: 09:13:00 | BF84: 0 | BG84: 0 | BH84: 0
B85: 2023-02-09 | C85: 11:06:00 | D85: 12616390.4 | E85: 1.770168558 | F85: 1.769478741 | H85: 2023-02-09 | I85: 11:06:00 | J85: 4189583 | K85: 0.2261976877 | L85: 0.2268836539 | N85: 2023-02-09 | O85: 12:00:00 | P85: 0 | Q85: 0 | R85: 0 | T85: 2023-02-09 | U85: 12:00:00 | V85: 58 | W85: 4.9785984 | X85: 4.9785984 | Z85: 2023-02-09 | AA85: 10:51:00 | AB85: 17.9 | AC85: 0.02120206814 | AD85: 0.0252299644 | AF85: 2023-02-09 | AG85: 10:51:00 | AH85: 12.4 | AI85: 0.01955964837 | AJ85: 0.02877137346 | AL85: 2023-02-09 | AM85: 10:51:00 | AN85: 2.1 | AO85: 0.003750907679 | AP85: 0.006311537069 | AR85: 2023-02-09 | AS85: 10:30:00 | AT85: 243 | AU85: 0.3270748604 | AV85: 0.3320063287 | AX85: 2023-02-09 | AY85: 10:30:00 | AZ85: 0 | BA85: 0 | BB85: 0 | BD85: 2023-02-09 | BE85: 10:30:00 | BF85: 0 | BG85: 0 | BH85: 0
B86: 2023-02-10 | C86: 11:03:00 | D86: 12618155.6 | E86: 1.768885177 | F86: =C86*E86+(1-C86)*E87 -> 1.767812882 | H86: 2023-02-10 | I86: 11:03:00 | J86: 4189810 | K86: 0.227473904 | L86: =I86*K86+(1-I86)*K87 -> 0.2257595074 | N86: 2023-02-10 | O86: 12:00:00 | P86: 0 | Q86: 0 | R86: =O86*Q86+(1-O86)*Q87 -> 0 | T86: 2023-02-10 | U86: 12:00:00 | V86: 58 | W86: 4.9785984 | X86: =U86*W86+(1-U86)*W87 -> 4.9785984 | Z86: 2023-02-10 | AA86: 10:52:20 | AB86: 23 | AC86: 0.0285533617 | AD86: =AA86*AC86+(1-AA86)*AC87 -> 0.02476839806 | AF86: 2023-02-10 | AG86: 10:52:20 | AH86: 22 | AI86: 0.03637192229 | AJ86: =AG86*AI86+(1-AG86)*AI87 -> 0.02739154311 | AL86: 2023-02-10 | AM86: 10:52:20 | AN86: 4.5 | AO86: 0.008424299722 | AP86: =AM86*AO86+(1-AM86)*AO87 -> 0.006107599094 | AR86: 2023-02-10 | AS86: 10:37:00 | AT86: 238 | AU86: 0.3358419151 | AV86: =AS86*AU86+(1-AS86)*AU87 -> 0.3426618892 | AX86: 2023-02-10 | AY86: 10:37:00 | AZ86: 0 | BA86: 0 | BB86: =AY86*BA86+(1-AY86)*BA87 -> 0 | BD86: 2023-02-10 | BE86: 10:37:00 | BF86: 0 | BG86: 0 | BH86: =BE86*BG86+(1-BE86)*BG87 -> 0
E87: 1.766897911 | F87: 1.766897911 | K87: 0.224296644 | L87: 0.224296644 | Q87: 0 | R87: 0 | W87: 4.9785984 | X87: 4.9785984 | AC87: 0.02163374979 | AD87: 0.02163374979 | AI87: 0.01995413216 | AJ87: 0.01995413216 | AO87: 0.004188943516 | AP87: 0.004188943516 | AU87: 0.3480720056 | AV87: 0.3480720056 | BA87: 0 | BB87: 0 | BG87: 0 | BH87: 0
E88: 1.766897911 | F88: 1.766897911 | K88: 0.224296644 | L88: 0.224296644 | Q88: 0 | R88: 0 | W88: 4.9785984 | X88: 4.9785984 | AC88: 0.02163374979 | AD88: 0.02163374979 | AI88: 0.01995413216 | AJ88: 0.01995413216 | AO88: 0.004188943516 | AP88: 0.004188943516 | AU88: 0.3480720056 | AV88: 0.3480720056 | BA88: 0 | BB88: 0 | BG88: 0 | BH88: 0
B89: 2023-02-13 | C89: 10:04:00 | D89: 12623383.9 | E89: 1.766897911 | F89: 1.766620083 | H89: 2023-02-13 | I89: 10:04:00 | J89: 4190473.7 | K89: 0.224296644 | L89: 0.2241431533 | N89: 2023-02-13 | O89: 12:00:00 | P89: 0 | Q89: 0 | R89: 0 | T89: 2023-02-13 | U89: 12:00:00 | V89: 58 | W89: 4.9785984 | X89: 4.9785984 | Z89: 2023-02-13 | AA89: 09:43:40 | AB89: 51.4 | AC89: 0.02163374979 | AD89: 0.02104106663 | AF89: 2023-02-13 | AG89: 09:43:40 | AH89: 35.6 | AI89: 0.01995413216 | AJ89: 0.0199911975 | AL89: 2023-02-13 | AM89: 09:43:40 | AN89: 6.6 | AO89: 0.004188943516 | AP89: 0.004158262332 | AR89: 2023-02-13 | AS89: 09:30:00 | AT89: 725 | AU89: 0.3480720056 | AV89: 0.3426996318 | AX89: 2023-02-13 | AY89: 09:30:00 | AZ89: 0 | BA89: 0 | BB89: 0 | BD89: 2023-02-13 | BE89: 09:30:00 | BF89: 0 | BG89: 0 | BH89: 0
B90: 2023-02-14 | C90: 10:52:00 | D90: 12625209.2 | E90: 1.766419355 | F90: 1.766359103 | H90: 2023-02-14 | I90: 10:52:00 | J90: 4190705.2 | K90: 0.2240322581 | L90: 0.2241328442 | N90: 2023-02-14 | O90: 12:00:00 | P90: 0 | Q90: 0 | R90: 0 | T90: 2023-02-14 | U90: 12:00:00 | V90: 58 | W90: 4.9785984 | X90: 4.9785984 | Z90: 2023-02-14 | AA90: 10:43:40 | AB90: 17.3 | AC90: 0.0206371008 | AD90: 0.02330029107 | AF90: 2023-02-14 | AG90: 10:43:40 | AH90: 12.6 | AI90: 0.0200164608 | AJ90: 0.02476044144 | AL90: 2023-02-14 | AM90: 10:43:40 | AN90: 2.3 | AO90: 0.0041373504 | AP90: 0.004967823707 | AR90: 2023-02-14 | AS90: 10:35:00 | AT90: 250 | AU90: 0.3391798007 | AV90: 0.3947709164 | AX90: 2023-02-14 | AY90: 10:35:00 | AZ90: 0 | BA90: 0 | BB90: 0 | BD90: 2023-02-14 | BE90: 10:35:00 | BF90: 0 | BG90: 0 | BH90: 0
B91: 2023-02-15 | C91: 11:33:00 | D91: 12627025.8 | E91: 1.766309251 | F91: 1.770043057 | H91: 2023-02-15 | I91: 11:33:00 | J91: 4190935.8 | K91: 0.2242160702 | L91: 0.2242436327 | N91: 2023-02-15 | O91: 12:00:00 | P91: 0 | Q91: 0 | R91: 0 | T91: 2023-02-15 | U91: 12:00:00 | V91: 58 | W91: 4.9785984 | X91: 4.9785984 | Z91: 2023-02-15 | AA91: 11:27:00 | AB91: 21.1 | AC91: 0.02545291578 | AD91: 0.02590650292 | AF91: 2023-02-15 | AG91: 11:27:00 | AH91: 17.8 | AI91: 0.028594944 | AJ91: 0.02693067363 | AL91: 2023-02-15 | AM91: 11:27:00 | AN91: 3.1 | AO91: 0.005639085303 | AP91: 0.005284646906 | AR91: 2023-02-15 | AS91: 11:20:00 | AT91: 319 | AU91: 0.4386222933 | AV91: 0.4912203876 | AX91: 2023-02-15 | AY91: 11:20:00 | AZ91: 0 | BA91: 0 | BB91: 0 | BD91: 2023-02-15 | BE91: 11:20:00 | BF91: 0 | BG91: 0 | BH91: 0
B92: 2023-02-16 | C92: 10:20:00 | D92: 12628709.4 | E92: 1.77350695 | F92: 1.765278536 | H92: 2023-02-16 | I92: 10:20:00 | J92: 4191148.7 | K92: 0.2242692026 | L92: 0.2229791599 | N92: 2023-02-16 | O92: 12:00:00 | P92: 0 | Q92: 0 | R92: 0 | T92: 2023-02-16 | U92: 12:00:00 | V92: 58 | W92: 4.9785984 | X92: 4.9785984 | Z92: 2023-02-16 | AA92: 10:06:40 | AB92: 20 | AC92: 0.02632033342 | AD92: 0.0129073842 | AF92: 2023-02-16 | AG92: 10:06:40 | AH92: 14.5 | AI92: 0.02541227556 | AJ92: 0.03195754233 | AL92: 2023-02-16 | AM92: 10:06:40 | AN92: 2.5 | AO92: 0.004961274822 | AP92: 0.005363566141 | AR92: 2023-02-16 | AS92: 09:58:00 | AT92: 358 | AU92: 0.5382818404 | AV92: 0.5091414336 | AX92: 2023-02-16 | AY92: 09:58:00 | AZ92: 0 | BA92: 0 | BB92: 0 | BD92: 2023-02-16 | BE92: 09:58:00 | BF92: 0 | BG92: 0 | BH92: 0
B93: 2023-02-17 | C93: 12:55:00 | D93: 12630657.8 | E93: 1.759057053 | F93: 1.761191666 | H93: 2023-02-17 | I93: 12:55:00 | J93: 4191394.6 | K93: 0.2220037618 | L93: 0.2219082486 | N93: 2023-02-17 | O93: 12:00:00 | P93: 0 | Q93: 0 | R93: 0 | T93: 2023-02-17 | U93: 12:00:00 | V93: 58 | W93: 4.9785984 | X93: 4.9785984 | Z93: 2023-02-17 | AA93: 15:31:40 | AB93: 3.1 | AC93: 0.003142757167 | AD93: 0.008475076274 | AF93: 2023-02-17 | AG93: 15:31:40 | AH93: 27.2 | AI93: 0.03672249654 | AJ93: 0.0315015525 | AL93: 2023-02-17 | AM93: 15:31:40 | AN93: 3.7 | AO93: 0.005656434221 | AP93: 0.005167599881 | AR93: 2023-02-17 | AS93: 15:43:00 | AT93: 427 | AU93: 0.4884455153 | AV93: 0.5048642349 | AX93: 2023-02-17 | AY93: 15:43:00 | AZ93: 0 | BA93: 0 | BB93: 0 | BD93: 2023-02-17 | BE93: 15:43:00 | BF93: 0 | BG93: 0 | BH93: 0
E94: 1.763679373 | F94: 1.763679373 | K94: 0.2217969362 | L94: 0.2217969362 | Q94: 0 | R94: 0 | W94: 4.9785984 | X94: 4.9785984 | AC94: 0.0182480808 | AD94: 0.0182480808 | AI94: 0.02193267473 | AJ94: 0.02193267473 | AO94: 0.004271670712 | AP94: 0.004271670712 | AU94: 0.5360168558 | AV94: 0.5360168558 | BA94: 0 | BB94: 0 | BG94: 0 | BH94: 0
E95: 1.763679373 | F95: 1.763679373 | K95: 0.2217969362 | L95: 0.2217969362 | Q95: 0 | R95: 0 | W95: 4.9785984 | X95: 4.9785984 | AC95: 0.0182480808 | AD95: 0.0182480808 | AI95: 0.02193267473 | AJ95: 0.02193267473 | AO95: 0.004271670712 | AP95: 0.004271670712 | AU95: 0.5360168558 | AV95: 0.5360168558 | BA95: 0 | BB95: 0 | BG95: 0 | BH95: 0
E96: 1.763679373 | F96: 1.763679373 | K96: 0.2217969362 | L96: 0.2217969362 | Q96: 0 | R96: 0 | W96: 4.9785984 | X96: 4.9785984 | AC96: 0.0182480808 | AD96: 0.0182480808 | AI96: 0.02193267473 | AJ96: 0.02193267473 | AO96: 0.004271670712 | AP96: 0.004271670712 | AU96: 0.5360168558 | AV96: 0.5360168558 | BA96: 0 | BB96: 0 | BG96: 0 | BH96: 0
B97: 2023-02-21 | C97: 10:29:00 | D97: 12637533.7 | E97: 1.763679373 | F97: 1.77313301 | H97: 2023-02-21 | I97: 10:29:00 | J97: 4192259.3 | K97: 0.2217969362 | L97: 0.220389604 | N97: 2023-02-21 | O97: 12:00:00 | P97: 0 | Q97: 0 | R97: 0 | T97: 2023-02-21 | U97: 12:00:00 | V97: 58 | W97: 4.9785984 | X97: 4.9785984 | Z97: 2023-02-21 | AA97: 10:04:00 | AB97: 55.4 | AC97: 0.0182480808 | AD97: 0.018146168 | AF97: 2023-02-21 | AG97: 10:04:00 | AH97: 50 | AI97: 0.02193267473 | AJ97: 0.02052866978 | AL97: 2023-02-21 | AM97: 10:04:00 | AN97: 8.6 | AO97: 0.004271670712 | AP97: 0.003929804254 | AR97: 2023-02-21 | AS97: 10:57:00 | AT97: 1437 | AU97: 0.5360168558 | AV97: 0.5124671158 | AX97: 2023-02-21 | AY97: 10:57:00 | AZ97: 0 | BA97: 0 | BB97: 0 | BD97: 2023-02-21 | BE97: 10:57:00 | BF97: 0 | BG97: 0 | BH97: 0
B98: 2023-02-22 | C98: 10:08:00 | D98: 12639288.2 | E98: 1.780465116 | F98: 1.778282957 | H98: 2023-02-22 | I98: 10:08:00 | J98: 4192475.4 | K98: 0.2192980973 | L98: 0.2209361174 | N98: 2023-02-22 | O98: 12:00:00 | P98: 0 | Q98: 0 | R98: 0 | T98: 2023-02-22 | U98: 12:00:00 | V98: 58 | W98: 4.9785984 | X98: 4.9785984 | Z98: 2023-02-22 | AA98: 10:29:20 | AB98: 14.8 | AC98: 0.01807253722 | AD98: 0.01829013478 | AF98: 2023-02-22 | AG98: 10:29:20 | AH98: 12 | AI98: 0.01951429299 | AJ98: 0.01901513644 | AL98: 2023-02-22 | AM98: 10:29:20 | AN98: 2 | AO98: 0.003682809827 | AP98: 0.003556163167 | AR98: 2023-02-22 | AS98: 09:28:00 | AT98: 326 | AU98: 0.4927069892 | AV98: 0.4801054379 | AX98: 2023-02-22 | AY98: 09:28:00 | AZ98: 0 | BA98: 0 | BB98: 0 | BD98: 2023-02-22 | BE98: 09:28:00 | BF98: 0 | BG98: 0 | BH98: 0
B99: 2023-02-23 | C99: 12:38:00 | D99: 12641249.96 | E99: 1.776688302 | F99: 1.775326193 | H99: 2023-02-23 | I99: 12:38:00 | J99: 4192720.672 | K99: 0.2221331321 | L99: 0.2221568204 | N99: 2023-02-23 | O99: 12:00:00 | P99: 0 | Q99: 0 | R99: 0 | T99: 2023-02-23 | U99: 12:00:00 | V99: 58 | W99: 4.9785984 | X99: 4.9785984 | Z99: 2023-02-23 | AA99: 12:30:00 | AB99: 16.1 | AC99: 0.01845905921 | AD99: 0.01858292987 | AF99: 2023-02-23 | AG99: 12:30:00 | AH99: 12.2 | AI99: 0.01862763332 | AJ99: 0.01790225957 | AL99: 2023-02-23 | AM99: 12:30:00 | AN99: 2 | AO99: 0.003457845365 | AP99: 0.003314921315 | AR99: 2023-02-23 | AS99: 11:43:00 | AT99: 364 | AU99: 0.471897088 | AV99: 0.4183735244 | AX99: 2023-02-23 | AY99: 11:43:00 | AZ99: 0 | BA99: 0 | BB99: 0 | BD99: 2023-02-23 | BE99: 11:43:00 | BF99: 0 | BG99: 0 | BH99: 0
B100: 2023-02-24 | C100: 10:52:00 | D100: 12642893.2 | E100: 1.773812294 | F100: 1.773214165 | H100: 2023-02-24 | I100: 10:52:00 | J100: 4192926.5 | K100: 0.2221831484 | L100: 0.2202635372 | N100: 2023-02-24 | O100: 12:00:00 | P100: 0 | Q100: 0 | R100: 0 | T100: 2023-02-24 | U100: 12:00:00 | V100: 58 | W100: 4.9785984 | X100: 4.9785984 | Z100: 2023-02-24 | AA100: 09:51:00 | AB100: 13.4 | AC100: 0.0187175719 | AD100: 0.01916328303 | AF100: 2023-02-24 | AG100: 09:51:00 | AH100: 9.2 | AI100: 0.01711380984 | AJ100: 0.01765330108 | AL100: 2023-02-24 | AM100: 09:51:00 | AN100: 1.5 | AO100: 0.003159569087 | AP100: 0.004513633219 | AR100: 2023-02-24 | AS100: 09:46:00 | AT100: 238 | AU100: 0.3673191619 | AV100: 0.3789484483 | AX100: 2023-02-24 | AY100: 09:46:00 | AZ100: 0 | BA100: 0 | BB100: 0 | BD100: 2023-02-24 | BE100: 09:46:00 | BF100: 0 | BG100: 0 | BH100: 0
E101: 1.772719266 | F101: 1.772719266 | K101: 0.2186752294 | L101: 0.2186752294 | Q101: 0 | R101: 0 | W101: 4.9785984 | X101: 4.9785984 | AC101: 0.01947354838 | AD101: 0.01947354838 | AI101: 0.01802884799 | AJ101: 0.01802884799 | AO101: 0.005456214965 | AP101: 0.005456214965 | AU101: 0.386928263 | AV101: 0.386928263 | BA101: 0 | BB101: 0 | BG101: 0 | BH101: 0
E102: 1.772719266 | F102: 1.772719266 | K102: 0.2186752294 | L102: 0.2186752294 | Q102: 0 | R102: 0 | W102: 4.9785984 | X102: 4.9785984 | AC102: 0.01947354838 | AD102: 0.01947354838 | AI102: 0.01802884799 | AJ102: 0.01802884799 | AO102: 0.005456214965 | AP102: 0.005456214965 | AU102: 0.386928263 | AV102: 0.386928263 | BA102: 0 | BB102: 0 | BG102: 0 | BH102: 0
B103: 2023-02-27 | C103: 11:32:00 | D103: 12648260.6 | E103: 1.772719266 | F103: 1.773895176 | H103: 2023-02-27 | I103: 11:32:00 | J103: 4193588.6 | K103: 0.2186752294 | L103: 0.2182892686 | N103: 2023-02-27 | O103: 12:00:00 | P103: 0 | Q103: 0 | R103: 0 | T103: 2023-02-27 | U103: 12:00:00 | V103: 58 | W103: 4.9785984 | X103: 4.9785984 | Z103: 2023-02-27 | AA103: 11:12:20 | AB103: 47.9 | AC103: 0.01947354838 | AD103: 0.01956673939 | AF103: 2023-02-27 | AG103: 11:12:20 | AH103: 33.3 | AI103: 0.01802884799 | AJ103: 0.01923723997 | AL103: 2023-02-27 | AM103: 11:12:20 | AN103: 8.9 | AO103: 0.005456214965 | AP103: 0.00558505748 | AR103: 2023-02-27 | AS103: 10:46:00 | AT103: 830 | AU103: 0.386928263 | AV103: 0.3767843613 | AX103: 2023-02-27 | AY103: 10:46:00 | AZ103: 0 | BA103: 0 | BB103: 0 | BD103: 2023-02-27 | BE103: 10:46:00 | BF103: 0 | BG103: 0 | BH103: 0
B104: 2023-02-28 | C104: 11:08:00 | D104: 12650006 | E104: 1.774983051 | F104: 1.771994771 | H104: 2023-02-28 | I104: 11:08:00 | J104: 4193802.9 | K104: 0.2179322034 | L104: 0.2183115685 | N104: 2023-02-28 | O104: 12:00:00 | P104: 0 | Q104: 0 | R104: 0 | T104: 2023-02-28 | U104: 12:00:00 | V104: 58 | W104: 4.9785984 | X104: 4.9785984 | Z104: 2023-02-28 | AA104: 10:53:00 | AB104: 15.6 | AC104: 0.01964835739 | AD104: 0.02098777077 | AF104: 2023-02-28 | AG104: 10:53:00 | AH104: 12.1 | AI104: 0.02029556678 | AJ104: 0.02051857674 | AL104: 2023-02-28 | AM104: 10:53:00 | AN104: 3 | AO104: 0.005697899578 | AP104: 0.005866397723 | AR104: 2023-02-28 | AS104: 10:41:00 | AT104: 259 | AU104: 0.3685312624 | AV104: 0.5125217606 | AX104: 2023-02-28 | AY104: 10:41:00 | AZ104: 0 | BA104: 0 | BB104: 0 | BD104: 2023-02-28 | BE104: 10:41:00 | BF104: 0 | BG104: 0 | BH104: 0
B105: 2023-03-01 | C105: 10:19:00 | D105: 12651715.2 | E105: 1.769409058 | F105: 1.770829964 | H105: 2023-03-01 | I105: 10:19:00 | J105: 4194014.1 | K105: 0.2186398275 | L105: 0.2190790887 | N105: 2023-03-01 | O105: 12:00:00 | P105: 0 | Q105: 0 | R105: 0 | T105: 2023-03-01 | U105: 12:00:00 | V105: 58 | W105: 4.9785984 | X105: 4.9785984 | Z105: 2023-03-01 | AA105: 10:05:40 | AB105: 17.2 | AC105: 0.02209912647 | AD105: 0.02338161548 | AF105: 2023-03-01 | AG105: 10:05:40 | AH105: 12.1 | AI105: 0.02070361551 | AJ105: 0.02291696004 | AL105: 2023-03-01 | AM105: 10:05:40 | AN105: 3.1 | AO105: 0.006006206223 | AP105: 0.006417129348 | AR105: 2023-03-01 | AS105: 09:46:00 | AT105: 426 | AU105: 0.6280385432 | AV105: 0.5429038626 | AX105: 2023-03-01 | AY105: 09:46:00 | AZ105: 0 | BA105: 0 | BB105: 0 | BD105: 2023-03-01 | BE105: 09:46:00 | BF105: 0 | BG105: 0 | BH105: 0
B106: 2023-03-02 | C106: 11:18:00 | D106: 12653559.7 | E106: 1.771901268 | F106: 1.773112675 | H106: 2023-03-02 | I106: 11:18:00 | J106: 4194242.5 | K106: 0.2194102735 | L106: 0.220817665 | N106: 2023-03-02 | O106: 12:00:00 | P106: 0 | Q106: 0 | R106: 0 | T106: 2023-03-02 | U106: 12:00:00 | V106: 58 | W106: 4.9785984 | X106: 4.9785984 | Z106: 2023-03-02 | AA106: 10:52:20 | AB106: 20.2 | AC106: 0.0243126113 | AD106: 0.02299315544 | AF106: 2023-03-02 | AG106: 10:52:20 | AH106: 15.3 | AI106: 0.02452369076 | AJ106: 0.02263117277 | AL106: 2023-03-02 | AM106: 10:52:20 | AN106: 3.7 | AO106: 0.006715430314 | AP106: 0.006454319827 | AR106: 2023-03-02 | AS106: 10:00:00 | AT106: 345 | AU106: 0.4844859202 | AV106: 0.4632311194 | AX106: 2023-03-02 | AY106: 10:00:00 | AZ106: 0 | BA106: 0 | BB106: 0 | BD106: 2023-03-02 | BE106: 10:00:00 | BF106: 0 | BG106: 0 | BH106: 0
B107: 2023-03-03 | C107: 11:37:00 | D107: 12655357.3 | E107: 1.774190541 | F107: 1.773357598 | H107: 2023-03-03 | I107: 11:37:00 | J107: 4194467.5 | K107: 0.2220699109 | L107: 0.2202196372 | N107: 2023-03-03 | O107: 12:00:00 | P107: 0 | Q107: 0 | R107: 0 | T107: 2023-03-03 | U107: 12:00:00 | V107: 58 | W107: 4.9785984 | X107: 4.9785984 | Z107: 2023-03-03 | AA107: 11:23:00 | AB107: 18 | AC107: 0.02190040254 | AD107: 0.02411075815 | AF107: 2023-03-03 | AG107: 11:23:00 | AH107: 13 | AI107: 0.02106381868 | AJ107: 0.02589777955 | AL107: 2023-03-03 | AM107: 11:23:00 | AN107: 3.4 | AO107: 0.006238072167 | AP107: 0.006832715688 | AR107: 2023-03-03 | AS107: 11:13:00 | AT107: 332 | AU107: 0.4480491188 | AV107: 0.4734004547 | AX107: 2023-03-03 | AY107: 11:13:00 | AZ107: 0 | BA107: 0 | BB107: 0 | BD107: 2023-03-03 | BE107: 11:13:00 | BF107: 0 | BG107: 0 | BH107: 0
E108: 1.772576224 | F108: 1.772576224 | K108: 0.2184839161 | L108: 0.2184839161 | Q108: 0 | R108: 0 | W108: 4.9785984 | X108: 4.9785984 | AC108: 0.02610504202 | AD108: 0.02610504202 | AI108: 0.0302592 | AJ108: 0.0302592 | AO108: 0.007369230252 | AP108: 0.007369230252 | AU108: 0.4956448472 | AV108: 0.4956448472 | BA108: 0 | BB108: 0 | BG108: 0 | BH108: 0
E109: 1.772576224 | F109: 1.772576224 | K109: 0.2184839161 | L109: 0.2184839161 | Q109: 0 | R109: 0 | W109: 4.9785984 | X109: 4.9785984 | AC109: 0.02610504202 | AD109: 0.02610504202 | AI109: 0.0302592 | AJ109: 0.0302592 | AO109: 0.007369230252 | AP109: 0.007369230252 | AU109: 0.4956448472 | AV109: 0.4956448472 | BA109: 0 | BB109: 0 | BG109: 0 | BH109: 0
B110: 2023-03-06 | C110: 11:07:00 | D110: 12660638.1 | E110: 1.772576224 | F110: 1.772793581 | H110: 2023-03-06 | I110: 11:07:00 | J110: 4195118.4 | K110: 0.2184839161 | L110: 0.2168534362 | N110: 2023-03-06 | O110: 12:00:00 | P110: 0 | Q110: 0 | R110: 0 | T110: 2023-03-06 | U110: 12:00:00 | V110: 58 | W110: 4.9785984 | X110: 4.9785984 | Z110: 2023-03-06 | AA110: 10:47:00 | AB110: 62.5 | AC110: 0.02610504202 | AD110: 0.02712501508 | AF110: 2023-03-06 | AG110: 10:47:00 | AH110: 54.4 | AI110: 0.0302592 | AJ110: 0.03199345529 | AL110: 2023-03-06 | AM110: 10:47:00 | AN110: 11.7 | AO110: 0.007369230252 | AP110: 0.007145900017 | AR110: 2023-03-06 | AS110: 09:15:00 | AT110: 1020 | AU110: 0.4956448472 | AV110: 0.4677327749 | AX110: 2023-03-06 | AY110: 09:15:00 | AZ110: 0 | BA110: 0 | BB110: 0 | BD110: 2023-03-06 | BE110: 09:15:00 | BF110: 0 | BG110: 0 | BH110: 0
B111: 2023-03-07 | C111: 10:58:00 | D111: 12662400 | E111: 1.772981132 | F111: 1.769815884 | H111: 2023-03-07 | I111: 10:58:00 | J111: 4195332.5 | K111: 0.2154465409 | L111: 0.2167963937 | N111: 2023-03-07 | O111: 12:00:00 | P111: 0 | Q111: 0 | R111: 0 | T111: 2023-03-07 | U111: 12:00:00 | V111: 58 | W111: 4.9785984 | X111: 4.9785984 | Z111: 2023-03-07 | AA111: 10:40:40 | AB111: 22.4 | AC111: 0.02795719991 | AD111: 0.02666792726 | AF111: 2023-03-07 | AG111: 10:40:40 | AH111: 20.1 | AI111: 0.03340841516 | AJ111: 0.03240633092 | AL111: 2023-03-07 | AM111: 10:40:40 | AN111: 3.7 | AO111: 0.006963687329 | AP111: 0.007241021692 | AR111: 2023-03-07 | AS111: 09:58:00 | AT111: 327 | AU111: 0.4502285939 | AV111: 0.4545296888 | AX111: 2023-03-07 | AY111: 09:58:00 | AZ111: 0 | BA111: 0 | BB111: 0 | BD111: 2023-03-07 | BE111: 09:58:00 | BF111: 0 | BG111: 0 | BH111: 0
B112: 2023-03-08 | C112: 10:34:00 | D112: 12664137.7 | E112: 1.767152542 | F112: 1.771609949 | H112: 2023-03-08 | I112: 10:34:00 | J112: 4195546.8 | K112: 0.2179322034 | L112: 0.2155378167 | N112: 2023-03-08 | O112: 12:00:00 | P112: 0 | Q112: 0 | R112: 0 | T112: 2023-03-08 | U112: 12:00:00 | V112: 58 | W112: 4.9785984 | X112: 4.9785984 | Z112: 2023-03-08 | AA112: 10:10:40 | AB112: 20.2 | AC112: 0.02563457362 | AD112: 0.02500310292 | AF112: 2023-03-08 | AG112: 10:10:40 | AH112: 18.7 | AI112: 0.03160315915 | AJ112: 0.03396839027 | AL112: 2023-03-08 | AM112: 10:10:40 | AN112: 3.9 | AO112: 0.007463305532 | AP112: 0.006790029143 | AR112: 2023-03-08 | AS112: 09:37:00 | AT112: 318 | AU112: 0.4575843856 | AV112: 0.4592496258 | AX112: 2023-03-08 | AY112: 09:37:00 | AZ112: 0 | BA112: 0 | BB112: 0 | BD112: 2023-03-08 | BE112: 09:37:00 | BF112: 0 | BG112: 0 | BH112: 0
B113: 2023-03-09 | C113: 10:06:00 | D113: 12665878.3 | E113: 1.775116147 | F113: 1.775735682 | H113: 2023-03-09 | I113: 10:06:00 | J113: 4195756.3 | K113: 0.2136543909 | L113: 0.2123150713 | N113: 2023-03-09 | O113: 12:00:00 | P113: 0 | Q113: 0 | R113: 0 | T113: 2023-03-09 | U113: 12:00:00 | V113: 58 | W113: 4.9785984 | X113: 4.9785984 | Z113: 2023-03-09 | AA113: 09:45:20 | AB113: 19.4 | AC113: 0.02453812931 | AD113: 0.02414181686 | AF113: 2023-03-09 | AG113: 09:45:20 | AH113: 21.2 | AI113: 0.03570999133 | AJ113: 0.03616927484 | AL113: 2023-03-09 | AM113: 09:45:20 | AN113: 3.3 | AO113: 0.006294272573 | AP113: 0.006980061835 | AR113: 2023-03-09 | AS113: 09:03:00 | AT113: 317 | AU113: 0.460363002 | AV113: 0.4422768206 | AX113: 2023-03-09 | AY113: 09:03:00 | AZ113: 0 | BA113: 0 | BB113: 0 | BD113: 2023-03-09 | BE113: 09:03:00 | BF113: 0 | BG113: 0 | BH113: 0
B114: 2023-03-10 | C114: 11:35:00 | D114: 12667764.26 | E114: 1.776185847 | F114: 1.759364848 | H114: 2023-03-10 | I114: 11:35:00 | J114: 4195980.704 | K114: 0.2113418967 | L114: 0.2105926062 | N114: 2023-03-10 | O114: 12:00:00 | P114: 0 | Q114: 0 | R114: 0 | T114: 2023-03-10 | U114: 12:00:00 | V114: 58 | W114: 4.9785984 | X114: 4.9785984 | Z114: 2023-03-10 | AA114: 12:19:00 | AB114: 21.26 | AC114: 0.02387039538 | AD114: 0.0231986399 | AF114: 2023-03-10 | AG114: 12:19:00 | AH114: 24.4 | AI114: 0.03648382313 | AJ114: 0.03566144463 | AL114: 2023-03-10 | AM114: 12:19:00 | AN114: 4.4 | AO114: 0.00744973654 | AP114: 0.00689192861 | AR114: 2023-03-10 | AS114: 13:13:00 | AT114: 357 | AU114: 0.4313283295 | AV114: 0.4324246296 | AX114: 2023-03-10 | AY114: 13:13:00 | AZ114: 0 | BA114: 0 | BB114: 0 | BD114: 2023-03-10 | BE114: 13:13:00 | BF114: 0 | BG114: 0 | BH114: 0
E115: 1.743672774 | F115: 1.743672774 | K115: 0.2098936037 | L115: 0.2098936037 | Q115: 0 | R115: 0 | W115: 4.9785984 | X115: 4.9785984 | AC115: 0.02249046971 | AD115: 0.02249046971 | AI115: 0.03479448641 | AJ115: 0.03479448641 | AO115: 0.006303882875 | AP115: 0.006303882875 | AU115: 0.4337683174 | AV115: 0.4337683174 | BA115: 0 | BB115: 0 | BG115: 0 | BH115: 0
E116: 1.743672774 | F116: 1.743672774 | K116: 0.2098936037 | L116: 0.2098936037 | Q116: 0 | R116: 0 | W116: 4.9785984 | X116: 4.9785984 | AC116: 0.02249046971 | AD116: 0.02249046971 | AI116: 0.03479448641 | AJ116: 0.03479448641 | AO116: 0.006303882875 | AP116: 0.006303882875 | AU116: 0.4337683174 | AV116: 0.4337683174 | BA116: 0 | BB116: 0 | BG116: 0 | BH116: 0
B117: 2023-03-13 | C117: 11:55:00 | D117: 12673019.5 | E117: 1.743672774 | F117: 1.758271721 | H117: 2023-03-13 | I117: 11:55:00 | J117: 4196613.3 | K117: 0.2098936037 | L117: 0.2121144436 | N117: 2023-03-13 | O117: 12:00:00 | P117: 0 | Q117: 0 | R117: 0 | T117: 2023-03-13 | U117: 12:00:00 | V117: 58 | W117: 4.9785984 | X117: 4.9785984 | Z117: 2023-03-13 | AA117: 11:39:20 | AB117: 53.8 | AC117: 0.02249046971 | AD117: 0.02146746434 | AF117: 2023-03-13 | AG117: 11:39:20 | AH117: 62.5 | AI117: 0.03479448641 | AJ117: 0.03431835789 | AL117: 2023-03-13 | AM117: 11:39:20 | AN117: 10 | AO117: 0.006303882875 | AP117: 0.006080746492 | AR117: 2023-03-13 | AS117: 14:39:00 | AT117: 936 | AU117: 0.4337683174 | AV117: 0.4122166909 | AX117: 2023-03-13 | AY117: 14:39:00 | AZ117: 0 | BA117: 0 | BB117: 0 | BD117: 2023-03-13 | BE117: 14:39:00 | BF117: 0 | BG117: 0 | BH117: 0
B118: 2023-03-14 | C118: 10:51:00 | D118: 12674713.38 | E118: 1.772669302 | F118: 1.776021736 | H118: 2023-03-14 | I118: 10:51:00 | J118: 4196818.08 | K118: 0.2143046512 | L118: 0.2131155091 | N118: 2023-03-14 | O118: 12:00:00 | P118: 0 | Q118: 0 | R118: 0 | T118: 2023-03-14 | U118: 12:00:00 | V118: 58 | W118: 4.9785984 | X118: 4.9785984 | Z118: 2023-03-14 | AA118: 10:38:20 | AB118: 15.8 | AC118: 0.02050154837 | AD118: 0.02149188135 | AF118: 2023-03-14 | AG118: 10:38:20 | AH118: 19.6 | AI118: 0.0338688 | AJ118: 0.0325884625 | AL118: 2023-03-14 | AM118: 10:38:20 | AN118: 3 | AO118: 0.005870062364 | AP118: 0.006082036838 | AR118: 2023-03-14 | AS118: 09:59:00 | AT118: 215 | AU118: 0.3784486345 | AV118: 0.3991594787 | AX118: 2023-03-14 | AY118: 09:59:00 | AZ118: 0 | BA118: 0 | BB118: 0 | BD118: 2023-03-14 | BE118: 09:59:00 | BF118: 0 | BG118: 0 | BH118: 0
B119: 2023-03-15 | C119: 09:56:00 | D119: 12676424.23 | E119: 1.778787812 | F119: 1.77442025 | H119: 2023-03-15 | I119: 09:56:00 | J119: 4197022.112 | K119: 0.2121343538 | L119: 0.2112138537 | N119: 2023-03-15 | O119: 12:00:00 | P119: 0 | Q119: 0 | R119: 0 | T119: 2023-03-15 | U119: 12:00:00 | V119: 58 | W119: 4.9785984 | X119: 4.9785984 | Z119: 2023-03-15 | AA119: 09:39:40 | AB119: 17.2 | AC119: 0.0222804417 | AD119: 0.02462743419 | AF119: 2023-03-15 | AG119: 09:39:40 | AH119: 18.3 | AI119: 0.03156898378 | AJ119: 0.03242338075 | AL119: 2023-03-15 | AM119: 09:39:40 | AN119: 3.2 | AO119: 0.006250823166 | AP119: 0.006916764796 | AR119: 2023-03-15 | AS119: 09:20:00 | AT119: 284 | AU119: 0.4139107221 | AV119: 0.43862471 | AX119: 2023-03-15 | AY119: 09:20:00 | AZ119: 0 | BA119: 0 | BB119: 0 | BD119: 2023-03-15 | BE119: 09:20:00 | BF119: 0 | BG119: 0 | BH119: 0
B120: 2023-03-16 | C120: 10:59:00 | D120: 12678273.06 | E120: 1.771336048 | F120: 1.772815613 | H120: 2023-03-16 | I120: 10:59:00 | J120: 4197241.888 | K120: 0.2105638323 | L120: 0.2096131436 | N120: 2023-03-16 | O120: 12:00:00 | P120: 0 | Q120: 0 | R120: 0 | T120: 2023-03-16 | U120: 12:00:00 | V120: 58 | W120: 4.9785984 | X120: 4.9785984 | Z120: 2023-03-16 | AA120: 10:41:40 | AB120: 22 | AC120: 0.02620876698 | AD120: 0.02752246945 | AF120: 2023-03-16 | AG120: 10:41:40 | AH120: 20.8 | AI120: 0.03299904767 | AJ120: 0.03525595438 | AL120: 2023-03-16 | AM120: 10:41:40 | AN120: 4.1 | AO120: 0.007365456192 | AP120: 0.01041860895 | AR120: 2023-03-16 | AS120: 10:21:00 | AT120: 334 | AU120: 0.4543517932 | AV120: 0.4868659578 | AX120: 2023-03-16 | AY120: 10:21:00 | AZ120: 0 | BA120: 0 | BB120: 0 | BD120: 2023-03-16 | BE120: 10:21:00 | BF120: 0 | BG120: 0 | BH120: 0
B121: 2023-03-17 | C121: 11:04:00 | D121: 12680053.29 | E121: 1.774064055 | F121: 1.772466281 | H121: 2023-03-17 | I121: 11:04:00 | J121: 4197451.424 | K121: 0.2088109619 | L121: 0.2088797188 | N121: 2023-03-17 | O121: 12:00:00 | P121: 0 | Q121: 0 | R121: 0 | T121: 2023-03-17 | U121: 12:00:00 | V121: 58 | W121: 4.9785984 | X121: 4.9785984 | Z121: 2023-03-17 | AA121: 10:48:00 | AB121: 23.1 | AC121: 0.0285783681 | AD121: 0.02745912234 | AF121: 2023-03-17 | AG121: 10:48:00 | AH121: 22.5 | AI121: 0.03706996082 | AJ121: 0.0272136491 | AL121: 2023-03-17 | AM121: 10:48:00 | AN121: 6.9 | AO121: 0.01287260438 | AP121: 0.01092363305 | AR121: 2023-03-17 | AS121: 10:34:00 | AT121: 364 | AU121: 0.5115195551 | AV121: 0.4675335197 | AX121: 2023-03-17 | AY121: 10:34:00 | AZ121: 0 | BA121: 0 | BB121: 0 | BD121: 2023-03-17 | BE121: 10:34:00 | BF121: 0 | BG121: 0 | BH121: 0
E122: 1.771099113 | F122: 1.771099113 | K122: 0.2089385521 | L122: 0.2089385521 | Q122: 0 | R122: 0 | W122: 4.9785984 | X122: 4.9785984 | AC122: 0.0265433758 | AD122: 0.0265433758 | AI122: 0.01914939405 | AJ122: 0.01914939405 | AO122: 0.009329020153 | AP122: 0.009329020153 | AU122: 0.4329340825 | AV122: 0.4329340825 | BA122: 0 | BB122: 0 | BG122: 0 | BH122: 0
E123: 1.771099113 | F123: 1.771099113 | K123: 0.2089385521 | L123: 0.2089385521 | Q123: 0 | R123: 0 | W123: 4.9785984 | X123: 4.9785984 | AC123: 0.0265433758 | AD123: 0.0265433758 | AI123: 0.01914939405 | AJ123: 0.01914939405 | AO123: 0.009329020153 | AP123: 0.009329020153 | AU123: 0.4329340825 | AV123: 0.4329340825 | BA123: 0 | BB123: 0 | BG123: 0 | BH123: 0
B124: 2023-03-20 | C124: 10:26:00 | D124: 12685319.85 | E124: 1.771099113 | F124: 1.771370108 | H124: 2023-03-20 | I124: 10:26:00 | J124: 4198072.726 | K124: 0.2089385521 | L124: 0.2098381945 | N124: 2023-03-20 | O124: 12:00:00 | P124: 0 | Q124: 0 | R124: 0 | T124: 2023-03-20 | U124: 12:00:00 | V124: 58 | W124: 4.9785984 | X124: 4.9785984 | Z124: 2023-03-20 | AA124: 10:08:40 | AB124: 63.5 | AC124: 0.0265433758 | AD124: 0.02792533543 | AF124: 2023-03-20 | AG124: 10:08:40 | AH124: 34.4 | AI124: 0.01914939405 | AJ124: 0.02740152747 | AL124: 2023-03-20 | AM124: 10:08:40 | AN124: 14.8 | AO124: 0.009329020153 | AP124: 0.009159175167 | AR124: 2023-03-20 | AS124: 09:47:00 | AT124: 906 | AU124: 0.4329340825 | AV124: 0.4773520713 | AX124: 2023-03-20 | AY124: 09:47:00 | AZ124: 0 | BA124: 0 | BB124: 0 | BD124: 2023-03-20 | BE124: 09:47:00 | BF124: 0 | BG124: 0 | BH124: 0
B125: 2023-03-21 | C125: 09:46:00 | D125: 12687042.22 | E125: 1.771578514 | F125: 1.772286838 | H125: 2023-03-21 | I125: 09:46:00 | J125: 4198277.408 | K125: 0.2105300571 | L125: 0.2100790132 | N125: 2023-03-21 | O125: 12:00:00 | P125: 0 | Q125: 0 | R125: 0 | T125: 2023-03-21 | U125: 12:00:00 | V125: 58 | W125: 4.9785984 | X125: 4.9785984 | Z125: 2023-03-21 | AA125: 09:32:20 | AB125: 22.7 | AC125: 0.02893714709 | AD125: 0.02618337238 | AF125: 2023-03-21 | AG125: 09:32:20 | AH125: 19.7 | AI125: 0.03344338618 | AJ125: 0.03343140665 | AL125: 2023-03-21 | AM125: 09:32:20 | AN125: 4.7 | AO125: 0.009034821943 | AP125: 0.009015289503 | AR125: 2023-03-21 | AS125: 09:10:00 | AT125: 349 | AU125: 0.5079187296 | AV125: 0.551146012 | AX125: 2023-03-21 | AY125: 09:10:00 | AZ125: 0 | BA125: 0 | BB125: 0 | BD125: 2023-03-21 | BE125: 09:10:00 | BF125: 0 | BG125: 0 | BH125: 0
B126: 2023-03-22 | C126: 10:09:00 | D126: 12688843.3 | E126: 1.772772878 | F126: 1.772594804 | H126: 2023-03-22 | I126: 10:09:00 | J126: 4198490.528 | K126: 0.2097695147 | L126: 0.2132981258 | N126: 2023-03-22 | O126: 12:00:00 | P126: 0 | Q126: 0 | R126: 0 | T126: 2023-03-22 | U126: 12:00:00 | V126: 58 | W126: 4.9785984 | X126: 4.9785984 | Z126: 2023-03-22 | AA126: 10:01:00 | AB126: 20 | AC126: 0.02436691784 | AD126: 0.02474657477 | AF126: 2023-03-22 | AG126: 10:01:00 | AH126: 20.6 | AI126: 0.03342350468 | AJ126: 0.02933632558 | AL126: 2023-03-22 | AM126: 10:01:00 | AN126: 4.9 | AO126: 0.009002405447 | AP126: 0.009733734211 | AR126: 2023-03-22 | AS126: 09:47:00 | AT126: 418 | AU126: 0.5778595012 | AV126: 0.597846785 | AX126: 2023-03-22 | AY126: 09:47:00 | AZ126: 0 | BA126: 0 | BB126: 0 | BD126: 2023-03-22 | BE126: 09:47:00 | BF126: 0 | BG126: 0 | BH126: 0
B127: 2023-03-23 | C127: 12:39:00 | D127: 12690800.4 | E127: 1.772464302 | F127: 1.77031653 | H127: 2023-03-23 | I127: 12:39:00 | J127: 4198728.9 | K127: 0.2158840755 | L127: 0.2077668981 | N127: 2023-03-23 | O127: 12:00:00 | P127: 0 | Q127: 0 | R127: 0 | T127: 2023-03-23 | U127: 12:00:00 | V127: 58 | W127: 4.9785984 | X127: 4.9785984 | Z127: 2023-03-23 | AA127: 11:53:00 | AB127: 21.7 | AC127: 0.02501853402 | AD127: 0.02659751587 | AF127: 2023-03-23 | AG127: 11:53:00 | AH127: 17.2 | AI127: 0.02640856082 | AJ127: 0.02742898845 | AL127: 2023-03-23 | AM127: 11:53:00 | AN127: 5.9 | AO127: 0.01025760619 | AP127: 0.009527976215 | AR127: 2023-03-23 | AS127: 14:13:00 | AT127: 511 | AU127: 0.611601223 | AV127: 0.5790591191 | AX127: 2023-03-23 | AY127: 14:13:00 | AZ127: 0 | BA127: 0 | BB127: 0 | BD127: 2023-03-23 | BE127: 14:13:00 | BF127: 0 | BG127: 0 | BH127: 0
B128: 2023-03-24 | C128: 12:49:00 | D128: 12692580.6 | E128: 1.767922759 | F128: 1.7678613 | H128: 2023-03-24 | I128: 12:49:00 | J128: 4198929 | K128: 0.19872 | L128: 0.2056675958 | N128: 2023-03-24 | O128: 12:00:00 | P128: 0 | Q128: 0 | R128: 0 | T128: 2023-03-24 | U128: 12:00:00 | V128: 58 | W128: 4.9785984 | X128: 4.9785984 | Z128: 2023-03-24 | AA128: 12:53:20 | AB128: 23.6 | AC128: 0.02814609091 | AD128: 0.02789879039 | AF128: 2023-03-24 | AG128: 12:53:20 | AH128: 17.9 | AI128: 0.02842976547 | AJ128: 0.0278770958 | AL128: 2023-03-24 | AM128: 12:53:20 | AN128: 4.9 | AO128: 0.00881239689 | AP128: 0.009461982876 | AR128: 2023-03-24 | AS128: 10:11:00 | AT128: 312 | AU128: 0.5317705082 | AV128: 0.5559921935 | AX128: 2023-03-24 | AY128: 10:11:00 | AZ128: 0 | BA128: 0 | BB128: 0 | BD128: 2023-03-24 | BE128: 10:11:00 | BF128: 0 | BG128: 0 | BH128: 0
E129: 1.767790866 | F129: 1.767790866 | K129: 0.2136298926 | L129: 0.2136298926 | Q129: 0 | R129: 0 | W129: 4.9785984 | X129: 4.9785984 | AC129: 0.02761192179 | AD129: 0.02761192179 | AI129: 0.02723599898 | AJ129: 0.02723599898 | AO129: 0.01021550262 | AP129: 0.01021550262 | AU129: 0.5738443644 | AV129: 0.5738443644 | BA129: 0 | BB129: 0 | BG129: 0 | BH129: 0
E130: 1.767790866 | F130: 1.767790866 | K130: 0.2136298926 | L130: 0.2136298926 | Q130: 0 | R130: 0 | W130: 4.9785984 | X130: 4.9785984 | AC130: 0.02761192179 | AD130: 0.02761192179 | AI130: 0.02723599898 | AJ130: 0.02723599898 | AO130: 0.01021550262 | AP130: 0.01021550262 | AU130: 0.5738443644 | AV130: 0.5738443644 | BA130: 0 | BB130: 0 | BG130: 0 | BH130: 0
B131: 2023-03-27 | C131: 10:40:00 | D131: 12697725.61 | E131: 1.767790866 | F131: 1.766999408 | H131: 2023-03-27 | I131: 10:40:00 | J131: 4199550.752 | K131: 0.2136298926 | L131: 0.2090494761 | N131: 2023-03-27 | O131: 12:00:00 | P131: 0 | Q131: 0 | R131: 0 | T131: 2023-03-27 | U131: 12:00:00 | V131: 58 | W131: 4.9785984 | X131: 4.9785984 | Z131: 2023-03-27 | AA131: 10:26:40 | AB131: 64.4 | AC131: 0.02761192179 | AD131: 0.02849907628 | AF131: 2023-03-27 | AG131: 10:26:40 | AH131: 47.7 | AI131: 0.02723599898 | AJ131: 0.02789724387 | AL131: 2023-03-27 | AM131: 10:26:40 | AN131: 15.8 | AO131: 0.01021550262 | AP131: 0.01013007401 | AR131: 2023-03-27 | AS131: 10:00:00 | AT131: 1211 | AU131: 0.5738443644 | AV131: 0.5167624826 | AX131: 2023-03-27 | AY131: 10:00:00 | AZ131: 0 | BA131: 0 | BB131: 0 | BD131: 2023-03-27 | BE131: 10:00:00 | BF131: 0 | BG131: 0 | BH131: 0
B132: 2023-03-28 | C132: 09:25:00 | D132: 12699399.98 | E132: 1.766366242 | F132: 1.768648805 | H132: 2023-03-28 | I132: 09:25:00 | J132: 4199745.44 | K132: 0.2053851429 | L132: 0.205207003 | N132: 2023-03-28 | O132: 12:00:00 | P132: 0 | Q132: 0 | R132: 0 | T132: 2023-03-28 | U132: 12:00:00 | V132: 58 | W132: 4.9785984 | X132: 4.9785984 | Z132: 2023-03-28 | AA132: 09:14:00 | AB132: 22.3 | AC132: 0.02918262155 | AD132: 0.02898919302 | AF132: 2023-03-28 | AG132: 09:14:00 | AH132: 16.3 | AI132: 0.02840672765 | AJ132: 0.02849458725 | AL132: 2023-03-28 | AM132: 09:14:00 | AN132: 5.1 | AO132: 0.01006425197 | AP132: 0.009974738335 | AR132: 2023-03-28 | AS132: 08:57:00 | AT132: 321 | AU132: 0.4759897098 | AV132: 0.3888695212 | AX132: 2023-03-28 | AY132: 08:57:00 | AZ132: 0 | BA132: 0 | BB132: 0 | BD132: 2023-03-28 | BE132: 08:57:00 | BF132: 0 | BG132: 0 | BH132: 0
B133: 2023-03-29 | C133: 09:58:00 | D133: 12701210.66 | E133: 1.770122688 | F133: 1.768507283 | H133: 2023-03-29 | I133: 09:58:00 | J133: 4199955.232 | K133: 0.2050919756 | L133: 0.2024888065 | N133: 2023-03-29 | O133: 12:00:00 | P133: 0 | Q133: 0 | R133: 0 | T133: 2023-03-29 | U133: 12:00:00 | V133: 58 | W133: 4.9785984 | X133: 4.9785984 | Z133: 2023-03-29 | AA133: 09:43:00 | AB133: 23.7 | AC133: 0.02886824561 | AD133: 0.02879606663 | AF133: 2023-03-29 | AG133: 09:43:00 | AH133: 17.6 | AI133: 0.0285495243 | AJ133: 0.02846263677 | AL133: 2023-03-29 | AM133: 09:43:00 | AN133: 5.4 | AO133: 0.009918767052 | AP133: 0.00994532289 | AR133: 2023-03-29 | AS133: 09:23:00 | AT133: 242 | AU133: 0.3370605053 | AV133: 0.1317812948 | AX133: 2023-03-29 | AY133: 09:23:00 | AZ133: 0 | BA133: 0 | BB133: 0 | BD133: 2023-03-29 | BE133: 09:23:00 | BF133: 0 | BG133: 0 | BH133: 0
B134: 2023-03-30 | C134: 11:34:00 | D134: 12703095.85 | E134: 1.76736 | F134: 1.770961207 | H134: 2023-03-30 | I134: 11:34:00 | J134: 4200169.248 | K134: 0.20064 | L134: 0.1988854194 | N134: 2023-03-30 | O134: 12:00:00 | P134: 0 | Q134: 0 | R134: 0 | T134: 2023-03-30 | U134: 12:00:00 | V134: 58 | W134: 4.9785984 | X134: 4.9785984 | Z134: 2023-03-30 | AA134: 11:26:40 | AB134: 24.8 | AC134: 0.02874696472 | AD134: 0.04542741976 | AF134: 2023-03-30 | AG134: 11:26:40 | AH134: 18.4 | AI134: 0.02840352891 | AJ134: 0.03049466558 | AL134: 2023-03-30 | AM134: 11:26:40 | AN134: 5.7 | AO134: 0.009963388296 | AP134: 0.01785148347 | AR134: 2023-03-30 | AS134: 11:16:00 | AT134: 0 | AU134: 0 | AV134: 0 | AX134: 2023-03-30 | AY134: 11:16:00 | AZ134: 0 | BA134: 0 | BB134: 0 | BD134: 2023-03-30 | BE134: 11:16:00 | BF134: 0 | BG134: 0 | BH134: 0
B135: 2023-03-31 | C135: 10:48:00 | D135: 12704813.48 | E135: 1.774311392 | F135: 1.771337303 | H135: 2023-03-31 | I135: 10:48:00 | J135: 4200360.2 | K135: 0.197253142 | L135: 0.1957608701 | N135: 2023-03-31 | O135: 12:00:00 | P135: 0 | Q135: 0 | R135: 0 | T135: 2023-03-31 | U135: 12:00:00 | V135: 58 | W135: 4.9785984 | X135: 4.9785984 | Z135: 2023-03-31 | AA135: 10:36:40 | AB135: 47.1 | AC135: 0.06063172835 | AD135: 0.04312007756 | AF135: 2023-03-31 | AG135: 10:36:40 | AH135: 18.9 | AI135: 0.0324007459 | AJ135: 0.03295508796 | AL135: 2023-03-31 | AM135: 10:36:40 | AN135: 12.9 | AO135: 0.02504151712 | AP135: 0.01107159669 | AR135: 2023-03-31 | AS135: 10:20:00 | AT135: 0 | AU135: 0 | AV135: 0 | AX135: 2023-03-31 | AY135: 10:20:00 | AZ135: 0 | BA135: 0 | BB135: 0 | BD135: 2023-03-31 | BE135: 10:20:00 | BF135: 0 | BG135: 0 | BH135: 0.5838867875
E136: 1.768903957 | F136: 1.768903957 | K136: 0.1945399204 | L136: 0.1945399204 | Q136: 0 | R136: 0 | W136: 4.9785984 | X136: 4.9785984 | AC136: 0.02924154934 | AD136: 0.02924154934 | AI136: 0.03339442129 | AJ136: 0.03339442129 | AO136: 0 | AP136: 0 | AU136: 0 | AV136: 0 | BA136: 0 | BB136: 0 | BG136: 1.025362163 | BH136: 1.025362163
E137: 1.768903957 | F137: 1.768903957 | K137: 0.1945399204 | L137: 0.1945399204 | Q137: 0 | R137: 0 | W137: 4.9785984 | X137: 4.9785984 | AC137: 0.02924154934 | AD137: 0.02924154934 | AI137: 0.03339442129 | AJ137: 0.03339442129 | AO137: 0 | AP137: 0 | AU137: 0 | AV137: 0 | BA137: 0 | BB137: 0 | BG137: 1.025362163 | BH137: 1.025362163
B138: 2023-04-03 | C138: 09:59:00 | D138: 12710060 | E138: 1.768903957 | F138: 1.772418281 | H138: 2023-04-03 | I138: 09:59:00 | J138: 4200937.2 | K138: 0.1945399204 | L138: 0.193871782 | N138: 2023-04-03 | O138: 12:00:00 | P138: 0 | Q138: 0 | R138: 0 | T138: 2023-04-03 | U138: 12:00:00 | V138: 58 | W138: 4.9785984 | X138: 4.9785984 | Z138: 2023-04-03 | AA138: 10:12:20 | AB138: 70.2 | AC138: 0.02924154934 | AD138: 0.02917145926 | AF138: 2023-04-03 | AG138: 10:12:20 | AH138: 60.2 | AI138: 0.03339442129 | AJ138: 0.03164797739 | AL138: 2023-04-03 | AM138: 10:12:20 | AN138: 0 | AO138: 0 | AP138: 0.007447542659 | AR138: 2023-04-03 | AS138: 11:11:00 | AT138: 0 | AU138: 0 | AV138: 0 | AX138: 2023-04-03 | AY138: 11:11:00 | AZ138: 0 | BA138: 0 | BB138: 0 | BD138: 2023-04-03 | BE138: 11:11:00 | BF138: 2831 | BG138: 1.025362163 | BH138: 1.03124443
B139: 2023-04-04 | C139: 11:12:00 | D139: 12711924.9 | E139: 1.774921348 | F139: 1.769297526 | H139: 2023-04-04 | I139: 11:12:00 | J139: 4201140.4 | K139: 0.1933959022 | L139: 0.1934550085 | N139: 2023-04-04 | O139: 12:00:00 | P139: 0 | Q139: 0 | R139: 0 | T139: 2023-04-04 | U139: 12:00:00 | V139: 58 | W139: 4.9785984 | X139: 4.9785984 | Z139: 2023-04-04 | AA139: 11:11:40 | AB139: 24.4 | AC139: 0.02911960445 | AD139: 0.02918722384 | AF139: 2023-04-04 | AG139: 11:11:40 | AH139: 19.1 | AI139: 0.03035590431 | AJ139: 0.03106748696 | AL139: 2023-04-04 | AM139: 11:11:40 | AN139: 7.2 | AO139: 0.01295746447 | AP139: 0.01171278161 | AR139: 2023-04-04 | AS139: 10:44:00 | AT139: 0 | AU139: 0 | AV139: 0 | AX139: 2023-04-04 | AY139: 10:44:00 | AZ139: 0 | BA139: 0 | BB139: 0 | BD139: 2023-04-04 | BE139: 10:44:00 | BF139: 925 | BG139: 1.03637707 | BH139: 1.115555266
B140: 2023-04-05 | C140: 09:30:00 | D140: 12713564.3 | E140: 1.764376682 | F140: 1.776479812 | H140: 2023-04-05 | I140: 09:30:00 | J140: 4201320.2 | K140: 0.1935067265 | L140: 0.1910390897 | N140: 2023-04-05 | O140: 12:00:00 | P140: 0 | Q140: 0 | R140: 1.3837824 | T140: 2023-04-05 | U140: 12:00:00 | V140: 58 | W140: 4.9785984 | X140: 4.20906816 | Z140: 2023-04-05 | AA140: 09:37:40 | AB140: 22 | AC140: 0.02924633581 | AD140: 0.02950578379 | AF140: 2023-04-05 | AG140: 09:37:40 | AH140: 17.9 | AI140: 0.03168954294 | AJ140: 0.03544989355 | AL140: 2023-04-05 | AM140: 09:37:40 | AN140: 5.3 | AO140: 0.01062469658 | AP140: 0.006794620106 | AR140: 2023-04-05 | AS140: 09:45:00 | AT140: 0 | AU140: 0 | AV140: 0 | AX140: 2023-04-05 | AY140: 09:45:00 | AZ140: 0 | BA140: 0 | BB140: 0 | BD140: 2023-04-05 | BE140: 09:45:00 | BF140: 1029 | BG140: 1.179614007 | BH140: 1.164574247
B141: 2023-04-06 | C141: 10:54:00 | D141: 12715452.8 | E141: 1.784409449 | F141: 1.552643458 | H141: 2023-04-06 | I141: 10:54:00 | J141: 4201520.672 | K141: 0.1894223622 | L141: 0.08602932283 | N141: 2023-04-06 | O141: 13:15:00 | P141: 50 | Q141: 2.7675648 | R141: 2.673042372 | T141: 2023-04-06 | U141: 13:15:00 | V141: 50 | W141: 3.43953792 | X141: 3.317370147 | Z141: 2023-04-06 | AA141: 11:09:00 | AB141: 25.4 | AC141: 0.02967958485 | AD141: 0.02966091924 | AF141: 2023-04-06 | AG141: 11:09:00 | AH141: 24.4 | AI141: 0.03796890692 | AJ141: 0.03447954858 | AL141: 2023-04-06 | AM141: 11:09:00 | AN141: 2.4 | AO141: 0.004228898215 | AP141: 0.002957823979 | AR141: 2023-04-06 | AS141: 11:17:00 | AT141: 0 | AU141: 0 | AV141: 0 | AX141: 2023-04-06 | AY141: 11:17:00 | AZ141: 0 | BA141: 0 | BB141: 0 | BD141: 2023-04-06 | BE141: 11:17:00 | BF141: 1117 | BG141: 1.154283885 | BH141: 1.150774249
B142: 2023-04-07 | C142: 10:54:00 | D142: 12716812.6 | E142: 1.3598 | F142: 1.335671577 | H142: 2023-04-07 | I142: 10:54:00 | J142: 4201520.672 | K142: 0 | L142: 0 | N142: 2023-04-07 | O142: 09:45:00 | P142: 48 | Q142: 2.556537984 | R142: 2.556537984 | T142: 2023-04-07 | U142: 09:45:00 | V142: 48 | W142: 3.166791264 | X142: 3.166791264 | Z142: 2023-04-07 | AA142: 11:23:40 | AB142: 24.1 | AC142: 0.02964472301 | AD142: 0.02957862739 | AF142: 2023-04-07 | AG142: 11:23:40 | AH142: 19.2 | AI142: 0.03145181742 | AJ142: 0.03027715281 | AL142: 2023-04-07 | AM142: 11:23:40 | AN142: 1 | AO142: 0.001854907424 | AP142: 0.001216087721 | AR142: 2023-04-07 | AS142: 10:33:00 | AT142: 0 | AU142: 0 | AV142: 0 | AX142: 2023-04-07 | AY142: 10:33:00 | AZ142: 0 | BA142: 0 | BB142: 0 | BD142: 2023-04-07 | BE142: 10:33:00 | BF142: 1012 | BG142: 1.147660195 | BH142: 1.129098871
E143: 1.315595255 | F143: 1.315595255 | K143: 0 | L143: 0 | Q143: 2.556537984 | R143: 2.556537984 | W143: 3.166791264 | X143: 3.166791264 | AC143: 0.02951888208 | AD143: 0.02951888208 | AI143: 0.02921534712 | AJ143: 0.02921534712 | AO143: 0.0006386442604 | AP143: 0.0006386442604 | AU143: 0 | AV143: 0 | BA143: 0 | BB143: 0 | BG143: 1.114539617 | BH143: 1.114539617
E144: 1.315595255 | F144: 1.315595255 | K144: 0 | L144: 0 | Q144: 2.556537984 | R144: 2.556537984 | W144: 3.166791264 | X144: 3.166791264 | AC144: 0.02951888208 | AD144: 0.02951888208 | AI144: 0.02921534712 | AJ144: 0.02921534712 | AO144: 0.0006386442604 | AP144: 0.0006386442604 | AU144: 0 | AV144: 0 | BA144: 0 | BB144: 0 | BG144: 1.114539617 | BH144: 1.114539617
B145: 2023-04-10 | C145: 10:33:00 | D145: 12720740.2 | E145: 1.315595255 | F145: 1.311542248 | H145: 2023-04-10 | I145: 10:33:00 | J145: 4201520.672 | K145: 0 | L145: 0 | N145: 2023-04-10 | O145: 12:00:00 | P145: 48 | Q145: 2.556537984 | R145: 2.556537984 | T145: 2023-04-10 | U145: 12:00:00 | V145: 48 | W145: 3.166791264 | X145: 3.166791264 | Z145: 2023-04-10 | AA145: 09:48:40 | AB145: 69.7 | AC145: 0.02951888208 | AD145: 0.02986379567 | AF145: 2023-04-10 | AG145: 09:48:40 | AH145: 51.8 | AI145: 0.02921534712 | AJ145: 0.0192812435 | AL145: 2023-04-10 | AM145: 09:48:40 | AN145: 1 | AO145: 0.0006386442604 | AP145: 0.004640280542 | AR145: 2023-04-10 | AS145: 09:40:00 | AT145: 0 | AU145: 0 | AV145: 0 | AX145: 2023-04-10 | AY145: 09:40:00 | AZ145: 0 | BA145: 0 | BB145: 0 | BD145: 2023-04-10 | BE145: 09:40:00 | BF145: 3004 | BG145: 1.114539617 | BH145: 1.069886451
B146: 2023-04-11 | C146: 10:14:00 | D146: 12722031.3 | E146: 1.308363125 | F146: 1.307010457 | H146: 2023-04-11 | I146: 10:14:00 | J146: 4201520.672 | K146: 0 | L146: 0 | N146: 2023-04-11 | O146: 12:00:00 | P146: 48 | Q146: 2.556537984 | R146: 2.556537984 | T146: 2023-04-11 | U146: 12:00:00 | V146: 48 | W146: 3.166791264 | X146: 3.166791264 | Z146: 2023-04-11 | AA146: 09:29:20 | AB146: 23.9 | AC146: 0.03010229113 | AD146: 0.02966719518 | AF146: 2023-04-11 | AG146: 09:29:20 | AH146: 7.4 | AI146: 0.01241216481 | AJ146: 0.02053451652 | AL146: 2023-04-11 | AM146: 09:29:20 | AN146: 3.9 | AO146: 0.007407269451 | AP146: 0.008167988262 | AR146: 2023-04-11 | AS146: 09:16:00 | AT146: 0 | AU146: 0 | AV146: 0 | AX146: 2023-04-11 | AY146: 09:16:00 | AZ146: 0 | BA146: 0 | BB146: 0 | BD146: 2023-04-11 | BE146: 09:16:00 | BF146: 930 | BG146: 1.039771525 | BH146: 1.032471153
B147: 2023-04-12 | C147: 13:06:00 | D147: 12723493.3 | E147: 1.306004963 | F147: 1.305964165 | H147: 2023-04-12 | I147: 13:06:00 | J147: 4201520.672 | K147: 0 | L147: 0 | N147: 2023-04-12 | O147: 12:00:00 | P147: 48 | Q147: 2.556537984 | R147: 2.556537984 | T147: 2023-04-12 | U147: 12:00:00 | V147: 48 | W147: 3.166791264 | X147: 3.166791264 | Z147: 2023-04-12 | AA147: 12:59:40 | AB147: 27.1 | AC147: 0.02938268374 | AD147: 0.02954751056 | AF147: 2023-04-12 | AG147: 12:59:40 | AH147: 17.9 | AI147: 0.02584576336 | AJ147: 0.02634756696 | AL147: 2023-04-12 | AM147: 12:59:40 | AN147: 5.3 | AO147: 0.008665426136 | AP147: 0.00843873612 | AR147: 2023-04-12 | AS147: 11:27:00 | AT147: 0 | AU147: 0 | AV147: 0 | AX147: 2023-04-12 | AY147: 11:27:00 | AZ147: 0 | BA147: 0 | BB147: 0 | BD147: 2023-04-12 | BE147: 11:27:00 | BF147: 1020 | BG147: 1.027879516 | BH147: 1.031913722
B148: 2023-04-13 | C148: 09:55:00 | D148: 12724626 | E148: 1.305915132 | F148: 1.285423423 | H148: 2023-04-13 | I148: 09:55:00 | J148: 4201520.672 | K148: 0 | L148: 0 | N148: 2023-04-13 | O148: 12:00:00 | P148: 48 | Q148: 2.556537984 | R148: 2.556537984 | T148: 2023-04-13 | U148: 12:00:00 | V148: 48 | W148: 3.166791264 | X148: 3.166791264 | Z148: 2023-04-13 | AA148: 13:45:40 | AB148: 24.7 | AC148: 0.02974212436 | AD148: 0.0295297993 | AF148: 2023-04-13 | AG148: 13:45:40 | AH148: 16.8 | AI148: 0.02694005491 | AJ148: 0.0264433277 | AL148: 2023-04-13 | AM148: 13:45:40 | AN148: 4.5 | AO148: 0.008171079408 | AP148: 0.008576300513 | AR148: 2023-04-13 | AS148: 09:11:00 | AT148: 0 | AU148: 0 | AV148: 0 | AX148: 2023-04-13 | AY148: 09:11:00 | AZ148: 0 | BA148: 0 | BB148: 0 | BD148: 2023-04-13 | BE148: 09:11:00 | BF148: 853 | BG148: 1.035594331 | BH148: 1.037121158
B149: 2023-04-14 | C149: 09:45:00 | D149: 12725888.17 | E149: 1.27099435 | F149: 1.284997332 | H149: 2023-04-14 | I149: 09:45:00 | J149: 4201520.672 | K149: 0 | L149: 0 | N149: 2023-04-14 | O149: 12:00:00 | P149: 48 | Q149: 2.556537984 | R149: 2.556537984 | T149: 2023-04-14 | U149: 12:00:00 | V149: 48 | W149: 3.166791264 | X149: 3.166791264 | Z149: 2023-04-14 | AA149: 09:29:00 | AB149: 19.34 | AC149: 0.02924443349 | AD149: 0.02956638212 | AF149: 2023-04-14 | AG149: 09:29:00 | AH149: 12.8 | AI149: 0.02577572417 | AJ149: 0.02731266547 | AL149: 2023-04-14 | AM149: 09:29:00 | AN149: 4 | AO149: 0.009120919437 | AP149: 0.01091912868 | AR149: 2023-04-14 | AS149: 09:00:00 | AT149: 0 | AU149: 0 | AV149: 0 | AX149: 2023-04-14 | AY149: 09:00:00 | AZ149: 0 | BA149: 0 | BB149: 0 | BD149: 2023-04-14 | BE149: 09:00:00 | BF149: 937 | BG149: 1.038067482 | BH149: 1.026122867
E150: 1.294578321 | F150: =C150*E150+(1-C150)*E151 -> 1.294578321 | K150: 0 | L150: =I150*K150+(1-I150)*K151 -> 0 | Q150: 2.556537984 | R150: =O150*Q150+(1-O150)*Q151 -> 2.556537984 | W150: 3.166791264 | X150: =U150*W150+(1-U150)*W151 -> 3.166791264 | AC150: 0.02977670218 | AD150: =AA150*AC150+(1-AA150)*AC151 -> 0.02977670218 | AI150: 0.02831670634 | AJ150: =AG150*AI150+(1-AG150)*AI151 -> 0.02831670634 | AO150: 0.01209384861 | AP150: =AM150*AO150+(1-AM150)*AO151 -> 0.01209384861 | AU150: 0 | AV150: =AS150*AU150+(1-AS150)*AU151 -> 0 | BA150: 0 | BB150: =AY150*BA150+(1-AY150)*BA151 -> 0 | BG150: 1.018956098 | BH150: =BE150*BG150+(1-BE150)*BG151 -> 1.018956098
E151: 1.294578321 | F151: 1.294578321 | K151: 0 | L151: 0 | Q151: 2.556537984 | R151: 2.556537984 | W151: 3.166791264 | X151: 3.166791264 | AC151: 0.02977670218 | AD151: 0.02977670218 | AI151: 0.02831670634 | AJ151: 0.02831670634 | AO151: 0.01209384861 | AP151: 0.01209384861 | AU151: 0 | AV151: 0 | BA151: 0 | BB151: 0 | BG151: 1.018956098 | BH151: 1.018956098
B152: 2023-04-17 | C152: 09:48:00 | D152: 12729774.6 | E152: 1.294578321 | F152: 1.281473198 | H152: 2023-04-17 | I152: 09:48:00 | J152: 4201520.672 | K152: 0 | L152: 0 | N152: 2023-04-17 | O152: 12:00:00 | P152: 48 | Q152: 2.556537984 | R152: 2.556537984 | T152: 2023-04-17 | U152: 12:00:00 | V152: 48 | W152: 3.166791264 | X152: 3.166791264 | Z152: 2023-04-17 | AA152: 09:59:40 | AB152: 72.4 | AC152: 0.02977670218 | AD152: 0.02996634005 | AF152: 2023-04-17 | AG152: 09:59:40 | AH152: 51.7 | AI152: 0.02831670634 | AJ152: 0.02590166297 | AL152: 2023-04-17 | AM152: 09:59:40 | AN152: 19.5 | AO152: 0.01209384861 | AP152: 0.009980291425 | AR152: 2023-04-17 | AS152: 10:48:00 | AT152: 0 | AU152: 0 | AV152: 0 | AX152: 2023-04-17 | AY152: 10:48:00 | AZ152: 0 | BA152: 0 | BB152: 0 | BD152: 2023-04-17 | BE152: 10:48:00 | BF152: 2850 | BG152: 1.018956098 | BH152: 1.004411157
E153: 1.272428818 | F153: 1.272428818 | K153: 0 | L153: 0 | Q153: 2.556537984 | R153: 2.556537984 | W153: 3.166791264 | X153: 3.166791264 | AC153: 0.03010166672 | AD153: 0.03010166672 | AI153: 0.02417827423 | AJ153: 0.02417827423 | AO153: 0.008472044949 | AP153: 0.008472044949 | AU153: 0 | AV153: 0 | BA153: 0 | BB153: 0 | BG153: 0.9925107503 | BH153: 0.9925107503
B154: 2023-04-19 | C154: 13:51:00 | D154: 12732534.18 | E154: 1.272428818 | F154: 1.274155594 | H154: 2023-04-19 | I154: 13:51:00 | J154: 4201520.672 | K154: 0 | L154: 0 | N154: 2023-04-19 | O154: 12:00:00 | P154: 48 | Q154: 2.556537984 | R154: 2.556537984 | T154: 2023-04-19 | U154: 12:00:00 | V154: 48 | W154: 3.166791264 | X154: 3.166791264 | Z154: 2023-04-19 | AA154: 12:25:20 | AB154: 50.9 | AC154: 0.03010166672 | AD154: 0.02891962091 | AF154: 2023-04-19 | AG154: 12:25:20 | AH154: 30.7 | AI154: 0.02417827423 | AJ154: 0.01342083026 | AL154: 2023-04-19 | AM154: 12:25:20 | AN154: 9.5 | AO154: 0.008472044949 | AP154: 0.0103374975 | AR154: 2023-04-19 | AS154: 11:27:00 | AT154: 0 | AU154: 0 | AV154: 0 | AX154: 2023-04-19 | AY154: 11:27:00 | AZ154: 0 | BA154: 0 | BB154: 0 | BD154: 2023-04-19 | BE154: 11:27:00 | BF154: 1830 | BG154: 0.9925107503 | BH154: 0.9963943232
B155: 2023-04-20 | C155: 09:17:00 | D155: 12733567.8 | E155: 1.276511835 | F155: 1.27138527 | H155: 2023-04-20 | I155: 09:17:00 | J155: 4201520.672 | K155: 0 | L155: 0 | N155: 2023-04-20 | O155: 12:00:00 | P155: 48 | Q155: 2.556537984 | R155: 2.556537984 | T155: 2023-04-20 | U155: 12:00:00 | V155: 48 | W155: 3.166791264 | X155: 3.166791264 | Z155: 2023-04-20 | AA155: 09:33:40 | AB155: 19.6 | AC155: 0.02765136063 | AD155: 0.02905394069 | AF155: 2023-04-20 | AG155: 09:33:40 | AH155: 1 | AI155: 0.001878774244 | AJ155: 0.0007484653876 | AL155: 2023-04-20 | AM155: 09:33:40 | AN155: 5.8 | AO155: 0.01233900993 | AP155: 0.0157277296 | AR155: 2023-04-20 | AS155: 09:48:00 | AT155: 0 | AU155: 0 | AV155: 0 | AX155: 2023-04-20 | AY155: 09:48:00 | AZ155: 0 | BA155: 0 | BB155: 0 | BD155: 2023-04-20 | BE155: 09:48:00 | BF155: 847 | BG155: 0.9999375034 | BH155: 0.8481559547
B156: 2023-04-21 | C156: 09:30:00 | D156: 12734847.4 | E156: 1.268151411 | F156: 1.2659766 | H156: 2023-04-21 | I156: 09:30:00 | J156: 4201520.672 | K156: 0 | L156: 0 | N156: 2023-04-21 | O156: 12:00:00 | P156: 48 | Q156: 2.556537984 | R156: 2.556537984 | T156: 2023-04-21 | U156: 12:00:00 | V156: 48 | W156: 3.166791264 | X156: 3.166791264 | Z156: 2023-04-21 | AA156: 09:20:00 | AB156: 23.9 | AC156: 0.02998269801 | AD156: 0.02987788102 | AF156: 2023-04-21 | AG156: 09:20:00 | AH156: 0 | AI156: 0 | AJ156: 0 | AL156: 2023-04-21 | AM156: 09:20:00 | AN156: 9.5 | AO156: 0.01797166441 | AP156: 0.01625800888 | AR156: 2023-04-21 | AS156: 09:05:00 | AT156: 0 | AU156: 0 | AV156: 0 | AX156: 2023-04-21 | AY156: 09:05:00 | AZ156: 0 | BA156: 0 | BB156: 0 | BD156: 2023-04-21 | BE156: 09:05:00 | BF156: 656 | BG156: 0.7434053085 | BH156: 0.8782657907
E157: 1.264551724 | F157: 1.264551724 | K157: 0 | L157: 0 | Q157: 2.556537984 | R157: 2.556537984 | W157: 3.166791264 | X157: 3.166791264 | AC157: 0.02981117929 | AD157: 0.02981117929 | AI157: 0 | AJ157: 0 | AO157: 0.01516750082 | AP157: 0.01516750082 | AU157: 0 | AV157: 0 | BA157: 0 | BB157: 0 | BG157: 0.9603875368 | BH157: 0.9603875368
E158: 1.264551724 | F158: 1.264551724 | K158: 0 | L158: 0 | Q158: 2.556537984 | R158: 2.556537984 | W158: 3.166791264 | X158: 3.166791264 | AC158: 0.02981117929 | AD158: 0.02981117929 | AI158: 0 | AJ158: 0 | AO158: 0.01516750082 | AP158: 0.01516750082 | AU158: 0 | AV158: 0 | BA158: 0 | BB158: 0 | BG158: 0.9603875368 | BH158: 0.9603875368
B159: 2023-04-24 | C159: 11:27:00 | D159: 12738743.8 | E159: 1.264551724 | F159: 1.261760526 | H159: 2023-04-24 | I159: 11:27:00 | J159: 4201520.672 | K159: 0 | L159: 0 | N159: 2023-04-24 | O159: 12:00:00 | P159: 48 | Q159: 2.556537984 | R159: 2.556537984 | T159: 2023-04-24 | U159: 12:00:00 | V159: 48 | W159: 3.166791264 | X159: 3.166791264 | Z159: 2023-04-24 | AA159: 11:09:40 | AB159: 73.8 | AC159: 0.02981117929 | AD159: 0.02967845487 | AF159: 2023-04-24 | AG159: 11:09:40 | AH159: 0 | AI159: 0 | AJ159: 0 | AL159: 2023-04-24 | AM159: 11:09:40 | AN159: 24.9 | AO159: 0.01516750082 | AP159: 0.01615360473 | AR159: 2023-04-24 | AS159: 09:55:00 | AT159: 0 | AU159: 0 | AV159: 0 | AX159: 2023-04-24 | AY159: 09:55:00 | AZ159: 0 | BA159: 0 | BB159: 0 | BD159: 2023-04-24 | BE159: 09:55:00 | BF159: 2651 | BG159: 0.9603875368 | BH159: 0.8462568106
B160: 2023-04-25 | C160: 10:21:00 | D160: 12739945.3 | E160: 1.259213974 | F160: 1.259572899 | H160: 2023-04-25 | I160: 10:21:00 | J160: 4201520.672 | K160: 0 | L160: 0 | N160: 2023-04-25 | O160: 12:00:00 | P160: 48 | Q160: 2.556537984 | R160: 2.793943152 | T160: 2023-04-25 | U160: 12:00:00 | V160: 48 | W160: 3.166791264 | X160: 3.473631252 | Z160: 2023-04-25 | AA160: 10:09:40 | AB160: 22.8 | AC160: 0.02956307478 | AD160: 0.02963438629 | AF160: 2023-04-25 | AG160: 10:09:40 | AH160: 0 | AI160: 0 | AJ160: 0 | AL160: 2023-04-25 | AM160: 10:09:40 | AN160: 8.7 | AO160: 0.01701084522 | AP160: 0.01882364274 | AR160: 2023-04-25 | AS160: 10:04:00 | AT160: 0 | AU160: 0 | AV160: 0 | AX160: 2023-04-25 | AY160: 10:04:00 | AZ160: 0 | BA160: 0 | BB160: 0 | BD160: 2023-04-25 | BE160: 10:04:00 | BF160: 701 | BG160: 0.7658925714 | BH160: 0.7692686759
B161: 2023-04-26 | C161: 09:35:00 | D161: 12741164.9 | E161: 1.25984505 | F161: 1.257525946 | H161: 2023-04-26 | I161: 09:35:00 | J161: 4201520.672 | K161: 0 | L161: 0 | N161: 2023-04-26 | O161: 12:00:00 | P161: 52.5 | Q161: 3.03134832 | R161: 3.03134832 | T161: 2023-04-26 | U161: 12:00:00 | V161: 52.5 | W161: 3.78047124 | X161: 3.78047124 | Z161: 2023-04-26 | AA161: 09:22:00 | AB161: 23.1 | AC161: 0.02968674628 | AD161: 0.0297218569 | AF161: 2023-04-26 | AG161: 09:22:00 | AH161: 0 | AI161: 0 | AJ161: 0 | AL161: 2023-04-26 | AM161: 09:22:00 | AN161: 10.4 | AO161: 0.02015467714 | AP161: 0.01960194404 | AR161: 2023-04-26 | AS161: 13:58:00 | AT161: 0 | AU161: 0 | AV161: 0 | AX161: 2023-04-26 | AY161: 13:58:00 | AZ161: 0 | BA161: 0 | BB161: 0 | BD161: 2023-04-26 | BE161: 13:58:00 | BF161: 816 | BG161: 0.771707871 | BH161: 0.7332473807
B162: 2023-04-27 | C162: 11:08:00 | D162: 12742502 | E162: 1.255984344 | F162: 1.255828024 | H162: 2023-04-27 | I162: 11:08:00 | J162: 4201520.672 | K162: 0 | L162: 0 | N162: 2023-04-27 | O162: 12:00:00 | P162: 52.5 | Q162: 3.03134832 | R162: 3.03134832 | T162: 2023-04-27 | U162: 12:00:00 | V162: 52.5 | W162: 3.78047124 | X162: 3.78047124 | Z162: 2023-04-27 | AA162: 10:50:00 | AB162: 25.4 | AC162: 0.02974433089 | AD162: 0.02963111374 | AF162: 2023-04-27 | AG162: 10:50:00 | AH162: 0 | AI162: 0 | AJ162: 0 | AL162: 2023-04-27 | AM162: 10:50:00 | AN162: 10.9 | AO162: 0.0192481445 | AP162: 0.01900598403 | AR162: 2023-04-27 | AS162: 11:33:00 | AT162: 0 | AU162: 0 | AV162: 0 | AX162: 2023-04-27 | AY162: 11:33:00 | AZ162: 0 | BA162: 0 | BB162: 0 | BD162: 2023-04-27 | BE162: 11:33:00 | BF162: 556 | BG162: 0.679709356 | BH162: 0.7075983468
B163: 2023-04-28 | C163: 09:42:00 | D163: 12743682.7 | E163: 1.255692762 | F163: 1.251022894 | H163: 2023-04-28 | I163: 09:42:00 | J163: 4201520.672 | K163: 0 | L163: 0 | N163: 2023-04-28 | O163: 12:00:00 | P163: 52.5 | Q163: 3.03134832 | R163: 3.03134832 | T163: 2023-04-28 | U163: 12:00:00 | V163: 52.5 | W163: 3.78047124 | X163: 3.78047124 | Z163: 2023-04-28 | AA163: 09:33:00 | AB163: 22.5 | AC163: 0.02953796038 | AD163: 0.02269624784 | AF163: 2023-04-28 | AG163: 09:33:00 | AH163: 0 | AI163: 0 | AJ163: 0 | AL163: 2023-04-28 | AM163: 09:33:00 | AN163: 9.5 | AO163: 0.01880673808 | AP163: 0.021610892 | AR163: 2023-04-28 | AS163: 09:21:00 | AT163: 0 | AU163: 0 | AV163: 0 | AX163: 2023-04-28 | AY163: 09:21:00 | AZ163: 0 | BA163: 0 | BB163: 0 | BD163: 2023-04-28 | BE163: 09:21:00 | BF163: 606 | BG163: 0.7334712661 | BH163: 0.7240286908
E164: 1.24785522 | F164: 1.24785522 | K164: 0 | L164: 0 | Q164: 3.03134832 | R164: 3.03134832 | W164: 3.78047124 | X164: 3.78047124 | AC164: 0.01817456239 | AD164: 0.01817456239 | AI164: 0 | AJ164: 0 | AO164: 0.02346415636 | AP164: 0.02346415636 | AU164: 0 | AV164: 0 | BA164: 0 | BB164: 0 | BG164: 0.7180022007 | BH164: 0.7180022007
E165: 1.24785522 | F165: 1.24785522 | K165: 0 | L165: 0 | Q165: 3.03134832 | R165: 3.03134832 | W165: 3.78047124 | X165: 3.78047124 | AC165: 0.01817456239 | AD165: 0.01817456239 | AI165: 0 | AJ165: 0 | AO165: 0.02346415636 | AP165: 0.02346415636 | AU165: 0 | AV165: 0 | BA165: 0 | BB165: 0 | BG165: 0.7180022007 | BH165: 0.7180022007
B166: 2023-05-01 | C166: 09:32:00 | D166: 12747417.6 | E166: 1.24785522 | F166: 1.237405632 | H166: 2023-05-01 | I166: 09:32:00 | J166: 4201520.672 | K166: 0 | L166: 0 | N166: 2023-05-01 | O166: 12:00:00 | P166: 52.5 | Q166: 3.03134832 | R166: 3.03134832 | T166: 2023-05-01 | U166: 12:00:00 | V166: 52.5 | W166: 3.78047124 | X166: 3.78047124 | Z166: 2023-05-01 | AA166: 08:16:20 | AB166: 43.1 | AC166: 0.01817456239 | AD166: 0.02288032844 | AF166: 2023-05-01 | AG166: 08:16:20 | AH166: 0 | AI166: 0 | AJ166: 0 | AL166: 2023-05-01 | AM166: 08:16:20 | AN166: 36.9 | AO166: 0.02346415636 | AP166: 0.0306608396 | AR166: 2023-05-01 | AS166: 09:05:00 | AT166: 0 | AU166: 0 | AV166: 0 | AX166: 2023-05-01 | AY166: 09:05:00 | AZ166: 0 | BA166: 0 | BB166: 0 | BD166: 2023-05-01 | BE166: 09:05:00 | BF166: 1952 | BG166: 0.7180022007 | BH166: 0.7620755511
B167: 2023-05-02 | C167: 10:45:00 | D167: 12748710.5 | E167: 1.230519498 | F167: 1.231786964 | H167: 2023-05-02 | I167: 10:45:00 | J167: 4201520.672 | K167: 0 | L167: 0 | N167: 2023-05-02 | O167: 12:00:00 | P167: 52.5 | Q167: 3.03134832 | R167: 3.03134832 | T167: 2023-05-02 | U167: 12:00:00 | V167: 52.5 | W167: 3.78047124 | X167: 3.78047124 | Z167: 2023-05-02 | AA167: 10:23:00 | AB167: 22.2 | AC167: 0.02535538519 | AD167: 0.02606480819 | AF167: 2023-05-02 | AG167: 10:23:00 | AH167: 0 | AI167: 0 | AJ167: 0 | AL167: 2023-05-02 | AM167: 10:23:00 | AN167: 20 | AO167: 0.03444602553 | AP167: 0.03202905416 | AR167: 2023-05-02 | AS167: 09:56:00 | AT167: 0 | AU167: 0 | AV167: 0 | AX167: 2023-05-02 | AY167: 09:56:00 | AZ167: 0 | BA167: 0 | BB167: 0 | BD167: 2023-05-02 | BE167: 09:56:00 | BF167: 743 | BG167: 0.7889135131 | BH167: 0.7849500262
B168: 2023-05-03 | C168: 10:18:00 | D168: 12749920.2 | E168: 1.232815287 | F168: 1.230764494 | H168: 2023-05-03 | I168: 10:18:00 | J168: 4201520.672 | K168: 0 | L168: 0 | N168: 2023-05-03 | O168: 12:00:00 | P168: 52.5 | Q168: 3.03134832 | R168: 3.03134832 | T168: 2023-05-03 | U168: 12:00:00 | V168: 52.5 | W168: 3.78047124 | X168: 3.78047124 | Z168: 2023-05-03 | AA168: 09:55:20 | AB168: 21 | AC168: 0.02660577578 | AD168: 0.02312885602 | AF168: 2023-05-03 | AG168: 09:55:20 | AH168: 0 | AI168: 0 | AJ168: 0 | AL168: 2023-05-03 | AM168: 09:55:20 | AN168: 15.8 | AO168: 0.03018600255 | AP168: 0.02667069314 | AR168: 2023-05-03 | AS168: 09:45:00 | AT168: 0 | AU168: 0 | AV168: 0 | AX168: 2023-05-03 | AY168: 09:45:00 | AZ168: 0 | BA168: 0 | BB168: 0 | BD168: 2023-05-03 | BE168: 09:45:00 | BF168: 706 | BG168: 0.7821511659 | BH168: 0.771191145
B169: 2023-05-04 | C169: 11:08:00 | D169: 12751192.1 | E169: 1.229222658 | F169: 1.222012226 | H169: 2023-05-04 | I169: 11:08:00 | J169: 4201520.672 | K169: 0 | L169: 0 | N169: 2023-05-04 | O169: 12:00:00 | P169: 52.5 | Q169: 3.03134832 | R169: 3.03134832 | T169: 2023-05-04 | U169: 12:00:00 | V169: 52.5 | W169: 3.78047124 | X169: 3.78047124 | Z169: 2023-05-04 | AA169: 11:01:00 | AB169: 17.4 | AC169: 0.02067827248 | AD169: 0.02050760686 | AF169: 2023-05-04 | AG169: 11:01:00 | AH169: 0 | AI169: 0 | AJ169: 0 | AL169: 2023-05-04 | AM169: 11:01:00 | AN169: 13.5 | AO169: 0.02419305203 | AP169: 0.01783133968 | AR169: 2023-05-04 | AS169: 10:50:00 | AT169: 0 | AU169: 0 | AV169: 0 | AX169: 2023-05-04 | AY169: 10:50:00 | AZ169: 0 | BA169: 0 | BB169: 0 | BD169: 2023-05-04 | BE169: 10:50:00 | BF169: 726 | BG169: 0.7636921834 | BH169: 0.7423605758
B170: 2023-05-05 | C170: 11:04:00 | D170: 12752404.5 | E170: 1.215773148 | F170: 1.279268028 | H170: 2023-05-05 | I170: 11:04:00 | J170: 4201520.672 | K170: 0 | L170: 0 | N170: 2023-05-05 | O170: 12:00:00 | P170: 52.5 | Q170: 3.03134832 | R170: 3.03134832 | T170: 2023-05-05 | U170: 12:00:00 | V170: 52.5 | W170: 3.78047124 | X170: 3.78047124 | Z170: 2023-05-05 | AA170: 10:53:20 | AB170: 16.3 | AC170: 0.02036279302 | AD170: 0.02281671174 | AF170: 2023-05-05 | AG170: 10:53:20 | AH170: 0 | AI170: 0 | AJ170: 0 | AL170: 2023-05-05 | AM170: 10:53:20 | AN170: 6.6 | AO170: 0.01243327568 | AP170: 0.01429301612 | AR170: 2023-05-05 | AS170: 10:21:00 | AT170: 0 | AU170: 0 | AV170: 0 | AX170: 2023-05-05 | AY170: 10:21:00 | AZ170: 0 | BA170: 0 | BB170: 0 | BD170: 2023-05-05 | BE170: 10:21:00 | BF170: 646 | BG170: 0.724809253 | BH170: 0.7577433867
E171: 1.333598698 | F171: 1.333598698 | K171: 0 | L171: 0 | Q171: 3.03134832 | R171: 3.03134832 | W171: 3.78047124 | X171: 3.78047124 | AC171: 0.02485471204 | AD171: 0.02485471204 | AI171: 0 | AJ171: 0 | AO171: 0.01583754631 | AP171: 0.01583754631 | AU171: 0 | AV171: 0 | BA171: 0 | BB171: 0 | BG171: 0.7827154222 | BH171: 0.7827154222
E172: 1.333598698 | F172: 1.333598698 | K172: 0 | L172: 0 | Q172: 3.03134832 | R172: 3.03134832 | W172: 3.78047124 | X172: 3.78047124 | AC172: 0.02485471204 | AD172: 0.02485471204 | AI172: 0 | AJ172: 0 | AO172: 0.01583754631 | AP172: 0.01583754631 | AU172: 0 | AV172: 0 | BA172: 0 | BB172: 0 | BG172: 0.7827154222 | BH172: 0.7827154222
B173: 2023-05-08 | C173: 10:45:00 | D173: 12756387.7 | E173: 1.333598698 | F173: 1.322342434 | H173: 2023-05-08 | I173: 10:45:00 | J173: 4201520.672 | K173: 0 | L173: 0 | N173: 2023-05-08 | O173: 12:00:00 | P173: 52.5 | Q173: 3.03134832 | R173: 3.03134832 | T173: 2023-05-08 | U173: 12:00:00 | V173: 52.5 | W173: 3.78047124 | X173: 3.78047124 | Z173: 2023-05-08 | AA173: 10:09:40 | AB173: 59.4 | AC173: 0.02485471204 | AD173: 0.01858872582 | AF173: 2023-05-08 | AG173: 10:09:40 | AH173: 0 | AI173: 0 | AJ173: 0 | AL173: 2023-05-08 | AM173: 10:09:40 | AN173: 25.1 | AO173: 0.01583754631 | AP173: 0.01325453849 | AR173: 2023-05-08 | AS173: 09:53:00 | AT173: 0 | AU173: 0 | AV173: 0 | AX173: 2023-05-08 | AY173: 09:53:00 | AZ173: 0 | BA173: 0 | BB173: 0 | BD173: 2023-05-08 | BE173: 09:53:00 | BF173: 2122 | BG173: 0.7827154222 | BH173: 0.7736821591
B174: 2023-05-09 | C174: 11:26:00 | D174: 12757738.3 | E174: 1.313209993 | F174: 1.311553559 | H174: 2023-05-09 | I174: 11:26:00 | J174: 4201520.672 | K174: 0 | L174: 0 | N174: 2023-05-09 | O174: 12:00:00 | P174: 52.5 | Q174: 3.03134832 | R174: 3.03134832 | T174: 2023-05-09 | U174: 12:00:00 | V174: 52.5 | W174: 3.78047124 | X174: 3.78047124 | Z174: 2023-05-09 | AA174: 11:06:20 | AB174: 11.7 | AC174: 0.01398796757 | AD174: 0.01288715788 | AF174: 2023-05-09 | AG174: 11:06:20 | AH174: 0 | AI174: 0 | AJ174: 0 | AL174: 2023-05-09 | AM174: 11:06:20 | AN174: 6.3 | AO174: 0.01135798236 | AP174: 0.01133576224 | AR174: 2023-05-09 | AS174: 10:57:00 | AT174: 0 | AU174: 0 | AV174: 0 | AX174: 2023-05-09 | AY174: 10:57:00 | AZ174: 0 | BA174: 0 | BB174: 0 | BD174: 2023-05-09 | BE174: 10:57:00 | BF174: 729 | BG174: 0.7673578085 | BH174: 0.761284067
B175: 2023-05-10 | C175: 13:14:00 | D175: 12759146.6 | E175: 1.310046512 | F175: 1.307420251 | H175: 2023-05-10 | I175: 13:14:00 | J175: 4201520.672 | K175: 0 | L175: 0 | N175: 2023-05-10 | O175: 12:00:00 | P175: 52.5 | Q175: 3.03134832 | R175: 3.03134832 | T175: 2023-05-10 | U175: 12:00:00 | V175: 52.5 | W175: 3.78047124 | X175: 3.78047124 | Z175: 2023-05-10 | AA175: 13:20:00 | AB175: 10.5 | AC175: 0.01193906715 | AD175: 0.01386053226 | AF175: 2023-05-10 | AG175: 13:20:00 | AH175: 0 | AI175: 0 | AJ175: 0 | AL175: 2023-05-10 | AM175: 13:20:00 | AN175: 6.6 | AO175: 0.01131662478 | AP175: 0.01319630281 | AR175: 2023-05-10 | AS175: 11:56:00 | AT175: 0 | AU175: 0 | AV175: 0 | AX175: 2023-05-10 | AY175: 11:56:00 | AZ175: 0 | BA175: 0 | BB175: 0 | BD175: 2023-05-10 | BE175: 11:56:00 | BF175: 716 | BG175: 0.7561877091 | BH175: 0.7545246852
B176: 2023-05-11 | C176: 10:02:00 | D176: 12760276.9 | E176: 1.304192308 | F176: 1.296449692 | H176: 2023-05-11 | I176: 10:02:00 | J176: 4201520.672 | K176: 0 | L176: 0 | N176: 2023-05-11 | O176: 12:00:00 | P176: 52.5 | Q176: 3.03134832 | R176: 3.03134832 | T176: 2023-05-11 | U176: 12:00:00 | V176: 52.5 | W176: 3.78047124 | X176: 3.78047124 | Z176: 2023-05-11 | AA176: 09:52:20 | AB176: 11.2 | AC176: 0.01626236365 | AD176: 0.01153032854 | AF176: 2023-05-11 | AG176: 09:52:20 | AH176: 0 | AI176: 0 | AJ176: 0 | AL176: 2023-05-11 | AM176: 09:52:20 | AN176: 7.1 | AO176: 0.01554590035 | AP176: 0.01475261277 | AR176: 2023-05-11 | AS176: 09:25:00 | AT176: 0 | AU176: 0 | AV176: 0 | AX176: 2023-05-11 | AY176: 09:25:00 | AZ176: 0 | BA176: 0 | BB176: 0 | BD176: 2023-05-11 | BE176: 09:25:00 | BF176: 613 | BG176: 0.7528800372 | BH176: 0.7453469821
B177: 2023-05-12 | C177: 11:23:00 | D177: 12761640.4 | E177: 1.290887574 | F177: 1.306604505 | H177: 2023-05-12 | I177: 11:23:00 | J177: 4201520.672 | K177: 0 | L177: 0 | N177: 2023-05-12 | O177: 12:00:00 | P177: 52.5 | Q177: 3.03134832 | R177: 3.03134832 | T177: 2023-05-12 | U177: 12:00:00 | V177: 52.5 | W177: 3.78047124 | X177: 3.78047124 | Z177: 2023-05-12 | AA177: 10:53:40 | AB177: 6.9 | AC177: 0.008223672469 | AD177: 0.005149210209 | AF177: 2023-05-12 | AG177: 10:53:40 | AH177: 0 | AI177: 0 | AJ177: 0 | AL177: 2023-05-12 | AM177: 10:53:40 | AN177: 7.9 | AO177: 0.01419827851 | AP177: 0.008545665679 | AR177: 2023-05-12 | AS177: 11:30:00 | AT177: 0 | AU177: 0 | AV177: 0 | AX177: 2023-05-12 | AY177: 11:30:00 | AZ177: 0 | BA177: 0 | BB177: 0 | BD177: 2023-05-12 | BE177: 11:30:00 | BF177: 732 | BG177: 0.7404827808 | BH177: 0.7373439948
E178: 1.320785038 | F178: 1.320785038 | K178: 0 | L178: 0 | Q178: 3.03134832 | R178: 3.03134832 | W178: 3.78047124 | X178: 3.78047124 | AC178: 0.002593457564 | AD178: 0.002593457564 | AI178: 0 | AJ178: 0 | AO178: 0.003846736575 | AP178: 0.003846736575 | AU178: 0 | AV178: 0 | BA178: 0 | BB178: 0 | BG178: 0.7344563117 | BH178: 0.7344563117
E179: 1.320785038 | F179: 1.320785038 | K179: 0 | L179: 0 | Q179: 3.03134832 | R179: 3.03134832 | W179: 3.78047124 | X179: 3.78047124 | AC179: 0.002593457564 | AD179: 0.002593457564 | AI179: 0 | AJ179: 0 | AO179: 0.003846736575 | AP179: 0.003846736575 | AU179: 0 | AV179: 0 | BA179: 0 | BB179: 0 | BG179: 0.7344563117 | BH179: 0.7344563117
B180: 2023-05-15 | C180: 09:15:00 | D180: 12765485.35 | E180: 1.320785038 | F180: 1.257706451 | H180: 2023-05-15 | I180: 09:15:00 | J180: 4201520.672 | K180: 0 | L180: 0 | N180: 2023-05-15 | O180: 12:00:00 | P180: 52.5 | Q180: 3.03134832 | R180: 3.03134832 | T180: 2023-05-15 | U180: 12:00:00 | V180: 52.5 | W180: 3.78047124 | X180: 3.78047124 | Z180: 2023-05-15 | AA180: 09:02:20 | AB180: 6.1 | AC180: 0.002593457564 | AD180: 0.0009767489482 | AF180: 2023-05-15 | AG180: 09:02:20 | AH180: 0 | AI180: 0 | AJ180: 0 | AL180: 2023-05-15 | AM180: 09:02:20 | AN180: 6 | AO180: 0.003846736575 | AP180: 0.002110982897 | AR180: 2023-05-15 | AS180: 08:48:00 | AT180: 0 | AU180: 0 | AV180: 0 | AX180: 2023-05-15 | AY180: 08:48:00 | AZ180: 0 | BA180: 0 | BB180: 0 | BD180: 2023-05-15 | BE180: 08:48:00 | BF180: 1929 | BG180: 0.7344563117 | BH180: 0.7450357785
B181: 2023-05-16 | C181: 10:29:00 | D181: 12766766.1 | E181: 1.218148692 | F181: 1.260914298 | H181: 2023-05-16 | I181: 10:29:00 | J181: 4201520.672 | K181: 0 | L181: 0 | N181: 2023-05-16 | O181: 12:00:00 | P181: 52.5 | Q181: 3.03134832 | R181: 3.03134832 | T181: 2023-05-16 | U181: 12:00:00 | V181: 52.5 | W181: 3.78047124 | X181: 3.78047124 | Z181: 2023-05-16 | AA181: 10:26:20 | AB181: 0 | AC181: 0 | AD181: 0 | AF181: 2023-05-16 | AG181: 10:26:20 | AH181: 0 | AI181: 0 | AJ181: 0 | AL181: 2023-05-16 | AM181: 10:26:20 | AN181: 0.6 | AO181: 0.001062311811 | AP181: 0.0008936625713 | AR181: 2023-05-16 | AS181: 10:16:00 | AT181: 0 | AU181: 0 | AV181: 0 | AX181: 2023-05-16 | AY181: 10:16:00 | AZ181: 0 | BA181: 0 | BB181: 0 | BD181: 2023-05-16 | BE181: 10:16:00 | BF181: 725 | BG181: 0.751160733 | BH181: 0.7285072271
B182: 2023-05-17 | C182: 10:16:00 | D182: 12768048.5 | E182: 1.294082691 | F182: 1.291557246 | H182: 2023-05-17 | I182: 10:16:00 | J182: 4201520.672 | K182: 0 | L182: 6.920734884e-05 | N182: 2023-05-17 | O182: 12:00:00 | P182: 52.5 | Q182: 3.03134832 | R182: 3.03134832 | T182: 2023-05-17 | U182: 12:00:00 | V182: 52.5 | W182: 3.78047124 | X182: 3.78047124 | Z182: 2023-05-17 | AA182: 09:59:20 | AB182: 0 | AC182: 0 | AD182: 0 | AF182: 2023-05-17 | AG182: 09:59:20 | AH182: 0 | AI182: 0 | AJ182: 0 | AL182: 2023-05-17 | AM182: 09:59:20 | AN182: 0.4 | AO182: 0.0007638420382 | AP182: 0.002486624454 | AR182: 2023-05-17 | AS182: 09:51:00 | AT182: 0 | AU182: 0 | AV182: 0 | AX182: 2023-05-17 | AY182: 09:51:00 | AZ182: 0 | BA182: 0 | BB182: 0 | BD182: 2023-05-17 | BE182: 09:51:00 | BF182: 636 | BG182: 0.711572082 | BH182: 0.7074546884
B183: 2023-05-18 | C183: 11:40:00 | D183: 12769413.4 | E183: 1.289669291 | F183: 1.292206798 | H183: 2023-05-18 | I183: 11:40:00 | J183: 4201520.8 | K183: 0.0001209448815 | L183: 5.879265072e-05 | N183: 2023-05-18 | O183: 12:00:00 | P183: 52.5 | Q183: 3.03134832 | R183: 3.03134832 | T183: 2023-05-18 | U183: 12:00:00 | V183: 52.5 | W183: 3.78047124 | X183: 3.78047124 | Z183: 2023-05-18 | AA183: 11:24:40 | AB183: 0 | AC183: 0 | AD183: 0 | AF183: 2023-05-18 | AG183: 11:24:40 | AH183: 0 | AI183: 0 | AJ183: 0 | AL183: 2023-05-18 | AM183: 11:24:40 | AN183: 2.1 | AO183: 0.003714841259 | AP183: 0.002707507786 | AR183: 2023-05-18 | AS183: 09:58:00 | AT183: 0 | AU183: 0 | AV183: 0 | AX183: 2023-05-18 | AY183: 09:58:00 | AZ183: 0 | BA183: 0 | BB183: 0 | BD183: 2023-05-18 | BE183: 09:58:00 | BF183: 644 | BG183: 0.7045885169 | BH183: 0.7107809611
B184: 2023-05-19 | C184: 10:04:00 | D184: 12770621.7 | E184: 1.294607143 | F184: 1.289037202 | H184: 2023-05-19 | I184: 10:04:00 | J184: 4201520.8 | K184: 0 | L184: 0 | N184: 2023-05-19 | O184: 12:00:00 | P184: 52.5 | Q184: 3.03134832 | R184: 3.03134832 | T184: 2023-05-19 | U184: 12:00:00 | V184: 52.5 | W184: 3.78047124 | X184: 3.78047124 | Z184: 2023-05-19 | AA184: 09:58:00 | AB184: 0 | AC184: 0 | AD184: 0 | AF184: 2023-05-19 | AG184: 09:58:00 | AH184: 0 | AI184: 0 | AJ184: 0 | AL184: 2023-05-19 | AM184: 09:58:00 | AN184: 0.9 | AO184: 0.00179441734 | AP184: 0.001298041652 | AR184: 2023-05-19 | AS184: 09:48:00 | AT184: 0 | AU184: 0 | AV184: 0 | AX184: 2023-05-19 | AY184: 09:48:00 | AZ184: 0 | BA184: 0 | BB184: 0 | BD184: 2023-05-19 | BE184: 09:48:00 | BF184: 646 | BG184: 0.7151789203 | BH184: 0.7206521109
E185: 1.285012987 | F185: 1.285012987 | K185: 0 | L185: 0 | Q185: 3.03134832 | R185: 3.03134832 | W185: 3.78047124 | X185: 3.78047124 | AC185: 0 | AD185: 0 | AI185: 0 | AJ185: 0 | AO185: 0.0009455087993 | AP185: 0.0009455087993 | AU185: 0 | AV185: 0 | BA185: 0 | BB185: 0 | BG185: 0.7244293833 | BH185: 0.7244293833
E186: 1.285012987 | F186: 1.285012987 | K186: 0 | L186: 0 | Q186: 3.03134832 | R186: 3.03134832 | W186: 3.78047124 | X186: 3.78047124 | AC186: 0 | AD186: 0 | AI186: 0 | AJ186: 0 | AO186: 0.0009455087993 | AP186: 0.0009455087993 | AU186: 0 | AV186: 0 | BA186: 0 | BB186: 0 | BG186: 0.7244293833 | BH186: 0.7244293833
B187: 2023-05-22 | C187: 09:56:00 | D187: 12774469.6 | E187: 1.285012987 | F187: 1.273259585 | H187: 2023-05-22 | I187: 09:56:00 | J187: 4201520.8 | K187: 0 | L187: 0 | N187: 2023-05-22 | O187: 12:00:00 | P187: 52.5 | Q187: 3.03134832 | R187: 3.03134832 | T187: 2023-05-22 | U187: 12:00:00 | V187: 52.5 | W187: 3.78047124 | X187: 3.78047124 | Z187: 2023-05-22 | AA187: 09:18:40 | AB187: 0 | AC187: 0 | AD187: 0 | AF187: 2023-05-22 | AG187: 09:18:40 | AH187: 0 | AI187: 0 | AJ187: 0 | AL187: 2023-05-22 | AM187: 09:18:40 | AN187: 1.5 | AO187: 0.0009455087993 | AP187: 0.0005775551558 | AR187: 2023-05-22 | AS187: 08:56:00 | AT187: 0 | AU187: 0 | AV187: 0 | AX187: 2023-05-22 | AY187: 08:56:00 | AZ187: 0 | BA187: 0 | BB187: 0 | BD187: 2023-05-22 | BE187: 08:56:00 | BF187: 1953 | BG187: 0.7244293833 | BH187: 0.6939068687
B188: 2023-05-23 | C188: 11:13:00 | D188: 12775802.2 | E188: 1.264959789 | F188: 1.269505247 | H188: 2023-05-23 | I188: 11:13:00 | J188: 4201520.8 | K188: 0 | L188: 0 | N188: 2023-05-23 | O188: 12:00:00 | P188: 52.5 | Q188: 3.03134832 | R188: 2.89945656 | T188: 2023-05-23 | U188: 12:00:00 | V188: 52.5 | W188: 3.78047124 | X188: 3.61000458 | Z188: 2023-05-23 | AA188: 11:26:00 | AB188: 0 | AC188: 0 | AD188: 0 | AF188: 2023-05-23 | AG188: 11:26:00 | AH188: 0 | AI188: 0 | AJ188: 0 | AL188: 2023-05-23 | AM188: 11:26:00 | AN188: 0.2 | AO188: 0.0003443137388 | AP188: 0.0001640272395 | AR188: 2023-05-23 | AS188: 08:52:00 | AT188: 0 | AU188: 0 | AV188: 0 | AX188: 2023-05-23 | AY188: 08:52:00 | AZ188: 0 | BA188: 0 | BB188: 0 | BD188: 2023-05-23 | BE188: 08:52:00 | BF188: 613 | BG188: 0.6758094485 | BH188: 0.706149516
B189: 2023-05-24 | C189: 10:47:00 | D189: 12777052.7 | E189: 1.273493635 | F189: 1.275195001 | H189: 2023-05-24 | I189: 10:47:00 | J189: 4201520.8 | K189: 0 | L189: 0 | N189: 2023-05-24 | O189: 15:00:00 | P189: 50 | Q189: 2.7675648 | R189: 2.7675648 | T189: 2023-05-24 | U189: 15:00:00 | V189: 50 | W189: 3.43953792 | X189: 3.43953792 | Z189: 2023-05-24 | AA189: 10:31:20 | AB189: 0 | AC189: 0 | AD189: 0 | AF189: 2023-05-24 | AG189: 10:31:20 | AH189: 0 | AI189: 0 | AJ189: 0 | AL189: 2023-05-24 | AM189: 10:31:20 | AN189: 0 | AO189: 0 | AP189: 0 | AR189: 2023-05-24 | AS189: 10:25:00 | AT189: 0 | AU189: 0 | AV189: 0 | AX189: 2023-05-24 | AY189: 10:25:00 | AZ189: 0 | BA189: 0 | BB189: 0 | BD189: 2023-05-24 | BE189: 10:25:00 | BF189: 701 | BG189: 0.7239258552 | BH189: 0.710808935
E190: 1.276583127 | F190: 1.276583127 | K190: 0 | L190: 0 | Q190: 2.7675648 | R190: 2.7675648 | W190: 3.43953792 | X190: 3.43953792 | AC190: 0 | AD190: 0 | AI190: 0 | AJ190: 0 | AO190: 0 | AP190: 0 | AU190: 0 | AV190: 0 | BA190: 0 | BB190: 0 | BG190: 0.700749947 | BH190: 0.700749947
B191: 2023-05-26 | C191: 10:00:00 | D191: 12779564.2 | E191: 1.276583127 | F191: 1.278029003 | H191: 2023-05-26 | I191: 10:00:00 | J191: 4201520.8 | K191: 0 | L191: 0 | N191: 2023-05-26 | O191: 12:00:00 | P191: 50 | Q191: 2.7675648 | R191: 2.7675648 | T191: 2023-05-26 | U191: 12:00:00 | V191: 50 | W191: 3.43953792 | X191: 3.43953792 | Z191: 2023-05-26 | AA191: 10:00:00 | AB191: 0 | AC191: 0 | AD191: 0 | AF191: 2023-05-26 | AG191: 10:00:00 | AH191: 0 | AI191: 0 | AJ191: 0 | AL191: 2023-05-26 | AM191: 10:00:00 | AN191: 0 | AO191: 0 | AP191: 0 | AR191: 2023-05-26 | AS191: 11:31:00 | AT191: 0 | AU191: 0 | AV191: 0 | AX191: 2023-05-26 | AY191: 11:31:00 | AZ191: 0 | BA191: 0 | BB191: 0 | BD191: 2023-05-26 | BE191: 11:31:00 | BF191: 1304 | BG191: 0.700749947 | BH191: 0.7083695116
E192: 1.279061771 | F192: 1.279061771 | K192: 0 | L192: 0 | Q192: 2.7675648 | R192: 2.7675648 | W192: 3.43953792 | X192: 3.43953792 | AC192: 0 | AD192: 0 | AI192: 0 | AJ192: 0 | AO192: 0 | AP192: 0 | AU192: 0 | AV192: 0 | BA192: 0 | BB192: 0 | BG192: 0.7153990431 | BH192: 0.7153990431
E193: 1.279061771 | F193: 1.279061771 | K193: 0 | L193: 0 | Q193: 2.7675648 | R193: 2.7675648 | W193: 3.43953792 | X193: 3.43953792 | AC193: 0 | AD193: 0 | AI193: 0 | AJ193: 0 | AO193: 0 | AP193: 0 | AU193: 0 | AV193: 0 | BA193: 0 | BB193: 0 | BG193: 0.7153990431 | BH193: 0.7153990431
E194: 1.279061771 | F194: 1.279061771 | K194: 0 | L194: 0 | Q194: 2.7675648 | R194: 2.7675648 | W194: 3.43953792 | X194: 3.43953792 | AC194: 0 | AD194: 0 | AI194: 0 | AJ194: 0 | AO194: 0 | AP194: 0 | AU194: 0 | AV194: 0 | BA194: 0 | BB194: 0 | BG194: 0.7153990431 | BH194: 0.7153990431
B195: 2023-05-30 | C195: 09:47:00 | D195: 12784668.9 | E195: 1.279061771 | F195: 1.278888539 | H195: 2023-05-30 | I195: 09:47:00 | J195: 4201520.8 | K195: 0 | L195: 0 | N195: 2023-05-30 | O195: 12:00:00 | P195: 50 | Q195: 2.7675648 | R195: 2.7675648 | T195: 2023-05-30 | U195: 12:00:00 | V195: 50 | W195: 3.43953792 | X195: 3.43953792 | Z195: 2023-05-30 | AA195: 10:00:00 | AB195: 0 | AC195: 0 | AD195: 0 | AF195: 2023-05-30 | AG195: 10:00:00 | AH195: 0 | AI195: 0 | AJ195: 0 | AL195: 2023-05-30 | AM195: 10:00:00 | AN195: 0 | AO195: 0 | AP195: 0 | AR195: 2023-05-30 | AS195: 09:34:00 | AT195: 0 | AU195: 0 | AV195: 0 | AX195: 2023-05-30 | AY195: 09:34:00 | AZ195: 0 | BA195: 0 | BB195: 0 | BD195: 2023-05-30 | BE195: 09:34:00 | BF195: 2550 | BG195: 0.7153990431 | BH195: 0.7039482253
B196: 2023-05-31 | C196: 11:05:00 | D196: 12786016.94 | E196: 1.278769328 | F196: 1.27717957 | H196: 2023-05-31 | I196: 11:05:00 | J196: 4201520.8 | K196: 0 | L196: 0 | N196: 2023-05-31 | O196: 12:00:00 | P196: 50 | Q196: 2.7675648 | R196: 2.7675648 | T196: 2023-05-31 | U196: 12:00:00 | V196: 50 | W196: 3.43953792 | X196: 3.43953792 | Z196: 2023-05-31 | AA196: 09:45:00 | AB196: 0 | AC196: 0 | AD196: 0 | AF196: 2023-05-31 | AG196: 09:45:00 | AH196: 0 | AI196: 0 | AJ196: 0 | AL196: 2023-05-31 | AM196: 09:45:00 | AN196: 0 | AO196: 0 | AP196: 0 | AR196: 2023-05-31 | AS196: 09:24:00 | AT196: 0 | AU196: 0 | AV196: 0 | AX196: 2023-05-31 | AY196: 09:24:00 | AZ196: 0 | BA196: 0 | BB196: 0 | BD196: 2023-05-31 | BE196: 09:24:00 | BF196: 629 | BG196: 0.6963584224 | BH196: 0.7271669086
B197: 2023-06-01 | C197: 10:33:00 | D197: 12787264.4 | E197: 1.275815455 | F197: 1.313297641 | H197: 2023-06-01 | I197: 10:33:00 | J197: 4201520.8 | K197: 0 | L197: 0 | N197: 2023-06-01 | O197: 12:00:00 | P197: 50 | Q197: 2.7675648 | R197: 2.7675648 | T197: 2023-06-01 | U197: 12:00:00 | V197: 50 | W197: 3.43953792 | X197: 3.43953792 | Z197: 2023-06-01 | AA197: 09:45:00 | AB197: 0 | AC197: 0 | AD197: 0 | AF197: 2023-06-01 | AG197: 09:45:00 | AH197: 0 | AI197: 0 | AJ197: 0 | AL197: 2023-06-01 | AM197: 09:45:00 | AN197: 0 | AO197: 0 | AP197: 0 | AR197: 2023-06-01 | AS197: 10:16:00 | AT197: 0 | AU197: 0 | AV197: 0 | AX197: 2023-06-01 | AY197: 10:16:00 | AZ197: 0 | BA197: 0 | BB197: 0 | BD197: 2023-06-01 | BE197: 10:16:00 | BF197: 704 | BG197: 0.7470025094 | BH197: 0.7197017914
B198: 2023-06-02 | C198: 10:00:00 | D198: 12788576.33 | E198: 1.342698166 | F198: 1.29163108 | H198: 2023-06-02 | I198: 10:00:00 | J198: 4201520.8 | K198: 0 | L198: 7.282908116e-05 | N198: 2023-06-02 | O198: 12:00:00 | P198: 50 | Q198: 2.7675648 | R198: 2.7675648 | T198: 2023-06-02 | U198: 12:00:00 | V198: 50 | W198: 3.43953792 | X198: 3.43953792 | Z198: 2023-06-02 | AA198: 09:45:00 | AB198: 0 | AC198: 0 | AD198: 0 | AF198: 2023-06-02 | AG198: 09:45:00 | AH198: 0 | AI198: 0 | AJ198: 0 | AL198: 2023-06-02 | AM198: 09:45:00 | AN198: 0 | AO198: 0 | AP198: 0 | AR198: 2023-06-02 | AS198: 10:00:00 | AT198: 0 | AU198: 0 | AV198: 0 | AX198: 2023-06-02 | AY198: 10:00:00 | AZ198: 0 | BA198: 0 | BB198: 0 | BD198: 2023-06-02 | BE198: 10:00:00 | BF198: 629 | BG198: 0.6992925169 | BH198: 0.712355947
E199: 1.25515459 | F199: 1.25515459 | K199: 0.0001248498534 | L199: 0.0001248498534 | Q199: 2.7675648 | R199: 2.7675648 | W199: 3.43953792 | X199: 3.43953792 | AC199: 0 | AD199: 0 | AI199: 0 | AJ199: 0 | AO199: 0 | AP199: 0 | AU199: 0 | AV199: 0 | BA199: 0 | BB199: 0 | BG199: 0.7216869686 | BH199: 0.7216869686
E200: 1.25515459 | F200: 1.25515459 | K200: 0.0001248498534 | L200: 0.0001248498534 | Q200: 2.7675648 | R200: 2.7675648 | W200: 3.43953792 | X200: 3.43953792 | AC200: 0 | AD200: 0 | AI200: 0 | AJ200: 0 | AO200: 0 | AP200: 0 | AU200: 0 | AV200: 0 | BA200: 0 | BB200: 0 | BG200: 0.7216869686 | BH200: 0.7216869686
B201: 2023-06-05 | C201: 11:49:00 | D201: 12792436.8 | E201: 1.25515459 | F201: 1.281635042 | H201: 2023-06-05 | I201: 11:49:00 | J201: 4201521.184 | K201: 0.0001248498534 | L201: 6.147121255e-05 | N201: 2023-06-05 | O201: 12:00:00 | P201: 50 | Q201: 2.7675648 | R201: 2.7675648 | T201: 2023-06-05 | U201: 12:00:00 | V201: 50 | W201: 3.43953792 | X201: 3.43953792 | Z201: 2023-06-05 | AA201: 10:40:00 | AB201: 0 | AC201: 0 | AD201: 0 | AF201: 2023-06-05 | AG201: 10:40:00 | AH201: 0 | AI201: 0 | AJ201: 0 | AL201: 2023-06-05 | AM201: 10:40:00 | AN201: 0 | AO201: 0 | AP201: 0 | AR201: 2023-06-05 | AS201: 11:49:00 | AT201: 0 | AU201: 0 | AV201: 0 | AX201: 2023-06-05 | AY201: 11:49:00 | AZ201: 0 | BA201: 0 | BB201: 0 | BD201: 2023-06-05 | BE201: 11:49:00 | BF201: 2019 | BG201: 0.7216869686 | BH201: 0.7696924007
B202: 2023-06-06 | C202: 11:10:00 | D202: 12793708.71 | E202: 1.307318544 | F202: 1.253609848 | H202: 2023-06-06 | I202: 11:10:00 | J202: 4201521.184 | K202: 0 | L202: 6.148471595e-05 | N202: 2023-06-06 | O202: 12:00:00 | P202: 50 | Q202: 2.7675648 | R202: 2.7675648 | T202: 2023-06-06 | U202: 12:00:00 | V202: 50 | W202: 3.43953792 | X202: 3.43953792 | Z202: 2023-06-06 | AA202: 10:30:00 | AB202: 0 | AC202: 0 | AD202: 0 | AF202: 2023-06-06 | AG202: 10:30:00 | AH202: 0 | AI202: 0 | AJ202: 0 | AL202: 2023-06-06 | AM202: 10:30:00 | AN202: 0 | AO202: 0 | AP202: 0 | AR202: 2023-06-06 | AS202: 11:52:00 | AT202: 0 | AU202: 0 | AV202: 0 | AX202: 2023-06-06 | AY202: 11:52:00 | AZ202: 0 | BA202: 0 | BB202: 0 | BD202: 2023-06-06 | BE202: 11:52:00 | BF202: 744 | BG202: 0.8162530728 | BH202: 0.7907635921
B203: 2023-06-07 | C203: 13:53:00 | D203: 12795052.2 | E203: 1.206876307 | F203: 1.236443056 | H203: 2023-06-07 | I203: 13:53:00 | J203: 4201521.312 | K203: 0.0001149844038 | L203: 6.651528361e-05 | N203: 2023-06-07 | O203: 12:00:00 | P203: 50 | Q203: 2.7675648 | R203: 2.7675648 | T203: 2023-06-07 | U203: 12:00:00 | V203: 50 | W203: 3.43953792 | X203: 3.43953792 | Z203: 2023-06-07 | AA203: 13:00:00 | AB203: 0 | AC203: 0 | AD203: 0 | AF203: 2023-06-07 | AG203: 13:00:00 | AH203: 0 | AI203: 0 | AJ203: 0 | AL203: 2023-06-07 | AM203: 13:00:00 | AN203: 0 | AO203: 0 | AP203: 0 | AR203: 2023-06-07 | AS203: 13:30:00 | AT203: 0 | AU203: 0 | AV203: 0 | AX203: 2023-06-07 | AY203: 13:30:00 | AZ203: 0 | BA203: 0 | BB203: 0 | BD203: 2023-06-07 | BE203: 13:30:00 | BF203: 744 | BG203: 0.7658343199 | BH203: 0.817942412
B204: 2023-06-08 | C204: 11:53:00 | D204: 12796222.8 | E204: 1.277018182 | F204: 1.274340665 | H204: 2023-06-08 | I204: 11:53:00 | J204: 4201521.312 | K204: 0 | L204: 0 | N204: 2023-06-08 | O204: 12:00:00 | P204: 50 | Q204: 2.7675648 | R204: 2.7675648 | T204: 2023-06-08 | U204: 12:00:00 | V204: 50 | W204: 3.43953792 | X204: 3.43953792 | Z204: 2023-06-08 | AA204: 10:20:00 | AB204: 0 | AC204: 0 | AD204: 0 | AF204: 2023-06-08 | AG204: 10:20:00 | AH204: 0 | AI204: 0 | AJ204: 0 | AL204: 2023-06-08 | AM204: 10:20:00 | AN204: 0 | AO204: 0 | AP204: 0 | AR204: 2023-06-08 | AS204: 11:41:00 | AT204: 0 | AU204: 0 | AV204: 0 | AX204: 2023-06-08 | AY204: 11:41:00 | AZ204: 0 | BA204: 0 | BB204: 0 | BD204: 2023-06-08 | BE204: 11:41:00 | BF204: 744 | BG204: 0.8849385304 | BH204: 0.8239758733
B205: 2023-06-09 | C205: 10:19:00 | D205: 12797411.5 | E205: 1.27171471 | F205: 1.2734063 | H205: 2023-06-09 | I205: 10:19:00 | J205: 4201521.312 | K205: 0 | L205: 0 | N205: 2023-06-09 | O205: 12:00:00 | P205: 50 | Q205: 2.7675648 | R205: 2.7675648 | T205: 2023-06-09 | U205: 12:00:00 | V205: 50 | W205: 3.43953792 | X205: 3.43953792 | Z205: 2023-06-09 | AA205: 09:45:00 | AB205: 0 | AC205: 0 | AD205: 0 | AF205: 2023-06-09 | AG205: 09:45:00 | AH205: 0 | AI205: 0 | AJ205: 0 | AL205: 2023-06-09 | AM205: 09:45:00 | AN205: 0 | AO205: 0 | AP205: 0 | AR205: 2023-06-09 | AS205: 10:00:00 | AT205: 0 | AU205: 0 | AV205: 0 | AX205: 2023-06-09 | AY205: 10:00:00 | AZ205: 0 | BA205: 0 | BB205: 0 | BD205: 2023-06-09 | BE205: 10:00:00 | BF205: 648 | BG205: 0.7661479671 | BH205: 0.7299824359
E206: 1.274681688 | F206: 1.274681688 | K206: 0 | L206: 0 | Q206: 2.7675648 | R206: 2.7675648 | W206: 3.43953792 | X206: 3.43953792 | AC206: 0 | AD206: 0 | AI206: 0 | AJ206: 0 | AO206: 0 | AP206: 0 | AU206: 0 | AV206: 0 | BA206: 0 | BB206: 0 | BG206: 0.7041499136 | BH206: 0.7041499136
... 1029 more rows

Sheet Input TP Data
B8: =COUNT(B10:B12) -> 1 | C8: Brundage | D8: Brundage | E8: After Filters | G8: After Clarifier
B9: Sample Date | C9: Spring | D9: Creek | E9: before Pond | F9: Discharge | G9: before Pond | H9: Backwash
B10: 2024-03-04 | C10: 7.302766063 | D10: 10.82689828 | E10: 22.39779906 | F10: 15.29079909 | G10: 176.4910468 | H10: 3643.559238
J11: =IF(AND(B11<>0,B11<=B10),"Dates must be in assending order","") -> 
J12: =IF(AND(B12<>0,B12<=B11),"Dates must be in assending order","") -> 
B15: Last Date
B16: =MAX(B18:B10000) -> 2024-03-04
B17: =COUNT(C19:C10000) -> 1525 | C17: Brundage | D17: Brundage | E17: After Filter | G17: After Clarifier
B18: Date | C18: Spring | D18: Creek | E18: Before Pond | F18: Discharge | G18: Before Pond | H18: Backwash
B19: 2020-01-01 | C19: 7.913247108 | D19: 19.42670822 | E19: 13.90494633 | F19: 14.60985184 | G19: 58.59077835 | H19: 1267.983276
B20: =B19+1 -> 2020-01-02 | C20: 7.913247108 | D20: 19.42670822 | E20: 13.90494633 | F20: 14.60985184 | G20: 58.59077835 | H20: 1267.983276
B21: 2020-01-03 | C21: 8.148215294 | D21: 17.54695892 | E21: 13.08255577 | F21: 13.78746223 | G21: 92.07379913 | H21: 1488.266235
B22: 2020-01-04 | C22: 8.148215294 | D22: 17.54695892 | E22: 13.08255577 | F22: 13.78746223 | G22: 92.07379913 | H22: 1488.266235
B23: 2020-01-05 | C23: 8.148215294 | D23: 17.54695892 | E23: 13.08255577 | F23: 13.78746223 | G23: 92.07379913 | H23: 1488.266235
B24: 2020-01-06 | C24: 8.148215294 | D24: 17.54695892 | E24: 13.08255577 | F24: 13.78746223 | G24: 92.07379913 | H24: 1488.266235
B25: 2020-01-07 | C25: 8.460295677 | D25: 13.85092735 | E25: 10.15951633 | F25: 10.21811008 | G25: 29.22529411 | H25: 1941.734009
B26: 2020-01-08 | C26: 8.460295677 | D26: 13.85092735 | E26: 10.15951633 | F26: 10.21811008 | G26: 29.22529411 | H26: 1941.734009
B27: 2020-01-09 | C27: 8.460295677 | D27: 13.85092735 | E27: 10.15951633 | F27: 10.21811008 | G27: 29.22529411 | H27: 1941.734009
B28: 2020-01-10 | C28: 9.632172585 | D28: 15.78452301 | E28: 12.21030045 | F28: 11.50717449 | G28: 50.78781891 | H28: 4162.439453
B29: 2020-01-11 | C29: 9.632172585 | D29: 15.78452301 | E29: 12.21030045 | F29: 11.50717449 | G29: 50.78781891 | H29: 4162.439453
B30: 2020-01-12 | C30: 9.632172585 | D30: 15.78452301 | E30: 12.21030045 | F30: 11.50717449 | G30: 50.78781891 | H30: 4162.439453
B31: 2020-01-13 | C31: 9.632172585 | D31: 15.78452301 | E31: 12.21030045 | F31: 11.50717449 | G31: 50.78781891 | H31: 4162.439453
B32: 2020-01-14 | C32: 8.050139427 | D32: 14.1438961 | E32: 12.5032692 | F32: 10.80404854 | G32: 28.40497971 | H32: 1609.539551
B33: 2020-01-15 | C33: 8.050139427 | D33: 14.1438961 | E33: 12.5032692 | F33: 10.80404854 | G33: 28.40497971 | H33: 1609.539551
B34: 2020-01-16 | C34: 8.050139427 | D34: 14.1438961 | E34: 12.5032692 | F34: 10.80404854 | G34: 28.40497971 | H34: 1609.539551
B35: 2020-01-17 | C35: 8.811859131 | D35: 13.6165514 | E35: 13.08920765 | F35: 11.97592449 | G35: 40.00655365 | H35: 1284.343872
B36: 2020-01-18 | C36: 8.811859131 | D36: 13.6165514 | E36: 13.08920765 | F36: 11.97592449 | G36: 40.00655365 | H36: 1284.343872
B37: 2020-01-19 | C37: 8.811859131 | D37: 13.6165514 | E37: 13.08920765 | F37: 11.97592449 | G37: 40.00655365 | H37: 1284.343872
B38: 2020-01-20 | C38: 8.811859131 | D38: 13.6165514 | E38: 13.08920765 | F38: 11.97592449 | G38: 40.00655365 | H38: 1284.343872
B39: 2020-01-21 | C39: 8.356769562 | D39: 13.27625561 | E39: 12.16351414 | F39: 10.75794697 | G39: 29.71503639 | H39: 1990.317017
B40: 2020-01-22 | C40: 8.356769562 | D40: 13.27625561 | E40: 12.16351414 | F40: 10.75794697 | G40: 29.71503639 | H40: 1990.317017
B41: 2020-01-23 | C41: 8.356769562 | D41: 13.27625561 | E41: 12.16351414 | F41: 10.75794697 | G41: 29.71503639 | H41: 1990.317017
B42: 2020-01-24 | C42: 8.070871353 | D42: 20.72081947 | E42: 15.39144325 | F42: 13.16598988 | G42: 51.04623032 | H42: 1648.040771
B43: 2020-01-25 | C43: 8.070871353 | D43: 20.72081947 | E43: 15.39144325 | F43: 13.16598988 | G43: 51.04623032 | H43: 1648.040771
B44: 2020-01-26 | C44: 8.070871353 | D44: 20.72081947 | E44: 15.39144325 | F44: 13.16598988 | G44: 51.04623032 | H44: 1648.040771
B45: 2020-01-27 | C45: 8.070871353 | D45: 20.72081947 | E45: 15.39144325 | F45: 13.16598988 | G45: 51.04623032 | H45: 1648.040771
B46: 2020-01-28 | C46: 9.007905006 | D46: 17.85115623 | E46: 14.33728123 | F46: 13.40024757 | G46: 38.8647995 | H46: 1416.710693
B47: 2020-01-29 | C47: 9.007905006 | D47: 17.85115623 | E47: 14.33728123 | F47: 13.40024757 | G47: 38.8647995 | H47: 1416.710693
B48: 2020-01-30 | C48: 9.007905006 | D48: 17.85115623 | E48: 14.33728123 | F48: 13.40024757 | G48: 38.8647995 | H48: 1416.710693
B49: 2020-01-31 | C49: 8.071027756 | D49: 19.78228951 | E49: 21.07052803 | F49: 14.33655262 | G49: 50.45605087 | H49: 2455.949951
B50: =B49+1 -> 2020-02-01 | C50: 8.071027756 | D50: 19.78228951 | E50: 21.07052803 | F50: 14.33655262 | G50: 50.45605087 | H50: 2455.949951
B51: 2020-02-02 | C51: 8.071027756 | D51: 19.78228951 | E51: 21.07052803 | F51: 14.33655262 | G51: 50.45605087 | H51: 2455.949951
B52: 2020-02-03 | C52: 8.071027756 | D52: 19.78228951 | E52: 21.07052803 | F52: 14.33655262 | G52: 50.45605087 | H52: 2455.949951
B53: 2020-02-04 | C53: 7.777107239 | D53: 17.4976902 | E53: 15.6824007 | F53: 13.45720673 | G53: 32.06749344 | H53: 1560.009888
B54: 2020-02-05 | C54: 7.777107239 | D54: 17.4976902 | E54: 15.6824007 | F54: 13.45720673 | G54: 32.06749344 | H54: 1560.009888
B55: 2020-02-06 | C55: 7.777107239 | D55: 17.4976902 | E55: 15.6824007 | F55: 13.45720673 | G55: 32.06749344 | H55: 1560.009888
B56: 2020-02-07 | C56: 7.07441473 | D56: 13.57432175 | E56: 14.39413071 | F56: 12.40316772 | G56: 43.07634735 | H56: 1978.697632
B57: 2020-02-08 | C57: 7.07441473 | D57: 13.57432175 | E57: 14.39413071 | F57: 12.40316772 | G57: 43.07634735 | H57: 1978.697632
B58: 2020-02-09 | C58: 7.07441473 | D58: 13.57432175 | E58: 14.39413071 | F58: 12.40316772 | G58: 43.07634735 | H58: 1978.697632
B59: 2020-02-10 | C59: 7.07441473 | D59: 13.57432175 | E59: 14.39413071 | F59: 12.40316772 | G59: 43.07634735 | H59: 1978.697632
B60: 2020-02-11 | C60: 8.187011719 | D60: 14.80403423 | E60: 14.80403423 | F60: 12.93018723 | G60: 35.69807053 | H60: 2034.327515
B61: 2020-02-12 | C61: 8.187011719 | D61: 14.80403423 | E61: 14.80403423 | F61: 12.93018723 | G61: 35.69807053 | H61: 2034.327515
B62: 2020-02-13 | C62: 8.187011719 | D62: 14.80403423 | E62: 14.80403423 | F62: 12.93018723 | G62: 35.69807053 | H62: 2034.327515
B63: 2020-02-14 | C63: 8.352165222 | D63: 11.92590904 | E63: 16.2026844 | F63: 14.21076202 | G63: 114.9634781 | H63: 2438.823975
B64: 2020-02-15 | C64: 8.352165222 | D64: 11.92590904 | E64: 16.2026844 | F64: 14.21076202 | G64: 114.9634781 | H64: 2438.823975
B65: 2020-02-16 | C65: 8.352165222 | D65: 11.92590904 | E65: 16.2026844 | F65: 14.21076202 | G65: 114.9634781 | H65: 2438.823975
B66: 2020-02-17 | C66: 8.352165222 | D66: 11.92590904 | E66: 16.2026844 | F66: 14.21076202 | G66: 114.9634781 | H66: 2438.823975
B67: 2020-02-18 | C67: 8.352165222 | D67: 11.92590904 | E67: 16.2026844 | F67: 14.21076202 | G67: 114.9634781 | H67: 2438.823975
B68: 2020-02-19 | C68: 9.348127365 | D68: 12.1016674 | E68: 15.14813709 | F68: 13.74207401 | G68: 56.54278564 | H68: 2781.336426
B69: 2020-02-20 | C69: 9.348127365 | D69: 12.1016674 | E69: 15.14813709 | F69: 13.74207401 | G69: 56.54278564 | H69: 2781.336426
B70: 2020-02-21 | C70: 9.348127365 | D70: 12.1016674 | E70: 15.14813709 | F70: 13.74207401 | G70: 56.54278564 | H70: 2781.336426
B71: 2020-02-22 | C71: 7.727674961 | D71: 14.25757408 | E71: 19.74731255 | F71: 14.31536102 | G71: 77.63386536 | H71: 1305.192627
B72: 2020-02-23 | C72: 7.727674961 | D72: 14.25757408 | E72: 19.74731255 | F72: 14.31536102 | G72: 77.63386536 | H72: 1305.192627
B73: 2020-02-24 | C73: 7.727674961 | D73: 14.25757408 | E73: 19.74731255 | F73: 14.31536102 | G73: 77.63386536 | H73: 1305.192627
B74: 2020-02-25 | C74: 7.66988802 | D74: 14.31536102 | E74: 19.22723198 | F74: 13.56413364 | G74: 43.42412186 | H74: 1891.727783
B75: 2020-02-26 | C75: 7.66988802 | D75: 14.31536102 | E75: 19.22723198 | F75: 13.56413364 | G75: 43.42412186 | H75: 1891.727783
B76: 2020-02-27 | C76: 7.66988802 | D76: 14.31536102 | E76: 19.22723198 | F76: 13.56413364 | G76: 43.42412186 | H76: 1891.727783
B77: 2020-02-28 | C77: 7.843248367 | D77: 13.10184002 | E77: 15.52888203 | F77: 13.39077377 | G77: 42.26838684 | H77: 2562.315186
B78: 2020-02-29 | C78: 7.843248367 | D78: 13.10184002 | E78: 15.52888203 | F78: 13.39077377 | G78: 42.26838684 | H78: 2562.315186
B79: 2020-03-01 | C79: 7.843248367 | D79: 13.10184002 | E79: 15.52888203 | F79: 13.39077377 | G79: 42.26838684 | H79: 2562.315186
B80: 2020-03-02 | C80: 7.843248367 | D80: 13.10184002 | E80: 15.52888203 | F80: 13.39077377 | G80: 42.26838684 | H80: 2562.315186
B81: 2020-03-03 | C81: 8.448356628 | D81: 15.08171082 | E81: 17.10055733 | F81: 15.1393919 | G81: 42.04577637 | H81: 1890.407959
B82: 2020-03-04 | C82: 8.448356628 | D82: 15.08171082 | E82: 17.10055733 | F82: 15.1393919 | G82: 42.04577637 | H82: 1890.407959
B83: 2020-03-05 | C83: 8.448356628 | D83: 15.08171082 | E83: 17.10055733 | F83: 15.1393919 | G83: 42.04577637 | H83: 1890.407959
B84: 2020-03-06 | C84: 11.44778633 | D84: 15.94693089 | E84: 23.79159355 | F84: 17.61968994 | G84: 56.35074997 | H84: 1651.030396
B85: 2020-03-07 | C85: 11.44778633 | D85: 15.94693089 | E85: 23.79159355 | F85: 17.61968994 | G85: 56.35074997 | H85: 1651.030396
B86: 2020-03-08 | C86: 11.44778633 | D86: 15.94693089 | E86: 23.79159355 | F86: 17.61968994 | G86: 56.35074997 | H86: 1651.030396
B87: 2020-03-09 | C87: 11.44778633 | D87: 15.94693089 | E87: 23.79159355 | F87: 17.61968994 | G87: 56.35074997 | H87: 1651.030396
B88: 2020-03-10 | C88: 10.88971519 | D88: 17.64522171 | E88: 27.40317726 | F88: 21.80245781 | G88: 49.84076691 | H88: 1531.829102
B89: 2020-03-11 | C89: 10.88971519 | D89: 17.64522171 | E89: 27.40317726 | F89: 21.80245781 | G89: 49.84076691 | H89: 1531.829102
B90: 2020-03-12 | C90: 10.88971519 | D90: 17.64522171 | E90: 27.40317726 | F90: 21.80245781 | G90: 49.84076691 | H90: 1531.829102
B91: 2020-03-13 | C91: 8.753358841 | D91: 21.80245781 | E91: 17.58748245 | F91: 15.39338684 | G91: 54.80635452 | H91: 2112.109863
B92: 2020-03-14 | C92: 8.753358841 | D92: 21.80245781 | E92: 17.58748245 | F92: 15.39338684 | G92: 54.80635452 | H92: 2112.109863
B93: 2020-03-15 | C93: 8.753358841 | D93: 21.80245781 | E93: 17.58748245 | F93: 15.39338684 | G93: 54.80635452 | H93: 2112.109863
B94: 2020-03-16 | C94: 8.753358841 | D94: 21.80245781 | E94: 17.58748245 | F94: 15.39338684 | G94: 54.80635452 | H94: 2112.109863
B95: 2020-03-17 | C95: 9.330752373 | D95: 15.1046896 | E95: 16.25947762 | F95: 12.56415749 | G95: 39.44768143 | H95: 1719.482056
B96: 2020-03-18 | C96: 9.330752373 | D96: 15.1046896 | E96: 16.25947762 | F96: 12.56415749 | G96: 39.44768143 | H96: 1719.482056
B97: 2020-03-19 | C97: 9.330752373 | D97: 15.1046896 | E97: 16.25947762 | F97: 12.56415749 | G97: 39.44768143 | H97: 1719.482056
B98: 2020-03-20 | C98: 9.677188873 | D98: 26.2483902 | E98: 21.25393295 | F98: 14.41181755 | G98: 48.57050323 | H98: 2833.841309
B99: 2020-03-21 | C99: 9.677188873 | D99: 26.2483902 | E99: 21.25393295 | F99: 14.41181755 | G99: 48.57050323 | H99: 2833.841309
B100: 2020-03-22 | C100: 9.677188873 | D100: 26.2483902 | E100: 21.25393295 | F100: 14.41181755 | G100: 48.57050323 | H100: 2833.841309
B101: 2020-03-23 | C101: 9.677188873 | D101: 26.2483902 | E101: 21.25393295 | F101: 14.41181755 | G101: 48.57050323 | H101: 2833.841309
B102: 2020-03-24 | C102: 9.677188873 | D102: 26.2483902 | E102: 21.25393295 | F102: 14.41181755 | G102: 48.57050323 | H102: 2833.841309
B103: 2020-03-25 | C103: 10.13910389 | D103: 21.57150078 | E103: 20.64767075 | F103: 13.372509 | G103: 63.58274078 | H103: 1508.733398
B104: 2020-03-26 | C104: 10.13910389 | D104: 21.57150078 | E104: 20.64767075 | F104: 13.372509 | G104: 63.58274078 | H104: 1508.733398
B105: 2020-03-27 | C105: 10.13910389 | D105: 21.57150078 | E105: 20.64767075 | F105: 13.372509 | G105: 63.58274078 | H105: 1508.733398
B106: 2020-03-28 | C106: 10.77423668 | D106: 33.81224823 | E106: 25.67099571 | F106: 15.68208408 | G106: 65.66135406 | H106: 893.809021
B107: 2020-03-29 | C107: 10.77423668 | D107: 33.81224823 | E107: 25.67099571 | F107: 15.68208408 | G107: 65.66135406 | H107: 893.809021
B108: 2020-03-30 | C108: 10.77423668 | D108: 33.81224823 | E108: 25.67099571 | F108: 15.68208408 | G108: 65.66135406 | H108: 893.809021
B109: 2020-03-31 | C109: 7.573515415 | D109: 14.95539188 | E109: 18.06962204 | F109: 14.03265762 | G109: 32.21762085 | H109: 1468.656006
B110: 2020-04-01 | C110: 7.573515415 | D110: 14.95539188 | E110: 18.06962204 | F110: 14.03265762 | G110: 32.21762085 | H110: 1468.656006
B111: 2020-04-02 | C111: 7.573515415 | D111: 14.95539188 | E111: 18.06962204 | F111: 14.03265762 | G111: 32.21762085 | H111: 1468.656006
B112: 2020-04-03 | C112: 7.173549652 | D112: 15.53439617 | E112: 15.88036251 | F112: 12.70900631 | G112: 132.0149536 | H112: 2131.753662
B113: 2020-04-04 | C113: 7.173549652 | D113: 15.53439617 | E113: 15.88036251 | F113: 12.70900631 | G113: 132.0149536 | H113: 2131.753662
B114: =B113+1 -> 2020-04-05 | C114: 7.173549652 | D114: 15.53439617 | E114: 15.88036251 | F114: 12.70900631 | G114: 132.0149536 | H114: 2131.753662
B115: 2020-04-06 | C115: 7.173549652 | D115: 15.53439617 | E115: 15.88036251 | F115: 12.70900631 | G115: 132.0149536 | H115: 2131.753662
B116: 2020-04-07 | C116: 8.038464546 | D116: 15.59205723 | E116: 19.05171776 | F116: 14.20819283 | G116: 212.3732147 | H116: 2466.1875
B117: 2020-04-08 | C117: 8.038464546 | D117: 15.59205723 | E117: 19.05171776 | F117: 14.20819283 | G117: 212.3732147 | H117: 2466.1875
B118: 2020-04-09 | C118: 8.038464546 | D118: 15.59205723 | E118: 19.05171776 | F118: 14.20819283 | G118: 212.3732147 | H118: 2466.1875
B119: 2020-04-10 | C119: 8.71434021 | D119: 15.67655182 | E119: 16.83691978 | F119: 10.97705936 | G119: 152.7613983 | H119: 2497.517822
B120: 2020-04-11 | C120: 8.71434021 | D120: 15.67655182 | E120: 16.83691978 | F120: 10.97705936 | G120: 152.7613983 | H120: 2497.517822
B121: 2020-04-12 | C121: 8.71434021 | D121: 15.67655182 | E121: 16.83691978 | F121: 10.97705936 | G121: 152.7613983 | H121: 2497.517822
B122: 2020-04-13 | C122: 8.71434021 | D122: 15.67655182 | E122: 16.83691978 | F122: 10.97705936 | G122: 152.7613983 | H122: 2497.517822
B123: 2020-04-14 | C123: 7.321897984 | D123: 16.77890205 | E123: 18.34539986 | F123: 10.45489311 | G123: 45.04545212 | H123: 2100.845947
B124: 2020-04-15 | C124: 7.321897984 | D124: 16.77890205 | E124: 18.34539986 | F124: 10.45489311 | G124: 45.04545212 | H124: 2100.845947
B125: 2020-04-16 | C125: 7.321897984 | D125: 16.77890205 | E125: 18.34539986 | F125: 10.45489311 | G125: 45.04545212 | H125: 2100.845947
B126: 2020-04-17 | C126: 6.567658424 | D126: 13.9940176 | E126: 21.88452339 | F126: 11.0350771 | G126: 37.73513031 | H126: 1610.59021
B127: 2020-04-18 | C127: 6.567658424 | D127: 13.9940176 | E127: 21.88452339 | F127: 11.0350771 | G127: 37.73513031 | H127: 1610.59021
B128: 2020-04-19 | C128: 6.567658424 | D128: 13.9940176 | E128: 21.88452339 | F128: 11.0350771 | G128: 37.73513031 | H128: 1610.59021
B129: 2020-04-20 | C129: 6.567658424 | D129: 13.9940176 | E129: 21.88452339 | F129: 11.0350771 | G129: 37.73513031 | H129: 1610.59021
B130: 2020-04-21 | C130: 6.509640217 | D130: 12.83364868 | E130: 22.52272606 | F130: 10.22281933 | G130: 56.30102539 | H130: 940.477356
B131: 2020-04-22 | C131: 6.509640217 | D131: 12.83364868 | E131: 22.52272606 | F131: 10.22281933 | G131: 56.30102539 | H131: 940.477356
B132: 2020-04-23 | C132: 6.509640217 | D132: 12.83364868 | E132: 22.52272606 | F132: 10.22281933 | G132: 56.30102539 | H132: 940.477356
B133: 2020-04-24 | C133: 6.857750893 | D133: 12.2534647 | E133: 21.88452339 | F133: 13.06572247 | G133: 34.9502449 | H133: 801.2330933
B134: 2020-04-25 | C134: 6.857750893 | D134: 12.2534647 | E134: 21.88452339 | F134: 13.06572247 | G134: 34.9502449 | H134: 801.2330933
B135: 2020-04-26 | C135: 6.857750893 | D135: 12.2534647 | E135: 21.88452339 | F135: 13.06572247 | G135: 34.9502449 | H135: 801.2330933
B136: 2020-04-27 | C136: 6.857750893 | D136: 12.2534647 | E136: 21.88452339 | F136: 13.06572247 | G136: 34.9502449 | H136: 801.2330933
B137: 2020-04-28 | C137: 8.316813469 | D137: 25.38196564 | E137: 32.34733582 | F137: 14.46955585 | G137: 43.56638336 | H137: 589.9748535
B138: 2020-04-29 | C138: 8.316813469 | D138: 25.38196564 | E138: 32.34733582 | F138: 14.46955585 | G138: 43.56638336 | H138: 589.9748535
B139: 2020-04-30 | C139: 8.316813469 | D139: 25.38196564 | E139: 32.34733582 | F139: 14.46955585 | G139: 43.56638336 | H139: 589.9748535
B140: 2020-05-01 | C140: 7.794410706 | D140: 14.99195862 | E140: 23.8147583 | F140: 16.32698631 | G140: 60.39936066 | H140: 595.7793579
B141: 2020-05-02 | C141: 7.794410706 | D141: 14.99195862 | E141: 23.8147583 | F141: 16.32698631 | G141: 60.39936066 | H141: 595.7793579
B142: 2020-05-03 | C142: 7.794410706 | D142: 14.99195862 | E142: 23.8147583 | F142: 16.32698631 | G142: 60.39936066 | H142: 595.7793579
B143: 2020-05-04 | C143: 7.794410706 | D143: 14.99195862 | E143: 23.8147583 | F143: 16.32698631 | G143: 60.39936066 | H143: 595.7793579
B144: 2020-05-05 | C144: 8.54364109 | D144: 10.74882698 | E144: 20.3820076 | F144: 12.3737011 | G144: 84.83805084 | H144: 1265.733032
B145: 2020-05-06 | C145: 8.54364109 | D145: 10.74882698 | E145: 20.3820076 | F145: 12.3737011 | G145: 84.83805084 | H145: 1265.733032
B146: 2020-05-07 | C146: 8.54364109 | D146: 10.74882698 | E146: 20.3820076 | F146: 12.3737011 | G146: 84.83805084 | H146: 1265.733032
B147: 2020-05-08 | C147: 6.396486282 | D147: 9.820327759 | E147: 21.83278847 | F147: 10.63276482 | G147: 2.570850026 | H147: 38.35554643
B148: 2020-05-09 | C148: 6.396486282 | D148: 9.820327759 | E148: 21.83278847 | F148: 10.63276482 | G148: 0.07790454623 | H148: 1.162289286
B149: 2020-05-10 | C149: 6.396486282 | D149: 9.820327759 | E149: 21.83278847 | F149: 10.63276482 | G149: 0.002360743825 | H149: 0.03522088745
B150: 2020-05-11 | C150: 6.396486282 | D150: 9.820327759 | E150: 21.83278847 | F150: 10.63276482 | G150: 7.153769167e-05 | H150: 0.00106729962
B151: 2020-05-12 | C151: 9.455414772 | D151: 13.69509125 | E151: 24.96217537 | F151: 20.31595421 | G151: 2.167808838e-06 | H151: 3.234241272e-05
B152: 2020-05-13 | C152: 9.455414772 | D152: 13.69509125 | E152: 24.96217537 | F152: 20.31595421 | G152: 0 | H152: 0
B153: 2020-05-14 | C153: 9.455414772 | D153: 13.69509125 | E153: 24.96217537 | F153: 20.31595421 | G153: 0 | H153: 0
B154: 2020-05-15 | C154: 9.861959457 | D154: 23.62638664 | E154: 27.51759529 | F154: 17.99284554 | G154: 0 | H154: 0
B155: 2020-05-16 | C155: 9.861959457 | D155: 23.62638664 | E155: 27.51759529 | F155: 17.99284554 | G155: 0 | H155: 0
B156: 2020-05-17 | C156: 9.861959457 | D156: 23.62638664 | E156: 27.51759529 | F156: 17.99284554 | G156: 0 | H156: 0
B157: 2020-05-18 | C157: 9.861959457 | D157: 23.62638664 | E157: 27.51759529 | F157: 17.99284554 | G157: 0 | H157: 0
B158: 2020-05-19 | C158: 10.95860195 | D158: 30.59255219 | E158: 22.65788841 | F158: 16.11323738 | G158: 0 | H158: 0
B159: 2020-05-20 | C159: 10.95860195 | D159: 30.59255219 | E159: 22.65788841 | F159: 16.11323738 | G159: 0 | H159: 0
B160: 2020-05-21 | C160: 10.95860195 | D160: 30.59255219 | E160: 22.65788841 | F160: 16.11323738 | G160: 0 | H160: 0
B161: 2020-05-22 | C161: 8.352325439 | D161: 13.2173748 | E161: 17.85075569 | F161: 16.46074104 | G161: 0 | H161: 0
B162: 2020-05-23 | C162: 8.352325439 | D162: 13.2173748 | E162: 17.85075569 | F162: 16.46074104 | G162: 0 | H162: 0
B163: 2020-05-24 | C163: 8.352325439 | D163: 13.2173748 | E163: 17.85075569 | F163: 16.46074104 | G163: 0 | H163: 0
B164: 2020-05-25 | C164: 8.352325439 | D164: 13.2173748 | E164: 17.85075569 | F164: 16.46074104 | G164: 0 | H164: 0
B165: 2020-05-26 | C165: 8.352325439 | D165: 13.2173748 | E165: 17.85075569 | F165: 16.46074104 | G165: 0 | H165: 0
B166: 2020-05-27 | C166: 9.918664932 | D166: 17.2733326 | E166: 19.01065636 | F166: 16.28884888 | G166: 0 | H166: 0
B167: 2020-05-28 | C167: 9.918664932 | D167: 17.2733326 | E167: 19.01065636 | F167: 16.28884888 | G167: 0 | H167: 0
B168: 2020-05-29 | C168: 9.107913971 | D168: 20.22678185 | E168: 27.06025314 | F168: 10.32404041 | G168: 0 | H168: 0
B169: 2020-05-30 | C169: 9.107913971 | D169: 20.22678185 | E169: 27.06025314 | F169: 10.32404041 | G169: 0 | H169: 0
B170: 2020-05-31 | C170: 9.107913971 | D170: 20.22678185 | E170: 27.06025314 | F170: 10.32404041 | G170: 0 | H170: 0
B171: 2020-06-01 | C171: 9.107913971 | D171: 20.22678185 | E171: 27.06025314 | F171: 10.32404041 | G171: 0 | H171: 0
B172: 2020-06-02 | C172: 9.733381271 | D172: 17.54523087 | E172: 35.48355484 | F172: 14.30475998 | G172: 0 | H172: 0
B173: 2020-06-03 | C173: 9.733381271 | D173: 17.54523087 | E173: 35.48355484 | F173: 14.30475998 | G173: 0 | H173: 0
B174: 2020-06-04 | C174: 9.733381271 | D174: 17.54523087 | E174: 35.48355484 | F174: 14.30475998 | G174: 0 | H174: 0
B175: 2020-06-05 | C175: 8.460338593 | D175: 14.53622246 | E175: 63.25902176 | F175: 15.11487865 | G175: 0 | H175: 0
B176: 2020-06-06 | C176: 8.460338593 | D176: 14.53622246 | E176: 63.25902176 | F176: 15.11487865 | G176: 0 | H176: 0
B177: 2020-06-07 | C177: 8.460338593 | D177: 14.53622246 | E177: 63.25902176 | F177: 15.11487865 | G177: 0 | H177: 0
B178: =B177+1 -> 2020-06-08 | C178: 8.460338593 | D178: 14.53622246 | E178: 63.25902176 | F178: 15.11487865 | G178: 0 | H178: 0
B179: 2020-06-09 | C179: 10.8537178 | D179: 20.51254463 | E179: 56.25613022 | F179: 13.28288364 | G179: 0 | H179: 0
B180: 2020-06-10 | C180: 10.8537178 | D180: 20.51254463 | E180: 56.25613022 | F180: 13.28288364 | G180: 0 | H180: 0
B181: 2020-06-11 | C181: 10.8537178 | D181: 20.51254463 | E181: 56.25613022 | F181: 13.28288364 | G181: 0 | H181: 0
B182: 2020-06-12 | C182: 7.672667027 | D182: 18.02554131 | E182: 17.62067986 | F182: 12.70451069 | G182: 0 | H182: 0
B183: 2020-06-13 | C183: 7.672667027 | D183: 18.02554131 | E183: 17.62067986 | F183: 12.70451069 | G183: 0 | H183: 0
B184: 2020-06-14 | C184: 7.672667027 | D184: 18.02554131 | E184: 17.62067986 | F184: 12.70451069 | G184: 0 | H184: 0
B185: 2020-06-15 | C185: 7.672667027 | D185: 18.02554131 | E185: 17.62067986 | F185: 12.70451069 | G185: 0 | H185: 0
B186: 2020-06-16 | C186: 8.443925858 | D186: 11.68521976 | E186: 18.74660873 | F186: 10.93277645 | G186: 0 | H186: 0
B187: 2020-06-17 | C187: 8.443925858 | D187: 11.68521976 | E187: 18.74660873 | F187: 10.93277645 | G187: 0 | H187: 0
B188: 2020-06-18 | C188: 8.443925858 | D188: 11.68521976 | E188: 18.74660873 | F188: 10.93277645 | G188: 0 | H188: 0
B189: 2020-06-19 | C189: 7.517842293 | D189: 14.28983021 | E189: 41.66718292 | F189: 10.87489605 | G189: 0 | H189: 0
B190: 2020-06-20 | C190: 7.517842293 | D190: 14.28983021 | E190: 41.66718292 | F190: 10.87489605 | G190: 0 | H190: 0
B191: 2020-06-21 | C191: 7.517842293 | D191: 14.28983021 | E191: 41.66718292 | F191: 10.87489605 | G191: 0 | H191: 0
B192: 2020-06-22 | C192: 7.517842293 | D192: 14.28983021 | E192: 41.66718292 | F192: 10.87489605 | G192: 0 | H192: 0
B193: 2020-06-23 | C193: 16.07018661 | D193: 41.79351044 | E193: 34.43571091 | F193: 17.34476471 | G193: 0 | H193: 0
B194: 2020-06-24 | C194: 16.07018661 | D194: 41.79351044 | E194: 34.43571091 | F194: 17.34476471 | G194: 0 | H194: 0
B195: 2020-06-25 | C195: 16.07018661 | D195: 41.79351044 | E195: 34.43571091 | F195: 17.34476471 | G195: 0 | H195: 0
B196: 2020-06-26 | C196: 8.200366974 | D196: 15.62036037 | E196: 37.41659546 | F196: 14.05520535 | G196: 0 | H196: 0
B197: 2020-06-27 | C197: 8.200366974 | D197: 15.62036037 | E197: 37.41659546 | F197: 14.05520535 | G197: 0 | H197: 0
B198: 2020-06-28 | C198: 8.200366974 | D198: 15.62036037 | E198: 37.41659546 | F198: 14.05520535 | G198: 0 | H198: 0
B199: 2020-06-29 | C199: 8.200366974 | D199: 15.62036037 | E199: 37.41659546 | F199: 14.05520535 | G199: 0 | H199: 0
B200: 2020-06-30 | C200: 8.200366974 | D200: 12.49005032 | E200: 36.83690643 | F200: 11.04083347 | G200: 0 | H200: 0
B201: 2020-07-01 | C201: 8.200366974 | D201: 12.49005032 | E201: 36.83690643 | F201: 11.04083347 | G201: 0 | H201: 0
B202: 2020-07-02 | C202: 9.644810677 | D202: 18.19014549 | E202: 19.11396599 | F202: 10.22219753 | G202: 0 | H202: 0
B203: 2020-07-03 | C203: 9.644810677 | D203: 18.19014549 | E203: 19.11396599 | F203: 10.22219753 | G203: 0 | H203: 0
B204: 2020-07-04 | C204: 9.644810677 | D204: 18.19014549 | E204: 19.11396599 | F204: 10.22219753 | G204: 0 | H204: 0
B205: 2020-07-05 | C205: 9.644810677 | D205: 18.19014549 | E205: 19.11396599 | F205: 10.22219753 | G205: 0 | H205: 0
B206: 2020-07-06 | C206: 9.644810677 | D206: 18.19014549 | E206: 19.11396599 | F206: 10.22219753 | G206: 0 | H206: 0
B207: 2020-07-07 | C207: 12.85522747 | D207: 11.98852825 | E207: 29.03361702 | F207: 14.01082706 | G207: 0 | H207: 0
B208: 2020-07-08 | C208: 12.85522747 | D208: 11.98852825 | E208: 29.03361702 | F208: 14.01082706 | G208: 0 | H208: 0
B209: 2020-07-09 | C209: 12.85522747 | D209: 11.98852825 | E209: 29.03361702 | F209: 14.01082706 | G209: 0 | H209: 0
... 1334 more rows

Sheet Daily Data
AB10: Load | AC10: Load
B11: =COUNTIF((C13:C10000),">0") -> 1525 | C11: TP | D11: TP | E11: TP | F11: TP | G11: TP | H11: TP | I11: TP | J11: TP | L11: Flow | M11: Flow | N11: Flow | O11: Flow | P11: Flow | Q11: Flow | S11: Load | T11: Load | U11: Load | V11: Load | W11: Load | X11: Load | Y11: Load | Z11: Load | AB11: with credit | AC11: no credit
B12: Date | C12: Spring | D12: Creek | E12: After Filter | F12: Discharge | G12: After Clarifier | H12: Backwash | I12: Service | J12: Waste | L12: Spring | M12: Creek | N12: After Filter | O12: Discharge | P12: Backwash | Q12: Waste | S12: Spring | T12: Creek | U12: After Filter | V12: Discharge | W12: After Clarifier | X12: Backwash | Y12: Service | Z12: Waste | AB12: Discharge | AC12: Discharge
B13: 2020-01-01 | C13: 7.913247108 | D13: 19.42670822 | E13: 13.90494633 | F13: 14.60985184 | G13: 58.59077835 | H13: 1267.983276 | I13: 4.1 | J13: 4.1 | L13: 2.265347897 | M13: 3.6205632 | N13: 5.885911097 | O13: 6.604341134 | P13: 0.05283019795 | Q13: 0.665599839 | S13: =0.00834534*C13*L13 -> 0.1496007154 | T13: 0.5869747038 | U13: 0.6830099807 | V13: 0.8052288833 | W13: 0.0258318518 | X13: =0.00834534*H13*P13 -> 0.5590360293 | Y13: =0.00834534*I13*P13 -> 0.001807632453 | Z13: 0.02277409354 | AB13: =V13-S13-T13-Y13-Z13 -> 0.04407173817 | AC13: =IF(V13-S13-T13-Y13-Z13<0,0,V13-S13-T13-Y13-Z13) -> 0.04407173817
B14: =B13+1 -> 2020-01-02 | C14: 7.913247108 | D14: 19.42670822 | E14: 13.90494633 | F14: 14.60985184 | G14: 58.59077835 | H14: 1267.983276 | I14: 4.1 | J14: 4.1 | L14: 2.268574343 | M14: 3.6205632 | N14: 5.889137543 | O14: 6.60824599 | P14: 0.05214913959 | Q14: 0.6669593072 | S14: 0.1498137858 | T14: 0.5869747038 | U14: 0.6833843824 | V14: 0.8057049797 | W14: 0.02549884153 | X14: 0.551829239 | Y14: 0.001784329432 | Z14: 0.02282060896 | AB14: =V14-S14-T14-Y14-Z14 -> 0.04431155174 | AC14: 0.04431155174
B15: 2020-01-03 | C15: 8.148215294 | D15: 17.54695892 | E15: 13.08255577 | F15: 13.78746223 | G15: 92.07379913 | H15: 1488.266235 | I15: 4.1 | J15: 4.1 | L15: 2.261124392 | M15: 3.6205632 | N15: 5.881687592 | O15: 6.596135682 | P15: 0.04578859361 | Q15: 0.6686594963 | S15: =0.00834534*C15*L15 -> 0.1537556153 | T15: =0.00834534*D15*M15 -> 0.5301783966 | U15: =0.00834534*E15*N15 -> 0.6421530993 | V15: =0.00834534*F15*O15 -> 0.758958364 | W15: =0.00834534*G15*P15 -> 0.03518336735 | X15: =0.00834534*H15*P15 -> 0.5686983503 | Y15: =0.00834534*I15*P15 -> 0.001566697665 | Z15: =0.00834534*J15*Q15 -> 0.02287878245 | AB15: =V15-S15-T15-Y15-Z15 -> 0.05057887199 | AC15: =IF(V15-S15-T15-Y15-Z15<0,0,V15-S15-T15-Y15-Z15) -> 0.05057887199
B16: 2020-01-04 | C16: 8.148215294 | D16: 17.54695892 | E16: 13.08255577 | F16: 13.78746223 | G16: 92.07379913 | H16: 1488.266235 | I16: 4.1 | J16: 4.1 | L16: 2.25450627 | M16: 3.6205632 | N16: 5.87506947 | O16: 6.584757699 | P16: 0.04161031433 | Q16: 0.6680779148 | S16: 0.1533055855 | T16: 0.5301783966 | U16: 0.6414305435 | V16: 0.7576492013 | W16: 0.0319728312 | X16: 0.516803755 | Y16: 0.001423734104 | Z16: 0.02285888312 | AB16: 0.04988260198 | AC16: 0.04988260198
B17: 2020-01-05 | C17: 8.148215294 | D17: 17.54695892 | E17: 13.08255577 | F17: 13.78746223 | G17: 92.07379913 | H17: 1488.266235 | I17: 4.1 | J17: 4.1 | L17: 2.25450627 | M17: 3.6205632 | N17: 5.87506947 | O17: 6.584757699 | P17: 0.04161031433 | Q17: 0.6680779148 | S17: 0.1533055855 | T17: 0.5301783966 | U17: 0.6414305435 | V17: 0.7576492013 | W17: 0.0319728312 | X17: 0.516803755 | Y17: 0.001423734104 | Z17: 0.02285888312 | AB17: 0.04988260198 | AC17: 0.04988260198
B18: 2020-01-06 | C18: 8.148215294 | D18: 17.54695892 | E18: 13.08255577 | F18: 13.78746223 | G18: 92.07379913 | H18: 1488.266235 | I18: 4.1 | J18: 4.1 | L18: 2.251386716 | M18: 3.6205632 | N18: 5.871949916 | O18: 6.565793752 | P18: 0.04413625605 | Q18: 0.6497075793 | S18: 0.153093457 | T18: 0.5301783966 | U18: 0.6410899557 | V18: 0.7554671894 | W18: 0.03391373239 | X18: 0.5481761729 | Y18: 0.001510161459 | Z18: 0.02223032566 | AB18: 0.04845484865 | AC18: 0.04845484865
B19: 2020-01-07 | C19: 8.460295677 | D19: 13.85092735 | E19: 10.15951633 | F19: 10.21811008 | G19: 29.22529411 | H19: 1941.734009 | I19: 4.1 | J19: 4.1 | L19: 2.251601436 | M19: 3.6205632 | N19: 5.872164636 | O19: 6.568994728 | P19: 0.04565213032 | Q19: 0.651177961 | S19: 0.1589721667 | T19: 0.4185034277 | U19: 0.4978692358 | V19: 0.5601618473 | W19: 0.01113432705 | X19: 0.7397667726 | Y19: 0.001562028452 | Z19: 0.02228063609 | AB19: -0.04115641169 | AC19: 0
B20: 2020-01-08 | C20: 8.460295677 | D20: 13.85092735 | E20: 10.15951633 | F20: 10.21811008 | G20: 29.22529411 | H20: 1941.734009 | I20: 4.1 | J20: 4.1 | L20: 2.254739034 | M20: 3.6205632 | N20: 5.875302234 | O20: 6.667007613 | P20: 0.1475869381 | Q20: 0.6441184404 | S20: 0.1591936938 | T20: 0.4185034277 | U20: 0.4981352559 | V20: 0.5685197591 | W20: 0.03599571862 | X20: 2.39156228 | Y20: 0.005049819029 | Z20: 0.02203908828 | AB20: -0.03626626972 | AC20: 0
B21: 2020-01-09 | C21: 8.460295677 | D21: 13.85092735 | E21: 10.15951633 | F21: 10.21811008 | G21: 29.22529411 | H21: 1941.734009 | I21: 4.1 | J21: 4.1 | L21: 2.255001483 | M21: 3.6205632 | N21: 5.875564683 | O21: 6.626339447 | P21: 0.1206260547 | Q21: 0.6301487096 | S21: 0.1592122237 | T21: 0.4185034277 | U21: 0.4981575074 | V21: 0.5650518381 | W21: 0.02942009355 | X21: 1.95467652 | Y21: 0.004127328303 | Z21: 0.02156110145 | AB21: -0.0383522431 | AC21: 0
B22: 2020-01-10 | C22: 9.632172585 | D22: 15.78452301 | E22: 12.21030045 | F22: 11.50717449 | G22: 50.78781891 | H22: 4162.439453 | I22: 4.1 | J22: 4.1 | L22: 2.323587887 | M22: 3.6205632 | N22: 5.944151087 | O22: 6.639038166 | P22: 0.05019983094 | Q22: 0.6446872488 | S22: 0.1867787198 | T22: 0.4769266935 | U22: 0.6057036978 | V22: 0.6375553568 | W22: 0.0212767775 | X22: 1.743790145 | Y22: 0.001717632094 | Z22: 0.02205855057 | AB22: -0.04992623913 | AC22: 0
B23: 2020-01-11 | C23: 9.632172585 | D23: 15.78452301 | E23: 12.21030045 | F23: 11.50717449 | G23: 50.78781891 | H23: 4162.439453 | I23: 4.1 | J23: 4.1 | L23: 2.379394792 | M23: 3.6205632 | N23: 5.999957992 | O23: 6.701424103 | P23: 0.04990723452 | Q23: 0.6515588757 | S23: 0.1912646884 | T23: 0.4769266935 | U23: 0.6113903718 | V23: 0.6435463584 | W23: 0.02115276296 | X23: 1.733626231 | Y23: 0.001707620646 | Z23: 0.02229366943 | AB23: -0.04864631365 | AC23: 0
B24: 2020-01-12 | C24: 9.632172585 | D24: 15.78452301 | E24: 12.21030045 | F24: 11.50717449 | G24: 50.78781891 | H24: 4162.439453 | I24: 4.1 | J24: 4.1 | L24: 2.379394792 | M24: 3.6205632 | N24: 5.999957992 | O24: 6.701424103 | P24: 0.04990723452 | Q24: 0.6515588757 | S24: 0.1912646884 | T24: 0.4769266935 | U24: 0.6113903718 | V24: 0.6435463584 | W24: 0.02115276296 | X24: 1.733626231 | Y24: 0.001707620646 | Z24: 0.02229366943 | AB24: -0.04864631365 | AC24: 0
B25: 2020-01-13 | C25: 9.632172585 | D25: 15.78452301 | E25: 12.21030045 | F25: 11.50717449 | G25: 50.78781891 | H25: 4162.439453 | I25: 4.1 | J25: 4.1 | L25: 2.340019533 | M25: 3.6205632 | N25: 5.960582733 | O25: 6.65229433 | P25: 0.04796708495 | Q25: 0.6437445115 | S25: 0.1880995572 | T25: 0.4769266935 | U25: 0.607378068 | V25: 0.6388283632 | W25: 0.02033044683 | X25: 1.666231309 | Y25: 0.001641236694 | Z25: 0.02202629397 | AB25: -0.04986541821 | AC25: 0
B26: 2020-01-14 | C26: 8.050139427 | D26: 14.1438961 | E26: 12.5032692 | F26: 10.80404854 | G26: 28.40497971 | H26: 1609.539551 | I26: 4.1 | J26: 4.1 | L26: 2.321980027 | M26: 3.6205632 | N26: 5.942543227 | O26: 6.627564752 | P26: 0.04933513907 | Q26: 0.6356863864 | S26: 0.1559932898 | T26: 0.427355429 | U26: 0.6200689239 | V26: 0.597564159 | W26: 0.01169485591 | X26: 0.6626772248 | Y26: 0.001688045889 | Z26: 0.02175057801 | AB26: -0.009223183639 | AC26: 0
B27: 2020-01-15 | C27: 8.050139427 | D27: 14.1438961 | E27: 12.5032692 | F27: 10.80404854 | G27: 28.40497971 | H27: 1609.539551 | I27: 4.1 | J27: 4.1 | L27: 2.327593502 | M27: 3.6205632 | N27: 5.948156702 | O27: 6.633753605 | P27: 0.05105727178 | Q27: 0.6345396313 | S27: 0.1563704095 | T27: 0.427355429 | U27: 0.6206546565 | V27: 0.5981221674 | W27: 0.01210308611 | X27: 0.685809178 | Y27: 0.001746970199 | Z27: 0.02171134076 | AB27: -0.00906198205 | AC27: 0
B28: 2020-01-16 | C28: 8.050139427 | D28: 14.1438961 | E28: 12.5032692 | F28: 10.80404854 | G28: 28.40497971 | H28: 1609.539551 | I28: 4.1 | J28: 4.1 | L28: 2.298207498 | M28: 3.6205632 | N28: 5.918770698 | O28: 6.615182086 | P28: 0.07343885699 | Q28: 0.6229725309 | S28: 0.1543962239 | T28: 0.427355429 | U28: 0.6175884023 | V28: 0.596447695 | W28: 0.01740862328 | X28: 0.9864420951 | Y28: 0.002512776146 | Z28: 0.02131556208 | AB28: -0.009132296149 | AC28: 0
B29: 2020-01-17 | C29: 8.811859131 | D29: 13.6165514 | E29: 13.08920765 | F29: 11.97592449 | G29: 40.00655365 | H29: 1284.343872 | I29: 4.1 | J29: 4.1 | L29: 2.294793599 | M29: 3.6205632 | N29: 5.915356799 | O29: 6.598581244 | P29: 0.0669080888 | Q29: 0.6163163565 | S29: 0.168754441 | T29: 0.4114217979 | U29: 0.646157423 | V29: 0.6594830723 | W29: 0.02233848936 | X29: 0.7171400509 | Y29: 0.002289320074 | Z29: 0.02108781512 | AB29: 0.05592969819 | AC29: 0.05592969819
B30: 2020-01-18 | C30: 8.811859131 | D30: 13.6165514 | E30: 13.08920765 | F30: 11.97592449 | G30: 40.00655365 | H30: 1284.343872 | I30: 4.1 | J30: 4.1 | L30: 2.308437134 | M30: 3.6205632 | N30: 5.929000334 | O30: 6.595482826 | P30: 0.04904612049 | Q30: 0.6174363714 | S30: 0.1697577587 | T30: 0.4114217979 | U30: 0.6476477594 | V30: 0.6591734066 | W30: 0.0163749445 | X30: 0.5256903607 | Y30: 0.00167815686 | Z30: 0.02112613744 | AB30: 0.05518955562 | AC30: 0.05518955562
B31: 2020-01-19 | C31: 8.811859131 | D31: 13.6165514 | E31: 13.08920765 | F31: 11.97592449 | G31: 40.00655365 | H31: 1284.343872 | I31: 4.1 | J31: 4.1 | L31: 2.308437134 | M31: 3.6205632 | N31: 5.929000334 | O31: 6.595482826 | P31: 0.04904612049 | Q31: 0.6174363714 | S31: 0.1697577587 | T31: 0.4114217979 | U31: 0.6476477594 | V31: 0.6591734066 | W31: 0.0163749445 | X31: 0.5256903607 | Y31: 0.00167815686 | Z31: 0.02112613744 | AB31: 0.05518955562 | AC31: 0.05518955562
B32: 2020-01-20 | C32: 8.811859131 | D32: 13.6165514 | E32: 13.08920765 | F32: 11.97592449 | G32: 40.00655365 | H32: 1284.343872 | I32: 4.1 | J32: 4.1 | L32: 2.308437134 | M32: 3.6205632 | N32: 5.929000334 | O32: 6.595482826 | P32: 0.04904612049 | Q32: 0.6174363714 | S32: 0.1697577587 | T32: 0.4114217979 | U32: 0.6476477594 | V32: 0.6591734066 | W32: 0.0163749445 | X32: 0.5256903607 | Y32: 0.00167815686 | Z32: 0.02112613744 | AB32: 0.05518955562 | AC32: 0.05518955562
B33: 2020-01-21 | C33: 8.356769562 | D33: 13.27625561 | E33: 12.16351414 | F33: 10.75794697 | G33: 29.71503639 | H33: 1990.317017 | I33: 4.1 | J33: 4.1 | L33: 2.314074607 | M33: 3.6205632 | N33: 5.934637807 | O33: 6.581635189 | P33: 0.04804812006 | Q33: 0.5989492621 | S33: 0.1613837558 | T33: 0.4011398181 | U33: 0.6024171377 | V33: 0.5908908167 | W33: 0.01191507284 | X33: 0.7980731342 | Y33: 0.001644009383 | Z33: 0.02049358446 | AB33: 0.006229648884 | AC33: 0.006229648884
B34: 2020-01-22 | C34: 8.356769562 | D34: 13.27625561 | E34: 12.16351414 | F34: 10.75794697 | G34: 29.71503639 | H34: 1990.317017 | I34: 4.1 | J34: 4.1 | L34: 2.315466321 | M34: 3.6205632 | N34: 5.936029521 | O34: 6.575406615 | P34: 0.04933007199 | Q34: 0.5900470216 | S34: 0.1614808141 | T34: 0.4011398181 | U34: 0.6025584088 | V34: 0.5903316232 | W34: 0.01223297395 | X34: 0.8193661919 | Y34: 0.001687872514 | Z34: 0.02018898635 | AB34: 0.005834132146 | AC34: 0.005834132146
B35: 2020-01-23 | C35: 8.356769562 | D35: 13.27625561 | E35: 12.16351414 | F35: 10.75794697 | G35: 29.71503639 | H35: 1990.317017 | I35: 4.1 | J35: 4.1 | L35: 2.344086953 | M35: 3.6205632 | N35: 5.964650153 | O35: 6.600313325 | P35: 0.05281309254 | Q35: 0.5828500796 | S35: 0.1634768194 | T35: 0.4011398181 | U35: 0.6054636508 | V35: 0.5925677159 | W35: 0.01309670063 | X35: 0.8772187182 | Y35: 0.001807047176 | Z35: 0.01994273654 | AB35: 0.006201294751 | AC35: 0.006201294751
B36: 2020-01-24 | C36: 8.070871353 | D36: 20.72081947 | E36: 15.39144325 | F36: 13.16598988 | G36: 51.04623032 | H36: 1648.040771 | I36: 4.1 | J36: 4.1 | L36: 2.360558902 | M36: 3.85244928 | N36: 6.213008182 | O36: 6.903869667 | P36: 0.02947935834 | Q36: 0.6613821261 | S36: 0.1589934751 | T36: 0.6661743269 | U36: 0.7980411873 | V36: 0.7585603458 | W36: 0.01255815205 | X36: 0.4054431926 | Y36: 0.0010086626 | Z36: 0.02262978072 | AB36: -0.0902458995 | AC36: 0
B37: 2020-01-25 | C37: 8.070871353 | D37: 20.72081947 | E37: 15.39144325 | F37: 13.16598988 | G37: 51.04623032 | H37: 1648.040771 | I37: 4.1 | J37: 4.1 | L37: 2.357453515 | M37: 4.08433536 | N37: 6.441788875 | O37: 7.183326143 | P37: 0.01220515175 | Q37: 0.7293321168 | S37: 0.1587843143 | T37: 0.7062725974 | U37: 0.8274273414 | V37: 0.7892655317 | W37: 0.005199372039 | X37: 0.1678630734 | Y37: 0.0004176101786 | Z37: 0.0249547504 | AB37: -0.1011637405 | AC37: 0
B38: 2020-01-26 | C38: 8.070871353 | D38: 20.72081947 | E38: 15.39144325 | F38: 13.16598988 | G38: 51.04623032 | H38: 1648.040771 | I38: 4.1 | J38: 4.1 | L38: 2.357453515 | M38: 4.08433536 | N38: 6.441788875 | O38: 7.183326143 | P38: 0.01220515175 | Q38: 0.7293321168 | S38: 0.1587843143 | T38: 0.7062725974 | U38: 0.8274273414 | V38: 0.7892655317 | W38: 0.005199372039 | X38: 0.1678630734 | Y38: 0.0004176101786 | Z38: 0.0249547504 | AB38: -0.1011637405 | AC38: 0
B39: 2020-01-27 | C39: 8.070871353 | D39: 20.72081947 | E39: 15.39144325 | F39: 13.16598988 | G39: 51.04623032 | H39: 1648.040771 | I39: 4.1 | J39: 4.1 | L39: 2.357453515 | M39: 4.08433536 | N39: 6.441788875 | O39: 7.183326143 | P39: 0.01220515175 | Q39: 0.7293321168 | S39: 0.1587843143 | T39: 0.7062725974 | U39: 0.8274273414 | V39: 0.7892655317 | W39: 0.005199372039 | X39: 0.1678630734 | Y39: 0.0004176101786 | Z39: 0.0249547504 | AB39: -0.1011637405 | AC39: 0
B40: 2020-01-28 | C40: 9.007905006 | D40: 17.85115623 | E40: 14.33728123 | F40: 13.40024757 | G40: 38.8647995 | H40: 1416.710693 | I40: 4.1 | J40: 4.1 | L40: 2.350815488 | M40: 4.08433536 | N40: 6.435150848 | O40: 7.159521232 | P40: 0.03883202744 | Q40: 0.6855383568 | S40: 0.1767202739 | T40: 0.6084596459 | U40: 0.7699624946 | V40: 0.8006465537 | W40: 0.01259477845 | X40: 0.459108436 | Y40: 0.001328672535 | Z40: 0.02345630775 | AB40: -0.009318346425 | AC40: 0
B41: 2020-01-29 | C41: 9.007905006 | D41: 17.85115623 | E41: 14.33728123 | F41: 13.40024757 | G41: 38.8647995 | H41: 1416.710693 | I41: 4.1 | J41: 4.1 | L41: 2.345399594 | M41: 4.08433536 | N41: 6.429734954 | O41: 7.137603543 | P41: 0.05938649013 | Q41: 0.6484820983 | S41: 0.1763131394 | T41: 0.6084596459 | U41: 0.7693144857 | V41: 0.7981955068 | W41: 0.01926141218 | X41: 0.7021224593 | Y41: 0.002031961851 | Z41: 0.02218839473 | AB41: -0.0107976351 | AC41: 0
B42: 2020-01-30 | C42: 9.007905006 | D42: 17.85115623 | E42: 14.33728123 | F42: 13.40024757 | G42: 38.8647995 | H42: 1416.710693 | I42: 4.1 | J42: 4.1 | L42: 2.349212466 | M42: 4.08433536 | N42: 6.433547826 | O42: 7.118014376 | P42: 0.06047225929 | Q42: 0.6239942907 | S42: 0.1765997683 | T42: 0.6084596459 | U42: 0.7697706939 | V42: 0.7960048577 | W42: 0.01961357051 | X42: 0.7149594347 | Y42: 0.002069112414 | Z42: 0.02135052251 | AB42: -0.01247419147 | AC42: 0
B43: 2020-01-31 | C43: 8.071027756 | D43: 19.78228951 | E43: 21.07052803 | F43: 14.33655262 | G43: 50.45605087 | H43: 2455.949951 | I43: 4.1 | J43: 4.1 | L43: 2.350259691 | M43: 4.08433536 | N43: 6.434595051 | O43: 7.096429695 | P43: 0.06124799266 | Q43: 0.6005866518 | S43: 0.1583028479 | T43: 0.6742826464 | U43: 1.131463829 | V43: 0.8490410195 | W43: 0.02578986986 | X43: 1.255322772 | Y43: 0.002095654825 | Z43: 0.02054960922 | AB43: -0.006189738912 | AC43: 0
B44: 2020-02-01 | C44: 8.071027756 | D44: 19.78228951 | E44: 21.07052803 | F44: 14.33655262 | G44: 50.45605087 | H44: 2455.949951 | I44: 4.1 | J44: 4.1 | L44: 2.34791464 | M44: 4.08433536 | N44: 6.43225 | O44: 7.088551404 | P44: 0.06132095194 | Q44: 0.5949804522 | S44: 0.1581448959 | T44: 0.6742826464 | U44: 1.131051474 | V44: 0.8480984339 | W44: 0.02582059104 | X44: 1.256818126 | Y44: 0.002098151191 | Z44: 0.02035778808 | AB44: -0.006785047715 | AC44: 0
B45: 2020-02-02 | C45: 8.071027756 | D45: 19.78228951 | E45: 21.07052803 | F45: 14.33655262 | G45: 50.45605087 | H45: 2455.949951 | I45: 4.1 | J45: 4.1 | L45: 2.34791464 | M45: 4.08433536 | N45: 6.43225 | O45: 7.088551404 | P45: 0.06132095194 | Q45: 0.5949804522 | S45: 0.1581448959 | T45: 0.6742826464 | U45: 1.131051474 | V45: 0.8480984339 | W45: 0.02582059104 | X45: 1.256818126 | Y45: 0.002098151191 | Z45: 0.02035778808 | AB45: -0.006785047715 | AC45: 0
B46: 2020-02-03 | C46: 8.071027756 | D46: 19.78228951 | E46: 21.07052803 | F46: 14.33655262 | G46: 50.45605087 | H46: 2455.949951 | I46: 4.1 | J46: 4.1 | L46: 2.299229303 | M46: 4.08433536 | N46: 6.383564663 | O46: 7.021873305 | P46: 0.06017656518 | Q46: 0.5781320773 | S46: 0.1548656721 | T46: 0.6742826464 | U46: 1.122490609 | V46: 0.840120839 | W46: 0.02533872079 | X46: 1.233363075 | Y46: 0.002058994975 | Z46: 0.01978130587 | AB46: -0.01086778035 | AC46: 0
B47: 2020-02-04 | C47: 7.777107239 | D47: 17.4976902 | E47: 15.6824007 | F47: 13.45720673 | G47: 32.06749344 | H47: 1560.009888 | I47: 4.1 | J47: 4.1 | L47: 1.704575195 | M47: 4.06436127 | N47: 5.768936465 | O47: 6.071721389 | P47: 0.05807352092 | Q47: 0.2447114038 | S47: 0.1106313691 | T47: 0.593494997 | U47: 0.755009363 | V47: 0.6818844616 | W47: 0.01554129511 | X47: 0.7560483042 | Y47: 0.001987037436 | Z47: 0.008373019451 | AB47: -0.03260196134 | AC47: 0
B48: 2020-02-05 | C48: 7.777107239 | D48: 17.4976902 | E48: 15.6824007 | F48: 13.45720673 | G48: 32.06749344 | H48: 1560.009888 | I48: 4.1 | J48: 4.1 | L48: 1.328010607 | M48: 4.8287376 | N48: 6.156748207 | O48: 6.646537789 | P48: 0.05149624071 | Q48: 0.4382933412 | S48: 0.0861913467 | T48: 0.7051124192 | U48: 0.8057642116 | V48: 0.7464391976 | W48: 0.01378112195 | X48: 0.6704199236 | Y48: 0.001761989913 | Z48: 0.0149965985 | AB48: -0.06162315672 | AC48: 0
B49: 2020-02-06 | C49: 7.777107239 | D49: 17.4976902 | E49: 15.6824007 | F49: 13.45720673 | G49: 32.06749344 | H49: 1560.009888 | I49: 4.1 | J49: 4.1 | L49: 1.344359196 | M49: 4.8287376 | N49: 6.173096796 | O49: 6.888143575 | P49: 0.04884019342 | Q49: 0.6662065856 | S49: 0.08725241272 | T49: 0.7051124192 | U49: 0.8079038326 | V49: 0.7735727271 | W49: 0.01307032615 | X49: 0.6358413409 | Y49: 0.001671110881 | Z49: 0.02279485392 | AB49: -0.04325806959 | AC49: 0
B50: 2020-02-07 | C50: 7.07441473 | D50: 13.57432175 | E50: 14.39413071 | F50: 12.40316772 | G50: 43.07634735 | H50: 1978.697632 | I50: 4.1 | J50: 4.1 | L50: 1.341573367 | M50: 4.8287376 | N50: 6.170310967 | O50: 6.886300765 | P50: 0.04761204762 | Q50: 0.6683777508 | S50: 0.07920434001 | T50: 0.5470106475 | U50: 0.7412019086 | V50: 0.7127917077 | W50: 0.01711590096 | X50: 0.7862131952 | Y50: 0.001629088775 | Z50: 0.02286914227 | AB50: 0.06207848917 | AC50: 0.06207848917
B51: 2020-02-08 | C51: 7.07441473 | D51: 13.57432175 | E51: 14.39413071 | F51: 12.40316772 | G51: 43.07634735 | H51: 1978.697632 | I51: 4.1 | J51: 4.1 | L51: 1.338245956 | M51: 4.8287376 | N51: 6.166983556 | O51: 6.884582582 | P51: 0.04610506371 | Q51: 0.6714939621 | S51: 0.079007895 | T51: 0.5470106475 | U51: 0.740802207 | V51: 0.7126138608 | W51: 0.01657416019 | X51: 0.7613285139 | Y51: 0.001577525973 | Z51: 0.02297576623 | AB51: 0.06204202616 | AC51: 0.06204202616
B52: 2020-02-09 | C52: 7.07441473 | D52: 13.57432175 | E52: 14.39413071 | F52: 12.40316772 | G52: 43.07634735 | H52: 1978.697632 | I52: 4.1 | J52: 4.1 | L52: 1.338245956 | M52: 4.8287376 | N52: 6.166983556 | O52: 6.884582582 | P52: 0.04610506371 | Q52: 0.6714939621 | S52: 0.079007895 | T52: 0.5470106475 | U52: 0.740802207 | V52: 0.7126138608 | W52: 0.01657416019 | X52: 0.7613285139 | Y52: 0.001577525973 | Z52: 0.02297576623 | AB52: 0.06204202616 | AC52: 0.06204202616
B53: 2020-02-10 | C53: 7.07441473 | D53: 13.57432175 | E53: 14.39413071 | F53: 12.40316772 | G53: 43.07634735 | H53: 1978.697632 | I53: 4.1 | J53: 4.1 | L53: 1.335185169 | M53: 4.8287376 | N53: 6.163922769 | O53: 6.881110522 | P53: 0.04569379073 | Q53: 0.6714939621 | S53: 0.07882719107 | T53: 0.5470106475 | U53: 0.7404345333 | V53: 0.7122544726 | W53: 0.01642631299 | X53: 0.7545372024 | Y53: 0.0015634539 | Z53: 0.02297576623 | AB53: 0.06187741395 | AC53: 0.06187741395
B54: 2020-02-11 | C54: 8.187011719 | D54: 14.80403423 | E54: 14.80403423 | F54: 12.93018723 | G54: 35.69807053 | H54: 2034.327515 | I54: 4.1 | J54: 4.1 | L54: 1.330269928 | M54: 4.8287376 | N54: 6.159007528 | O54: 6.877115128 | P54: 0.04564952822 | Q54: 0.6724580719 | S54: 0.09088855957 | T54: 0.5965649336 | U54: 0.7609127315 | V54: 0.7420875462 | W54: 0.01359956671 | X54: 0.7749991062 | Y54: 0.001561939419 | Z54: 0.02300875411 | AB54: 0.03006335958 | AC54: 0.03006335958
B55: 2020-02-12 | C55: 8.187011719 | D55: 14.80403423 | E55: 14.80403423 | F55: 12.93018723 | G55: 35.69807053 | H55: 2034.327515 | I55: 4.1 | J55: 4.1 | L55: 1.329992418 | M55: 4.8287376 | N55: 6.158730018 | O55: 6.87112872 | P55: 0.05099783149 | Q55: 0.6614008703 | S55: 0.09086959915 | T55: 0.5965649336 | U55: 0.7608784466 | V55: 0.741441572 | W55: 0.0151928933 | X55: 0.8657980788 | Y55: 0.001744936397 | Z55: 0.02263042207 | AB55: 0.02963168085 | AC55: 0.02963168085
B56: 2020-02-13 | C56: 8.187011719 | D56: 14.80403423 | E56: 14.80403423 | F56: 12.93018723 | G56: 35.69807053 | H56: 2034.327515 | I56: 4.1 | J56: 4.1 | L56: 1.325583352 | M56: 4.8287376 | N56: 6.154320952 | O56: 6.851788506 | P56: 0.04347230458 | Q56: 0.6539952495 | S56: 0.09056835681 | T56: 0.5965649336 | U56: 0.7603337299 | V56: 0.7393546313 | W56: 0.0129509445 | X56: 0.7380360436 | Y56: 0.001487443766 | Z56: 0.02237703214 | AB56: 0.02835686506 | AC56: 0.02835686506
B57: 2020-02-14 | C57: 8.352165222 | D57: 11.92590904 | E57: 16.2026844 | F57: 14.21076202 | G57: 114.9634781 | H57: 2438.823975 | I57: 4.1 | J57: 4.1 | L57: 1.316735528 | M57: 4.8287376 | N57: 6.145473128 | O57: 6.849510406 | P57: 0.04276683359 | Q57: 0.661270444 | S57: 0.09177865013 | T57: 0.4805838073 | U57: 0.8309718884 | V57: 0.8123083763 | W57: 0.0410308984 | X57: 0.8704254637 | Y57: 0.001463305445 | Z57: 0.02262595942 | AB57: 0.215856654 | AC57: 0.215856654
B58: 2020-02-15 | C58: 8.352165222 | D58: 11.92590904 | E58: 16.2026844 | F58: 14.21076202 | G58: 114.9634781 | H58: 2438.823975 | I58: 4.1 | J58: 4.1 | L58: 1.313503852 | M58: 4.8287376 | N58: 6.142241452 | O58: 6.853993652 | P58: 0.04540284663 | Q58: 0.6663493533 | S58: 0.09155339696 | T58: 0.4805838073 | U58: 0.8305349112 | V58: 0.8128400609 | W58: 0.04355991385 | X58: 0.92407575 | Y58: 0.001553498987 | Z58: 0.02279973884 | AB58: 0.2163496187 | AC58: 0.2163496187
B59: 2020-02-16 | C59: 8.352165222 | D59: 11.92590904 | E59: 16.2026844 | F59: 14.21076202 | G59: 114.9634781 | H59: 2438.823975 | I59: 4.1 | J59: 4.1 | L59: 1.313503852 | M59: 4.8287376 | N59: 6.142241452 | O59: 6.853993652 | P59: 0.04540284663 | Q59: 0.6663493533 | S59: 0.09155339696 | T59: 0.4805838073 | U59: 0.8305349112 | V59: 0.8128400609 | W59: 0.04355991385 | X59: 0.92407575 | Y59: 0.001553498987 | Z59: 0.02279973884 | AB59: 0.2163496187 | AC59: 0.2163496187
B60: 2020-02-17 | C60: 8.352165222 | D60: 11.92590904 | E60: 16.2026844 | F60: 14.21076202 | G60: 114.9634781 | H60: 2438.823975 | I60: 4.1 | J60: 4.1 | L60: 1.313503852 | M60: 4.8287376 | N60: 6.142241452 | O60: 6.853993652 | P60: 0.04540284663 | Q60: 0.6663493533 | S60: 0.09155339696 | T60: 0.4805838073 | U60: 0.8305349112 | V60: 0.8128400609 | W60: 0.04355991385 | X60: 0.92407575 | Y60: 0.001553498987 | Z60: 0.02279973884 | AB60: 0.2163496187 | AC60: 0.2163496187
B61: 2020-02-18 | C61: 8.352165222 | D61: 11.92590904 | E61: 16.2026844 | F61: 14.21076202 | G61: 114.9634781 | H61: 2438.823975 | I61: 4.1 | J61: 4.1 | L61: 1.31292342 | M61: 4.8287376 | N61: 6.14166102 | O61: 8.402776135 | P61: 0.04517831587 | Q61: 2.2159368 | S61: 0.09151293987 | T61: 0.4805838073 | U61: 0.8304564269 | V61: 0.9965158143 | W61: 0.04334449696 | X61: 0.9195059171 | Y61: 0.001545816467 | Z61: 0.07582025865 | AB61: 0.347052992 | AC61: 0.347052992
B62: 2020-02-19 | C62: 9.348127365 | D62: 12.1016674 | E62: 15.14813709 | F62: 13.74207401 | G62: 56.54278564 | H62: 2781.336426 | I62: 4.1 | J62: 4.1 | L62: 1.316486876 | M62: 4.8287376 | N62: 6.145224476 | O62: 7.598168074 | P62: 0.0443743915 | Q62: 1.408569206 | S62: 0.1027034872 | T62: 0.4876664224 | U62: 0.7768568753 | V62: 0.8713752381 | W62: 0.02093888957 | X62: 1.029982793 | Y62: 0.001518309476 | Z62: 0.04819545466 | AB62: 0.2312915644 | AC62: 0.2312915644
B63: 2020-02-20 | C63: 9.348127365 | D63: 12.1016674 | E63: 15.14813709 | F63: 13.74207401 | G63: 56.54278564 | H63: 2781.336426 | I63: 4.1 | J63: 4.1 | L63: 1.315842376 | M63: 4.8287376 | N63: 6.144579976 | O63: 6.749653548 | P63: 0.03732650826 | Q63: 0.5677470634 | S63: 0.1026532077 | T63: 0.4876664224 | U63: 0.7767753999 | V63: 0.7740656577 | W63: 0.01761321357 | X63: 0.8663929786 | Y63: 0.00127715985 | Z63: 0.01942597334 | AB63: 0.1630428945 | AC63: 0.1630428945
B64: 2020-02-21 | C64: 9.348127365 | D64: 12.1016674 | E64: 15.14813709 | F64: 13.74207401 | G64: 56.54278564 | H64: 2781.336426 | I64: 4.1 | J64: 4.1 | L64: 1.31367627 | M64: 4.8287376 | N64: 6.14241387 | O64: 6.786038466 | P64: 0.03273635784 | Q64: 0.6108882375 | S64: 0.1024842226 | T64: 0.4876664224 | U64: 0.7765015687 | V64: 0.778238363 | W64: 0.01544726493 | X64: 0.7598500879 | Y64: 0.00112010375 | Z64: 0.02090208718 | AB64: 0.1660655271 | AC64: 0.1660655271
B65: 2020-02-22 | C65: 7.727674961 | D65: 14.25757408 | E65: 19.74731255 | F65: 14.31536102 | G65: 77.63386536 | H65: 1305.192627 | I65: 4.1 | J65: 4.1 | L65: 1.31367627 | M65: 4.8287376 | N65: 6.14241387 | O65: 6.786038466 | P65: 0.03273635784 | Q65: 0.6108882375 | S65: 0.08471908114 | T65: 0.5745439791 | U65: 1.01225775 | V65: 0.8107046373 | W65: 0.02120926432 | X65: 0.3565734526 | Y65: 0.00112010375 | Z65: 0.02090208718 | AB65: 0.1294193862 | AC65: 0.1294193862
B66: 2020-02-23 | C66: 7.727674961 | D66: 14.25757408 | E66: 19.74731255 | F66: 14.31536102 | G66: 77.63386536 | H66: 1305.192627 | I66: 4.1 | J66: 4.1 | L66: 1.31367627 | M66: 4.8287376 | N66: 6.14241387 | O66: 6.786038466 | P66: 0.03273635784 | Q66: 0.6108882375 | S66: 0.08471908114 | T66: 0.5745439791 | U66: 1.01225775 | V66: 0.8107046373 | W66: 0.02120926432 | X66: 0.3565734526 | Y66: 0.00112010375 | Z66: 0.02090208718 | AB66: 0.1294193862 | AC66: 0.1294193862
B67: 2020-02-24 | C67: 7.727674961 | D67: 14.25757408 | E67: 19.74731255 | F67: 14.31536102 | G67: 77.63386536 | H67: 1305.192627 | I67: 4.1 | J67: 4.1 | L67: 1.314092671 | M67: 4.8287376 | N67: 6.142830271 | O67: 6.91113582 | P67: 0.05100861155 | Q67: 0.717296938 | S67: 0.08474593485 | T67: 0.5745439791 | U67: 1.012326372 | V67: 0.8256495873 | W67: 0.03304751036 | X67: 0.5555998875 | Y67: 0.001745305246 | Z67: 0.024542956 | AB67: 0.1400714121 | AC67: 0.1400714121
B68: 2020-02-25 | C68: 7.66988802 | D68: 14.31536102 | E68: 19.22723198 | F68: 13.56413364 | G68: 43.42412186 | H68: 1891.727783 | I68: 4.1 | J68: 4.1 | L68: 1.318757353 | M68: 4.8287376 | N68: 6.147494953 | O68: 7.083358962 | P68: 0.05523041896 | Q68: 0.8806335902 | S68: 0.0844107876 | T68: 0.5768726459 | U68: 0.9864134427 | V68: 0.8018171595 | W68: 0.02001489967 | X68: 0.8719287844 | Y68: 0.001889758161 | Z68: 0.03013166557 | AB68: 0.1085123023 | AC68: 0.1085123023
B69: 2020-02-26 | C69: 7.66988802 | D69: 14.31536102 | E69: 19.22723198 | F69: 13.56413364 | G69: 43.42412186 | H69: 1891.727783 | I69: 4.1 | J69: 4.1 | L69: 1.320621367 | M69: 4.8287376 | N69: 6.149358967 | O69: 7.238013374 | P69: 0.0506795638 | Q69: 1.037974843 | S69: 0.0845300991 | T69: 0.5768726459 | U69: 0.9867125383 | V69: 0.8193236225 | W69: 0.01836571954 | X69: 0.8000839264 | Y69: 0.001734046583 | Z69: 0.03551523721 | AB69: 0.1206715937 | AC69: 0.1206715937
B70: 2020-02-27 | C70: 7.66988802 | D70: 14.31536102 | E70: 19.22723198 | F70: 13.56413364 | G70: 43.42412186 | H70: 1891.727783 | I70: 4.1 | J70: 4.1 | L70: 1.438684023 | M70: 4.8287376 | N70: 6.267421623 | O70: 7.041045777 | P70: 0.04990993493 | Q70: 0.7237142188 | S70: 0.09208703273 | T70: 0.5768726459 | U70: 1.005656611 | V70: 0.7970274209 | W70: 0.01808681446 | X70: 0.7879337096 | Y70: 0.001707713043 | Z70: 0.024762529 | AB70: 0.1015975002 | AC70: 0.1015975002
B71: 2020-02-28 | C71: 7.843248367 | D71: 13.10184002 | E71: 15.52888203 | F71: 13.39077377 | G71: 42.26838684 | H71: 2562.315186 | I71: 4.1 | J71: 4.1 | L71: 1.536465149 | M71: 4.8287376 | N71: 6.365202749 | O71: 7.109517549 | P71: 0.06180544704 | Q71: 0.6825093524 | S71: 0.1005686723 | T71: 0.5279708354 | U71: 0.8248908142 | V71: 0.7944925674 | W71: 0.02180150428 | X71: 1.321610065 | Y71: 0.002114728625 | Z71: 0.02335266766 | AB71: 0.1404856634 | AC71: 0.1404856634
B72: 2020-02-29 | C72: 7.843248367 | D72: 13.10184002 | E72: 15.52888203 | F72: 13.39077377 | G72: 42.26838684 | H72: 2562.315186 | I72: 4.1 | J72: 4.1 | L72: 1.54630338 | M72: 4.8287376 | N72: 6.37504098 | O72: 7.2366507 | P72: 0.06931676903 | Q72: 0.7922929515 | S72: 0.1012126295 | T72: 0.5279708354 | U72: 0.8261657878 | V72: 0.8086997683 | W72: 0.0244510785 | X72: 1.482227604 | Y72: 0.002371735222 | Z72: 0.02710901165 | AB72: 0.1500355565 | AC72: 0.1500355565
B73: 2020-03-01 | C73: 7.843248367 | D73: 13.10184002 | E73: 15.52888203 | F73: 13.39077377 | G73: 42.26838684 | H73: 2562.315186 | I73: 4.1 | J73: 4.1 | L73: 1.54630338 | M73: 4.8287376 | N73: 6.37504098 | O73: 7.2366507 | P73: 0.06931676903 | Q73: 0.7922929515 | S73: 0.1012126295 | T73: 0.5279708354 | U73: 0.8261657878 | V73: 0.8086997683 | W73: 0.0244510785 | X73: 1.482227604 | Y73: 0.002371735222 | Z73: 0.02710901165 | AB73: 0.1500355565 | AC73: 0.1500355565
B74: 2020-03-02 | C74: 7.843248367 | D74: 13.10184002 | E74: 15.52888203 | F74: 13.39077377 | G74: 42.26838684 | H74: 2562.315186 | I74: 4.1 | J74: 4.1 | L74: 1.556348431 | M74: 4.8287376 | N74: 6.385086031 | O74: 7.389054476 | P74: 0.07147564165 | Q74: 0.9324928036 | S74: 0.101870124 | T74: 0.5279708354 | U74: 0.8274675642 | V74: 0.8257309756 | W74: 0.02521260799 | X74: 1.528391622 | Y74: 0.002445602978 | Z74: 0.03190607492 | AB74: 0.1615383383 | AC74: 0.1615383383
B75: 2020-03-03 | C75: 8.448356628 | D75: 15.08171082 | E75: 17.10055733 | F75: 15.1393919 | G75: 42.04577637 | H75: 1890.407959 | I75: 4.1 | J75: 4.1 | L75: 1.560221375 | M75: 4.8287376 | N75: 6.388958975 | O75: 7.459970467 | P75: 0.0728473389 | Q75: 0.9981641527 | S75: 0.1100024852 | T75: 0.6077545937 | U75: 0.9117681122 | V75: 0.9425178297 | W75: 0.02556113316 | X75: 1.149246696 | Y75: 0.002492536826 | Z75: 0.03415307884 | AB75: 0.1881151351 | AC75: 0.1881151351
B76: 2020-03-04 | C76: 8.448356628 | D76: 15.08171082 | E76: 17.10055733 | F76: 15.1393919 | G76: 42.04577637 | H76: 1890.407959 | I76: 4.1 | J76: 4.1 | L76: 1.55735454 | M76: 4.8287376 | N76: 6.38609214 | O76: 7.484383732 | P76: 0.06654248798 | Q76: 1.031749104 | S76: 0.1098003607 | T76: 0.6077545937 | U76: 0.9113589864 | V76: 0.9456022839 | W76: 0.02334884736 | X76: 1.049780755 | Y76: 0.002276810715 | Z76: 0.03530221796 | AB76: 0.1904683008 | AC76: 0.1904683008
B77: 2020-03-05 | C77: 8.448356628 | D77: 15.08171082 | E77: 17.10055733 | F77: 15.1393919 | G77: 42.04577637 | H77: 1890.407959 | I77: 4.1 | J77: 4.1 | L77: 1.555530622 | M77: 4.8287376 | N77: 6.384268222 | O77: 7.503846331 | P77: 0.06614934678 | Q77: 1.053428762 | S77: 0.1096717664 | T77: 0.6077545937 | U77: 0.911098695 | V77: 0.9480612544 | W77: 0.0232108995 | X77: 1.043578522 | Y77: 0.002263359038 | Z77: 0.03604400687 | AB77: 0.1923275283 | AC77: 0.1923275283
B78: =B77+1 -> 2020-03-06 | C78: 11.44778633 | D78: 15.94693089 | E78: 23.79159355 | F78: 17.61968994 | G78: 56.35074997 | H78: 1651.030396 | I78: 4.1 | J78: 4.1 | L78: 1.541117567 | M78: 4.8287376 | N78: 6.369855167 | O78: 7.589537395 | P78: 0.04737552384 | Q78: 1.172306703 | S78: 0.1472316981 | T78: 0.6426207623 | U78: 1.264727974 | V78: 1.115983059 | W78: 0.02227910604 | X78: 0.6527593915 | Y78: 0.001620995902 | Z78: 0.0401115219 | AB78: 0.284398081 | AC78: 0.284398081
B79: 2020-03-07 | C79: 11.44778633 | D79: 15.94693089 | E79: 23.79159355 | F79: 17.61968994 | G79: 56.35074997 | H79: 1651.030396 | I79: 4.1 | J79: 4.1 | L79: 1.531648505 | M79: 4.8287376 | N79: 6.360386105 | O79: 7.563408288 | P79: 0.0307154799 | Q79: 1.172306703 | S79: =0.00834534*C79*L79 -> 0.1463270648 | T79: =0.00834534*D79*M79 -> 0.6426207623 | U79: =0.00834534*E79*N79 -> 1.262847902 | V79: =0.00834534*F79*O79 -> 1.112140975 | W79: =0.00834534*G79*P79 -> 0.01444445102 | X79: =0.00834534*H79*P79 -> 0.4232104754 | Y79: =0.00834534*I79*P79 -> 0.001050957604 | Z79: =0.00834534*J79*Q79 -> 0.0401115219 | AB79: =V79-S79-T79-Y79-Z79 -> 0.2820306685 | AC79: =IF(V79-S79-T79-Y79-Z79<0,0,V79-S79-T79-Y79-Z79) -> 0.2820306685
B80: 2020-03-08 | C80: 11.44778633 | D80: 15.94693089 | E80: 23.79159355 | F80: 17.61968994 | G80: 56.35074997 | H80: 1651.030396 | I80: 4.1 | J80: 4.1 | L80: 1.531648505 | M80: 4.8287376 | N80: 6.360386105 | O80: 7.563408288 | P80: 0.0307154799 | Q80: 1.172306703 | S80: 0.1463270648 | T80: 0.6426207623 | U80: 1.262847902 | V80: 1.112140975 | W80: 0.01444445102 | X80: 0.4232104754 | Y80: 0.001050957604 | Z80: 0.0401115219 | AB80: 0.2820306685 | AC80: 0.2820306685
B81: 2020-03-09 | C81: 11.44778633 | D81: 15.94693089 | E81: 23.79159355 | F81: 17.61968994 | G81: 56.35074997 | H81: 1651.030396 | I81: 4.1 | J81: 4.1 | L81: 1.545208138 | M81: 4.8287376 | N81: 6.373945738 | O81: 7.570525906 | P81: 0.053689134 | Q81: 1.142891034 | S81: 0.1476224935 | T81: 0.6426207623 | U81: 1.265540153 | V81: 1.113187566 | W81: 0.02524818329 | X81: 0.7397509008 | Y81: 0.001837021718 | Z81: 0.03910503846 | AB81: 0.28200225 | AC81: 0.28200225
B82: 2020-03-10 | C82: 10.88971519 | D82: 17.64522171 | E82: 27.40317726 | F82: 21.80245781 | G82: 49.84076691 | H82: 1531.829102 | I82: 4.1 | J82: 4.1 | L82: 1.650590965 | M82: 4.8287376 | N82: 6.479328565 | O82: 7.262817351 | P82: 0.05053659665 | Q82: 0.7329521893 | S82: 0.150003026 | T82: 0.7110575639 | U82: 1.481750077 | V82: 1.321461797 | W82: 0.0210200983 | X82: 0.6460413893 | Y82: 0.001729154834 | Z82: 0.02507861441 | AB82: 0.4335934376 | AC82: 0.4335934376
B83: 2020-03-11 | C83: 10.88971519 | D83: 17.64522171 | E83: 27.40317726 | F83: 21.80245781 | G83: 49.84076691 | H83: 1531.829102 | I83: 4.1 | J83: 4.1 | L83: 1.73193331 | M83: 4.8287376 | N83: 6.56067091 | O83: 7.013777228 | P83: 0.03594129033 | Q83: 0.4171650284 | S83: 0.1573952862 | T83: 0.7110575639 | U83: 1.500352163 | V83: 1.276149215 | W83: 0.01494935365 | X83: 0.4594603253 | Y83: 0.00122976338 | Z83: 0.01427367439 | AB83: 0.3921929268 | AC83: 0.3921929268
B84: 2020-03-12 | C84: 10.88971519 | D84: 17.64522171 | E84: 27.40317726 | F84: 21.80245781 | G84: 49.84076691 | H84: 1531.829102 | I84: 4.1 | J84: 4.1 | L84: 1.845258862 | M84: 4.8287376 | N84: 6.673996462 | O84: 7.587069651 | P84: 0.05960347933 | Q84: 0.8534697098 | S84: 0.1676941283 | T84: 0.7110575639 | U84: 1.526268451 | V84: 1.380459154 | W84: 0.02479136067 | X84: 0.7619491051 | Y84: 0.002039386331 | Z84: 0.02920222912 | AB84: 0.470465846 | AC84: 0.470465846
B85: 2020-03-13 | C85: 8.753358841 | D85: 21.80245781 | E85: 17.58748245 | F85: 15.39338684 | G85: 54.80635452 | H85: 2112.109863 | I85: 4.1 | J85: 4.1 | L85: 1.925486767 | M85: 4.8287376 | N85: 6.754224367 | O85: 8.014592248 | P85: 0.06641799315 | Q85: 1.193949887 | S85: 0.1406563379 | T85: 0.878583607 | U85: 0.9913412908 | V85: 1.02957894 | W85: 0.03037810646 | X85: 1.170701807 | Y85: 0.002272551013 | Z85: 0.04085206279 | AB85: -0.03278561857 | AC85: 0
B86: 2020-03-14 | C86: 8.753358841 | D86: 21.80245781 | E86: 17.58748245 | F86: 15.39338684 | G86: 54.80635452 | H86: 2112.109863 | I86: 4.1 | J86: 4.1 | L86: 1.925156757 | M86: 4.8287376 | N86: 6.753894357 | O86: 8.067436614 | P86: 0.06069793161 | Q86: 1.252844325 | S86: 0.1406322307 | T86: 0.878583607 | U86: 0.9912928539 | V86: 1.036367488 | W86: 0.02776187809 | X86: 1.06987843 | Y86: 0.002076833994 | Z86: 0.04286718864 | AB86: -0.02779237195 | AC86: 0
B87: 2020-03-15 | C87: 8.753358841 | D87: 21.80245781 | E87: 17.58748245 | F87: 15.39338684 | G87: 54.80635452 | H87: 2112.109863 | I87: 4.1 | J87: 4.1 | L87: 1.925156757 | M87: 4.8287376 | N87: 6.753894357 | O87: 8.067436614 | P87: 0.06069793161 | Q87: 1.252844325 | S87: 0.1406322307 | T87: 0.878583607 | U87: 0.9912928539 | V87: 1.036367488 | W87: 0.02776187809 | X87: 1.06987843 | Y87: 0.002076833994 | Z87: 0.04286718864 | AB87: -0.02779237195 | AC87: 0
B88: 2020-03-16 | C88: 8.753358841 | D88: 21.80245781 | E88: 17.58748245 | F88: 15.39338684 | G88: 54.80635452 | H88: 2112.109863 | I88: 4.1 | J88: 4.1 | L88: 1.930432801 | M88: 4.8287376 | N88: 6.759170401 | O88: 7.98576341 | P88: 0.06113236018 | Q88: 1.165460648 | S88: 0.1410176445 | T88: 0.878583607 | U88: 0.9920672375 | V88: 1.0258755 | W88: 0.02796057601 | X88: 1.077535787 | Y88: 0.002091698356 | Z88: 0.039877278 | AB88: -0.0356947281 | AC88: 0
B89: 2020-03-17 | C89: 9.330752373 | D89: 15.1046896 | E89: 16.25947762 | F89: 12.56415749 | G89: 39.44768143 | H89: 1719.482056 | I89: 4.1 | J89: 4.1 | L89: 1.934190623 | M89: 4.8287376 | N89: 6.762928223 | O89: 7.949337883 | P89: 0.06299063822 | Q89: 1.123419022 | S89: 0.1506121376 | T89: 0.6086805802 | U89: 0.917667607 | V89: 0.8335052955 | W89: 0.02073678982 | X89: 0.9038943914 | Y89: 0.002155281 | Z89: 0.03843878617 | AB89: 0.03361851054 | AC89: 0.03361851054
B90: 2020-03-18 | C90: 9.330752373 | D90: 15.1046896 | E90: 16.25947762 | F90: 12.56415749 | G90: 39.44768143 | H90: 1719.482056 | I90: 4.1 | J90: 4.1 | L90: 1.933511178 | M90: 4.8287376 | N90: 6.762248778 | O90: 7.935063013 | P90: 0.0625739911 | Q90: 1.110240244 | S90: 0.1505592304 | T90: 0.6086805802 | U90: 0.9175754126 | V90: 0.8320085446 | W90: 0.0205996278 | X90: 0.8979156459 | Y90: 0.002141025047 | Z90: 0.03798786251 | AB90: 0.03263984637 | AC90: 0.03263984637
B91: 2020-03-19 | C91: 9.330752373 | D91: 15.1046896 | E91: 16.25947762 | F91: 12.56415749 | G91: 39.44768143 | H91: 1719.482056 | I91: 4.1 | J91: 4.1 | L91: 1.929586336 | M91: 4.8287376 | N91: 6.758323936 | O91: 7.949521087 | P91: 0.07417130924 | Q91: 1.117025842 | S91: 0.1502536096 | T91: 0.6086805802 | U91: 0.9170428473 | V91: 0.8335245049 | W91: 0.02441751495 | X91: 1.064333246 | Y91: 0.002537837655 | Z91: 0.03822003779 | AB91: 0.03383243959 | AC91: 0.03383243959
B92: 2020-03-20 | C92: 9.677188873 | D92: 26.2483902 | E92: 21.25393295 | F92: 14.41181755 | G92: 48.57050323 | H92: 2833.841309 | I92: 4.1 | J92: 4.1 | L92: 1.92718434 | M92: 4.8287376 | N92: 6.75592194 | O92: 8.20600301 | P92: 0.07407371088 | Q92: 1.376007359 | S92: 0.1556383115 | T92: 1.057743376 | U92: 1.198306636 | V92: 0.9869484345 | W92: 0.03002484267 | X92: 1.751796539 | Y92: 0.00253449824 | Z92: 0.04708132194 | AB92: -0.2760490737 | AC92: 0
B93: 2020-03-21 | C93: 9.677188873 | D93: 26.2483902 | E93: 21.25393295 | F93: 14.41181755 | G93: 48.57050323 | H93: 2833.841309 | I93: 4.1 | J93: 4.1 | L93: 1.927564311 | M93: 4.8287376 | N93: 6.756301911 | O93: 8.344286938 | P93: 0.0681139154 | Q93: 1.519871112 | S93: 0.1556689977 | T93: 1.057743376 | U93: 1.198374032 | V93: 1.003580052 | W93: 0.02760911488 | X93: 1.610851135 | Y93: 0.002330578509 | Z93: 0.05200374888 | AB93: -0.2641666492 | AC93: 0
B94: 2020-03-22 | C94: 9.677188873 | D94: 26.2483902 | E94: 21.25393295 | F94: 14.41181755 | G94: 48.57050323 | H94: 2833.841309 | I94: 4.1 | J94: 4.1 | L94: 1.927564311 | M94: 4.8287376 | N94: 6.756301911 | O94: 8.344286938 | P94: 0.0681139154 | Q94: 1.519871112 | S94: 0.1556689977 | T94: 1.057743376 | U94: 1.198374032 | V94: 1.003580052 | W94: 0.02760911488 | X94: 1.610851135 | Y94: 0.002330578509 | Z94: 0.05200374888 | AB94: -0.2641666492 | AC94: 0
B95: 2020-03-23 | C95: 9.677188873 | D95: 26.2483902 | E95: 21.25393295 | F95: 14.41181755 | G95: 48.57050323 | H95: 2833.841309 | I95: 4.1 | J95: 4.1 | L95: 1.924253852 | M95: 4.8287376 | N95: 6.752991452 | O95: 7.814433937 | P95: 0.06728717603 | Q95: 0.994155309 | S95: 0.155401647 | T95: 1.057743376 | U95: 1.197786851 | V95: 0.9398538279 | W95: 0.02727400653 | X95: 1.59129927 | Y95: 0.002302290883 | Z95: 0.03401591267 | AB95: -0.3096093991 | AC95: 0
B96: 2020-03-24 | C96: 9.677188873 | D96: 26.2483902 | E96: 21.25393295 | F96: 14.41181755 | G96: 48.57050323 | H96: 2833.841309 | I96: 4.1 | J96: 4.1 | L96: 1.916105095 | M96: 4.8287376 | N96: 6.744842695 | O96: 7.468603829 | P96: 0.06687763312 | Q96: 0.6568835013 | S96: 0.154743558 | T96: 1.057743376 | U96: 1.196341496 | V96: 0.898260316 | W96: 0.02710800349 | X96: 1.581613839 | Y96: 0.002288278006 | Z96: 0.02247585625 | AB96: -0.3389907526 | AC96: 0
B97: 2020-03-25 | C97: 10.13910389 | D97: 21.57150078 | E97: 20.64767075 | F97: 13.372509 | G97: 63.58274078 | H97: 1508.733398 | I97: 4.1 | J97: 4.1 | L97: 1.913834771 | M97: 4.8287376 | N97: 6.742572371 | O97: 7.471645507 | P97: 0.07624911913 | Q97: 0.6528240169 | S97: 0.1619377306 | T97: 0.869276626 | U97: 1.161825002 | V97: 0.8338216986 | W97: 0.04045927633 | X97: 0.960044514 | Y97: 0.002608931778 | Z97: 0.02233695736 | AB97: -0.2223385471 | AC97: 0
B98: 2020-03-26 | C98: 10.13910389 | D98: 21.57150078 | E98: 20.64767075 | F98: 13.372509 | G98: 63.58274078 | H98: 1508.733398 | I98: 4.1 | J98: 4.1 | L98: 1.916128168 | M98: 4.8287376 | N98: 6.744865768 | O98: 7.485737209 | P98: 0.0802640023 | Q98: 0.6606074392 | S98: 0.1621317847 | T98: 0.869276626 | U98: 1.162220181 | V98: 0.8353943063 | W98: 0.04258965199 | X98: 1.010595479 | Y98: 0.002746304595 | Z98: 0.02260327412 | AB98: -0.2213636831 | AC98: 0
B99: 2020-03-27 | C99: 10.13910389 | D99: 21.57150078 | E99: 20.64767075 | F99: 13.372509 | G99: 63.58274078 | H99: 1508.733398 | I99: 4.1 | J99: 4.1 | L99: 1.916736427 | M99: 4.8287376 | N99: 6.745474027 | O99: 7.499450785 | P99: 0.0802085866 | Q99: 0.6737681712 | S99: 0.1621832522 | T99: 0.869276626 | U99: 1.162324991 | V99: 0.8369247158 | W99: 0.04256024733 | X99: 1.009897746 | Y99: 0.002744408497 | Z99: 0.02305358033 | AB99: -0.2203331512 | AC99: 0
B100: 2020-03-28 | C100: 10.77423668 | D100: 33.81224823 | E100: 25.67099571 | F100: 15.68208408 | G100: 65.66135406 | H100: 893.809021 | I100: 4.1 | J100: 4.1 | L100: 1.916736427 | M100: 4.8287376 | N100: 6.745474027 | O100: 7.509166412 | P100: 0.08186626147 | Q100: 0.6818261232 | S100: 0.1723427201 | T100: 1.362547621 | U100: 1.445104401 | V100: 0.9827420565 | W100: 0.0448599544 | X100: 0.6106519199 | Y100: 0.002801127325 | Z100: 0.02332929036 | AB100: -0.5782787018 | AC100: 0
B101: 2020-03-29 | C101: 10.77423668 | D101: 33.81224823 | E101: 25.67099571 | F101: 15.68208408 | G101: 65.66135406 | H101: 893.809021 | I101: 4.1 | J101: 4.1 | L101: 1.916736427 | M101: 4.8287376 | N101: 6.745474027 | O101: 7.509166412 | P101: 0.08186626147 | Q101: 0.6818261232 | S101: 0.1723427201 | T101: 1.362547621 | U101: 1.445104401 | V101: 0.9827420565 | W101: 0.0448599544 | X101: 0.6106519199 | Y101: 0.002801127325 | Z101: 0.02332929036 | AB101: -0.5782787018 | AC101: 0
B102: 2020-03-30 | C102: 10.77423668 | D102: 33.81224823 | E102: 25.67099571 | F102: 15.68208408 | G102: 65.66135406 | H102: 893.809021 | I102: 4.1 | J102: 4.1 | L102: 1.920086308 | M102: 4.8287376 | N102: 6.748823908 | O102: 7.479017989 | P102: 0.04753359048 | Q102: 0.6826604896 | S102: 0.1726439236 | T102: 1.362547621 | U102: 1.445822057 | V102: 0.9787964623 | W102: 0.02604680687 | X102: 0.3545597145 | Y102: 0.001626404293 | Z102: 0.02335783895 | AB102: -0.5813793251 | AC102: 0
B103: 2020-03-31 | C103: 7.573515415 | D103: 14.95539188 | E103: 18.06962204 | F103: 14.03265762 | G103: 32.21762085 | H103: 1468.656006 | I103: 4.1 | J103: 4.1 | L103: 1.923134078 | M103: 4.8287376 | N103: 6.751871678 | O103: 7.457710283 | P103: 0.02261051291 | Q103: 0.6832280923 | S103: 0.1215489223 | T103: 0.602664262 | U103: 1.018162936 | V103: 0.8733523078 | W103: 0.006079220773 | X103: 0.2771242526 | Y103: 0.0007736389129 | Z103: 0.02337725998 | AB103: 0.1249882246 | AC103: 0.1249882246
B104: 2020-04-01 | C104: 7.573515415 | D104: 14.95539188 | E104: 18.06962204 | F104: 14.03265762 | G104: 32.21762085 | H104: 1468.656006 | I104: 4.1 | J104: 4.1 | L104: 1.924634011 | M104: 4.8287376 | N104: 6.753371611 | O104: 7.47581492 | P104: 0.04092482045 | Q104: 0.6815184878 | S104: 0.1216437234 | T104: 0.602664262 | U104: 1.018389122 | V104: 0.8754724928 | W104: 0.0110033337 | X104: 0.501592349 | Y104: 0.001400279318 | Z104: 0.02331876434 | AB104: 0.1264454638 | AC104: 0.1264454638
B105: 2020-04-02 | C105: 7.573515415 | D105: 14.95539188 | E105: 18.06962204 | F105: 14.03265762 | G105: 32.21762085 | H105: 1468.656006 | I105: 4.1 | J105: 4.1 | L105: 1.923479737 | M105: 4.8287376 | N105: 6.752217337 | O105: 7.465845412 | P105: 0.05437748371 | Q105: 0.6592505912 | S105: 0.1215707692 | T105: 0.602664262 | U105: 1.01821506 | V105: 0.8743049907 | W105: 0.01462031091 | X105: 0.6664740245 | Y105: 0.001860574219 | Z105: 0.02255684835 | AB105: 0.125652537 | AC105: 0.125652537
B106: 2020-04-03 | C106: 7.173549652 | D106: 15.53439617 | E106: 15.88036251 | F106: 12.70900631 | G106: 132.0149536 | H106: 2131.753662 | I106: 4.1 | J106: 4.1 | L106: 1.919912932 | M106: 4.8287376 | N106: 6.748650532 | O106: 7.453087545 | P106: 0.05152235612 | Q106: 0.6529146571 | S106: 0.1149369524 | T106: 0.6259966624 | U106: 0.8943785742 | V106: 0.7904817595 | W106: 0.05676267811 | X106: 0.916593489 | Y106: 0.001762883476 | Z106: 0.0223400587 | AB106: 0.02544520245 | AC106: 0.02544520245
B107: 2020-04-04 | C107: 7.173549652 | D107: 15.53439617 | E107: 15.88036251 | F107: 12.70900631 | G107: 132.0149536 | H107: 2131.753662 | I107: 4.1 | J107: 4.1 | L107: 1.918965141 | M107: 4.8287376 | N107: 6.747702741 | O107: 7.459221573 | P107: 0.05050808604 | Q107: 0.6610107459 | S107: 0.1148802122 | T107: 0.6259966624 | U107: 0.8942529663 | V107: 0.7911323404 | W107: 0.05564524695 | X107: 0.8985494122 | Y107: 0.001728179318 | Z107: 0.02261707362 | AB107: 0.02591021285 | AC107: 0.02591021285
B108: 2020-04-05 | C108: 7.173549652 | D108: 15.53439617 | E108: 15.88036251 | F108: 12.70900631 | G108: 132.0149536 | H108: 2131.753662 | I108: 4.1 | J108: 4.1 | L108: 1.918965141 | M108: 4.8287376 | N108: 6.747702741 | O108: 7.459221573 | P108: 0.05050808604 | Q108: 0.6610107459 | S108: 0.1148802122 | T108: 0.6259966624 | U108: 0.8942529663 | V108: 0.7911323404 | W108: 0.05564524695 | X108: 0.8985494122 | Y108: 0.001728179318 | Z108: 0.02261707362 | AB108: 0.02591021285 | AC108: 0.02591021285
B109: 2020-04-06 | C109: 7.173549652 | D109: 15.53439617 | E109: 15.88036251 | F109: 12.70900631 | G109: 132.0149536 | H109: 2131.753662 | I109: 4.1 | J109: 4.1 | L109: 1.923470358 | M109: 4.8287376 | N109: 6.752207958 | O109: 7.459742342 | P109: 0.04842830468 | Q109: 0.6591060795 | S109: 0.1151499203 | T109: 0.6259966624 | U109: 0.8948500293 | V109: 0.7911875738 | W109: 0.05335393171 | X109: 0.8615496669 | Y109: 0.001657017739 | Z109: 0.02255190375 | AB109: 0.02583206958 | AC109: 0.02583206958
B110: 2020-04-07 | C110: 8.038464546 | D110: 15.59205723 | E110: 19.05171776 | F110: 14.20819283 | G110: 212.3732147 | H110: 2466.1875 | I110: 4.1 | J110: 4.1 | L110: 1.926745223 | M110: 4.8287376 | N110: 6.755482823 | O110: 7.451520253 | P110: 0.04730702161 | Q110: 0.6487304086 | S110: 0.1292532365 | T110: 0.6283202564 | U110: 1.074074901 | V110: 0.8835431491 | W110: 0.08384349673 | X110: 0.973634005 | Y110: 0.001618652037 | Z110: 0.0221968909 | AB110: 0.1021541133 | AC110: 0.1021541133
B111: 2020-04-08 | C111: 8.038464546 | D111: 15.59205723 | E111: 19.05171776 | F111: 14.20819283 | G111: 212.3732147 | H111: 2466.1875 | I111: 4.1 | J111: 4.1 | L111: 1.923882169 | M111: 4.8287376 | N111: 6.752619769 | O111: 7.437764104 | P111: 0.04277153028 | Q111: 0.6423728041 | S111: 0.1290611722 | T111: 0.6283202564 | U111: 1.073619696 | V111: 0.8819120522 | W111: 0.07580512442 | X111: 0.8802882723 | Y111: 0.001463466146 | Z111: 0.02197935977 | AB111: 0.1010877977 | AC111: 0.1010877977
B112: 2020-04-09 | C112: 8.038464546 | D112: 15.59205723 | E112: 19.05171776 | F112: 14.20819283 | G112: 212.3732147 | H112: 2466.1875 | I112: 4.1 | J112: 4.1 | L112: 1.925986703 | M112: 4.8287376 | N112: 6.754724303 | O112: 7.205781855 | P112: 0.03472663075 | Q112: 0.4163309211 | S112: 0.1292023522 | T112: 0.6283202564 | U112: 1.073954302 | V112: 0.8544054066 | W112: 0.06154693431 | X112: 0.7147148018 | Y112: 0.001188202717 | Z112: 0.01424513467 | AB112: 0.08144946073 | AC112: 0.08144946073
B113: 2020-04-10 | C113: 8.71434021 | D113: 15.67655182 | E113: 16.83691978 | F113: 10.97705936 | G113: 152.7613983 | H113: 2497.517822 | I113: 4.1 | J113: 4.1 | L113: 2.344126573 | M113: 4.8287376 | N113: 7.172864173 | O113: 7.337477346 | P113: 0.01484881177 | Q113: 0.1497643614 | S113: 0.1704745701 | T113: 0.6317251735 | U113: 1.007857855 | V113: 0.6721664341 | W113: 0.01892994543 | X113: 0.3094883695 | Y113: 0.0005080653694 | Z113: 0.005124321515 | AB113: -0.1356656964 | AC113: 0
B114: 2020-04-11 | C114: 8.71434021 | D114: 15.67655182 | E114: 16.83691978 | F114: 10.97705936 | G114: 152.7613983 | H114: 2497.517822 | I114: 4.1 | J114: 4.1 | L114: 2.632981169 | M114: 4.8287376 | N114: 7.461718769 | O114: 7.620838838 | P114: 0.009355707692 | Q114: 0.1497643614 | S114: 0.1914812699 | T114: 0.6317251735 | U114: 1.048444762 | V114: 0.6981244133 | W114: 0.01192708473 | X114: 0.1949976042 | Y114: 0.0003201139027 | Z114: 0.005124321515 | AB114: -0.1305264655 | AC114: 0
B115: 2020-04-12 | C115: 8.71434021 | D115: 15.67655182 | E115: 16.83691978 | F115: 10.97705936 | G115: 152.7613983 | H115: 2497.517822 | I115: 4.1 | J115: 4.1 | L115: 2.632981169 | M115: 4.8287376 | N115: 7.461718769 | O115: 7.620838838 | P115: 0.009355707692 | Q115: 0.1497643614 | S115: 0.1914812699 | T115: 0.6317251735 | U115: 1.048444762 | V115: 0.6981244133 | W115: 0.01192708473 | X115: 0.1949976042 | Y115: 0.0003201139027 | Z115: 0.005124321515 | AB115: -0.1305264655 | AC115: 0
B116: 2020-04-13 | C116: 8.71434021 | D116: 15.67655182 | E116: 16.83691978 | F116: 10.97705936 | G116: 152.7613983 | H116: 2497.517822 | I116: 4.1 | J116: 4.1 | L116: 2.632981169 | M116: 4.8287376 | N116: 7.461718769 | O116: 7.620838838 | P116: 0.009355707692 | Q116: 0.1497643614 | S116: 0.1914812699 | T116: 0.6317251735 | U116: 1.048444762 | V116: 0.6981244133 | W116: 0.01192708473 | X116: 0.1949976042 | Y116: 0.0003201139027 | Z116: 0.005124321515 | AB116: -0.1305264655 | AC116: 0
B117: 2020-04-14 | C117: 7.321897984 | D117: 16.77890205 | E117: 18.34539986 | F117: 10.45489311 | G117: 45.04545212 | H117: 2100.845947 | I117: 4.1 | J117: 4.1 | L117: 2.641220292 | M117: 4.8287376 | N117: 7.469957892 | O117: 7.922801866 | P117: 0.01765603819 | Q117: 0.4351879358 | S117: 0.1613884066 | T117: 0.6761470847 | U117: 1.14364009 | V117: 0.6912615923 | W117: 0.006637251048 | X117: 0.3095504942 | Y117: 0.000604117131 | Z117: 0.01489034428 | AB117: -0.1617683605 | AC117: 0
B118: 2020-04-15 | C118: 7.321897984 | D118: 16.77890205 | E118: 18.34539986 | F118: 10.45489311 | G118: 45.04545212 | H118: 2100.845947 | I118: 4.1 | J118: 4.1 | L118: 1.890479206 | M118: 4.8287376 | N118: 6.719216806 | O118: 7.510895024 | P118: 0.03226765785 | Q118: 0.7594105602 | S118: 0.1155153274 | T118: 0.6761470847 | U118: 1.028702681 | V118: 0.6553228695 | W118: 0.01213004546 | X118: 0.5657254096 | Y118: 0.001104066761 | Z118: 0.02598391123 | AB118: -0.1634275206 | AC118: 0
B119: 2020-04-16 | C119: 7.321897984 | D119: 16.77890205 | E119: 18.34539986 | F119: 10.45489311 | G119: 45.04545212 | H119: 2100.845947 | I119: 4.1 | J119: 4.1 | L119: 1.199174128 | M119: 4.8287376 | N119: 6.027911728 | O119: 6.672078814 | P119: 0.03157501853 | Q119: 0.612592068 | S119: 0.07327400986 | T119: 0.6761470847 | U119: 0.9228648418 | V119: 0.5821364591 | W119: 0.01186966876 | X119: 0.5535818676 | Y119: 0.001080367487 | Z119: 0.02096038526 | AB119: -0.1893253882 | AC119: 0
B120: 2020-04-17 | C120: 6.567658424 | D120: 13.9940176 | E120: 21.88452339 | F120: 11.0350771 | G120: 37.73513031 | H120: 1610.59021 | I120: 4.1 | J120: 4.1 | L120: 1.201933675 | M120: 4.8287376 | N120: 6.030671275 | O120: 6.437464894 | P120: 0.02610310478 | Q120: 0.3806905145 | S120: 0.06587719453 | T120: 0.5639233231 | U120: 1.101404342 | V120: 0.592835607 | W120: 0.008220193786 | X120: 0.3508498189 | Y120: 0.0008931410663 | Z120: 0.01302566629 | AB120: -0.05088371799 | AC120: 0
B121: 2020-04-18 | C121: 6.567658424 | D121: 13.9940176 | E121: 21.88452339 | F121: 11.0350771 | G121: 37.73513031 | H121: 1610.59021 | I121: 4.1 | J121: 4.1 | L121: 1.201280305 | M121: 4.8287376 | N121: 6.030017905 | O121: 6.178005123 | P121: 0.02401068929 | Q121: 0.1239765293 | S121: 0.06584138373 | T121: 0.5639233231 | U121: 1.101285014 | V121: 0.5689415752 | W121: 0.007561266007 | X121: 0.3227258235 | Y121: 0.0008215471995 | Z121: 0.004241967786 | AB121: -0.06588664661 | AC121: 0
B122: 2020-04-19 | C122: 6.567658424 | D122: 13.9940176 | E122: 21.88452339 | F122: 11.0350771 | G122: 37.73513031 | H122: 1610.59021 | I122: 4.1 | J122: 4.1 | L122: 1.201280305 | M122: 4.8287376 | N122: 6.030017905 | O122: 6.178005123 | P122: 0.02401068929 | Q122: 0.1239765293 | S122: 0.06584138373 | T122: 0.5639233231 | U122: 1.101285014 | V122: 0.5689415752 | W122: 0.007561266007 | X122: 0.3227258235 | Y122: 0.0008215471995 | Z122: 0.004241967786 | AB122: -0.06588664661 | AC122: 0
B123: 2020-04-20 | C123: 6.567658424 | D123: 13.9940176 | E123: 21.88452339 | F123: 11.0350771 | G123: 37.73513031 | H123: 1610.59021 | I123: 4.1 | J123: 4.1 | L123: 1.201448883 | M123: 4.8287376 | N123: 6.030186483 | O123: 6.300559827 | P123: 0.01767022611 | Q123: 0.2527031172 | S123: 0.06585062341 | T123: 0.5639233231 | U123: 1.101315802 | V123: 0.580227818 | W123: 0.005564574945 | X123: 0.2375041468 | Y123: 0.0006046025835 | Z123: 0.008646463073 | AB123: -0.05879719415 | AC123: 0
B124: 2020-04-21 | C124: 6.509640217 | D124: 12.83364868 | E124: 22.52272606 | F124: 10.22281933 | G124: 56.30102539 | H124: 940.477356 | I124: 4.1 | J124: 4.1 | L124: 1.201601407 | M124: 4.8287376 | N124: 6.030339007 | O124: 6.295195324 | P124: 0.01215319971 | Q124: 0.2527031172 | S124: 0.06527718974 | T124: 0.5171634065 | U124: 1.133461354 | V124: 0.5370613883 | W124: 0.005710195457 | X124: 0.0953856433 | Y124: 0.0004158325929 | Z124: 0.008646463073 | AB124: -0.05444150351 | AC124: 0
B125: 2020-04-22 | C125: 6.509640217 | D125: 12.83364868 | E125: 22.52272606 | F125: 10.22281933 | G125: 56.30102539 | H125: 940.477356 | I125: 4.1 | J125: 4.1 | L125: 1.201600263 | M125: 5.1128487 | N125: 6.314448963 | O125: 6.848285733 | P125: 0.02223393247 | Q125: 0.5116028375 | S125: 0.06527712762 | T125: 0.5475920353 | U125: 1.186862606 | V125: 0.5842471368 | W125: 0.01044663984 | X125: 0.1745053157 | Y125: 0.0007607538767 | Z125: 0.01750494846 | AB125: -0.04688772843 | AC125: 0
B126: 2020-04-23 | C126: 6.509640217 | D126: 12.83364868 | E126: 22.52272606 | F126: 10.22281933 | G126: 56.30102539 | H126: 940.477356 | I126: 4.1 | J126: 4.1 | L126: 1.200600526 | M126: 5.27832 | N126: 6.478920526 | O126: 7.08103357 | P126: 0.02990828539 | Q126: 0.5722047583 | S126: 0.06522281673 | T126: 0.5653142038 | U126: 1.21777665 | V126: 0.6041035304 | W126: 0.01405244376 | X126: 0.2347382674 | Y126: 0.001023338723 | Z126: 0.01957849736 | AB126: -0.04703532614 | AC126: 0
B127: 2020-04-24 | C127: 6.857750893 | D127: 12.2534647 | E127: 21.88452339 | F127: 13.06572247 | G127: 34.9502449 | H127: 801.2330933 | I127: 4.1 | J127: 4.1 | L127: 1.200660699 | M127: 5.27832 | N127: 6.478980699 | O127: 7.001551927 | P127: 0.02847734693 | Q127: 0.4940938805 | S127: 0.0687141274 | T127: 0.5397574619 | U127: 1.18328079 | V127: 0.7634344931 | W127: 0.008306035531 | X127: 0.1904155624 | Y127: 0.0009743778841 | Z127: 0.01690586384 | AB127: 0.137082662 | AC127: 0.137082662
B128: 2020-04-25 | C128: 6.857750893 | D128: 12.2534647 | E128: 21.88452339 | F128: 13.06572247 | G128: 34.9502449 | H128: 801.2330933 | I128: 4.1 | J128: 4.1 | L128: 1.201494922 | M128: 5.27832 | N128: 6.479814922 | O128: 6.988218541 | P128: 0.02585073386 | Q128: 0.4825528845 | S128: 0.06876187019 | T128: 0.5397574619 | U128: 1.183433148 | V128: 0.7619806487 | W128: 0.00753992689 | X128: 0.1728525497 | Y128: 0.0008845059694 | Z128: 0.01651097835 | AB128: 0.1360658323 | AC128: 0.1360658323
B129: 2020-04-26 | C129: 6.857750893 | D129: 12.2534647 | E129: 21.88452339 | F129: 13.06572247 | G129: 34.9502449 | H129: 801.2330933 | I129: 4.1 | J129: 4.1 | L129: 1.201494922 | M129: 5.27832 | N129: 6.479814922 | O129: 6.988218541 | P129: 0.02585073386 | Q129: 0.4825528845 | S129: 0.06876187019 | T129: 0.5397574619 | U129: 1.183433148 | V129: 0.7619806487 | W129: 0.00753992689 | X129: 0.1728525497 | Y129: 0.0008845059694 | Z129: 0.01651097835 | AB129: 0.1360658323 | AC129: 0.1360658323
B130: 2020-04-27 | C130: 6.857750893 | D130: 12.2534647 | E130: 21.88452339 | F130: 13.06572247 | G130: 34.9502449 | H130: 801.2330933 | I130: 4.1 | J130: 4.1 | L130: 1.202812307 | M130: 5.27832 | N130: 6.481132307 | O130: 7.009293513 | P130: 0.02944875507 | Q130: 0.4987124513 | S130: 0.06883726445 | T130: 0.5397574619 | U130: 1.183673747 | V130: 0.7642786194 | W130: 0.008589367771 | X130: 0.1969109438 | Y130: 0.001007615482 | Z130: 0.01706389237 | AB130: 0.1376123851 | AC130: 0.1376123851
B131: 2020-04-28 | C131: 8.316813469 | D131: 25.38196564 | E131: 32.34733582 | F131: 14.46955585 | G131: 43.56638336 | H131: 589.9748535 | I131: 4.1 | J131: 4.1 | L131: 1.208301939 | M131: 5.27832 | N131: 6.486621939 | O131: 7.020134849 | P131: 0.02930819913 | Q131: 0.5042047112 | S131: 0.08386417297 | T131: 1.118059723 | U131: 1.751060449 | V131: 0.8477048935 | W131: 0.01065576606 | X131: 0.1443001125 | Y131: 0.001002806235 | Z131: 0.01725181495 | AB131: -0.372473624 | AC131: 0
B132: 2020-04-29 | C132: 8.316813469 | D132: 25.38196564 | E132: 32.34733582 | F132: 14.46955585 | G132: 43.56638336 | H132: 589.9748535 | I132: 4.1 | J132: 4.1 | L132: 1.207883961 | M132: 5.27832 | N132: 6.486203961 | O132: 7.062659569 | P132: 0.03037526021 | Q132: 0.5460803476 | S132: 0.08383516254 | T132: 1.118059723 | U132: 1.750947616 | V132: 0.8528398965 | W132: 0.01104372416 | X132: 0.1495538312 | Y132: 0.001039316683 | Z132: 0.01868462729 | AB132: -0.3687789334 | AC132: 0
B133: 2020-04-30 | C133: 8.316813469 | D133: 25.38196564 | E133: 32.34733582 | F133: 14.46955585 | G133: 43.56638336 | H133: 589.9748535 | I133: 4.1 | J133: 4.1 | L133: 1.199580505 | M133: 5.27832 | N133: 6.477900505 | O133: 7.069927164 | P133: 0.03184097755 | Q133: 0.5601856817 | S133: 0.08325884758 | T133: 1.118059723 | U133: 1.748706103 | V133: 0.853717483 | W133: 0.01157662423 | X133: 0.1567703503 | Y133: 0.001089467513 | Z133: 0.01916725391 | AB133: -0.3678578093 | AC133: 0
B134: 2020-05-01 | C134: 7.794410706 | D134: 14.99195862 | E134: 23.8147583 | F134: 16.32698631 | G134: 60.39936066 | H134: 595.7793579 | I134: 4.1 | J134: 4.1 | L134: 1.197120453 | M134: 5.27832 | N134: 6.475440453 | O134: 7.047222779 | P134: 0.02823129829 | Q134: 0.5435510276 | S134: 0.07786910302 | T134: 0.6603864076 | U134: 1.286943638 | V134: 0.9602140681 | W134: 0.01423007626 | X134: 0.1403654874 | Y134: 0.0009659591098 | Z134: 0.01859808434 | AB134: 0.2023945141 | AC134: 0.2023945141
B135: 2020-05-02 | C135: 7.794410706 | D135: 14.99195862 | E135: 23.8147583 | F135: 16.32698631 | G135: 60.39936066 | H135: 595.7793579 | I135: 4.1 | J135: 4.1 | L135: 1.198878938 | M135: 5.27832 | N135: 6.477198938 | O135: 7.039385107 | P135: 0.02561731678 | Q135: 0.5365688523 | S135: 0.0779834872 | T135: 0.6603864076 | U135: 1.287293123 | V135: 0.959146152 | W135: 0.01291249051 | X135: 0.1273688201 | Y135: 0.0008765193954 | Z135: 0.01835918297 | AB135: 0.2015405548 | AC135: 0.2015405548
B136: 2020-05-03 | C136: 7.794410706 | D136: 14.99195862 | E136: 23.8147583 | F136: 16.32698631 | G136: 60.39936066 | H136: 595.7793579 | I136: 4.1 | J136: 4.1 | L136: 1.198878938 | M136: 5.27832 | N136: 6.477198938 | O136: 7.039385107 | P136: 0.02561731678 | Q136: 0.5365688523 | S136: 0.0779834872 | T136: 0.6603864076 | U136: 1.287293123 | V136: 0.959146152 | W136: 0.01291249051 | X136: 0.1273688201 | Y136: 0.0008765193954 | Z136: 0.01835918297 | AB136: 0.2015405548 | AC136: 0.2015405548
B137: 2020-05-04 | C137: 7.794410706 | D137: 14.99195862 | E137: 23.8147583 | F137: 16.32698631 | G137: 60.39936066 | H137: 595.7793579 | I137: 4.1 | J137: 4.1 | L137: 1.75493106 | M137: 5.27832 | N137: 7.03325106 | O137: 7.569452433 | P137: 0.01245264038 | Q137: 0.5237487333 | S137: 0.1141530137 | T137: 0.6603864076 | U137: 1.397804176 | V137: 1.031370079 | W137: 0.006276793237 | X137: 0.06191429518 | Y137: 0.0004260782232 | Z137: 0.01792053114 | AB137: 0.2384840484 | AC137: 0.2384840484
B138: 2020-05-05 | C138: 8.54364109 | D138: 10.74882698 | E138: 20.3820076 | F138: 12.3737011 | G138: 84.83805084 | H138: 1265.733032 | I138: 4.1 | J138: 4.1 | L138: 2.28230069 | M138: 5.27832 | N138: 7.56062069 | O138: 8.075143519 | P138: 0.0008359702657 | Q138: 0.513686859 | S138: 0.1627271028 | T138: 0.4734791108 | U138: 1.286022138 | V138: 0.8338614675 | W138: 0.0005918689371 | X138: 0.00883033093 | Y138: 2.860347e-05 | Z138: 0.01757625512 | AB138: 0.1800503953 | AC138: 0.1800503953
B139: 2020-05-06 | C139: 8.54364109 | D139: 10.74882698 | E139: 20.3820076 | F139: 12.3737011 | G139: 84.83805084 | H139: 1265.733032 | I139: 4.1 | J139: 4.1 | L139: 2.268488739 | M139: 5.27832 | N139: 7.546808739 | O139: 8.306011377 | P139: 0.001281938443 | Q139: 0.7579206999 | S139: 0.1617423164 | T139: 0.4734791108 | U139: 1.283672797 | V139: 0.8577015157 | W139: 0.0009076154675 | X139: 0.01354108052 | Y139: 4.386266987e-05 | Z139: 0.02593293433 | AB139: 0.1965032915 | AC139: 0.1965032915
B140: 2020-05-07 | C140: 8.54364109 | D140: 10.74882698 | E140: 20.3820076 | F140: 12.3737011 | G140: 84.83805084 | H140: 1265.733032 | I140: 4.1 | J140: 4.1 | L140: 1.69700143 | M140: 4.2501084 | N140: 5.94710983 | O140: 6.861212216 | P140: 0.0006496089385 | Q140: 0.9134527768 | S140: 0.1209955057 | T140: 0.3812458407 | U140: 1.011572358 | V140: 0.7085075916 | W140: 0.0004599246741 | X140: 0.006861801356 | Y140: 2.222695058e-05 | Z140: 0.03125460338 | AB140: 0.1749894149 | AC140: 0.1749894149
B141: 2020-05-08 | C141: 6.396486282 | D141: 9.820327759 | E141: 21.83278847 | F141: 10.63276482 | G141: 2.570850026 | H141: 38.35554643 | I141: 4.1 | J141: 4.1 | L141: 1.199287902 | M141: 3.3301296 | N141: 4.529417502 | O141: 5.643510391 | P141: 0 | Q141: 1.114092889 | S141: 0.06401901101 | T141: 0.2729173548 | U141: 0.8252691221 | V141: 0.5007714629 | W141: 0 | X141: 0 | Y141: 0 | Z141: 0.0381196842 | AB141: 0.1257154128 | AC141: 0.1257154128
B142: =B141+1 -> 2020-05-09 | C142: 6.396486282 | D142: 9.820327759 | E142: 21.83278847 | F142: 10.63276482 | G142: 0.07790454623 | H142: 1.162289286 | I142: 4.1 | J142: 4.1 | L142: 1.19831072 | M142: 3.3301296 | N142: 4.52844032 | O142: 5.773216327 | P142: 0 | Q142: 1.244776007 | S142: 0.06396684819 | T142: 0.2729173548 | U142: 0.8250910775 | V142: 0.5122807942 | W142: 0 | X142: 0 | Y142: 0 | Z142: 0.0425911239 | AB142: 0.1328054673 | AC142: 0.1328054673
B143: 2020-05-10 | C143: 6.396486282 | D143: 9.820327759 | E143: 21.83278847 | F143: 10.63276482 | G143: 0.002360743825 | H143: 0.03522088745 | I143: 4.1 | J143: 4.1 | L143: 1.19831072 | M143: 3.3301296 | N143: 4.52844032 | O143: 5.773216327 | P143: 0 | Q143: 1.244776007 | S143: =0.00834534*C143*L143 -> 0.06396684819 | T143: =0.00834534*D143*M143 -> 0.2729173548 | U143: =0.00834534*E143*N143 -> 0.8250910775 | V143: =0.00834534*F143*O143 -> 0.5122807942 | W143: =0.00834534*G143*P143 -> 0 | X143: =0.00834534*H143*P143 -> 0 | Y143: =0.00834534*I143*P143 -> 0 | Z143: =0.00834534*J143*Q143 -> 0.0425911239 | AB143: =V143-S143-T143-Y143-Z143 -> 0.1328054673 | AC143: =IF(V143-S143-T143-Y143-Z143<0,0,V143-S143-T143-Y143-Z143) -> 0.1328054673
B144: 2020-05-11 | C144: 6.396486282 | D144: 9.820327759 | E144: 21.83278847 | F144: 10.63276482 | G144: 7.153769167e-05 | H144: 0.00106729962 | I144: 4.1 | J144: 4.1 | L144: 1.201915764 | M144: 3.3301296 | N144: 4.532045364 | O144: 5.368597653 | P144: 0 | Q144: 0.8365522888 | S144: 0.06415928854 | T144: 0.2729173548 | U144: 0.825747924 | V144: 0.4763773457 | W144: 0 | X144: 0 | Y144: 0 | Z144: 0.02862338444 | AB144: 0.1106773178 | AC144: 0.1106773178
B145: 2020-05-12 | C145: 9.455414772 | D145: 13.69509125 | E145: 24.96217537 | F145: 20.31595421 | G145: 2.167808838e-06 | H145: 3.234241272e-05 | I145: 4.1 | J145: 4.1 | L145: 1.206216957 | M145: 3.3301296 | N145: 4.536346557 | O145: 5.059196311 | P145: 0 | Q145: 0.5228497541 | S145: 0.09518095305 | T145: 0.380601154 | U145: 0.945001919 | V145: 0.857754079 | W145: 0 | X145: 0 | Y145: 0 | Z145: 0.01788977177 | AB145: 0.3640822002 | AC145: 0.3640822002
B146: 2020-05-13 | C146: 9.455414772 | D146: 13.69509125 | E146: 24.96217537 | F146: 20.31595421 | G146: 0 | H146: 0 | I146: 4.1 | J146: 4.1 | L146: 1.203161258 | M146: 3.3301296 | N146: 4.533290858 | O146: 4.984253279 | P146: 0 | Q146: 0.450962421 | S146: 0.09493983191 | T146: 0.380601154 | U146: 0.9443653622 | V146: 0.8450479715 | W146: 0 | X146: 0 | Y146: 0 | Z146: 0.0154300824 | AB146: 0.3540769032 | AC146: 0.3540769032
B147: 2020-05-14 | C147: 9.455414772 | D147: 13.69509125 | E147: 24.96217537 | F147: 20.31595421 | G147: 0 | H147: 0 | I147: 4.1 | J147: 4.1 | L147: 1.19989852 | M147: 3.3301296 | N147: 4.53002812 | O147: 4.968531117 | P147: 0 | Q147: 0.4385029972 | S147: 0.09468237369 | T147: 0.380601154 | U147: 0.9436856758 | V147: 0.8423823805 | W147: 0 | X147: 0 | Y147: 0 | Z147: 0.01500377207 | AB147: 0.3520950808 | AC147: 0.3520950808
B148: 2020-05-15 | C148: 9.861959457 | D148: 23.62638664 | E148: 27.51759529 | F148: 17.99284554 | G148: 0 | H148: 0 | I148: 4.1 | J148: 4.1 | L148: 1.198617698 | M148: 3.3301296 | N148: 4.528747298 | O148: 5.117883456 | P148: 0 | Q148: 0.5891361582 | S148: 0.09864792031 | T148: 0.6566024175 | U148: 1.039998235 | V148: 0.7684830248 | W148: 0 | X148: 0 | Y148: 0 | Z148: 0.02015782034 | AB148: -0.006925133318 | AC148: 0
B149: 2020-05-16 | C149: 9.861959457 | D149: 23.62638664 | E149: 27.51759529 | F149: 17.99284554 | G149: 0 | H149: 0 | I149: 4.1 | J149: 4.1 | L149: 1.197751391 | M149: 3.3301296 | N149: 4.527880991 | O149: 5.211482013 | P149: 0 | Q149: 0.6836010219 | S149: 0.09857662204 | T149: 0.6566024175 | U149: 1.039799293 | V149: 0.7825374485 | W149: 0 | X149: 0 | Y149: 0 | Z149: 0.0233900201 | AB149: 0.003968388805 | AC149: 0.003968388805
B150: 2020-05-17 | C150: 9.861959457 | D150: 23.62638664 | E150: 27.51759529 | F150: 17.99284554 | G150: 0 | H150: 0 | I150: 4.1 | J150: 4.1 | L150: 1.197751391 | M150: 3.3301296 | N150: 4.527880991 | O150: 5.211482013 | P150: 0 | Q150: 0.6836010219 | S150: 0.09857662204 | T150: 0.6566024175 | U150: 1.039799293 | V150: 0.7825374485 | W150: 0 | X150: 0 | Y150: 0 | Z150: 0.0233900201 | AB150: 0.003968388805 | AC150: 0.003968388805
B151: 2020-05-18 | C151: 9.861959457 | D151: 23.62638664 | E151: 27.51759529 | F151: 17.99284554 | G151: 0 | H151: 0 | I151: 4.1 | J151: 4.1 | L151: 1.195883919 | M151: 3.3301296 | N151: 4.526013519 | O151: 5.340139209 | P151: 0 | Q151: 0.8141256897 | S151: 0.09842292644 | T151: 0.6566024175 | U151: 1.03937044 | V151: 0.8018561515 | W151: 0 | X151: 0 | Y151: 0 | Z151: 0.0278560383 | AB151: 0.01897476924 | AC151: 0.01897476924
B152: 2020-05-19 | C152: 10.95860195 | D152: 30.59255219 | E152: 22.65788841 | F152: 16.11323738 | G152: 0 | H152: 0 | I152: 4.1 | J152: 4.1 | L152: 1.195426732 | M152: 3.3301296 | N152: 4.525556332 | O152: 5.520635922 | P152: 0 | Q152: 0.9950795905 | S152: 0.1093256708 | T152: 0.8501995682 | U152: 0.8557274113 | V152: 0.7423623661 | W152: 0 | X152: 0 | Y152: 0 | Z152: 0.03404753779 | AB152: -0.2512104107 | AC152: 0
B153: 2020-05-20 | C153: 10.95860195 | D153: 30.59255219 | E153: 22.65788841 | F153: 16.11323738 | G153: 0 | H153: 0 | I153: 4.1 | J153: 4.1 | L153: 1.201863431 | M153: 3.3301296 | N153: 4.531993031 | O153: 5.266621018 | P153: 0 | Q153: 0.734627987 | S153: 0.1099143279 | T153: 0.8501995682 | U153: 0.8569445124 | V153: 0.708204869 | W153: 0 | X153: 0 | Y153: 0 | Z153: 0.02513595333 | AB153: -0.2770449805 | AC153: 0
B154: 2020-05-21 | C154: 10.95860195 | D154: 30.59255219 | E154: 22.65788841 | F154: 16.11323738 | G154: 0 | H154: 0 | I154: 4.1 | J154: 4.1 | L154: 1.696748356 | M154: 4.466574 | N154: 6.163322356 | O154: 6.721050283 | P154: 0 | Q154: 0.5577279265 | S154: 0.1551731672 | T154: 1.140339789 | U154: 1.165408957 | V154: 0.9037826186 | W154: 0 | X154: 0 | Y154: 0 | Z154: 0.01908315961 | AB154: -0.4108134975 | AC154: 0
B155: 2020-05-22 | C155: 8.352325439 | D155: 13.2173748 | E155: 17.85075569 | F155: 16.46074104 | G155: 0 | H155: 0 | I155: 4.1 | J155: 4.1 | L155: 2.048517669 | M155: 5.27832 | N155: 7.326837669 | O155: 7.860562793 | P155: 0 | Q155: 0.5337251235 | S155: 0.142787818 | T155: 0.5822170995 | U155: 1.091483591 | V155: 1.079809289 | W155: 0 | X155: 0 | Y155: 0 | Z155: 0.01826188225 | AB155: 0.3365424892 | AC155: 0.3365424892
B156: 2020-05-23 | C156: 8.352325439 | D156: 13.2173748 | E156: 17.85075569 | F156: 16.46074104 | G156: 0 | H156: 0 | I156: 4.1 | J156: 4.1 | L156: 2.050839356 | M156: 5.27832 | N156: 7.329159356 | O156: 7.857497688 | P156: 0 | Q156: 0.5283383319 | S156: 0.1429496465 | T156: 0.5822170995 | U156: 1.091829454 | V156: 1.079388234 | W156: 0 | X156: 0 | Y156: 0 | Z156: 0.01807756836 | AB156: 0.3361439197 | AC156: 0.3361439197
B157: 2020-05-24 | C157: 8.352325439 | D157: 13.2173748 | E157: 17.85075569 | F157: 16.46074104 | G157: 0 | H157: 0 | I157: 4.1 | J157: 4.1 | L157: 2.050839356 | M157: 5.27832 | N157: 7.329159356 | O157: 7.857497688 | P157: 0 | Q157: 0.5283383319 | S157: 0.1429496465 | T157: 0.5822170995 | U157: 1.091829454 | V157: 1.079388234 | W157: 0 | X157: 0 | Y157: 0 | Z157: 0.01807756836 | AB157: 0.3361439197 | AC157: 0.3361439197
B158: 2020-05-25 | C158: 8.352325439 | D158: 13.2173748 | E158: 17.85075569 | F158: 16.46074104 | G158: 0 | H158: 0 | I158: 4.1 | J158: 4.1 | L158: 2.050839356 | M158: 5.27832 | N158: 7.329159356 | O158: 7.857497688 | P158: 0 | Q158: 0.5283383319 | S158: 0.1429496465 | T158: 0.5822170995 | U158: 1.091829454 | V158: 1.079388234 | W158: 0 | X158: 0 | Y158: 0 | Z158: 0.01807756836 | AB158: 0.3361439197 | AC158: 0.3361439197
B159: 2020-05-26 | C159: 8.352325439 | D159: 13.2173748 | E159: 17.85075569 | F159: 16.46074104 | G159: 0 | H159: 0 | I159: 4.1 | J159: 4.1 | L159: 2.047987255 | M159: 5.27832 | N159: 7.326307255 | O159: 8.642431764 | P159: 0 | Q159: 1.316124509 | S159: 0.1427508466 | T159: 0.5822170995 | U159: 1.091404574 | V159: 1.187215005 | W159: 0 | X159: 0 | Y159: 0 | Z159: 0.04503237668 | AB159: 0.4172146826 | AC159: 0.4172146826
B160: 2020-05-27 | C160: 9.918664932 | D160: 17.2733326 | E160: 19.01065636 | F160: 16.28884888 | G160: 0 | H160: 0 | I160: 4.1 | J160: 4.1 | L160: 2.045607477 | M160: 5.27832 | N160: 7.323927477 | O160: 8.640051985 | P160: 0 | Q160: 1.316124509 | S160: 0.1693244045 | T160: 0.7608795055 | U160: 1.161943957 | V160: 1.174493952 | W160: 0 | X160: 0 | Y160: 0 | Z160: 0.04503237668 | AB160: 0.1992576652 | AC160: 0.1992576652
B161: 2020-05-28 | C161: 9.918664932 | D161: 17.2733326 | E161: 19.01065636 | F161: 16.28884888 | G161: 0 | H161: 0 | I161: 4.1 | J161: 4.1 | L161: 2.050416215 | M161: 5.27832 | N161: 7.328736215 | O161: 8.212746861 | P161: 0 | Q161: 0.8840106456 | S161: 0.169722446 | T161: 0.7608795055 | U161: 1.162706866 | V161: 1.11640781 | W161: 0 | X161: 0 | Y161: 0 | Z161: 0.03024721454 | AB161: 0.1555586441 | AC161: 0.1555586441
B162: 2020-05-29 | C162: 9.107913971 | D162: 20.22678185 | E162: 27.06025314 | F162: 10.32404041 | G162: 0 | H162: 0 | I162: 4.1 | J162: 4.1 | L162: 2.056418685 | M162: 5.27832 | N162: 7.334738685 | O162: 7.856568601 | P162: 0 | Q162: 0.5218299153 | S162: 0.156305585 | T162: 0.8909770991 | U162: 1.656382128 | V162: 0.6769033103 | W162: 0 | X162: 0 | Y162: 0 | Z162: 0.01785487707 | AB162: -0.3882342509 | AC162: 0
B163: 2020-05-30 | C163: 9.107913971 | D163: 20.22678185 | E163: 27.06025314 | F163: 10.32404041 | G163: 0 | H163: 0 | I163: 4.1 | J163: 4.1 | L163: 2.057564835 | M163: 5.27832 | N163: 7.335884835 | O163: 7.851100092 | P163: 0 | Q163: 0.5152152572 | S163: 0.1563927023 | T163: 0.8909770991 | U163: 1.65664096 | V163: 0.6764321566 | W163: 0 | X163: 0 | Y163: 0 | Z163: 0.01762855063 | AB163: -0.3885661955 | AC163: 0
B164: 2020-05-31 | C164: 9.107913971 | D164: 20.22678185 | E164: 27.06025314 | F164: 10.32404041 | G164: 0 | H164: 0 | I164: 4.1 | J164: 4.1 | L164: 2.057564835 | M164: 5.27832 | N164: 7.335884835 | O164: 7.851100092 | P164: 0 | Q164: 0.5152152572 | S164: 0.1563927023 | T164: 0.8909770991 | U164: 1.65664096 | V164: 0.6764321566 | W164: 0 | X164: 0 | Y164: 0 | Z164: 0.01762855063 | AB164: -0.3885661955 | AC164: 0
B165: 2020-06-01 | C165: 9.107913971 | D165: 20.22678185 | E165: 27.06025314 | F165: 10.32404041 | G165: 0 | H165: 0 | I165: 4.1 | J165: 4.1 | L165: 2.059598502 | M165: 5.27832 | N165: 7.337918502 | O165: 7.845923993 | P165: 0 | Q165: 0.5080054918 | S165: 0.1565472785 | T165: 0.8909770991 | U165: 1.657100217 | V165: 0.6759861962 | W165: 0 | X165: 0 | Y165: 0 | Z165: 0.01738186206 | AB165: -0.3889200435 | AC165: 0
B166: 2020-06-02 | C166: 9.733381271 | D166: 17.54523087 | E166: 35.48355484 | F166: 14.30475998 | G166: 0 | H166: 0 | I166: 4.1 | J166: 4.1 | L166: 2.061366003 | M166: 5.27832 | N166: 7.339686003 | O166: 7.848115784 | P166: 0 | Q166: 0.5084297808 | S166: 0.1674414129 | T166: 0.7728564544 | U166: 2.173444917 | V166: 0.9368930382 | W166: 0 | X166: 0 | Y166: 0 | Z166: 0.01739637949 | AB166: -0.02080120853 | AC166: 0
B167: 2020-06-03 | C167: 9.733381271 | D167: 17.54523087 | E167: 35.48355484 | F167: 14.30475998 | G167: 0 | H167: 0 | I167: 4.1 | J167: 4.1 | L167: 2.058199458 | M167: 5.27832 | N167: 7.336519458 | O167: 7.736914043 | P167: 0 | Q167: 0.400394585 | S167: 0.1671841996 | T167: 0.7728564544 | U167: 2.172507233 | V167: 0.9236179873 | W167: 0 | X167: 0 | Y167: 0 | Z167: 0.01369985868 | AB167: -0.03012252536 | AC167: 0
B168: 2020-06-04 | C168: 9.733381271 | D168: 17.54523087 | E168: 35.48355484 | F168: 14.30475998 | G168: 0 | H168: 0 | I168: 4.1 | J168: 4.1 | L168: 2.057749471 | M168: 5.27832 | N168: 7.336069471 | O168: 7.654020328 | P168: 0 | Q168: 0.3179508573 | S168: 0.1671476478 | T168: 0.7728564544 | U168: 2.172373981 | V168: 0.9137222943 | W168: 0 | X168: 0 | Y168: 0 | Z168: 0.01087897283 | AB168: -0.03716078078 | AC168: 0
B169: 2020-06-05 | C169: 8.460338593 | D169: 14.53622246 | E169: 63.25902176 | F169: 15.11487865 | G169: 0 | H169: 0 | I169: 4.1 | J169: 4.1 | L169: 2.058761717 | M169: 5.27832 | N169: 7.337081717 | O169: 7.563944224 | P169: 0 | Q169: 0.2268625072 | S169: 0.14535764 | T169: 0.6403115145 | U169: 3.873377833 | V169: 0.9541068585 | W169: 0 | X169: 0 | Y169: 0 | Z169: 0.007762303498 | AB169: 0.1606754004 | AC169: 0.1606754004
B170: 2020-06-06 | C170: 8.460338593 | D170: 14.53622246 | E170: 63.25902176 | F170: 15.11487865 | G170: 0 | H170: 0 | I170: 4.1 | J170: 4.1 | L170: 2.058510798 | M170: 5.27832 | N170: 7.336830798 | O170: 7.513574816 | P170: 0 | Q170: 0.176744018 | S170: 0.145339924 | T170: 0.6403115145 | U170: 3.873245369 | V170: 0.9477533217 | W170: 0 | X170: 0 | Y170: 0 | Z170: 0.006047454586 | AB170: 0.1560544286 | AC170: 0.1560544286
B171: 2020-06-07 | C171: 8.460338593 | D171: 14.53622246 | E171: 63.25902176 | F171: 15.11487865 | G171: 0 | H171: 0 | I171: 4.1 | J171: 4.1 | L171: 2.058510798 | M171: 5.27832 | N171: 7.336830798 | O171: 7.513574816 | P171: 0 | Q171: 0.176744018 | S171: 0.145339924 | T171: 0.6403115145 | U171: 3.873245369 | V171: 0.9477533217 | W171: 0 | X171: 0 | Y171: 0 | Z171: 0.006047454586 | AB171: 0.1560544286 | AC171: 0.1560544286
B172: 2020-06-08 | C172: 8.460338593 | D172: 14.53622246 | E172: 63.25902176 | F172: 15.11487865 | G172: 0 | H172: 0 | I172: 4.1 | J172: 4.1 | L172: 2.058227396 | M172: 5.27832 | N172: 7.336547396 | O172: 7.592037792 | P172: 0.0001679845511 | Q172: 0.2553224112 | S172: 0.1453199146 | T172: 0.6403115145 | U172: 3.873095756 | V172: 0.9576505475 | W172: 0 | X172: 0 | Y172: 5.747741594e-06 | Z172: 0.008736084557 | AB172: 0.163277286 | AC172: 0.163277286
B173: 2020-06-09 | C173: 10.8537178 | D173: 20.51254463 | E173: 56.25613022 | F173: 13.28288364 | G173: 0 | H173: 0 | I173: 4.1 | J173: 4.1 | L173: 2.058045993 | M173: 5.27832 | N173: 7.336365993 | O173: 7.644040318 | P173: 0.0002687752818 | Q173: 0.3074055494 | S173: 0.1864136186 | T173: 0.9035647713 | U173: 3.444251677 | V173: 0.8473432466 | W173: 0 | X173: 0 | Y173: 9.196386551e-06 | Z173: 0.01051815569 | AB173: -0.2531624954 | AC173: 0
B174: 2020-06-10 | C174: 10.8537178 | D174: 20.51254463 | E174: 56.25613022 | F174: 13.28288364 | G174: 0 | H174: 0 | I174: 4.1 | J174: 4.1 | L174: 2.054550262 | M174: 5.27832 | N174: 7.332870262 | O174: 7.649326409 | P174: 0.0002807624844 | Q174: 0.3161753847 | S174: 0.1860969824 | T174: 0.9035647713 | U174: 3.442610513 | V174: 0.8479292108 | W174: 0 | X174: 0 | Y174: 9.606539406e-06 | Z174: 0.01081822345 | AB174: -0.2525603729 | AC174: 0
B175: 2020-06-11 | C175: 10.8537178 | D175: 20.51254463 | E175: 56.25613022 | F175: 13.28288364 | G175: 0 | H175: 0 | I175: 4.1 | J175: 4.1 | L175: 2.052603404 | M175: 5.27832 | N175: 7.330923404 | O175: 7.643658165 | P175: 0.000287954806 | Q175: 0.3124468066 | S175: 0.18592064 | T175: 0.9035647713 | U175: 3.441696509 | V175: 0.8473008849 | W175: 0 | X175: 0 | Y175: 9.852631119e-06 | Z175: 0.01069064682 | AB175: -0.2528850258 | AC175: 0
B176: 2020-06-12 | C176: 7.672667027 | D176: 18.02554131 | E176: 17.62067986 | F176: 12.70451069 | G176: 0 | H176: 0 | I176: 4.1 | J176: 4.1 | L176: 2.055427805 | M176: 5.27832 | N176: 7.333747805 | O176: 7.641590509 | P176: 0.0003017842582 | Q176: 0.3075409197 | S176: 0.1316111287 | T176: 0.7940138291 | U176: 1.078431754 | V176: 0.8101878751 | W176: 0 | X176: 0 | Y176: 1.032581819e-05 | Z176: 0.01052278751 | AB176: -0.125970196 | AC176: 0
B177: 2020-06-13 | C177: 7.672667027 | D177: 18.02554131 | E177: 17.62067986 | F177: 12.70451069 | G177: 0 | H177: 0 | I177: 4.1 | J177: 4.1 | L177: 2.057269625 | M177: 5.27832 | N177: 7.335589625 | O177: 7.643504996 | P177: 0.0003100819296 | Q177: 0.307605289 | S177: 0.1317290623 | T177: 0.7940138291 | U177: 1.078702595 | V177: 0.8103908556 | W177: 0 | X177: 0 | Y177: 1.060973043e-05 | Z177: 0.01052498996 | AB177: -0.1258876354 | AC177: 0
B178: 2020-06-14 | C178: 7.672667027 | D178: 18.02554131 | E178: 17.62067986 | F178: 12.70451069 | G178: 0 | H178: 0 | I178: 4.1 | J178: 4.1 | L178: 2.057269625 | M178: 5.27832 | N178: 7.335589625 | O178: 7.643504996 | P178: 0.0003100819296 | Q178: 0.307605289 | S178: 0.1317290623 | T178: 0.7940138291 | U178: 1.078702595 | V178: 0.8103908556 | W178: 0 | X178: 0 | Y178: 1.060973043e-05 | Z178: 0.01052498996 | AB178: -0.1258876354 | AC178: 0
B179: 2020-06-15 | C179: 7.672667027 | D179: 18.02554131 | E179: 17.62067986 | F179: 12.70451069 | G179: 0 | H179: 0 | I179: 4.1 | J179: 4.1 | L179: 2.058465314 | M179: 5.27832 | N179: 7.336785314 | O179: 7.644051426 | P179: 0.0003353303627 | Q179: 0.3069307818 | S179: 0.1318056235 | T179: 0.7940138291 | U179: 1.078878421 | V179: 0.81044879 | W179: 0 | X179: 0 | Y179: 1.147362815e-05 | Z179: 0.0105019111 | AB179: -0.1258840473 | AC179: 0
B180: 2020-06-16 | C180: 8.443925858 | D180: 11.68521976 | E180: 18.74660873 | F180: 10.93277645 | G180: 0 | H180: 0 | I180: 4.1 | J180: 4.1 | L180: 2.059354118 | M180: 5.27832 | N180: 7.337674118 | O180: 7.644501791 | P180: 0.0003504794226 | Q180: 0.3064771934 | S180: 0.1451173967 | T180: 0.5147266277 | U180: 1.147955809 | V180: 0.6974670411 | W180: 0 | X180: 0 | Y180: 1.199196677e-05 | Z180: 0.01048639116 | AB180: 0.0271246335 | AC180: 0.0271246335
B181: 2020-06-17 | C181: 8.443925858 | D181: 11.68521976 | E181: 18.74660873 | F181: 10.93277645 | G181: 0 | H181: 0 | I181: 4.1 | J181: 4.1 | L181: 2.059354118 | M181: 5.27832 | N181: 7.337674118 | O181: 7.644501791 | P181: 0.0003504794226 | Q181: 0.3064771934 | S181: 0.1451173967 | T181: 0.5147266277 | U181: 1.147955809 | V181: 0.6974670411 | W181: 0 | X181: 0 | Y181: 1.199196677e-05 | Z181: 0.01048639116 | AB181: 0.0271246335 | AC181: 0.0271246335
B182: 2020-06-18 | C182: 8.443925858 | D182: 11.68521976 | E182: 18.74660873 | F182: 10.93277645 | G182: 0 | H182: 0 | I182: 4.1 | J182: 4.1 | L182: 2.056843702 | M182: 5.27832 | N182: 7.335163702 | O182: 7.640397077 | P182: 0.0003504794226 | Q182: 0.3048828957 | S182: 0.1449404941 | T182: 0.5147266277 | U182: 1.147563063 | V182: 0.6970925362 | W182: 0 | X182: 0 | Y182: 1.199196677e-05 | Z182: 0.01043184084 | AB182: 0.02698158158 | AC182: 0.02698158158
B183: 2020-06-19 | C183: 7.517842293 | D183: 14.28983021 | E183: 41.66718292 | F183: 10.87489605 | G183: 0 | H183: 0 | I183: 4.1 | J183: 4.1 | L183: 2.052530896 | M183: 5.27832 | N183: 7.330850896 | O183: 7.665093854 | P183: 0.0003965289343 | Q183: 0.3338464287 | S183: 0.1287736333 | T183: 0.6294580899 | U183: 2.549133384 | V183: 0.6956433315 | W183: 0 | X183: 0 | Y183: 1.356759198e-05 | Z183: 0.01142285402 | AB183: -0.07402481331 | AC183: 0
B184: 2020-06-20 | C184: 7.517842293 | D184: 14.28983021 | E184: 41.66718292 | F184: 10.87489605 | G184: 0 | H184: 0 | I184: 4.1 | J184: 4.1 | L184: 2.050748672 | M184: 5.27832 | N184: 7.329068672 | O184: 7.683493833 | P184: 0.0004241586413 | Q184: 0.3540010021 | S184: 0.1286618184 | T184: 0.6294580899 | U184: 2.548513657 | V184: 0.6973132162 | W184: 0 | X184: 0 | Y184: 1.451296711e-05 | Z184: 0.01211246076 | AB184: -0.07293366589 | AC184: 0
B185: 2020-06-21 | C185: 7.517842293 | D185: 14.28983021 | E185: 41.66718292 | F185: 10.87489605 | G185: 0 | H185: 0 | I185: 4.1 | J185: 4.1 | L185: 2.050748672 | M185: 5.27832 | N185: 7.329068672 | O185: 7.683493833 | P185: 0.0004241586413 | Q185: 0.3540010021 | S185: 0.1286618184 | T185: 0.6294580899 | U185: 2.548513657 | V185: 0.6973132162 | W185: 0 | X185: 0 | Y185: 1.451296711e-05 | Z185: 0.01211246076 | AB185: -0.07293366589 | AC185: 0
B186: 2020-06-22 | C186: 7.517842293 | D186: 14.28983021 | E186: 41.66718292 | F186: 10.87489605 | G186: 0 | H186: 0 | I186: 4.1 | J186: 4.1 | L186: 2.050748672 | M186: 5.27832 | N186: 7.329068672 | O186: 7.683493833 | P186: 0.0004241586413 | Q186: 0.3540010021 | S186: 0.1286618184 | T186: 0.6294580899 | U186: 2.548513657 | V186: 0.6973132162 | W186: 0 | X186: 0 | Y186: 1.451296711e-05 | Z186: 0.01211246076 | AB186: -0.07293366589 | AC186: 0
B187: 2020-06-23 | C187: 16.07018661 | D187: 41.79351044 | E187: 34.43571091 | F187: 17.34476471 | G187: 0 | H187: 0 | I187: 4.1 | J187: 4.1 | L187: 2.054224111 | M187: 5.27832 | N187: 7.332544111 | O187: 7.67156052 | P187: 0.0004947232509 | Q187: 0.3385216849 | S187: 0.2754944014 | T187: 1.840978015 | U187: 2.107209777 | V187: 1.110442725 | W187: 0 | X187: 0 | Y187: 1.692739831e-05 | Z187: 0.01158282209 | AB187: -1.017629441 | AC187: 0
B188: 2020-06-24 | C188: 16.07018661 | D188: 41.79351044 | E188: 34.43571091 | F188: 17.34476471 | G188: 0 | H188: 0 | I188: 4.1 | J188: 4.1 | L188: 2.056952925 | M188: 5.27832 | N188: 7.335272925 | O188: 7.651880425 | P188: 0.0005609913121 | Q188: 0.3160465091 | S188: 0.2758603657 | T188: 1.840978015 | U188: 2.107993977 | V188: 1.107594072 | W188: 0 | X188: 0 | Y188: 1.919481927e-05 | Z188: 0.01081381386 | AB188: -1.020077318 | AC188: 0
B189: 2020-06-25 | C189: 16.07018661 | D189: 41.79351044 | E189: 34.43571091 | F189: 17.34476471 | G189: 0 | H189: 0 | I189: 4.1 | J189: 4.1 | L189: 2.05989352 | M189: 5.27832 | N189: 7.33821352 | O189: 7.648610076 | P189: 0.0005753488894 | Q189: 0.3098212075 | S189: 0.2762547324 | T189: 1.840978015 | U189: 2.108839038 | V189: 1.107120696 | W189: 0 | X189: 0 | Y189: 1.968607661e-05 | Z189: 0.0106008096 | AB189: -1.020732548 | AC189: 0
B190: 2020-06-26 | C190: 8.200366974 | D190: 15.62036037 | E190: 37.41659546 | F190: 14.05520535 | G190: 0 | H190: 0 | I190: 4.1 | J190: 4.1 | L190: 2.059778025 | M190: 5.27832 | N190: 7.338098025 | O190: 7.648787903 | P190: 0.0006351449555 | Q190: 0.3100547333 | S190: 0.1409606012 | T190: 0.6880671122 | U190: 2.291352007 | V190: 0.897168152 | W190: 0 | X190: 0 | Y190: 2.173205247e-05 | Z190: 0.01060879989 | AB190: 0.05750990655 | AC190: 0.05750990655
B191: 2020-06-27 | C191: 8.200366974 | D191: 15.62036037 | E191: 37.41659546 | F191: 14.05520535 | G191: 0 | H191: 0 | I191: 4.1 | J191: 4.1 | L191: 2.058417588 | M191: 5.27832 | N191: 7.336737588 | O191: 7.647058909 | P191: 0.0006710225952 | Q191: 0.3096502986 | S191: 0.1408674999 | T191: 0.6880671122 | U191: 2.290927205 | V191: 0.8969653488 | W191: 0 | X191: 0 | Y191: 2.295963799e-05 | Z191: 0.01059496179 | AB191: 0.05741281519 | AC191: 0.05741281519
B192: 2020-06-28 | C192: 8.200366974 | D192: 15.62036037 | E192: 37.41659546 | F192: 14.05520535 | G192: 0 | H192: 0 | I192: 4.1 | J192: 4.1 | L192: 2.058417588 | M192: 5.27832 | N192: 7.336737588 | O192: 7.647058909 | P192: 0.0006710225952 | Q192: 0.3096502986 | S192: 0.1408674999 | T192: 0.6880671122 | U192: 2.290927205 | V192: 0.8969653488 | W192: 0 | X192: 0 | Y192: 2.295963799e-05 | Z192: 0.01059496179 | AB192: 0.05741281519 | AC192: 0.05741281519
B193: 2020-06-29 | C193: 8.200366974 | D193: 15.62036037 | E193: 37.41659546 | F193: 14.05520535 | G193: 0 | H193: 0 | I193: 4.1 | J193: 4.1 | L193: 2.055202259 | M193: 5.27832 | N193: 7.333522259 | O193: 7.713763874 | P193: 0.0008103959738 | Q193: 0.3794312191 | S193: 0.1406474594 | T193: 0.6880671122 | U193: 2.289923205 | V193: 0.9047895389 | W193: 0 | X193: 0 | Y193: 2.772842274e-05 | Z193: 0.01298257837 | AB193: 0.06306466044 | AC193: 0.06306466044
B194: 2020-06-30 | C194: 8.200366974 | D194: 12.49005032 | E194: 36.83690643 | F194: 11.04083347 | G194: 0 | H194: 0 | I194: 4.1 | J194: 4.1 | L194: 2.053191772 | M194: 5.27832 | N194: 7.331511772 | O194: 7.75115981 | P194: 0.000894020001 | Q194: 0.4187540179 | S194: 0.140509872 | T194: 0.5501789105 | U194: 2.253827753 | V194: 0.7141880607 | W194: 0 | X194: 0 | Y194: 3.058969359e-05 | Z194: 0.01432804309 | AB194: 0.009140645462 | AC194: 0.009140645462
B195: 2020-07-01 | C195: 8.200366974 | D195: 12.49005032 | E195: 36.83690643 | F195: 11.04083347 | G195: 0 | H195: 0 | I195: 4.1 | J195: 4.1 | L195: 2.050354306 | M195: 5.27832 | N195: 7.328674306 | O195: 7.69637595 | P195: 0.001053045892 | Q195: 0.3666485978 | S195: 0.1403156905 | T195: 0.5501789105 | U195: 2.252955469 | V195: 0.7091403028 | W195: 0 | X195: 0 | Y195: 3.603090663e-05 | Z195: 0.01254520956 | AB195: 0.006064461357 | AC195: 0.006064461357
B196: 2020-07-02 | C196: 9.644810677 | D196: 18.19014549 | E196: 19.11396599 | F196: 10.22219753 | G196: 0 | H196: 0 | I196: 4.1 | J196: 4.1 | L196: 2.046856965 | M196: 5.27832 | N196: 7.325176965 | O196: 7.620854601 | P196: 0.001148461427 | Q196: 0.2945291753 | S196: 0.1647499294 | T196: 0.8012645406 | U196: 1.16845762 | V196: 0.6501176844 | W196: 0 | X196: 0 | Y196: 3.929563445e-05 | Z196: 0.01007757904 | AB196: -0.3260136603 | AC196: 0
B197: 2020-07-03 | C197: 9.644810677 | D197: 18.19014549 | E197: 19.11396599 | F197: 10.22219753 | G197: 0 | H197: 0 | I197: 4.1 | J197: 4.1 | L197: 2.046856965 | M197: 5.27832 | N197: 7.325176965 | O197: 7.620854601 | P197: 0.001148461427 | Q197: 0.2945291753 | S197: 0.1647499294 | T197: 0.8012645406 | U197: 1.16845762 | V197: 0.6501176844 | W197: 0 | X197: 0 | Y197: 3.929563445e-05 | Z197: 0.01007757904 | AB197: -0.3260136603 | AC197: 0
B198: 2020-07-04 | C198: 9.644810677 | D198: 18.19014549 | E198: 19.11396599 | F198: 10.22219753 | G198: 0 | H198: 0 | I198: 4.1 | J198: 4.1 | L198: 2.046856965 | M198: 5.27832 | N198: 7.325176965 | O198: 7.620854601 | P198: 0.001148461427 | Q198: 0.2945291753 | S198: 0.1647499294 | T198: 0.8012645406 | U198: 1.16845762 | V198: 0.6501176844 | W198: 0 | X198: 0 | Y198: 3.929563445e-05 | Z198: 0.01007757904 | AB198: -0.3260136603 | AC198: 0
B199: 2020-07-05 | C199: 9.644810677 | D199: 18.19014549 | E199: 19.11396599 | F199: 10.22219753 | G199: 0 | H199: 0 | I199: 4.1 | J199: 4.1 | L199: 2.046856965 | M199: 5.27832 | N199: 7.325176965 | O199: 7.620854601 | P199: 0.001148461427 | Q199: 0.2945291753 | S199: 0.1647499294 | T199: 0.8012645406 | U199: 1.16845762 | V199: 0.6501176844 | W199: 0 | X199: 0 | Y199: 3.929563445e-05 | Z199: 0.01007757904 | AB199: -0.3260136603 | AC199: 0
B200: 2020-07-06 | C200: 9.644810677 | D200: 18.19014549 | E200: 19.11396599 | F200: 10.22219753 | G200: 0 | H200: 0 | I200: 4.1 | J200: 4.1 | L200: 2.059769597 | M200: 5.27832 | N200: 7.338089597 | O200: 7.605445805 | P200: 0.002918754789 | Q200: 0.2644374537 | S200: 0.1657892572 | T200: 0.8012645406 | U200: 1.170517346 | V200: 0.6488031953 | W200: 0 | X200: 0 | Y200: 9.986780447e-05 | Z200: 0.009047963885 | AB200: -0.3273984342 | AC200: 0
B201: 2020-07-07 | C201: 12.85522747 | D201: 11.98852825 | E201: 29.03361702 | F201: 14.01082706 | G201: 0 | H201: 0 | I201: 4.1 | J201: 4.1 | L201: 2.067068041 | M201: 5.27832 | N201: 7.345388041 | O201: 7.597946844 | P201: 0.003980930806 | Q201: 0.2485778719 | S201: 0.2217576309 | T201: 0.528087177 | U201: 1.779753774 | V201: 0.8883908126 | W201: 0 | X201: 0 | Y201: 0.0001362111065 | Z201: 0.008505314115 | AB201: 0.1299044794 | AC201: 0.1299044794
B202: 2020-07-08 | C202: 12.85522747 | D202: 11.98852825 | E202: 29.03361702 | F202: 14.01082706 | G202: 0 | H202: 0 | I202: 4.1 | J202: 4.1 | L202: 2.061902434 | M202: 5.27832 | N202: 7.340222434 | O202: 7.623641014 | P202: 0.004074973464 | Q202: 0.2793436068 | S202: 0.2212034581 | T202: 0.528087177 | U202: 1.778502171 | V202: 0.8913951063 | W202: 0 | X202: 0 | Y202: 0.0001394288601 | Z202: 0.009557991239 | AB202: 0.1324070511 | AC202: 0.1324070511
B203: 2020-07-09 | C203: 12.85522747 | D203: 11.98852825 | E203: 29.03361702 | F203: 14.01082706 | G203: 0 | H203: 0 | I203: 4.1 | J203: 4.1 | L203: 2.06159003 | M203: 5.27832 | N203: 7.33991003 | O203: 7.640533488 | P203: 0.002040098491 | Q203: 0.2985833601 | S203: 0.2211699431 | T203: 0.528087177 | U203: 1.778426477 | V203: 0.8933702609 | W203: 0 | X203: 0 | Y203: 6.980379371e-05 | Z203: 0.0102162966 | AB203: 0.1338270404 | AC203: 0.1338270404
B204: 2020-07-10 | C204: 9.09953022 | D204: 17.82430458 | E204: 23.25562096 | F204: 11.64184856 | G204: 0 | H204: 0 | I204: 4.1 | J204: 4.1 | L204: 2.064053356 | M204: 5.27832 | N204: 7.342373356 | O204: 7.627565758 | P204: 0.0007017260039 | Q204: 0.2844906759 | S204: 0.156741474 | T204: 0.7851494771 | U204: 1.42497892 | V204: 0.7410575585 | W204: 0 | X204: 0 | Y204: 2.401018257e-05 | Z204: 0.009734102811 | AB204: -0.2105915056 | AC204: 0
B205: 2020-07-11 | C205: 9.09953022 | D205: 17.82430458 | E205: 23.25562096 | F205: 11.64184856 | G205: 0 | H205: 0 | I205: 4.1 | J205: 4.1 | L205: 2.064377295 | M205: 5.27832 | N205: 7.342697295 | O205: 7.61890045 | P205: 0.0007291066864 | Q205: 0.2754740485 | S205: 0.1567660734 | T205: 0.7851494771 | U205: 1.425041789 | V205: 0.7402156788 | W205: 0 | X205: 0 | Y205: 2.49470371e-05 | Z205: 0.009425590843 | AB205: -0.2111504095 | AC205: 0
B206: =B205+1 -> 2020-07-12 | C206: 9.09953022 | D206: 17.82430458 | E206: 23.25562096 | F206: 11.64184856 | G206: 0 | H206: 0 | I206: 4.1 | J206: 4.1 | L206: 2.064377295 | M206: 5.27832 | N206: 7.342697295 | O206: 7.61890045 | P206: 0.0007291066864 | Q206: 0.2754740485 | S206: 0.1567660734 | T206: 0.7851494771 | U206: 1.425041789 | V206: 0.7402156788 | W206: 0 | X206: 0 | Y206: 2.49470371e-05 | Z206: 0.009425590843 | AB206: -0.2111504095 | AC206: 0
B207: 2020-07-13 | C207: 9.09953022 | D207: 17.82430458 | E207: 23.25562096 | F207: 11.64184856 | G207: 0 | H207: 0 | I207: 4.1 | J207: 4.1 | L207: 2.067817927 | M207: 5.27832 | N207: 7.346137927 | O207: 7.848643766 | P207: 0.0009510933153 | Q207: 0.5015547461 | S207: =0.00834534*C207*L207 -> 0.1570273505 | T207: =0.00834534*D207*M207 -> 0.7851494771 | U207: =0.00834534*E207*N207 -> 1.425709533 | V207: =0.00834534*F207*O207 -> 0.7625364332 | W207: =0.00834534*G207*P207 -> 0 | X207: =0.00834534*H207*P207 -> 0 | Y207: =0.00834534*I207*P207 -> 3.254250806e-05 | Z207: =0.00834534*J207*Q207 -> 0.01716114403 | AB207: =V207-S207-T207-Y207-Z207 -> -0.1968340809 | AC207: =IF(V207-S207-T207-Y207-Z207<0,0,V207-S207-T207-Y207-Z207) -> 0
B208: 2020-07-14 | C208: 9.677329063 | D208: 25.68238068 | E208: 34.23381424 | F208: 25.50904083 | G208: 0 | H208: 0 | I208: 4.1 | J208: 4.1 | L208: 2.070660052 | M208: 5.27832 | N208: 7.348980052 | O208: 7.82790138 | P208: 0.001290579541 | Q208: 0.4776307488 | S208: 0.1672277509 | T208: 1.131292818 | U208: 2.09955083 | V208: 1.666416318 | W208: 0 | X208: 0 | Y208: 4.415833277e-05 | Z208: 0.01634256307 | AB208: 0.3515090274 | AC208: 0.3515090274
B209: 2020-07-15 | C209: 9.677329063 | D209: 25.68238068 | E209: 34.23381424 | F209: 25.50904083 | G209: 0 | H209: 0 | I209: 4.1 | J209: 4.1 | L209: 2.045002624 | M209: 5.27832 | N209: 7.323322624 | O209: 7.563287068 | P209: 0.003362775421 | Q209: 0.2366016689 | S209: 0.1651556416 | T209: 1.131292818 | U209: 2.092220687 | V209: 1.610084795 | W209: 0 | X209: 0 | Y209: 0.0001150603673 | Z209: 0.008095537623 | AB209: 0.305425737 | AC209: 0.305425737
... 2041 more rows

Sheet Loading Reports
AC2: 45292 | AD2: 44927 | AE2: 45292
AC3: =AC2-43831+13 -> 1474 | AD3: =AD2-43831+13 -> 1109 | AE3: 1474
AG4: Chart 2
AF5: title | AG5: Cum Load no Credit 2023 Tot = 113.2 2024 Tot= 26.4
AF6: label | AG6: 2023
AF7: label | AG7: 2024
AC8: 1 & 3 Months with credit
AC9: 1 & 3 Months no credit
J10: Parameter | K10: Cum Load no Credit
E11: Parameter | F11: 1 & 3 Months no credit | J11: Year 1 | K11: 2023
E12: Year | F12: 2024 | J12: Year 2 | K12: 2024
AC13: Cum Load with Credit
AC14: Cum Load no Credit
AC15: Cum Load Credit vs no Credit
X24: Chart 1 xy
X25: x axis | Y25: =" Day Report Date = " &TEXT(Z1,"mm/dd/yyyy") -> Day Report Date = 01/00/1900
X26: Title | Y26: Cum Load with Credit 2013 (Black) 2020 (Red)
X27: y axis | Y27: Pounds P
X30: Chart 3 bar
X31: x axis | Y31: =" Report Date = " &TEXT(Z1,"mm/dd/yyyy") -> Report Date = 01/00/1900
X32: Title | Y32: Year = 2024 1 & 3 Months no credit
X33: y axis | Y33: Pounds P
H35: 1 month | I35: 3 month
G36: Max | H36: =MAX(H42:H53) -> 13.81639546 | I36: =MAX(I42:I53) -> 31.88191927
G37: Avg | H37: =IF(H36<>0,AVERAGE(H42:H53),0) -> 2.197514888 | I37: =IF(I36<>0,AVERAGE(I42:I53),0) -> 8.780503815 | O37: Total | Q37: Total
G38: Min | H38: =MIN(H42:H53) -> 0 | I38: =MIN(I42:I53) -> 0 | O38: =IF(O407=0,O406,O407) -> 113.1904379 | Q38: =IF(Q407=0,Q406,Q407) -> 26.37017866
G39: Total | H39: =SUM(H42:H53) -> 26.37017866
N40: Year 1 | O40: Green | P40: Year 2 | Q40: Red
G41: Month | H41: 1 month | I41: 3 month | M41: Day | N41: Daily | O41: Accum | P41: Daily | Q41: Accum
G42: Jan | H42: 10.98561645 | I42: 30.16121889 | M42: =1 -> 1 | N42: 0.07465616517 | O42: =N42 -> 0.07465616517 | P42: 0.3717048197 | Q42: =P42 -> 0.3717048197
G43: Feb | H43: 13.81639546 | I43: 31.88191927 | M43: =M42+1 -> 2 | N43: 0.07465616517 | O43: =O42+N43 -> 0.1493123303 | P43: 0.2143142435 | Q43: 0.5860190632
G44: Mar | H44: 1.568166752 | I44: 26.37017866 | M44: =M43+1 -> 3 | N44: 0.1596258202 | O44: 0.3089381505 | P44: 0.2162685104 | Q44: 0.8022875736
G45: Apr | H45: 0 | I45: 15.38456221 | M45: 4 | N45: 0.1558630531 | O45: 0.4648012036 | P45: 0.2150658762 | Q45: 1.01735345
G46: May | H46: 0 | I46: 1.568166752 | M46: 5 | N46: 0.1522030334 | O46: 0.617004237 | P46: 0.2195988909 | Q46: 1.236952341
G47: Jun | H47: 0 | I47: 0 | M47: 6 | N47: 0.2631895928 | O47: 0.8801938298 | P47: 0.2195304557 | Q47: 1.456482796
G48: Jul | H48: 0 | I48: 0 | M48: 7 | N48: 0.262522378 | O48: 1.142716208 | P48: 0.2195304557 | Q48: 1.676013252
G49: Aug | H49: 0 | I49: 0 | M49: 8 | N49: 0.262522378 | O49: 1.405238586 | P49: 0.2219794733 | Q49: 1.897992725
G50: Sep | H50: 0 | I50: 0 | M50: 9 | N50: 0.2593760165 | O50: 1.664614602 | P50: 0.3150828016 | Q50: 2.213075527
G51: Oct | H51: 0 | I51: 0 | M51: 10 | N51: 0.1656059062 | O51: 1.830220509 | P51: 0.3122802094 | Q51: 2.525355737
G52: Nov | H52: 0 | I52: 0 | M52: 11 | N52: 0.1692436146 | O52: 1.999464123 | P52: 0.2706611107 | Q52: 2.796016847
G53: Dec | H53: 0 | I53: 0 | M53: 12 | N53: 0.1691175142 | O53: 2.168581637 | P53: 0.1690678211 | Q53: 2.965084668
M54: 13 | N54: 0 | O54: 2.168581637 | P54: 0.1768088906 | Q54: 3.141893559
M55: 14 | N55: 0 | O55: 2.168581637 | P55: 0.1768088906 | Q55: 3.318702449
M56: 15 | N56: 0 | O56: 2.168581637 | P56: 0.1768088906 | Q56: 3.49551134
M57: 16 | N57: 0 | O57: 2.168581637 | P57: 0.1706297048 | Q57: 3.666141045
M58: 17 | N58: 0 | O58: 2.168581637 | P58: 0.4059401981 | Q58: 4.072081243
M59: 18 | N59: 0 | O59: =O58+N59 -> 2.168581637 | P59: 0.434957705 | Q59: 4.507038948
M60: 19 | N60: 0 | O60: 2.168581637 | P60: 0.43852373 | Q60: 4.945562678
M61: 20 | N61: 0 | O61: 2.168581637 | P61: 0.6745264476 | Q61: 5.620089125
M62: 21 | N62: 0.3146976613 | O62: 2.483279299 | P62: 0.6745264476 | Q62: 6.294615573
M63: 22 | N63: 0.3146976613 | O63: 2.79797696 | P63: 0.670485607 | Q63: 6.96510118
M64: 23 | N64: 0.3150458942 | O64: 3.113022854 | P64: 0.4808167406 | Q64: 7.445917921
M65: 24 | N65: 0.03725012449 | O65: 3.150272979 | P65: 0.4950481227 | Q65: 7.940966043
M66: 25 | N66: 0.03597096697 | O66: 3.186243946 | P66: 0.4976551349 | Q66: 8.438621178
M67: 26 | N67: 0.03695537455 | O67: 3.22319932 | P67: 0.3710546381 | Q67: 8.809675816
M68: 27 | N68: 0.228506177 | O68: 3.451705497 | P68: 0.3817055736 | Q68: 9.19138139
M69: 28 | N69: 0.2272235336 | O69: 3.678929031 | P69: 0.3817055736 | Q69: 9.573086964
M70: 29 | N70: 0.2272235336 | O70: 3.906152564 | P70: 0.3676529479 | Q70: 9.940739911
M71: 30 | N71: 0.2248900403 | O71: 4.131042605 | P71: 0.5220244458 | Q71: 10.46276436
M72: 31 | N72: 0.1254602658 | O72: 4.256502871 | P72: 0.5228520889 | Q72: 10.98561645
M73: 32 | N73: 0.1265716024 | O73: 4.383074473 | P73: 0.5260769879 | Q73: 11.51169343
M74: 33 | N74: 0.1286666187 | O74: 4.511741092 | P74: 0.5628151843 | Q74: 12.07450862
M75: 34 | N75: 0.3851220495 | O75: =O74+N75 -> 4.896863141 | P75: 0.5603652073 | Q75: =Q74+P75 -> 12.63487383
M76: 35 | N76: 0.3848364301 | O76: 5.281699571 | P76: 0.5603652073 | Q76: 13.19523903
M77: 36 | N77: 0.3848364301 | O77: 5.666536001 | P77: 0.5586973638 | Q77: 13.7539364
M78: 37 | N78: 0.3874546007 | O78: 6.053990602 | P78: 0.5281502884 | Q78: 14.28208669
M79: 38 | N79: 0.6197729771 | O79: 6.673763579 | P79: 0.5313884565 | Q79: 14.81347514
M80: 39 | N80: 0.6197012774 | O80: 7.293464857 | P80: 0.5402070508 | Q80: 15.35368219
M81: 40 | N81: 0.6225090646 | O81: 7.915973921 | P81: 0.3665120972 | Q81: 15.72019429
M82: 41 | N82: 0.3878949418 | O82: 8.303868863 | P82: 0.3594438678 | Q82: 16.07963816
M83: 42 | N83: 0.3867682711 | O83: 8.690637134 | P83: 0.3594438678 | Q83: 16.43908203
M84: 43 | N84: 0.3867682711 | O84: 9.077405405 | P84: 0.3583160024 | Q84: 16.79739803
M85: 44 | N85: 0.3859102294 | O85: 9.463315634 | P85: 0.6119188181 | Q85: 17.40931685
M86: 45 | N86: 0.234745014 | O86: 9.698060648 | P86: 0.6147709146 | Q86: 18.02408776
M87: 46 | N87: 0.2482903449 | O87: 9.946350993 | P87: 0.6275240286 | Q87: 18.65161179
M88: 47 | N88: 0.2491315184 | O88: 10.19548251 | P88: 0.3840069095 | Q88: 19.0356187
M89: 48 | N89: 0.4694631815 | O89: 10.66494569 | P89: 0.3788721786 | Q89: 19.41449088
M90: 49 | N90: 0.473071237 | O90: 11.13801693 | P90: 0.3788721786 | Q90: 19.79336306
M91: 50 | N91: 0.473071237 | O91: 11.61108817 | P91: 0.3788721786 | Q91: 20.17223523
M92: 51 | N92: 0.473071237 | O92: 12.0841594 | P92: 0.3804311424 | Q92: 20.55266638
M93: 52 | N93: 0.6154403816 | O93: 12.69959979 | P93: 0.5326258125 | Q93: 21.08529219
M94: 53 | N94: 0.6117723278 | O94: 13.31137211 | P94: 0.5337130209 | Q94: 21.61900521
M95: 54 | N95: 0.6039810975 | O95: 13.91535321 | P95: 0.5337275688 | Q95: 22.15273278
M96: 55 | N96: 0.4655179964 | O96: 14.38087121 | P96: 0.4606077235 | Q96: 22.6133405
M97: 56 | N97: 0.4664745794 | O97: 14.84734579 | P97: 0.4606077235 | Q97: 23.07394823
M98: 57 | N98: 0.4664745794 | O98: 15.31382037 | P98: 0.4423773338 | Q98: 23.51632556
M99: 58 | N99: 0.4655369551 | O99: 15.77935732 | P99: 0.3913127078 | Q99: 23.90763827
M100: 59 | N100: 0.4746173716 | O100: 16.25397469 | P100: 0.4558885253 | Q100: 24.36352679
M101: 60 | N101: 0.4788527382 | O101: 16.73282743 | P101: 0.4384851143 | Q101: 24.80201191
M102: 61 | N102: 0.4695541692 | O102: 17.2023816 | P102: 0.3897125746 | Q102: 25.19172448
M103: 62 | N103: 0.4366668901 | O103: 17.63904849 | P103: 0.3914402466 | Q103: 25.58316473
M104: 63 | N104: 0.4397782507 | O104: 18.07882674 | P104: 0.3914402466 | Q104: 25.97460497
M105: 64 | N105: 0.4397782507 | O105: 18.51860499 | P105: 0.3955736841 | Q105: 26.37017866
M106: 65 | N106: 0.4368450454 | O106: 18.95545004 | P106: 0 | Q106: 26.37017866
M107: 66 | N107: 0.5965007548 | O107: 19.55195079 | P107: 0 | Q107: 26.37017866
M108: =M107+1 -> 67 | N108: 0.5971097156 | O108: 20.14906051 | P108: 0 | Q108: 26.37017866
M109: 68 | N109: 0.5950989738 | O109: 20.74415948 | P109: 0 | Q109: 26.37017866
M110: 69 | N110: 0.6905032232 | O110: 21.4346627 | P110: 0 | Q110: 26.37017866
M111: 70 | N111: 0.6889134861 | O111: 22.12357619 | P111: 0 | Q111: 26.37017866
M112: 71 | N112: 0.6889134861 | O112: 22.81248968 | P112: 0 | Q112: 26.37017866
M113: 72 | N113: 0.6873075359 | O113: 23.49979721 | P113: 0 | Q113: 26.37017866
M114: 73 | N114: 0.6543913459 | O114: 24.15418856 | P114: 0 | Q114: 26.37017866
M115: 74 | N115: 0.6597484866 | O115: 24.81393705 | P115: 0 | Q115: 26.37017866
M116: 75 | N116: 0.667001811 | O116: 25.48093886 | P116: 0 | Q116: 26.37017866
M117: 76 | N117: 0.4020820022 | O117: 25.88302086 | P117: 0 | Q117: 26.37017866
M118: 77 | N118: 0.3957775172 | O118: 26.27879838 | P118: 0 | Q118: 26.37017866
M119: 78 | N119: 0.3957775172 | O119: 26.67457589 | P119: 0 | Q119: 26.37017866
M120: 79 | N120: 0.4032647897 | O120: 27.07784068 | P120: 0 | Q120: 26.37017866
M121: 80 | N121: 0.7706946224 | O121: 27.84853531 | P121: 0 | Q121: 26.37017866
M122: 81 | N122: 0.7771418887 | O122: 28.62567719 | P122: 0 | Q122: 26.37017866
M123: 82 | N123: 0.7735154244 | O123: 29.39919262 | P123: 0 | Q123: 26.37017866
M124: 83 | N124: 0.5556543543 | O124: 29.95484697 | P124: 0 | Q124: 26.37017866
M125: 84 | N125: 0.5586877064 | O125: 30.51353468 | P125: 0 | Q125: 26.37017866
M126: 85 | N126: 0.5586877064 | O126: 31.07222239 | P126: 0 | Q126: 26.37017866
M127: 86 | N127: 0.5510725948 | O127: 31.62329498 | P127: 0 | Q127: 26.37017866
M128: 87 | N128: 0.7409502757 | O128: 32.36424526 | P128: 0 | Q128: 26.37017866
M129: 88 | N129: 0.7029153187 | O129: 33.06716057 | P129: 0 | Q129: 26.37017866
M130: 89 | N130: 0.6873674826 | O130: 33.75452806 | P130: 0 | Q130: 26.37017866
M131: 90 | N131: 0.2382016399 | O131: 33.9927297 | P131: 0 | Q131: 26.37017866
M132: 91 | N132: 0.3155787265 | O132: 34.30830842 | P132: 0 | Q132: 26.37017866
M133: 92 | N133: 0.3155787265 | O133: 34.62388715 | P133: 0 | Q133: 26.37017866
M134: 93 | N134: 0.3181258381 | O134: 34.94201299 | P134: 0 | Q134: 26.37017866
M135: 94 | N135: 0.5109303683 | O135: 35.45294336 | P135: 0 | Q135: 26.37017866
M136: 95 | N136: 0.5254489534 | O136: 35.97839231 | P136: 0 | Q136: 26.37017866
M137: 96 | N137: 0.4836888541 | O137: 36.46208116 | P137: 0 | Q137: 26.37017866
M138: 97 | N138: 0.5040272268 | O138: 36.96610839 | P138: 0 | Q138: 26.37017866
M139: 98 | N139: 0.4997871209 | O139: =O138+N139 -> 37.46589551 | P139: 0 | Q139: =Q138+P139 -> 26.37017866
M140: 99 | N140: 0.4997871209 | O140: 37.96568263 | P140: 0 | Q140: 26.37017866
M141: 100 | N141: 0.4927851054 | O141: 38.45846774 | P141: 0 | Q141: 26.37017866
M142: 101 | N142: 1.072831872 | O142: 39.53129961 | P142: 0 | Q142: 26.37017866
M143: 102 | N143: 1.073606855 | O143: 40.60490646 | P143: 0 | Q143: 26.37017866
M144: 103 | N144: 1.071736034 | O144: 41.6766425 | P144: 0 | Q144: 26.37017866
M145: 104 | N145: 0.9311969222 | O145: 42.60783942 | P145: 0 | Q145: 26.37017866
M146: 105 | N146: 0.9317351425 | O146: 43.53957456 | P146: 0 | Q146: 26.37017866
M147: 106 | N147: 0.9317351425 | O147: 44.47130971 | P147: 0 | Q147: 26.37017866
M148: 107 | N148: 0.9267619394 | O148: 45.39807165 | P148: 0 | Q148: 26.37017866
M149: 108 | N149: 0.5782569078 | O149: 45.97632855 | P149: 0 | Q149: 26.37017866
M150: 109 | N150: 0.5776923549 | O150: 46.55402091 | P150: 0 | Q150: 26.37017866
M151: 110 | N151: 0.5590870588 | O151: 47.11310797 | P151: 0 | Q151: 26.37017866
M152: 111 | N152: 0.8037378314 | O152: 47.9168458 | P152: 0 | Q152: 26.37017866
M153: 112 | N153: 0.8147152829 | O153: 48.73156108 | P153: 0 | Q153: 26.37017866
M154: 113 | N154: 0.8147152829 | O154: 49.54627636 | P154: 0 | Q154: 26.37017866
M155: 114 | N155: 0.7987841196 | O155: 50.34506048 | P155: 0 | Q155: 26.37017866
M156: 115 | N156: 0.2160273728 | O156: 50.56108786 | P156: 0 | Q156: 26.37017866
M157: 116 | N157: 0.2220926192 | O157: 50.78318048 | P157: 0 | Q157: 26.37017866
M158: 117 | N158: 0.2202289165 | O158: 51.00340939 | P158: 0 | Q158: 26.37017866
M159: 118 | N159: 0.2471273461 | O159: 51.25053674 | P159: 0 | Q159: 26.37017866
M160: 119 | N160: 0.2466082028 | O160: 51.49714494 | P160: 0 | Q160: 26.37017866
M161: 120 | N161: 0.2466082028 | O161: 51.74375314 | P161: 0 | Q161: 26.37017866
M162: 121 | N162: 0.2490734008 | O162: 51.99282654 | P162: 0 | Q162: 26.37017866
M163: 122 | N163: 0 | O163: 51.99282654 | P163: 0 | Q163: 26.37017866
M164: 123 | N164: 0 | O164: 51.99282654 | P164: 0 | Q164: 26.37017866
M165: 124 | N165: 0 | O165: 51.99282654 | P165: 0 | Q165: 26.37017866
M166: 125 | N166: 0.18649102 | O166: 52.17931756 | P166: 0 | Q166: 26.37017866
M167: 126 | N167: 0.1923438294 | O167: 52.37166139 | P167: 0 | Q167: 26.37017866
M168: 127 | N168: 0.1923438294 | O168: 52.56400522 | P168: 0 | Q168: 26.37017866
M169: 128 | N169: 0.1899609508 | O169: 52.75396617 | P169: 0 | Q169: 26.37017866
M170: 129 | N170: 0.5100195242 | O170: 53.2639857 | P170: 0 | Q170: 26.37017866
M171: 130 | N171: 0.5093302326 | O171: 53.77331593 | P171: 0 | Q171: 26.37017866
M172: =M171+1 -> 131 | N172: 0.5075471156 | O172: 54.28086305 | P172: 0 | Q172: 26.37017866
M173: 132 | N173: 0.6238974111 | O173: 54.90476046 | P173: 0 | Q173: 26.37017866
M174: 133 | N174: 0.6239553041 | O174: 55.52871576 | P174: 0 | Q174: 26.37017866
M175: 134 | N175: 0.6239553041 | O175: 56.15267107 | P175: 0 | Q175: 26.37017866
M176: 135 | N176: 0.6199182229 | O176: 56.77258929 | P176: 0 | Q176: 26.37017866
M177: 136 | N177: 0.4493578231 | O177: 57.22194711 | P177: 0 | Q177: 26.37017866
M178: 137 | N178: 0.4494244908 | O178: 57.6713716 | P178: 0 | Q178: 26.37017866
M179: 138 | N179: 0.4497697882 | O179: 58.12114139 | P179: 0 | Q179: 26.37017866
M180: 139 | N180: 0.1543759068 | O180: 58.2755173 | P180: 0 | Q180: 26.37017866
M181: 140 | N181: 0.1544490155 | O181: 58.42996631 | P181: 0 | Q181: 26.37017866
M182: 141 | N182: 0.1544490155 | O182: 58.58441533 | P182: 0 | Q182: 26.37017866
M183: 142 | N183: 0.1521656354 | O183: 58.73658096 | P183: 0 | Q183: 26.37017866
M184: 143 | N184: 0.3847514401 | O184: 59.1213324 | P184: 0 | Q184: 26.37017866
M185: 144 | N185: 0.3716194752 | O185: 59.49295188 | P185: 0 | Q185: 26.37017866
M186: 145 | N186: 0.3710421707 | O186: 59.86399405 | P186: 0 | Q186: 26.37017866
M187: 146 | N187: 0.1826080846 | O187: 60.04660214 | P187: 0 | Q187: 26.37017866
M188: 147 | N188: 0.1828334912 | O188: 60.22943563 | P188: 0 | Q188: 26.37017866
M189: 148 | N189: 0.1828334912 | O189: 60.41226912 | P189: 0 | Q189: 26.37017866
M190: 149 | N190: 0.1828334912 | O190: 60.59510261 | P190: 0 | Q190: 26.37017866
M191: 150 | N191: 0.1638509967 | O191: 60.75895361 | P191: 0 | Q191: 26.37017866
M192: 151 | N192: 0.1651937247 | O192: 60.92414733 | P192: 0 | Q192: 26.37017866
M193: 152 | N193: 0.1656156573 | O193: 61.08976299 | P193: 0 | Q193: 26.37017866
M194: 153 | N194: 0.1109759356 | O194: 61.20073892 | P194: 0 | Q194: 26.37017866
M195: 154 | N195: 0.1105283974 | O195: 61.31126732 | P195: 0 | Q195: 26.37017866
M196: 155 | N196: 0.1105283974 | O196: 61.42179572 | P196: 0 | Q196: 26.37017866
M197: 156 | N197: 0.114090396 | O197: 61.53588611 | P197: 0 | Q197: 26.37017866
M198: 157 | N198: 0.2045302298 | O198: 61.74041634 | P198: 0 | Q198: 26.37017866
M199: 158 | N199: 0.2053983064 | O199: 61.94581465 | P199: 0 | Q199: 26.37017866
M200: 159 | N200: 0.2066719629 | O200: 62.15248661 | P200: 0 | Q200: 26.37017866
M201: 160 | N201: 0 | O201: 62.15248661 | P201: 0 | Q201: 26.37017866
M202: 161 | N202: 0 | O202: 62.15248661 | P202: 0 | Q202: 26.37017866
M203: 162 | N203: 0 | O203: =O202+N203 -> 62.15248661 | P203: 0 | Q203: =Q202+P203 -> 26.37017866
M204: 163 | N204: 0 | O204: 62.15248661 | P204: 0 | Q204: 26.37017866
M205: 164 | N205: 0 | O205: 62.15248661 | P205: 0 | Q205: 26.37017866
M206: 165 | N206: 0 | O206: 62.15248661 | P206: 0 | Q206: 26.37017866
M207: 166 | N207: 0 | O207: 62.15248661 | P207: 0 | Q207: 26.37017866
M208: 167 | N208: 0 | O208: 62.15248661 | P208: 0 | Q208: 26.37017866
M209: 168 | N209: 0 | O209: 62.15248661 | P209: 0 | Q209: 26.37017866
M210: 169 | N210: 0 | O210: 62.15248661 | P210: 0 | Q210: 26.37017866
M211: 170 | N211: 0 | O211: 62.15248661 | P211: 0 | Q211: 26.37017866
M212: 171 | N212: 0 | O212: 62.15248661 | P212: 0 | Q212: 26.37017866
... 195 more rows

Sheet Time Reports
X2: Spring | Y2: Total P | Z2: mgd | AA2: Spring | AD2: 2023-01-01 | AE2: 2024-01-01 | AF2: 2024-01-01
X3: Creek | Y3: Flow | Z3: mgd | AA3: Creek | AD3: =AD2-43831+13 -> 1109 | AE3: 1474 | AF3: =AF2-43831+13 -> 1474
X4: After Filters | Y4: Daily Load | AA4: After Filters
X5: Backwash | AA5: After Clarifier
X6: After Clarifier | AA6: Discharge
X7: Waste | AA7: Waste
D8: Site | E8: Creek | J8: Site 1 | K8: Spring | X8: Discharge
D9: Parameter | E9: Flow | J9: Site 2 | K9: Creek
D10: Year 1 | E10: 2023 | J10: Parameter | K10: Flow | X10: Creek Flow 2023 Avg=4.842 2024 Avg=0.873
D11: Year 2 | E11: 2024 | J11: Year | K11: 2024
X12: 2024 Avg Flow Spring=0.328 Creek=0.873
D40: =E8 -> Creek | E40: average | G40: =E8 -> Creek | H40: average | J40: =K11 -> 2024 | K40: average | M40: =K11 -> 2024 | N40: average
D41: =E10 -> 2023 | E41: =AVERAGE(E42:E407) -> 4.842225449 | G41: =E11 -> 2024 | H41: =AVERAGE(H42:H407) -> 0.8730747549 | J41: =K8 -> Spring | K41: =AVERAGE(K42:K407) -> 0.3280957695 | M41: =K9 -> Creek | N41: =AVERAGE(N42:N407) -> 0.8730747549
C42: 2023-01-01 | D42: 1 | E42: 4.9785984 | G42: 1 | H42: 3.2731776 | J42: 1 | K42: 1.742422459 | M42: 1 | N42: 3.2731776
C43: 2023-01-02 | D43: =D42+1 -> 2 | E43: 4.9785984 | G43: =G42+1 -> 2 | H43: 3.2731776 | J43: 2 | K43: 1.778523393 | M43: =M42+1 -> 2 | N43: 3.2731776
C44: 2023-01-03 | D44: =D43+1 -> 3 | E44: 4.9785984 | G44: =G43+1 -> 3 | H44: 3.7945888 | J44: 3 | K44: 1.735825263 | M44: =M43+1 -> 3 | N44: 3.7945888
C45: 2023-01-04 | D45: 4 | E45: 4.9785984 | G45: 4 | H45: 3.7945888 | J45: 4 | K45: 1.718165732 | M45: 4 | N45: 3.7945888
C46: 2023-01-05 | D46: 5 | E46: 4.9785984 | G46: 5 | H46: 4.386 | J46: 5 | K46: 1.749230265 | M46: 5 | N46: 4.386
C47: 2023-01-06 | D47: 6 | E47: 4.9785984 | G47: 6 | H47: 4.281 | J47: 6 | K47: 1.748588024 | M47: 6 | N47: 4.281
C48: 2023-01-07 | D48: 7 | E48: 4.9785984 | G48: 7 | H48: 4.281 | J48: 7 | K48: 1.748588024 | M48: 7 | N48: 4.281
C49: 2023-01-08 | D49: 8 | E49: 4.9785984 | G49: 8 | H49: 4.336413747 | J49: 8 | K49: 1.800438875 | M49: 8 | N49: 4.336413747
C50: 2023-01-09 | D50: 9 | E50: 4.9785984 | G50: 9 | H50: 4.336413747 | J50: 9 | K50: 1.82362748 | M50: 9 | N50: 4.336413747
C51: 2023-01-10 | D51: 10 | E51: 4.9785984 | G51: 10 | H51: 4.766 | J51: 10 | K51: 1.818804176 | M51: 10 | N51: 4.766
C52: 2023-01-11 | D52: 11 | E52: 4.9785984 | G52: 11 | H52: 4.222 | J52: 11 | K52: 1.819650828 | M52: 11 | N52: 4.222
C53: 2023-01-12 | D53: 12 | E53: 4.9785984 | G53: 12 | H53: 4.08248248 | J53: 12 | K53: 1.821080122 | M53: 12 | N53: 4.08248248
C54: 2023-01-13 | D54: 13 | E54: 4.9785984 | G54: 13 | H54: 4.70296496 | J54: 13 | K54: 1.824988025 | M54: 13 | N54: 4.70296496
C55: 2023-01-14 | D55: 14 | E55: 4.9785984 | G55: 14 | H55: 4.70296496 | J55: 14 | K55: 1.824988025 | M55: 14 | N55: 4.70296496
C56: 2023-01-15 | D56: 15 | E56: 4.9785984 | G56: 15 | H56: 4.70296496 | J56: 15 | K56: 1.824988025 | M56: 15 | N56: 4.70296496
C57: 2023-01-16 | D57: 16 | E57: 4.9785984 | G57: 16 | H57: 4.138393284 | J57: 16 | K57: 1.827277149 | M57: 16 | N57: 4.138393284
C58: 2023-01-17 | D58: 17 | E58: 4.9785984 | G58: 17 | H58: 4.404729358 | J58: 17 | K58: 1.830951305 | M58: 17 | N58: 4.404729358
C59: 2023-01-18 | D59: 18 | E59: 4.9785984 | G59: 18 | H59: 4.995 | J59: 18 | K59: 1.830788933 | M59: 18 | N59: 4.995
C60: 2023-01-19 | D60: 19 | E60: 4.9785984 | G60: 19 | H60: 5.0095 | J60: 19 | K60: 1.828045338 | M60: 19 | N60: 5.0095
C61: 2023-01-20 | D61: 20 | E61: 4.9785984 | G61: 20 | H61: 5.024 | J61: 20 | K61: 1.825905401 | M61: 20 | N61: 5.024
C62: 2023-01-21 | D62: 21 | E62: 4.9785984 | G62: 21 | H62: 5.024 | J62: 21 | K62: 1.825905401 | M62: 21 | N62: 5.024
C63: 2023-01-22 | D63: 22 | E63: 4.9785984 | G63: 22 | H63: 5.008 | J63: 22 | K63: 1.830855898 | M63: 22 | N63: 5.008
C64: 2023-01-23 | D64: 23 | E64: 4.9785984 | G64: 23 | H64: 4.9515 | J64: 23 | K64: 1.836697766 | M64: 23 | N64: 4.9515
C65: 2023-01-24 | D65: 24 | E65: 4.9785984 | G65: 24 | H65: 5.140963183 | J65: 24 | K65: 1.838071702 | M65: 24 | N65: 5.140963183
C66: 2023-01-25 | D66: 25 | E66: 4.9785984 | G66: 25 | H66: 5.153822091 | J66: 25 | K66: 1.903797935 | M66: 25 | N66: 5.153822091
C67: 2023-01-26 | D67: 26 | E67: 4.9785984 | G67: 26 | H67: 4.899149321 | J67: 26 | K67: 1.887402963 | M67: 26 | N67: 4.899149321
C68: 2023-01-27 | D68: 27 | E68: 4.9785984 | G68: 27 | H68: 5.144532822 | J68: 27 | K68: 1.691747338 | M68: 27 | N68: 5.144532822
C69: 2023-01-28 | D69: 28 | E69: 4.9785984 | G69: 28 | H69: 5.144532822 | J69: 28 | K69: 1.691747338 | M69: 28 | N69: 5.144532822
C70: 2023-01-29 | D70: 29 | E70: 4.9785984 | G70: 29 | H70: 5.093481153 | J70: 29 | K70: 1.783063874 | M70: 29 | N70: 5.093481153
C71: 2023-01-30 | D71: 30 | E71: 4.9785984 | G71: 30 | H71: 5.040417579 | J71: 30 | K71: 1.870816419 | M71: 30 | N71: 5.040417579
C72: 2023-01-31 | D72: 31 | E72: 4.9785984 | G72: 31 | H72: 5.034305727 | J72: 31 | K72: 1.874789318 | M72: 31 | N72: 5.034305727
C73: 2023-02-01 | D73: 32 | E73: 4.9785984 | G73: 32 | H73: 5.031763789 | J73: 32 | K73: 1.871803772 | M73: 32 | N73: 5.031763789
C74: 2023-02-02 | D74: 33 | E74: 4.9785984 | G74: 33 | H74: 5.024585455 | J74: 33 | K74: 1.871136789 | M74: 33 | N74: 5.024585455
C75: 2023-02-03 | D75: 34 | E75: 4.9785984 | G75: 34 | H75: 5.021078838 | J75: 34 | K75: 1.872623061 | M75: 34 | N75: 5.021078838
C76: 2023-02-04 | D76: 35 | E76: 4.9785984 | G76: 35 | H76: 5.021078838 | J76: 35 | K76: 1.872623061 | M76: 35 | N76: 5.021078838
C77: 2023-02-05 | D77: 36 | E77: 4.9785984 | G77: 36 | H77: 5.018081583 | J77: 36 | K77: 1.873285814 | M77: 36 | N77: 5.018081583
C78: 2023-02-06 | D78: 37 | E78: 4.9785984 | G78: 37 | H78: 5.020922555 | J78: 37 | K78: 1.875097529 | M78: 37 | N78: 5.020922555
C79: 2023-02-07 | D79: 38 | E79: 4.9785984 | G79: 38 | H79: 5.026611972 | J79: 38 | K79: 1.880262453 | M79: 38 | N79: 5.026611972
C80: 2023-02-08 | D80: 39 | E80: 4.9785984 | G80: 39 | H80: 5.03359464 | J80: 39 | K80: 1.871863826 | M80: 39 | N80: 5.03359464
C81: 2023-02-09 | D81: 40 | E81: 4.9785984 | G81: 40 | H81: 5.03344633 | J81: 40 | K81: 1.86702447 | M81: 40 | N81: 5.03344633
C82: 2023-02-10 | D82: 41 | E82: 4.9785984 | G82: 41 | H82: 5.029026964 | J82: 41 | K82: 1.870936532 | M82: 41 | N82: 5.029026964
C83: 2023-02-11 | D83: 42 | E83: 4.9785984 | G83: 42 | H83: 5.029026964 | J83: 42 | K83: 1.870936532 | M83: 42 | N83: 5.029026964
C84: 2023-02-12 | D84: 43 | E84: 4.9785984 | G84: 43 | H84: 5.019197374 | J84: 43 | K84: 1.872617122 | M84: 43 | N84: 5.019197374
C85: 2023-02-13 | D85: 44 | E85: 4.9785984 | G85: 44 | H85: 5.009885877 | J85: 44 | K85: 1.875958463 | M85: 44 | N85: 5.009885877
C86: 2023-02-14 | D86: 45 | E86: 4.9785984 | G86: 45 | H86: 5.091232087 | J86: 45 | K86: 1.87804972 | M86: 45 | N86: 5.091232087
C87: 2023-02-15 | D87: 46 | E87: 4.9785984 | G87: 46 | H87: 5.169958431 | J87: 46 | K87: 1.875807454 | M87: 46 | N87: 5.169958431
C88: 2023-02-16 | D88: 47 | E88: 4.9785984 | G88: 47 | H88: 5.183873385 | J88: 47 | K88: 1.873461896 | M88: 47 | N88: 5.183873385
C89: 2023-02-17 | D89: 48 | E89: 4.9785984 | G89: 48 | H89: 5.184154589 | J89: 48 | K89: 1.872141656 | M89: 48 | N89: 5.184154589
C90: 2023-02-18 | D90: 49 | E90: 4.9785984 | G90: 49 | H90: 5.184154589 | J90: 49 | K90: 1.872141656 | M90: 49 | N90: 5.184154589
C91: 2023-02-19 | D91: 50 | E91: 4.9785984 | G91: 50 | H91: 5.184154589 | J91: 50 | K91: 1.872141656 | M91: 50 | N91: 5.184154589
C92: 2023-02-20 | D92: 51 | E92: 4.9785984 | G92: 51 | H92: 5.1862254 | J92: 51 | K92: 1.873846086 | M92: 51 | N92: 5.1862254
C93: 2023-02-21 | D93: 52 | E93: 4.9785984 | G93: 52 | H93: 5.189342444 | J93: 52 | K93: 1.875911622 | M93: 52 | N93: 5.189342444
C94: 2023-02-22 | D94: 53 | E94: 4.9785984 | G94: 53 | H94: 5.190298211 | J94: 53 | K94: 1.876385389 | M94: 53 | N94: 5.190298211
C95: 2023-02-23 | D95: 54 | E95: 4.9785984 | G95: 54 | H95: 5.186435604 | J95: 54 | K95: 1.875073566 | M95: 54 | N95: 5.186435604
C96: 2023-02-24 | D96: 55 | E96: 4.9785984 | G96: 55 | H96: 5.182921348 | J96: 55 | K96: 1.873870042 | M96: 55 | N96: 5.182921348
C97: 2023-02-25 | D97: 56 | E97: 4.9785984 | G97: 56 | H97: 5.182921348 | J97: 56 | K97: 1.873870042 | M97: 56 | N97: 5.182921348
C98: 2023-02-26 | D98: 57 | E98: 4.9785984 | G98: 57 | H98: 5.185058075 | J98: 57 | K98: 1.634135296 | M98: 57 | N98: 5.185058075
C99: 2023-02-27 | D99: 58 | E99: 4.9785984 | G99: 58 | H99: 5.228889205 | J99: 58 | K99: 1.670959493 | M99: 58 | N99: 5.228889205
C100: 2023-02-28 | D100: 59 | E100: 4.9785984 | G100: 59 | H100: 5.255609095 | J100: 59 | K100: 1.860422096 | M100: 59 | N100: 5.255609095
C101: 2023-03-01 | D101: 60 | E101: 4.9785984 | G101: 60 | H101: 5.247346174 | J101: 60 | K101: 1.855633046 | M101: 60 | N101: 5.247346174
C102: 2023-03-02 | D102: 61 | E102: 4.9785984 | G102: 61 | H102: 5.247949569 | J102: 61 | K102: 1.853632583 | M102: 61 | N102: 5.247949569
C103: 2023-03-03 | D103: 62 | E103: 4.9785984 | G103: 62 | H103: 5.249710384 | J103: 62 | K103: 1.852718414 | M103: 62 | N103: 5.249710384
C104: 2023-03-04 | D104: 63 | E104: 4.9785984 | G104: 63 | H104: 5.249710384 | J104: 63 | K104: 1.852718414 | M104: 63 | N104: 5.249710384
C105: 2023-03-05 | D105: 64 | E105: 4.9785984 | G105: 64 | H105: 5.255462299 | J105: 64 | K105: 1.852502771 | M105: 64 | N105: 5.255462299
C106: 2023-03-06 | D106: 65 | E106: 4.9785984 | G106: 65 | H106: 5.238520827 | J106: 65 | K106: 1.852633827 | M106: 65 | N106: 5.238520827
C107: 2023-03-07 | D107: 66 | E107: 4.9785984 | G107: 66 | H107: 2.811066085 | J107: 66 | K107: 1.001052698 | M107: 66 | N107: 2.811066085
C108: 2023-03-08 | D108: =D107+1 -> 67 | E108: 4.9785984 | G108: =G107+1 -> 67 | H108: 0 | J108: 67 | K108: 0 | M108: =M107+1 -> 67 | N108: 0
C109: 2023-03-09 | D109: 68 | E109: 4.9785984 | G109: 68 | H109: 0 | J109: 68 | K109: 0 | M109: 68 | N109: 0
C110: 2023-03-10 | D110: 69 | E110: 4.9785984 | G110: 69 | H110: 0 | J110: 69 | K110: 0 | M110: 69 | N110: 0
C111: 2023-03-11 | D111: 70 | E111: 4.9785984 | G111: 70 | H111: 0 | J111: 70 | K111: 0 | M111: 70 | N111: 0
C112: 2023-03-12 | D112: 71 | E112: 4.9785984 | G112: 71 | H112: 0 | J112: 71 | K112: 0 | M112: 71 | N112: 0
C113: 2023-03-13 | D113: 72 | E113: 4.9785984 | G113: 72 | H113: 0 | J113: 72 | K113: 0 | M113: 72 | N113: 0
C114: 2023-03-14 | D114: 73 | E114: 4.9785984 | G114: 73 | H114: 0 | J114: 73 | K114: 0 | M114: 73 | N114: 0
C115: 2023-03-15 | D115: 74 | E115: 4.9785984 | G115: 74 | H115: 0 | J115: 74 | K115: 0 | M115: 74 | N115: 0
C116: 2023-03-16 | D116: 75 | E116: 4.9785984 | G116: 75 | H116: 0 | J116: 75 | K116: 0 | M116: 75 | N116: 0
C117: 2023-03-17 | D117: 76 | E117: 4.9785984 | G117: 76 | H117: 0 | J117: 76 | K117: 0 | M117: 76 | N117: 0
C118: 2023-03-18 | D118: 77 | E118: 4.9785984 | G118: 77 | H118: 0 | J118: 77 | K118: 0 | M118: 77 | N118: 0
C119: 2023-03-19 | D119: 78 | E119: 4.9785984 | G119: 78 | H119: 0 | J119: 78 | K119: 0 | M119: 78 | N119: 0
C120: 2023-03-20 | D120: 79 | E120: 4.9785984 | G120: 79 | H120: 0 | J120: 79 | K120: 0 | M120: 79 | N120: 0
C121: 2023-03-21 | D121: 80 | E121: 4.9785984 | G121: 80 | H121: 0 | J121: 80 | K121: 0 | M121: 80 | N121: 0
C122: 2023-03-22 | D122: 81 | E122: 4.9785984 | G122: 81 | H122: 0 | J122: 81 | K122: 0 | M122: 81 | N122: 0
C123: 2023-03-23 | D123: 82 | E123: 4.9785984 | G123: 82 | H123: 0 | J123: 82 | K123: 0 | M123: 82 | N123: 0
C124: 2023-03-24 | D124: 83 | E124: 4.9785984 | G124: 83 | H124: 0 | J124: 83 | K124: 0 | M124: 83 | N124: 0
C125: 2023-03-25 | D125: 84 | E125: 4.9785984 | G125: 84 | H125: 0 | J125: 84 | K125: 0 | M125: 84 | N125: 0
C126: 2023-03-26 | D126: 85 | E126: 4.9785984 | G126: 85 | H126: 0 | J126: 85 | K126: 0 | M126: 85 | N126: 0
C127: 2023-03-27 | D127: 86 | E127: 4.9785984 | G127: 86 | H127: 0 | J127: 86 | K127: 0 | M127: 86 | N127: 0
C128: 2023-03-28 | D128: 87 | E128: 4.9785984 | G128: 87 | H128: 0 | J128: 87 | K128: 0 | M128: 87 | N128: 0
C129: 2023-03-29 | D129: 88 | E129: 4.9785984 | G129: 88 | H129: 0 | J129: 88 | K129: 0 | M129: 88 | N129: 0
C130: 2023-03-30 | D130: 89 | E130: 4.9785984 | G130: 89 | H130: 0 | J130: 89 | K130: 0 | M130: 89 | N130: 0
C131: 2023-03-31 | D131: 90 | E131: 4.9785984 | G131: 90 | H131: 0 | J131: 90 | K131: 0 | M131: 90 | N131: 0
C132: 2023-04-01 | D132: 91 | E132: 4.9785984 | G132: 91 | H132: 0 | J132: 91 | K132: 0 | M132: 91 | N132: 0
C133: 2023-04-02 | D133: 92 | E133: 4.9785984 | G133: 92 | H133: 0 | J133: 92 | K133: 0 | M133: 92 | N133: 0
C134: 2023-04-03 | D134: 93 | E134: 4.9785984 | G134: 93 | H134: 0 | J134: 93 | K134: 0 | M134: 93 | N134: 0
C135: 2023-04-04 | D135: 94 | E135: 4.9785984 | G135: 94 | H135: 0 | J135: 94 | K135: 0 | M135: 94 | N135: 0
C136: 2023-04-05 | D136: 95 | E136: 5.59285056 | G136: 95 | H136: 0 | J136: 95 | K136: 0 | M136: 95 | N136: 0
C137: 2023-04-06 | D137: 96 | E137: 5.990412519 | G137: 96 | H137: 0 | J137: 96 | K137: 0 | M137: 96 | N137: 0
C138: 2023-04-07 | D138: 97 | E138: 5.723329248 | G138: 97 | H138: 0 | J138: 97 | K138: 0 | M138: 97 | N138: 0
C139: 2023-04-08 | D139: 98 | E139: 5.723329248 | G139: 98 | H139: 0 | J139: 98 | K139: 0 | M139: 98 | N139: 0
C140: 2023-04-09 | D140: 99 | E140: 5.723329248 | G140: 99 | H140: 0 | J140: 99 | K140: 0 | M140: 99 | N140: 0
C141: 2023-04-10 | D141: 100 | E141: 5.723329248 | G141: 100 | H141: 0 | J141: 100 | K141: 0 | M141: 100 | N141: 0
C142: 2023-04-11 | D142: 101 | E142: 5.723329248 | G142: 101 | H142: 0 | J142: 101 | K142: 0 | M142: 101 | N142: 0
C143: 2023-04-12 | D143: 102 | E143: 5.723329248 | G143: 102 | H143: 0 | J143: 102 | K143: 0 | M143: 102 | N143: 0
C144: 2023-04-13 | D144: 103 | E144: 5.723329248 | G144: 103 | H144: 0 | J144: 103 | K144: 0 | M144: 103 | N144: 0
C145: 2023-04-14 | D145: 104 | E145: 5.723329248 | G145: 104 | H145: 0 | J145: 104 | K145: 0 | M145: 104 | N145: 0
C146: 2023-04-15 | D146: 105 | E146: 5.723329248 | G146: 105 | H146: 0 | J146: 105 | K146: 0 | M146: 105 | N146: 0
C147: 2023-04-16 | D147: 106 | E147: 5.723329248 | G147: 106 | H147: 0 | J147: 106 | K147: 0 | M147: 106 | N147: 0
C148: 2023-04-17 | D148: 107 | E148: 5.723329248 | G148: 107 | H148: 0 | J148: 107 | K148: 0 | M148: 107 | N148: 0
C149: 2023-04-18 | D149: 108 | E149: 5.723329248 | G149: 108 | H149: 0 | J149: 108 | K149: 0 | M149: 108 | N149: 0
C150: 2023-04-19 | D150: 109 | E150: 5.723329248 | G150: 109 | H150: 0 | J150: 109 | K150: 0 | M150: 109 | N150: 0
C151: 2023-04-20 | D151: 110 | E151: 5.723329248 | G151: 110 | H151: 0 | J151: 110 | K151: 0 | M151: 110 | N151: 0
C152: 2023-04-21 | D152: 111 | E152: 5.723329248 | G152: 111 | H152: 0 | J152: 111 | K152: 0 | M152: 111 | N152: 0
C153: 2023-04-22 | D153: 112 | E153: 5.723329248 | G153: 112 | H153: 0 | J153: 112 | K153: 0 | M153: 112 | N153: 0
C154: 2023-04-23 | D154: 113 | E154: 5.723329248 | G154: 113 | H154: 0 | J154: 113 | K154: 0 | M154: 113 | N154: 0
C155: 2023-04-24 | D155: 114 | E155: 5.723329248 | G155: 114 | H155: 0 | J155: 114 | K155: 0 | M155: 114 | N155: 0
C156: 2023-04-25 | D156: 115 | E156: 6.267574404 | G156: 115 | H156: 0 | J156: 115 | K156: 0 | M156: 115 | N156: 0
C157: 2023-04-26 | D157: 116 | E157: 6.81181956 | G157: 116 | H157: 0 | J157: 116 | K157: 0 | M157: 116 | N157: 0
C158: 2023-04-27 | D158: 117 | E158: 6.81181956 | G158: 117 | H158: 0 | J158: 117 | K158: 0 | M158: 117 | N158: 0
C159: 2023-04-28 | D159: 118 | E159: 6.81181956 | G159: 118 | H159: 0 | J159: 118 | K159: 0 | M159: 118 | N159: 0
C160: 2023-04-29 | D160: 119 | E160: 6.81181956 | G160: 119 | H160: 0 | J160: 119 | K160: 0 | M160: 119 | N160: 0
C161: 2023-04-30 | D161: 120 | E161: 6.81181956 | G161: 120 | H161: 0 | J161: 120 | K161: 0 | M161: 120 | N161: 0
C162: 2023-05-01 | D162: 121 | E162: 6.81181956 | G162: 121 | H162: 0 | J162: 121 | K162: 0 | M162: 121 | N162: 0
C163: 2023-05-02 | D163: 122 | E163: 6.81181956 | G163: 122 | H163: 0 | J163: 122 | K163: 0 | M163: 122 | N163: 0
C164: 2023-05-03 | D164: 123 | E164: 6.81181956 | G164: 123 | H164: 0 | J164: 123 | K164: 0 | M164: 123 | N164: 0
C165: 2023-05-04 | D165: 124 | E165: 6.81181956 | G165: 124 | H165: 0 | J165: 124 | K165: 0 | M165: 124 | N165: 0
C166: 2023-05-05 | D166: 125 | E166: 6.81181956 | G166: 125 | H166: 0 | J166: 125 | K166: 0 | M166: 125 | N166: 0
C167: 2023-05-06 | D167: 126 | E167: 6.81181956 | G167: 126 | H167: 0 | J167: 126 | K167: 0 | M167: 126 | N167: 0
C168: 2023-05-07 | D168: 127 | E168: 6.81181956 | G168: 127 | H168: 0 | J168: 127 | K168: 0 | M168: 127 | N168: 0
C169: 2023-05-08 | D169: 128 | E169: 6.81181956 | G169: 128 | H169: 0 | J169: 128 | K169: 0 | M169: 128 | N169: 0
C170: 2023-05-09 | D170: 129 | E170: 6.81181956 | G170: 129 | H170: 0 | J170: 129 | K170: 0 | M170: 129 | N170: 0
C171: 2023-05-10 | D171: 130 | E171: 6.81181956 | G171: 130 | H171: 0 | J171: 130 | K171: 0 | M171: 130 | N171: 0
C172: 2023-05-11 | D172: =D171+1 -> 131 | E172: 6.81181956 | G172: =G171+1 -> 131 | H172: 0 | J172: 131 | K172: 0 | M172: =M171+1 -> 131 | N172: 0
C173: 2023-05-12 | D173: 132 | E173: 6.81181956 | G173: 132 | H173: 0 | J173: 132 | K173: 0 | M173: 132 | N173: 0
C174: 2023-05-13 | D174: 133 | E174: 6.81181956 | G174: 133 | H174: 0 | J174: 133 | K174: 0 | M174: 133 | N174: 0
C175: 2023-05-14 | D175: 134 | E175: 6.81181956 | G175: 134 | H175: 0 | J175: 134 | K175: 0 | M175: 134 | N175: 0
C176: 2023-05-15 | D176: 135 | E176: 6.81181956 | G176: 135 | H176: 0 | J176: 135 | K176: 0 | M176: 135 | N176: 0
C177: 2023-05-16 | D177: 136 | E177: 6.81181956 | G177: 136 | H177: 0 | J177: 136 | K177: 0 | M177: 136 | N177: 0
C178: 2023-05-17 | D178: 137 | E178: 6.81181956 | G178: 137 | H178: 0 | J178: 137 | K178: 0 | M178: 137 | N178: 0
C179: 2023-05-18 | D179: 138 | E179: 6.81181956 | G179: 138 | H179: 0 | J179: 138 | K179: 0 | M179: 138 | N179: 0
C180: 2023-05-19 | D180: 139 | E180: 6.81181956 | G180: 139 | H180: 0 | J180: 139 | K180: 0 | M180: 139 | N180: 0
C181: 2023-05-20 | D181: 140 | E181: 6.81181956 | G181: 140 | H181: 0 | J181: 140 | K181: 0 | M181: 140 | N181: 0
C182: 2023-05-21 | D182: 141 | E182: 6.81181956 | G182: 141 | H182: 0 | J182: 141 | K182: 0 | M182: 141 | N182: 0
C183: 2023-05-22 | D183: 142 | E183: 6.81181956 | G183: 142 | H183: 0 | J183: 142 | K183: 0 | M183: 142 | N183: 0
C184: 2023-05-23 | D184: 143 | E184: 6.50946114 | G184: 143 | H184: 0 | J184: 143 | K184: 0 | M184: 143 | N184: 0
C185: 2023-05-24 | D185: 144 | E185: 6.20710272 | G185: 144 | H185: 0 | J185: 144 | K185: 0 | M185: 144 | N185: 0
C186: 2023-05-25 | D186: 145 | E186: 6.20710272 | G186: 145 | H186: 0 | J186: 145 | K186: 0 | M186: 145 | N186: 0
C187: 2023-05-26 | D187: 146 | E187: 6.20710272 | G187: 146 | H187: 0 | J187: 146 | K187: 0 | M187: 146 | N187: 0
C188: 2023-05-27 | D188: 147 | E188: 6.20710272 | G188: 147 | H188: 0 | J188: 147 | K188: 0 | M188: 147 | N188: 0
C189: 2023-05-28 | D189: 148 | E189: 6.20710272 | G189: 148 | H189: 0 | J189: 148 | K189: 0 | M189: 148 | N189: 0
C190: 2023-05-29 | D190: 149 | E190: 6.20710272 | G190: 149 | H190: 0 | J190: 149 | K190: 0 | M190: 149 | N190: 0
C191: 2023-05-30 | D191: 150 | E191: 6.20710272 | G191: 150 | H191: 0 | J191: 150 | K191: 0 | M191: 150 | N191: 0
C192: 2023-05-31 | D192: 151 | E192: 6.20710272 | G192: 151 | H192: 0 | J192: 151 | K192: 0 | M192: 151 | N192: 0
C193: 2023-06-01 | D193: 152 | E193: 6.20710272 | G193: 152 | H193: 0 | J193: 152 | K193: 0 | M193: 152 | N193: 0
C194: 2023-06-02 | D194: 153 | E194: 6.20710272 | G194: 153 | H194: 0 | J194: 153 | K194: 0 | M194: 153 | N194: 0
C195: 2023-06-03 | D195: 154 | E195: 6.20710272 | G195: 154 | H195: 0 | J195: 154 | K195: 0 | M195: 154 | N195: 0
C196: 2023-06-04 | D196: 155 | E196: 6.20710272 | G196: 155 | H196: 0 | J196: 155 | K196: 0 | M196: 155 | N196: 0
C197: 2023-06-05 | D197: 156 | E197: 6.20710272 | G197: 156 | H197: 0 | J197: 156 | K197: 0 | M197: 156 | N197: 0
C198: 2023-06-06 | D198: 157 | E198: 6.20710272 | G198: 157 | H198: 0 | J198: 157 | K198: 0 | M198: 157 | N198: 0
C199: 2023-06-07 | D199: 158 | E199: 6.20710272 | G199: 158 | H199: 0 | J199: 158 | K199: 0 | M199: 158 | N199: 0
C200: 2023-06-08 | D200: 159 | E200: 6.20710272 | G200: 159 | H200: 0 | J200: 159 | K200: 0 | M200: 159 | N200: 0
C201: 2023-06-09 | D201: 160 | E201: 6.20710272 | G201: 160 | H201: 0 | J201: 160 | K201: 0 | M201: 160 | N201: 0
C202: 2023-06-10 | D202: 161 | E202: 6.20710272 | G202: 161 | H202: 0 | J202: 161 | K202: 0 | M202: 161 | N202: 0
C203: 2023-06-11 | D203: 162 | E203: 6.20710272 | G203: 162 | H203: 0 | J203: 162 | K203: 0 | M203: 162 | N203: 0
C204: 2023-06-12 | D204: 163 | E204: 6.20710272 | G204: 163 | H204: 0 | J204: 163 | K204: 0 | M204: 163 | N204: 0
C205: 2023-06-13 | D205: 164 | E205: 6.20710272 | G205: 164 | H205: 0 | J205: 164 | K205: 0 | M205: 164 | N205: 0
C206: 2023-06-14 | D206: 165 | E206: 6.20710272 | G206: 165 | H206: 0 | J206: 165 | K206: 0 | M206: 165 | N206: 0
C207: 2023-06-15 | D207: 166 | E207: 6.20710272 | G207: 166 | H207: 0 | J207: 166 | K207: 0 | M207: 166 | N207: 0
C208: 2023-06-16 | D208: 167 | E208: 6.20710272 | G208: 167 | H208: 0 | J208: 167 | K208: 0 | M208: 167 | N208: 0
C209: 2023-06-17 | D209: 168 | E209: 6.20710272 | G209: 168 | H209: 0 | J209: 168 | K209: 0 | M209: 168 | N209: 0
C210: 2023-06-18 | D210: 169 | E210: 6.20710272 | G210: 169 | H210: 0 | J210: 169 | K210: 0 | M210: 169 | N210: 0
C211: 2023-06-19 | D211: 170 | E211: 6.20710272 | G211: 170 | H211: 0 | J211: 170 | K211: 0 | M211: 170 | N211: 0
C212: 2023-06-20 | D212: 171 | E212: 5.74271136 | G212: 171 | H212: 0 | J212: 171 | K212: 0 | M212: 171 | N212: 0
C213: 2023-06-21 | D213: 172 | E213: 5.27832 | G213: 172 | H213: 0 | J213: 172 | K213: 0 | M213: 172 | N213: 0
C214: 2023-06-22 | D214: 173 | E214: 5.27832 | G214: 173 | H214: 0 | J214: 173 | K214: 0 | M214: 173 | N214: 0
C215: 2023-06-23 | D215: 174 | E215: 5.27832 | G215: 174 | H215: 0 | J215: 174 | K215: 0 | M215: 174 | N215: 0
C216: 2023-06-24 | D216: 175 | E216: 5.27832 | G216: 175 | H216: 0 | J216: 175 | K216: 0 | M216: 175 | N216: 0
C217: 2023-06-25 | D217: 176 | E217: 5.27832 | G217: 176 | H217: 0 | J217: 176 | K217: 0 | M217: 176 | N217: 0
C218: 2023-06-26 | D218: 177 | E218: 5.27832 | G218: 177 | H218: 0 | J218: 177 | K218: 0 | M218: 177 | N218: 0
C219: 2023-06-27 | D219: 178 | E219: 5.27832 | G219: 178 | H219: 0 | J219: 178 | K219: 0 | M219: 178 | N219: 0
C220: 2023-06-28 | D220: 179 | E220: 5.27832 | G220: 179 | H220: 0 | J220: 179 | K220: 0 | M220: 179 | N220: 0
C221: 2023-06-29 | D221: 180 | E221: 5.27832 | G221: 180 | H221: 0 | J221: 180 | K221: 0 | M221: 180 | N221: 0
C222: 2023-06-30 | D222: 181 | E222: 5.27832 | G222: 181 | H222: 0 | J222: 181 | K222: 0 | M222: 181 | N222: 0
C223: 2023-07-01 | D223: 182 | E223: 5.27832 | G223: 182 | H223: 0 | J223: 182 | K223: 0 | M223: 182 | N223: 0
C224: 2023-07-02 | D224: 183 | E224: 5.27832 | G224: 183 | H224: 0 | J224: 183 | K224: 0 | M224: 183 | N224: 0
C225: 2023-07-03 | D225: 184 | E225: 5.27832 | G225: 184 | H225: 0 | J225: 184 | K225: 0 | M225: 184 | N225: 0
C226: 2023-07-04 | D226: 185 | E226: 5.27832 | G226: 185 | H226: 0 | J226: 185 | K226: 0 | M226: 185 | N226: 0
C227: 2023-07-05 | D227: 186 | E227: 5.27832 | G227: 186 | H227: 0 | J227: 186 | K227: 0 | M227: 186 | N227: 0
C228: 2023-07-06 | D228: 187 | E228: 5.27832 | G228: 187 | H228: 0 | J228: 187 | K228: 0 | M228: 187 | N228: 0
... 180 more rows

Sheet Miscellaneous Data
R4: Enter Year
R5: 2023
M8: Brundage | N8: Brundage | O8: Brundage | P8: Discharge | Q8: Discharge | R8: Discharge
M9: Flow | N9: TP | O9: Load | P9: Flow | Q9: TP | R9: Load
C10: Divide Volume | H10: Flow | K10: Flow | M10: 5.394365389 | N10: 10.93029842 | O10: 180.3381018 | P10: 7.812386245 | Q10: 12.7852405 | R10: 305.8553395
C11: Readings By | H11: Multiplier | K11: Multiplier
B12: Spring | C12: 1000 | D12: units = million gallons | G12: Backwash 1 | H12: 20.71 | J12: Waste 1 | K12: 1417.96
B13: Creek | C13: 1000 | D13: units = million gallons | G13: Backwash 2 | H13: 27.58 | J13: Waste 2 | K13: 1063.5
B14: Filters | C14: 100 | D14: units = million gallons | G14: Backwash 3 | H14: 31.23 | J14: Waste 3 | K14: 1099.4
B15: Waste | C15: 100 | D15: units = million gallons
H16: Creek 5 | K16: Creek 6
G17: Slope | H17: 80.52 | J17: Slope | K17: 104.07
G18: Intercept | H18: -1914 | J18: Intercept | K18: -2578.7
G19: Combination | H19: 0.91 | J19: Combination | K19: 0.91
